Workbook

Sheet HOME (hidden)
R1: 1 | W1: b1sm1ll4h | Z1: =CLEAN(Y1) ->  | AP1: Windows (32-bit) NT 10.00
K2: Stock Trading Journal | W2: rocketsheets.com | X2: SDF | Z2: =IFERROR(IF(Z1="",W3-2,IF(AE6="QR",AO7,W3-2)),W3-2) -> 4498600.00%
K3: Professional Journaling Solution | S3: STJ-Ver.10 | W3: 4498800.00% | Z3: =IF(AA3="","Rocketsheets",AA3) -> Rocketsheets | AA3: =PROPER(TRIM(CONCATENATE(AJ15,AJ16,AJ17,AJ18,AJ19,AJ20,AJ21,AJ22,AJ23,AJ24,AJ25,AJ26,AJ27,AJ28,AJ29,AJ30,AJ31,AJ32,AJ33,AJ34,AJ35,AJ36,AJ37,AJ38,AJ39,AJ40,AJ41,AJ42,AJ43,AJ44,AJ45,AJ46,AJ47,AJ48,AJ49,AJ50,AJ51,AJ52,AJ53,AJ54))) ->  | AD3: name | AE3: =AB7 ->  | AF3: =LEN(AE3) -> 0 | AO3: 0
S4: ="Registered to "&'Trade Log'!$F$3 -> Registered to Rocketsheets | W4: 4498600.00% | AO4: =VALUE($AN$15&$AN$16&"/"&$AN$17&$AN$18&"/"&$AN$19&$AN$20) -> 45241 | AP4: MDY
AD5: date | AE5: =Form!G7 -> 0 | AO5: =VALUE($AN$17&$AN$18&"/"&$AN$15&$AN$16&"/"&$AN$19&$AN$20) -> 45241 | AP5: DMY
W6: 1 | Y6: Inputs | AD6: ID | AE6: =AG9&AH9 -> 00 | AO6: =VALUE(AN19&AN20&"/"&AN15&AN16&"/"&AN17&AN18) ->  | AP6: YMD
W7: 2 | Y7: Name | Z7: =IF(Form!G5=0,"",Form!G5) ->  | AA7: =LEN(Z7) -> 0 | AB7: =TRIM(Z16&Z17&Z18&Z19&Z20&Z21&Z22&Z23&Z24&Z25&Z26&Z27&Z28&Z29&Z30&Z31&Z32&Z33&Z34&Z35&Z36&Z37&Z38&Z39&Z40&Z41&Z42&Z43&Z44&Z45&Z46&Z47&Z48&Z49&Z50&Z51&Z52&Z53&Z54&Z55) ->  | AO7: =IF(AO3=0,AO4,IF(AO3=1,AO5,AO6)) -> 45241
W8: BSMLH-0107
Y9: =AB7&AE5 -> 0 | AB9: =RIGHT(LEFT(AE5,2),1) -> 0 | AC9: =RIGHT(LEFT(AE5,5),1) -> 0 | AD9: =INDEX($AF$15:$AF$54,MATCH($AB$9,$AC$15:$AC$54,0)) -> 1 | AE9: =INDEX($AF$15:$AF$54,MATCH($AC$9,$AC$15:$AC$54,0)) -> 1 | AG9: =LEFT(AE5,1) -> 0 | AH9: =RIGHT(AE5,1) -> 0
W10: =IF(W6="","Please Enable Macro",IF(X10=1,"Please Enable Macro",IF(W6=1,IF(AND(W6=1,OR(W7="",W7=1)),"Registration Error!","Welcome!"),"Welcome!"))) -> Welcome! | X10: 0 | AA10: =YEAR(TODAY()) -> 2023 | AB10: =RIGHT(LEFT(AE5,4),1) -> 0 | AC10: =RIGHT(LEFT(AE5,3),1) -> 0 | AD10: =INDEX($AF$15:$AF$54,MATCH($AB$10,$AC$15:$AC$54,0)) -> 1 | AE10: =INDEX($AF$15:$AF$54,MATCH($AC$10,$AC$15:$AC$54,0)) -> 1 | AG10: =INDEX($AF$15:$AF$54,MATCH($AG$9,$AC$15:$AC$54,0)) -> 1 | AH10: =INDEX($AF$15:$AF$54,MATCH($AH$9,$AC$15:$AC$54,0)) -> 1
W11: =IF(W10="registration error!","Registered to "&'Trade Log'!$F$3&". Please contact AAES if you received this error.",IF(W10="Please Enable Macro","All sheet calculations are based on macro, scroll down for tutorial.","Successfully "&S4&".")) -> Successfully Registered to Rocketsheets. | AA11: =RIGHT(AA10,2) -> 23 | AB11: =LEFT(AA11,1) -> 2 | AC11: =RIGHT(AA11,1) -> 3 | AD11: =AB11 -> 2 | AE11: =AC11 -> 3
C12: =W10 -> Welcome!
D13: =W11 -> Successfully Registered to Rocketsheets.
AC14: CODE2 | AM14: date | AN14: date
D15: If sheets did'nt appear, macro is disabled. Follow steps below. | N15: System Requirements: MS Excel | Y15: Name | Z15: namecode | AC15: 1 | AD15: AR | AF15: A | AG15: =AD15 -> AR | AH15: 2 | AI15: =IF(AH15>$AF$3,"",RIGHT(LEFT($AE$3,AH15),2)) ->  | AJ15: =IFERROR(INDEX($AF$15:$AF$56,MATCH(AI15,$AG$15:$AG$56,0)),"") ->  | AM15: =RIGHT(LEFT($AE$5,AH17),2) -> 0 | AN15: =AD9 -> 1 | AO15: m
N16: Recommended: At least Excel 2010 | X16: 1 | Y16: =IF(X16>$AA$7,"",RIGHT(LEFT($Z$7,X16),1)) ->  | Z16: =IFERROR(INDEX($AG$15:$AG$56,MATCH(Y16,$AF$15:$AF$56,)),"") ->  | AC16: F | AD16: R4 | AF16: B | AG16: =AD16 -> R4 | AH16: 4 | AI16: =IF(AH16>$AF$3,"",RIGHT(LEFT($AE$3,AH16),2)) ->  | AJ16: =IFERROR(INDEX($AF$15:$AF$56,MATCH(AI16,$AG$15:$AG$56,0)),"") ->  | AM16: =RIGHT(LEFT($AE$5,AH18),2) -> 0 | AN16: =AE9 -> 1 | AO16: m
D17: How to Enable Macro: | N17: Excel 365 autosave should be turned-off | X17: 2 | Y17: =IF(X17>$AA$7,"",RIGHT(LEFT($Z$7,X17),1)) ->  | AC17: 3 | AD17: HM | AF17: C | AG17: HM | AH17: 6 | AM17: =RIGHT(LEFT($AE$5,AH19),2) -> 0 | AN17: =AD10 -> 1 | AO17: d
N18: Its recommended to save the file in folder that are not linked to Onedrive. | X18: 3 | AC18: G | AD18: 4A | AF18: D | AG18: 4A | AH18: 8 | AM18: =RIGHT(LEFT($AE$5,AH20),2) -> 0 | AN18: =AE10 -> 1 | AO18: d
D19: Enabling Macros in Excel for Mac: | X19: 4 | AC19: 5 | AD19: N4 | AF19: E | AG19: N4 | AH19: 10 | AM19: =RIGHT(LEFT($AE$5,AH15),2) -> 0 | AN19: =AD11 -> 2 | AO19: y
N20: Contact Us at: | X20: 5 | AC20: H | AD20: RR | AF20: F | AG20: RR | AH20: 12 | AM20: =RIGHT(LEFT($AE$5,AH16),2) -> 0 | AN20: =AE11 -> 3 | AO20: y
D21: 1. Open Excel on your Mac. | N21: info@rocketsheets.com | X21: 6 | AC21: 7 | AD21: H3 | AF21: G | AG21: H3 | AH21: 14
D22: 2. Click on "Excel" in the menu bar at the top of the screen. | N22: aaespreadsheets@gmail.com | X22: 7 | AC22: I | AD22: 3M | AF22: H | AG22: 3M | AH22: 16
D23: 3. Select "Preferences" from the drop-down menu. | X23: 8 | AC23: 9 | AD23: 4L | AF23: I | AG23: 4L | AH23: 18
D24: 4. In the Preferences window, click on "Security & Privacy" in the "Authoring" section. | N24: Website: | X24: 9 | AC24: O | AD24: M4 | AF24: J | AG24: M4 | AH24: 20
D25: 5. Check the box next to "Enable all macros under the "Macro Security" section. | N25: rocketsheets.com | X25: 10 | AC25: J | AD25: L1 | AF25: K | AG25: L1 | AH25: 22
D26: 6. Close the Preferences window and restart Excel. | X26: 11 | AC26: N | AD26: K4 | AF26: L | AG26: K4 | AH26: 24
X27: 12 | AC27: K | AD27: LQ | AF27: M | AG27: LQ | AH27: 26
D28: Enabling Macros in Excel for Windows: | X28: 13 | AC28: M | AD28: UD | AF28: N | AG28: UD | AH28: 28
X29: 14 | AC29: L | AD29: DU | AF29: O | AG29: DU | AH29: 30
D30: 1. Open Excel on your Windows computer. | X30: 15 | AC30: T | AD30: SA | AF30: P | AG30: SA | AH30: 32
D31: 2. Click on the "File" tab in the ribbon at the top of the screen. | X31: 16 | AC31: U | AD31: SS | AF31: Q | AG31: SS | AH31: 34
D32: 3. Click on "Options" in the left-hand menu. | X32: 17 | AC32: V | AD32: AL | AF32: R | AG32: AL | AH32: 36
D33: 4. In the Excel Options window, click on "Trust Center" in the left-hand menu. | X33: 18 | AC33: Q | AD33: MU | AF33: S | AG33: MU | AH33: 38
D34: 5. Click on the "Trust Center Settings" button. | X34: 19 | AC34: R | AD34: MI | AF34: T | AG34: MI | AH34: 40
D35: 6. In the Trust Center window, click on "Macro Settings" in the left-hand menu. | X35: 20 | AC35: Z | AD35: MH | AF35: U | AG35: MH | AH35: 42
D36: 7. Check the box next to "Enable all macros under the "Macro Settings" section. | X36: 21 | AC36: P | AD36: AY | AF36: V | AG36: AY | AH36: 44
D37: 8. Click the "OK" button and save your changes. | X37: 22 | AC37: X | AD37: MN | AF37: W | AG37: MN | AH37: 46
D38: 9. Close the Excel Options window and restart Excel. | X38: 23 | AC38: W | AD38: AZ | AF38: X | AG38: AZ | AH38: 48
X39: 24 | AC39: S | AD39: EE | AF39: Y | AG39: EE | AH39: 50
D40: If Macro is blocked and the above did not work, Here's a step-by-step guide on how to add a trusted location in Excel for both Mac and Windows: | X40: 25 | AC40: Y | AD40: Z4 | AF40: Z | AG40: Z4 | AH40: 52
X41: 26 | AD41: LJ | AF41: - | AG41: LJ | AH41: 54
D42: For Excel on Windows: | X42: 27 | AD42: AB | AG42: AB | AH42: 56
X43: 28 | AD43: BA | AF43: @ | AG43: BA | AH43: 58
D44: 1. Open Excel and click on "File" in the top-left corner of the screen. | X44: 29 | AD44: RM | AF44: . | AG44: RM | AH44: 60
D45: 2. Select "Options" from the menu that appears. | X45: 30 | AC45: 0 | AD45: UT | AF45: 1 | AG45: UT | AH45: 62
D46: 3. In the Excel Options window, click on "Trust Center" on the left-hand side. | X46: 31 | AC46: E | AD46: KB | AF46: 2 | AG46: KB | AH46: 64
D47: 4. Click on the "Trust Center Settings" button. | X47: 32 | AC47: 8 | AD47: BI | AF47: 3 | AG47: BI | AH47: 66
D48: 5. In the Trust Center window, click on "Trusted Locations" on the left-hand side. | X48: 33 | AC48: D | AD48: RL | AF48: 4 | AG48: RL | AH48: 68
D49: 6. You can now view the trusted location on your computer, you can either put the excel file in an existing location or add a new location. | X49: 34 | AC49: 6 | AD49: KH | AF49: 5 | AG49: KH | AH49: 70
D50: 7. Click on the "Add new location" button. | X50: 35 | AC50: C | AD50: LL | AF50: 6 | AG50: LL | AH50: 72
D51: 8. Browse to the folder that you want to add as a trusted location. | X51: 36 | AC51: 4 | AD51: IQ | AF51: 7 | AG51: IQ | AH51: 74
D52: 9. Click "OK" to add the folder to the list of trusted locations. | X52: 37 | AC52: B | AD52: B4 | AF52: 8 | AG52: B4 | AH52: 76
D53: 10. Click "OK" again to close the Trust Center window. | X53: 38 | AC53: 2 | AD53: 4R | AF53: 9 | AG53: 4R | AH53: 78
D54: 11. Click "OK" once more to close the Excel Options window. | X54: 39 | AC54: A | AD54: RI | AF54: 0 | AG54: RI | AH54: 80
X55: 40 | AD55: IL | AF55: _ | AG55: IL | AI55: =AO55 -> 0
AD56: YL | AF56: ñ | AG56: YL
D57: For Excel on Mac:
D59: 1. Open Excel and click on "Excel" in the top-left corner of the screen.
D60: 2. Select "Preferences" from the menu that appears.
D61: 3. In the Excel Preferences window, click on "Security & Privacy" on the left-hand side.
D62: 4. Under the "Macro Security" section, select "Enable all macros" or "Enable macros for all workbooks" (depending on your preference).
D63: 5. You can now view the trusted location on your computer, you can either put the excel file in an existing location or add a new location.
D64: 6. Click on "Add Folder" under the "Trusted Locations" section.
D65: 7. Browse to the folder that you want to add as a trusted location.
D66: 8. Click "Choose" to add the folder to the list of trusted locations.
D67: 9. Close the Excel Preferences window.
D69: Once you've added a folder as a trusted location, any files that are located in that folder should be able to run macros without triggering any security warnings or errors.

Sheet Dashboard
Q1: =HOME!S3 -> STJ-Ver.10 | Y1: Loss Rate%: | AA1: =1-I33 -> 57.14% | AC1: ='Bank Transfers'!J6 -> Php 120,000.00 | AF1: ='Bank Transfers'!J8+'Bank Transfers'!J9 -> Php 44,486.53 | AH1: ='Bank Transfers'!J7 -> 0 | AJ1: ='Bank Transfers'!J10 -> Php 164,486.53 | AL1: ='Trade Log'!F10 -> Php 118,120.16
B2: =" "&'Trade Log'!F3 -> Rocketsheets | W2: =Settings!T3 -> Php
B3: TRADING JOURNAL | E3: BEG. BALANCE | G3: NET PROFIT & DIVIDEND | J3: WITHDRAWALS | L3: END BALANCE | N3: CASH BALANCE
W4: =COUNT(S2O) -> 0
B5: OVERALL PERFORMANCE | G5: DISTRIBUTION OF GAINS AND LOSSES | O5: OVERALL TRADE STATISTICS
B6: Total Gain: | C6: ='Monthly Report'!G21+'Monthly Report'!I21 -> Php56,982 | E6: ='Bank Transfers'!F6 -> ▲ 42.86%
B7: Total Loss: | C7: ='Monthly Report'!H21 -> Php-12,495 | E7: ='Bank Transfers'!F7 -> ▼ -10.41% | V7: to date | W7: ='Monthly Report'!W3 -> 2017-10-30
B8: Gain/Loss: | C8: =C6+C7 -> Php44,487 | E8: =IFERROR('Bank Transfers'!F9,"") -> ▲ 37.07% | U8: =AB13 -> 0 | V8: =Z13 -> 144486.5348 | W8: =IF(WEEKDAY(W7)=7,W7+7,W7+(7-WEEKDAY(W7))) -> 2017-11-04
U9: =AB14 -> 0 | V9: =Z14 -> 144486.5348 | W9: ='Monthly Report'!W3-W6 -> 2017-10-30
B11: TOP 3 CUMULATIVE P&L PER SYMBOL | E11: More Details ► | W11: from | X11: to | Z11: open | AA11: end | AB11: pnl
B12: ='Stock Position'!D15 -> PXP | C12: ='Stock Position'!E15 -> 22,728.12 | E12: =C12 -> 22,728 | W12: =W13+7 -> 2017-11-04
B13: ='Stock Position'!D16 -> APX | C13: ='Stock Position'!E16 -> 7,448.72 | E13: =C13 -> 7,449 | O13: ='Stock Position'!BF5 -> 9 | P13: ='Stock Position'!BF6 -> 12 | Q13: ='Stock Position'!BI5 -> 5,714 | R13: ='Stock Position'!BI6 -> 1,041 | U13: this week | V13: =IFERROR((U8)/V8,0) -> 0 | W13: =W8-7 -> 2017-10-28 | X13: =(W13+7)-1 -> 2017-11-03 | Z13: =AA13-(AB13) -> 144486.5348 | AA13: ='Monthly Report'!E21+'Monthly Report'!M21 -> 144486.5348 | AB13: =SUMIFS(profitLoss,dateLog,">="&W13,dateLog,"<"&W12) -> 0
B14: ='Stock Position'!D17 -> MAC | C14: ='Stock Position'!E17 -> 5,899.57 | E14: 5,900 | O14: Win Trades | P14: Loss Trades | Q14: Ave. Profit | R14: Ave. Loss | U14: pre week | V14: =IFERROR((U9)/V9,"") -> 0 | W14: =W13-7 -> 2017-10-21 | X14: =(W14+7)-1 -> 2017-10-27 | Z14: =AA14-(AB14) -> 144486.5348 | AA14: =Z13 -> 144486.5348 | AB14: 0
B15: ='Stock Position'!M15 -> CHP | C15: ='Stock Position'!N15 -> -1,874.89 | E15: =C15 -> -1,875 | O15: =I38 -> 15.5% | P15: =I39 -> -2.6% | Q15: ='Stock Position'!BF7 -> 0.75 : 1 | R15: ='Stock Position'!BI7 -> 5.49 : 1 | U15: 1 | W15: =W14-7 -> 2017-10-14 | X15: =(W15+7)-1 -> 2017-10-20 | Z15: 144486.5348 | AA15: 144486.5348 | AB15: 0
B16: ='Stock Position'!M16 -> MRP | C16: ='Stock Position'!N16 -> -1,012.90 | E16: -1,013 | O16: Ave.Win% | P16: Ave.Loss% | Q16: W/L Ratio | R16: P/L Ratio | U16: Realized + Unrealized Gain/Loss | W16: 2017-10-07 | X16: =(W16+7)-1 -> 2017-10-13 | Z16: 144486.5348 | AA16: 144486.5348 | AB16: 0
B17: ='Stock Position'!M17 -> EW | C17: ='Stock Position'!N17 -> -903.31 | E17: -903 | O17: Profit Factor: | P17: =IFERROR(V18/V19,0) -> 4.12 | Q17: Expectancy: | R17: =V18-V19 -> Php1,854 | U17: Realized Gain/Loss | W17: 2017-09-30 | X17: 2017-10-06 | Z17: 148029.5091 | AA17: 144486.5348 | AB17: -3542.9743
V18: =I33*Q13 -> 2448.900002 | W18: 2017-09-23 | X18: 2017-09-29 | Z18: 105658.8169 | AA18: 148029.5091 | AB18: 42370.6922
J19: P E R F O R M A N C E | V19: =AA1*R13 -> 595.0173905 | W19: 2017-09-16 | X19: 2017-09-22 | Z19: 106671.7171 | AA19: 105658.8169 | AB19: -1012.9002
B20: PERFORMANCE PER PERIOD | E20: Review Monthly Report ► | G20: PERFORMANCE CURVE | L20: Total-Time-Weighted-Return: | M20: =IFERROR('Trade Log'!AT8,0) -> 38.8% | O20: WEEKLY PERFORMANCE CURVE | W20: 2017-09-09 | X20: 2017-09-15 | Z20: 105563.9426 | AA20: 106671.7171 | AB20: 1107.7745
B21: This Month: | C21: ='Stock Position'!AJ4 -> Php2,012 | E21: ='Stock Position'!AL4 -> ▲ 1.41% | O21: This Week: | P21: =U8 -> 0 | R21: =V13 -> 0.00% | W21: 2017-09-02 | X21: 2017-09-08 | Z21: 105555 | AA21: 105563.9426 | AB21: 8.94265
B22: 1st Quarter: | C22: ='Stock Position'!AJ5 -> 0 | E22: ='Stock Position'!AL5 -> 0 | O22: Prev. Week: | P22: =U9 -> 0 | R22: =V14 -> 0.00% | W22: 2017-08-26 | X22: 2017-09-01 | Z22: 105555 | AA22: 105555 | AB22: 0
B23: 2nd Quarter: | C23: ='Stock Position'!AJ6 -> 0 | E23: ='Stock Position'!AL6 -> 0 | W23: 2017-08-19 | X23: 2017-08-25 | Z23: 105555 | AA23: 105555 | AB23: 0
B24: 3rd Quarter: | C24: ='Stock Position'!AJ7 -> Php42,475 | E24: ='Stock Position'!AL7 -> ▲ 42.47% | W24: 2017-08-12 | X24: 2017-08-18 | Z24: 105555 | AA24: 105555 | AB24: 0
B25: 4th Quarter: | C25: ='Stock Position'!AJ8 -> Php-3,543 | E25: ='Stock Position'!AL8 -> ▼ -2.49% | U25: chart x max | V25: ='Trade Log'!BK4 -> 21 | W25: 2017-08-05 | X25: 2017-08-11 | Z25: 105555 | AA25: 105555 | AB25: 0
B26: Year To Date: | C26: ='Stock Position'!AJ9 -> Php38,932 | E26: ='Stock Position'!AL9 -> ▲ 38.93% | U26: chart x min | V26: ='Trade Log'!BK5 -> 0 | AB26: weekly chart axis
B27: Previous YTD: | C27: ='Stock Position'!AJ10 -> 0 | E27: ='Stock Position'!AL10 -> 0 | U27: chart y max | V27: ='Trade Log'!BJ4 -> 144490 | AB27: max | AC27: =IFERROR(MAX(AA13:AA25)*1.03,1) -> 152470.3944
B28: =" Report as of : "&TEXT(Settings!AH1,"mm-dd-yyyy") -> Report as of : 10-30-2017 | M28: =Settings!Q7&" trades" -> 100 trades | U28: chart y min | V28: ='Trade Log'!BJ5 -> 99250 | AB28: min | AC28: =IFERROR(MIN(AA13:AA25)*0.97,0) -> 102388.35
X29: Average Profit: | Y29: =IFERROR((SUMIF(INDEX('Trade Log'!$AN:$AN, W32):INDEX('Trade Log'!$AN:$AN, W33), "2", INDEX('Trade Log'!$AL:$AL, W32):INDEX('Trade Log'!$AL:$AL, W33)) / V35),0) -> ₱5,714.10
U30: =I38 -> 0.1547616227 | V30: =Settings!T9 -> Per Tranche | X30: Average Loss: | Y30: =IFERROR((SUMIF(INDEX('Trade Log'!$AN:$AN, W32):INDEX('Trade Log'!$AN:$AN, W33), "1", INDEX('Trade Log'!$AL:$AL, W32):INDEX('Trade Log'!$AL:$AL, W33)) / V36),0) -> ₱-1,041.28
B31: DRAWDOWN AND LOSING STREAK | G31: TRADE STATISTICS | O31: REQUIRED WIN RATE | Q31: Reward to Risk Ratio | U31: =I39 -> -0.02561471839 | V31: =Settings!T10 -> 50
B32: Max Drawdown: | C32: ='Trade Log'!BD6 -> Php-3,898 | E32: ='Trade Log'!BD7 -> -2.82% | G32: Metrics | I32: All Trades Stats | K32: =" Last "&V31&" Trades" -> Last 50 Trades | L32: Remarks | M32: Change % | O32: ="With "&Q31&" stats of "&TEXT(V49,"0.00")&", trade a setup with atleast "&TEXT(V50,"0.0%")&" Winrate% to breakeven and "&TEXT(V51,"0.0%")&" Winrate% to gain twice the risk." -> With Reward to Risk Ratio stats of 6.04, trade a setup with atleast 14.2% Winrate% to breakeven and 24.9% Winrate% to gain twice the risk. | U32: =V35/(V35+V36) -> 0.4285714286 | V32: ='Trade Log'!AV3 -> 1 | W32: =V32+14 -> 15 | X32: =SUMIFS('Trade Log'!AC15:AC20100,stats,2) -> 44.85967426
B33: Consecutive Wins: | C33: ='Trade Log'!BD9 -> Php38,275 | E33: ='Trade Log'!BC9 -> 5 Trades | G33: Win Rate%: | I33: ='Stock Position'!BF8 -> 42.86% | K33: =IFERROR(U32,"") -> 42.86% | L33: =IFERROR(((K33-I33)/ABS(I33)),"") -> 0 | M33: =IFERROR((K33-I33)/I33,"") -> 0% | U33: =1-U32 -> 0.5714285714 | V33: =calc!BV12 -> 47 | W33: =V33+14 -> 61 | X33: =-SUMIFS('Trade Log'!AC15:AC20100,stats,1) -> 9.678997909 | Y33: =X33/P13 -> 0.8065831591
B34: Consecutive Losses: | C34: ='Trade Log'!BD8 -> Php-3,762 | E34: =-'Trade Log'!BC8 -> 3 Trades | G34: Largest Profit: | I34: =MAX(profitLoss) -> Php15,068 | K34: =IFERROR(MAX(INDEX('Trade Log'!$AI:$AI, W32):INDEX('Trade Log'!$AI:$AI, W33)),0) -> Php15,068 | L34: 0 | M34: =IFERROR((K34-I34)/I34,"") -> 0%
B35: Max Consecutive Profit: | C35: =IFERROR('Trade Log'!BC11,0) -> Php38,275 | E35: =IFERROR('Trade Log'!BD11,0) -> 5 Trades | G35: Largest Loss: | I35: =MIN(profitLoss) -> Php-3,190 | K35: =IFERROR(MIN(INDEX('Trade Log'!$AI:$AI, W32):INDEX('Trade Log'!$AI:$AI, W33)),0) -> Php-3,190 | L35: 0 | M35: =IFERROR(-(K35-I35)/I35,"") -> 0% | V35: =COUNTIF(INDEX('Trade Log'!$AN:$AN, W32):INDEX('Trade Log'!$AN:$AN, W33), 2) -> 9
B36: Max Consecutive Loss: | C36: =IFERROR('Trade Log'!BC10,0) -> Php-3,898 | E36: =IFERROR(-'Trade Log'!BD10,0) -> 2 Trades | G36: Largest Win %: | I36: =MAX('Trade Log'!$AT$15:$AT$26022) -> 45.53% | K36: =IFERROR(MAX(INDEX('Trade Log'!$AT:$AT, W32):INDEX('Trade Log'!$AT:$AT, W33)), 0) -> 45.53% | L36: 0 | M36: =IFERROR((K36-I36)/I36,"") -> 0% | O36: MONEY MANAGEMENT | V36: =COUNTIF(INDEX('Trade Log'!$AN:$AN, W32):INDEX('Trade Log'!$AN:$AN, W33), "1") -> 12 | AB36: =SUM(AB37:AB44) -> 18 | AC36: =SUM(AC37:AC44) -> 18
G37: Largest Loss %: | I37: =MIN('Trade Log'!$AT$15:$AT$26022) -> -7.36% | K37: =IFERROR(MIN(INDEX('Trade Log'!$AT:$AT, W32):INDEX('Trade Log'!$AT:$AT, W33)), 0) -> -7.36% | L37: 0 | M37: =IFERROR(-(K37-I37)/I37,"") -> 0% | O37: Kelly Criterion %: | R37: =IF(U43<0,0,U43) -> 32.00% | V37: =SUMIFS('Trade Log'!$AB$15:$AB$20100,stats,2,dateLog,">0",'Trade Log'!$Q15:$Q20100,0) -> 54 | AB37: =IFERROR(ABS(P48/calc!BT19),0) -> 3 | AC37: =IFERROR(ABS(R48/calc!BT34),0) -> 3
B38: RISK MULTIPLE | E38: Edit R-Multiple ► | G38: Ave. Win%: | I38: =IFERROR('Stock Position'!BF10,0) -> 15.48% | K38: =IFERROR(SUMIF(INDEX('Trade Log'!$AN:$AN, W32):INDEX('Trade Log'!$AN:$AN, W33), "2", INDEX('Trade Log'!$AT:$AT, W32):INDEX('Trade Log'!$AT:$AT, W33)) / V35, 0) -> 15.48% | L38: 0 | M38: =IFERROR((K38-I38)/I38,"") -> 0% | O38: Position Size To Bet: | Q38: =IFERROR('Trade Log'!F4*R37,0) -> Php45,592 | V38: =SUMIFS('Trade Log'!$AB$15:$AB$20100,stats,1,dateLog,">0",'Trade Log'!$Q15:$Q20100,0) -> 14 | AB38: =IFERROR(ABS(P49/calc!BT20),0) -> 2 | AC38: =IFERROR(ABS(R49/calc!BT35),0) -> 3 | BC38: max | BD38: =ROUND(MAX(calc!BV17:CO17)*1.2,0) -> 12
B39: Ave. Win (R): | E39: =IFERROR((X32/O13),0) -> 4.98 R | G39: Ave. Loss%: | I39: =IFERROR('Stock Position'!BF11,0) -> -2.56% | K39: =IFERROR(SUMIF(INDEX('Trade Log'!$AN:$AN, W32):INDEX('Trade Log'!$AN:$AN, W33), "1", INDEX('Trade Log'!$AT:$AT, W32):INDEX('Trade Log'!$AT:$AT, W33)) / V36, 0) -> -2.56% | L39: 0 | M39: =IFERROR(-(K39-I39)/I39,"") -> 0% | U39: =SUMIFS('Trade Log'!$AR$15:$AR$20100,stats,2,dateLog,">0") -> 2.886769151 | V39: =SUMIFS('Trade Log'!$AB$15:$AB$20100,stats,">0",dateLog,">0",'Trade Log'!$Q15:$Q20100,0) -> 68 | AB39: =IFERROR(ABS(P50/calc!BT21),0) -> 13 | AC39: =IFERROR(ABS(R50/calc!BT36),0) -> 1 | BC39: min | BD39: =ROUND(MIN(calc!BV17:CO17)*0.8,0) -> 3
B40: Ave. Loss (R): | E40: =IFERROR((X33/P13),0) -> 0.81 R | G40: Reward to Risk Ratio | I40: =IFERROR((I38)/-(I39),0) -> 6.04 : 1 | K40: =IFERROR((K38)/-(K39),0) -> 6.04 : 1 | L40: 0 | M40: =IFERROR((K40-I40)/I40,"") -> 0% | O40: OTHER STATISTICS | U40: =SUMIFS('Trade Log'!$AR$15:$AR$20100,stats,1,dateLog,">0") -> 3.822943132 | AB40: =IFERROR(ABS(P51/calc!BT22),0) -> 0 | AC40: =IFERROR(ABS(R51/calc!BT37),0) -> 1
B41: R-Risk Reward Ratio: | E41: =IFERROR((E39)/(E40),0) -> 6.18 : 1 | G41: Profit Loss (Edge) Ratio | I41: =IFERROR(Q13/R13,0) -> 5.49 : 1 | K41: =IFERROR(Y29/-Y30,0) -> 5.49 : 1 | L41: 0 | M41: =IFERROR((K41-I41)/I41,"") -> 0% | P41: On Winners | Q41: On Losers | R41: Overall | U41: =SUMIFS('Trade Log'!$AR$15:$AR$20100,stats,">0",dateLog,">0") -> 6.709712283 | AB41: =IFERROR(ABS(P52/calc!BT23),0) -> 0 | AC41: =IFERROR(ABS(R52/calc!BT38),0) -> 10
B42: R-Profit Factor: | E42: =IFERROR((E39*I33)/(AA1*E40),0) -> 4.63 | G42: Profit Factor | I42: =IFERROR(V18/V19,0) -> 4.12 | K42: =IFERROR((Y29*U32)/-(Y30*U33),0) -> 4.12 | L42: 0 | M42: =IFERROR((K42-I42)/I42,"") -> 0% | O42: Ave. Duration | P42: =IFERROR(V37/'Trade Log'!AT4,0) -> 6.00 d | Q42: =IFERROR(V38/'Trade Log'!AT3,0) -> 1.17 d | R42: =IFERROR(V39/'Trade Log'!AT1,0) -> 3.24 d | U42: ='Trade Log'!BK12 -> 0 | AB42: =IFERROR(ABS(P53/calc!BT24),0) -> 0 | AC42: =IFERROR(ABS(R53/calc!BT39),0) -> 0
B43: R-Expectancy Per Trade : | E43: =(E39*I33)-(AA1*E40) -> 1.68 R | G43: Expectancy per trade: | I43: =IFERROR(V18-V19,0) -> Php1,854 | K43: =IFERROR((Y29*U32)-(-Y30*U33),0) -> Php1,854 | L43: 0 | M43: =IFERROR((K43-I43)/I43,"") -> 0% | O43: Ave. Allocation | P43: =IFERROR(U39/O13,0) -> 32.08% | Q43: =IFERROR(U40/P13,0) -> 31.86% | R43: =IFERROR(U41/(O13+P13),0) -> 31.95% | U43: =IFERROR(ROUND(I33-((AA1)/(Q13/R13)),2),0) -> 0.32 | V43: =2/(1+(E41/1)) -> 0.2785647921 | AB43: =IFERROR(ABS(P54/calc!BT25),0) -> 0 | AC43: =IFERROR(ABS(R54/calc!BT40),0) -> 0
X44: =Settings!Q3 -> 2% | AB44: =IFERROR(ABS(P55/calc!BT26),0) -> 0 | AC44: =IFERROR(ABS(R55/calc!BT41),0) -> 0
X45: =Y46 -> 0.2 | Z45: =COUNTIFS(profitPercent,">="&X45,stats,">0") -> 4 | AA45: =TEXT(X45,"0%")&" above" -> 20% above
B46: TRADE SETUP STATISTICS | D46: Edit Setup ► | E46: Assign Setup ► | G46: TRADE EVALUATION CURVE | M46: Evaluate Trades ► | O46: TRADE EVALUATION | Q46: Total Cum. Score: | R46: =calc!X12 -> 10 | X46: =Y47 -> 0.18 | Y46: =$X$44+Y47 -> 0.2 | Z46: =COUNTIFS(profitPercent,">="&X46,profitPercent,"<"&Y46,stats,">0") -> 0 | AA46: =TEXT(X46,"0%")&" to "&TEXT(Y46,"0%") -> 18% to 20%
B47: DESCRIPTION | C47: TRADES | D47: WIN % | E47: EXPECTANCY | O47: =Settings!X13 -> ENTRY/EXIT | P47: Score | Q47: =Settings!Z13 -> EMOTION | R47: Score | U47: score | V47: score | X47: 0.16 | Y47: 0.18 | Z47: 0 | AA47: 16% to 18% | AD47: =R46 -> 10
B48: All Trades | C48: =calc!B35 -> 21 | D48: =IFERROR(calc!E35,"") -> 42.9% | E48: =calc!K35 -> Php1,854 | O48: =calc!AD14 -> BROKE RULES | P48: =calc!AE14 -> -3 | Q48: =calc!AJ14 -> FEAR | R48: =calc!AK14 -> -3 | X48: 0.14 | Y48: 0.16 | Z48: 0 | AA48: 14% to 16%
B49: =Settings!M34 -> No setup | C49: =calc!B34 -> 10 | D49: =IFERROR(calc!E34,"") -> 20.0% | E49: =calc!K34 -> Php1,038 | O49: =calc!AD15 -> TOO EARLY | P49: =calc!AE15 -> -2 | Q49: =calc!AJ15 -> FOMO | R49: =calc!AK15 -> -3 | U49: selection | V49: =VLOOKUP(Q31,G40:I42,3,0) -> 6.041902172 | X49: 0.12 | Y49: 0.14 | Z49: 1 | AA49: 12% to 14%
B50: =calc!Q14 -> Momentum | C50: =calc!R14 -> 4 | D50: =calc!S14 -> 75.0% | E50: =calc!U14 -> Php3,925 | O50: =calc!AD16 -> AS PLANNED | P50: =calc!AE16 -> 13 | Q50: =calc!AJ16 -> GREED | R50: =calc!AK16 -> -1 | U50: winrate% BE | V50: =1/(1+(V49/1)) -> 14.20% | X50: 0.1 | Y50: 0.12 | Z50: 0 | AA50: 10% to 12%
B51: =calc!Q15 -> Bounce | C51: =calc!R15 -> 2 | D51: =calc!S15 -> 50.0% | E51: =calc!U15 -> Php3,515 | O51: =calc!AD17 ->  | P51: =calc!AE17 ->  | Q51: =calc!AJ17 -> BORED | R51: =calc!AK17 -> -1 | U51: 2x win | V51: =1/(1+(V49/2)) -> 24.87% | X51: 0.08 | Y51: 0.1 | Z51: 1 | AA51: 8% to 10%
B52: =calc!Q16 -> Swing Trade | C52: =calc!R16 -> 1 | D52: =calc!S16 -> 100.0% | E52: =calc!U16 -> Php2,715 | O52: =calc!AD18 ->  | P52: =calc!AE18 ->  | Q52: =calc!AJ18 -> CONFIDENT | R52: =calc!AK18 -> 10 | X52: 0.06 | Y52: 0.08 | Z52: 0 | AA52: =TEXT(X52,"0%")&" to "&TEXT(Y52,"0%") -> 6% to 8%
B53: =calc!Q17 -> Trend Follow | C53: =calc!R17 -> 2 | D53: =calc!S17 -> 100.0% | E53: =calc!U17 -> Php2,493 | O53: =calc!AD19 ->  | P53: =calc!AE19 ->  | Q53: =calc!AJ19 ->  | R53: =calc!AK19 ->  | X53: 0.04 | Y53: 0.06 | Z53: 0 | AA53: 4% to 6%
B54: =calc!Q18 -> Bottom fishing | C54: =calc!R18 -> 2 | D54: =calc!S18 -> 0.0% | E54: =calc!U18 -> Php-937 | O54: =calc!AD20 ->  | P54: =calc!AE20 ->  | Q54: =calc!AJ20 ->  | R54: =calc!AK20 ->  | X54: 0.02 | Y54: 0.04 | Z54: 1 | AA54: 2% to 4%
B55: =calc!Q19 ->  | C55: =calc!R19 ->  | D55: =calc!S19 ->  | E55: =calc!U19 ->  | O55: =calc!AD21 ->  | P55: =calc!AE21 ->  | Q55: =calc!AJ21 ->  | R55: =calc!AK21 ->  | X55: 0 | Y55: =$X$44+Y56 -> 0.02 | Z55: 2 | AA55: =TEXT(X55,"0%")&" to "&TEXT(Y55,"0%") -> 0% to 2%
B56: =calc!Q20 ->  | C56: =calc!R20 ->  | D56: =calc!S20 ->  | E56: =calc!U20 ->  | O56: =calc!AD22 ->  | P56: =calc!AE22 ->  | Q56: =calc!AJ22 ->  | R56: =calc!AK22 ->  | X56: -0.02 | Y56: 0 | AA56: =TEXT(Y56,"0%")&" to "&TEXT(X56,"0%") -> 0% to -2% | AB56: =COUNTIFS(profitPercent,">="&X56,profitPercent,"<"&Y56,stats,">0") -> 5
B57: =calc!Q21 ->  | C57: =calc!R21 ->  | D57: =calc!S21 ->  | E57: =calc!U21 ->  | O57: =IFERROR("Evaluated "&TEXT((AB36/calc!BV12),"0%")&" of total trades","") -> Evaluated 38% of total trades | Q57: =IFERROR("Evaluated "&TEXT((AC36/calc!BV12),"0%")&" of total trades","") -> Evaluated 38% of total trades | X57: -0.04 | Y57: =Y56-$X$44 -> -0.02 | AA57: =TEXT(Y57,"0%")&" to "&TEXT(X57,"0%") -> -2% to -4% | AB57: 5
B58: Stock Trading Journal Copyright © 2016, rocketsheets.com. All Rights Reserved. | X58: -0.06 | Y58: =Y57-$X$44 -> -0.04 | AA58: =TEXT(Y58,"0%")&" to "&TEXT(X58,"0%") -> -4% to -6% | AB58: 1
X59: -0.08 | Y59: -0.06 | AA59: -6% to -8% | AB59: 1
X60: -0.1 | Y60: -0.08 | AA60: -8% to -10% | AB60: 0
X61: -0.12 | Y61: -0.1 | AA61: -10% to -12% | AB61: 0
X62: -0.14 | Y62: -0.12 | AA62: -12% to -14% | AB62: 0
X63: -0.16 | Y63: -0.14 | AA63: -14% to -16% | AB63: 0
X64: =Y65 -> -0.18 | Y64: -0.16 | AA64: -16% to -18% | AB64: 0
X65: =Y65-$X$44 -> -0.2 | Y65: -0.18 | AA65: -18% to -20% | AB65: 0
X66: =Y66 -> -0.2 | Y66: -0.2 | AA66: =TEXT(Y66,"0%")&" below" -> -20% below | AB66: =COUNTIFS(profitPercent,"<"&X66,stats,">0") -> 0

Sheet Form (hidden)
G3: =IF(J18=0,"ACTIVATION FORM",IF(J18=2,"EMERGENCY ACCESS FORM","RE-ACTIVATION FORM")) -> ACTIVATION FORM
G4: Enter your prefer Name (This will be displayed in the file interface)
G6: Paste the Activation Code below to proceed:
J18: 0
T41: filter | U41: Most Trades
R46: filter
R47: Top Symbol
R48: Most Trades
R49: Bottom Symbol

Sheet Trade Log
C1: TRADE LOG | E1: =I10 -> 4303800.00% | F1: =VALUE(TEXT(E1,"mm/yyyy")) -> 43009 | G1: =DATE(YEAR(I10),MONTH(I10),DAY(1)) -> 43,009.000 | AH1: =AH4+Settings!Q9 -> 81 | AJ1: =MAX(COUNT(H15:H19998)+12,20) -> 59 | AS1: total | AT1: =MAX(AS14:AS20100) -> 21 | AU1: stats settings | AV1: =AT1-Settings!T10+1 -> -28 | BI1: =-Settings!Q6+1 -> 100% | BJ1: =Settings!Q6+1 -> 100% | BK1: =Settings!Q7 -> 100 | BN1: total names | BO1: =COUNTIF(AK15:AK17338,">0")+34 -> 46
D2: 1
D3: Account Name: | F3: Rocketsheets | I3: TOP 5 STOCK POSITION BY ALLOCATION | AA3: SL & TP CALCULATOR | AH3: =IF(AH5<AI3,AH5,AI3) -> 20 | AI3: =COUNT(AI15:AI13676)+14 -> 64 | AJ3: Allocation | AK3: Cash | AM3: Win | AN3: =COUNTIF($AN$15:$AN$25905,2) -> 9 | AS3: loss | AT3: =COUNTIF(AN15:AN17342,1) -> 12 | AU3: row no. | AV3: =MATCH(AV4,AS15:AS20100,0) -> 1 | BJ3: y | BK3: x
D4: =IFERROR("Beg. Capital ("&TEXT(F1,"mm-yyyy")&"):","Beg Capital:") -> Beg. Capital (10-2017): | F4: ='Stock Position'!AK4 -> Php142,475 | H4: =IF(F4=0,0,100%) -> 100.00% | I4: Weight % | K4: From | L4: Multiply by | M4: Minimum | N4: From | O4: Maximum | T4: Stock Code | U4: Ave. Price | V4: Total Shares | Z4: Amount | AA4: Stop Loss | AB4: Target Price | AH4: =MAX(COUNTA(E15:E26010)+14,20) -> 61 | AJ4: =IF(AE9>1,1,AE9) -> 28% | AK4: =IFERROR(IF(AF9<0,0,AF9),1) -> 72% | AM4: Loss | AN4: =COUNTIF($AN$15:$AN$25905,1) -> 12 | AS4: win | AT4: =COUNTIF(AN15:AN17342,2) -> 9 | AU4: total trades | AV4: =IF(AV1<0,0,AV1) -> 0 | AY4: =AV14 -> 100000 | BH4: =IFERROR(ROUND(MAX(INDEX($BK:$BK, $BL$5):INDEX($BK:$BK, $BL$4)) * 1.03, -1), 1) -> 148820 | BI4: max axis | BJ4: =IFERROR(ROUND(MAX(INDEX($BK:$BK, $BL$5):INDEX($BK:$BK, $BL$4)) * BJ1, -1), 1) -> 144,490.00 | BK4: =COUNT(AZ15:AZ25863) -> 21 | BL4: =BK4+14 -> 35 | BQ4: total
C5: ="e"&COUNTA(E15:E17440)+15 -> e62 | D5: =IFERROR("Add Deposit ("&TEXT(F1,"mm-yyyy")&"):","Add Deposit:") -> Add Deposit (10-2017): | F5: =IFERROR(INDEX('Monthly Report'!$AG$21:$AG$87,MATCH(G1,'Monthly Report'!$D$21:$D$87,0)),"") -> Php20,000 | H5: =IFERROR(F5/F4,0) -> 14.04% | I5: =IFERROR(Z5/'Stock Position'!$W$11,"") -> 100.0% | K5: =Settings!W3 -> Amount | L5: =Settings!X3 -> 0.0025 | M5: =Settings!Y3 -> 20 | N5: =Settings!Z3 -> Amount | O5: =Settings!AA3 -> 0 | T5: =calc!BI15 -> PXP | U5: =calc!BK15 -> 6.7198 | V5: =calc!BJ15 -> 6,900 | Z5: =V5*U5 -> 46,366 | AA5: =IFERROR(IF(AM5="L",((Z5-($AA$10*$AK$9)+BQ5)/V5),((Z5+($AA$10*$AK$9)+BQ5)/V5)),"") -> 6.542 | AB5: =IFERROR(IF(AM5="L",((Z5+($AB$10*$AK$9)+BQ5)/V5),((Z5+($AB$10*$AK$9)+BQ5)/V5)),"") -> 7.495 | AH5: =IF(AH4>64,AH4-25,20) -> 20 | AI5: rng | AM5: =calc!BP15 -> L | AN5: =Settings!T3 -> Php | AY5: =AX17341 -> 0 | BE5: archieve | BH5: =IFERROR(ROUND(MIN(INDEX($BK:$BK, $BL$5):INDEX($BK:$BK, $BL$4)) * 1.03, -1), 1) -> 102220 | BI5: min axis | BJ5: =IFERROR(ROUND(MIN(INDEX($BK:$BK, $BL$5):INDEX($BK:$BK, $BL$4)) * BI1, -1), 1) -> 99250 | BK5: =IF(BK1="ALL",0,IF(BK1>=BK4,0,BK4-BK1)) -> 0 | BL5: =BK5+14 -> 14 | BM5: =IF(V5="","",IF(IF($N$5="Amount",$O$5*Z5,IF($N$5="Total Shares",$O$5*V5,$O$5))=0,MAX(IF($K$5="amount",(Z5*$L$5),IF($K$5="Total Shares",($L$5*V5),$L$5)),$M$5),MIN(IF($N$5="Amount",$O$5*Z5,IF($N$5="Total Shares",$O$5*V5,$O$5)),MAX(IF($K$5="amount",(Z5*$L$5),IF($K$5="Total Shares",($L$5*V5),$L$5)),$M$5)))) -> 115.9159463 | BN5: =IF(V5="","",IF(IF($N$6="Amount",$O$6*Z5,IF($N$6="Total Shares",$O$6*V5,$O$6))=0,MAX(IF($K$6="amount",(Z5*$L$6),IF($K$6="Total Shares",($L$6*V5),$L$6)),$M$6),MIN(IF($N$6="Amount",$O$6*Z5,IF($N$6="Total Shares",$O$6*V5,$O$6)),MAX(IF($K$6="amount",(Z5*$L$6),IF($K$6="Total Shares",($L$6*V5),$L$6)),$M$6)))) -> 13.90991355 | BO5: =IF(IF($N$7="Amount",$O$7*Z5,IF($N$7="Total Shares",$O$7*V5,$O$7))=0,MAX(IF($K$7="amount",(Z5*$L$7),IF($K$7="Total Shares",($L$7*V5),$L$7)),$M$7),MIN(IF($N$7="Amount",$O$7*Z5,IF($N$7="Total Shares",$O$7*V5,$O$7)),MAX(IF($K$7="amount",(Z5*$L$7),IF($K$7="Total Shares",($L$7*V5),$L$7)),$M$7))) -> 6.954956775 | BP5: =IF(IF($N$8="Amount",$O$8*Z5,IF($N$8="Total Shares",$O$8*V5,$O$8))=0,MAX(IF($K$8="amount",(Z5*$L$8),IF($K$8="Total Shares",($L$8*V5),$L$8)),$M$8),MIN(IF($N$8="Amount",$O$8*Z5,IF($N$8="Total Shares",$O$8*V5,$O$8)),MAX(IF($K$8="amount",(Z5*$L$8),IF($K$8="Total Shares",($L$8*V5),$L$8)),$M$8))) -> 278.198271 | BQ5: =SUM(BM5:BP5) -> 414.9790876
D6: =IFERROR("Div. Received ("&TEXT(F1,"mm-yyyy")&"):","Div. Received:") -> Div. Received (10-2017): | F6: =IFERROR(INDEX('Monthly Report'!$AI$21:$AI$87,MATCH(G1,'Monthly Report'!$D$21:$D$87,0)),"") -> Php5,555 | H6: =IFERROR((F6)/F4,0) -> 3.90% | I6: =IFERROR(Z6/'Stock Position'!$W$11,"") -> 0.0% | K6: =Settings!W4 -> Amount | L6: =Settings!X4 -> 0.0003 | M6: =Settings!Y4 -> 2.4 | N6: =Settings!Z4 -> Amount | O6: =Settings!AA4 -> 0 | T6: =calc!BI16 ->  | U6: =calc!BK16 -> 0.0000 | V6: =calc!BJ16 -> 0 | Z6: =V6*U6 -> 0 | AA6: =IFERROR(IF(AM6="L",((Z6-($AA$10*$AK$9)+BQ6)/V6),((Z6+($AA$10*$AK$9)+BQ6)/V6)),"") ->  | AB6: =IFERROR(IF(AM6="L",((Z6+($AB$10*$AK$9)+BQ6)/V6),((Z6+($AB$10*$AK$9)+BQ6)/V6)),"") ->  | AH6: =IF(AND(AH4<AH7,AH1>AH7),AH7,IF(AH4<AH1,AH1,AH7)) -> 64 | AI6: rng3 | AJ6: theme | AK6: 1 | AM6: =calc!BP16 ->  | AS6: total % gain | AT6: =SUMIF(AT15:AT20100,">0",AT15:AT20100) -> 139% | AZ6: Amount | BA6: =COUNTIF(BK15:BK114,0)+1 -> 1 | BB6: max drawdown cost | BD6: =IFERROR(INDEX(BH15:BH17341,MATCH(BD7,BI15:BI17341,0))*BD7,BG6) -> -3898.1946 | BE6: max drawdown cost | BJ6: minformula retained | BK6: =MIN(BK8:BK9) -> 20 | BM6: =IF(V6="","",IF(IF($N$5="Amount",$O$5*Z6,IF($N$5="Total Shares",$O$5*V6,$O$5))=0,MAX(IF($K$5="amount",(Z6*$L$5),IF($K$5="Total Shares",($L$5*V6),$L$5)),$M$5),MIN(IF($N$5="Amount",$O$5*Z6,IF($N$5="Total Shares",$O$5*V6,$O$5)),MAX(IF($K$5="amount",(Z6*$L$5),IF($K$5="Total Shares",($L$5*V6),$L$5)),$M$5)))) -> 20 | BN6: =IF(V6="","",IF(IF($N$6="Amount",$O$6*Z6,IF($N$6="Total Shares",$O$6*V6,$O$6))=0,MAX(IF($K$6="amount",(Z6*$L$6),IF($K$6="Total Shares",($L$6*V6),$L$6)),$M$6),MIN(IF($N$6="Amount",$O$6*Z6,IF($N$6="Total Shares",$O$6*V6,$O$6)),MAX(IF($K$6="amount",(Z6*$L$6),IF($K$6="Total Shares",($L$6*V6),$L$6)),$M$6)))) -> 2.4 | BO6: =IF(IF($N$7="Amount",$O$7*Z6,IF($N$7="Total Shares",$O$7*V6,$O$7))=0,MAX(IF($K$7="amount",(Z6*$L$7),IF($K$7="Total Shares",($L$7*V6),$L$7)),$M$7),MIN(IF($N$7="Amount",$O$7*Z6,IF($N$7="Total Shares",$O$7*V6,$O$7)),MAX(IF($K$7="amount",(Z6*$L$7),IF($K$7="Total Shares",($L$7*V6),$L$7)),$M$7))) -> 0 | BP6: =IF(IF($N$8="Amount",$O$8*Z6,IF($N$8="Total Shares",$O$8*V6,$O$8))=0,MAX(IF($K$8="amount",(Z6*$L$8),IF($K$8="Total Shares",($L$8*V6),$L$8)),$M$8),MIN(IF($N$8="Amount",$O$8*Z6,IF($N$8="Total Shares",$O$8*V6,$O$8)),MAX(IF($K$8="amount",(Z6*$L$8),IF($K$8="Total Shares",($L$8*V6),$L$8)),$M$8))) -> 0 | BQ6: =SUM(BM6:BP6) -> 22.4
D7: =IFERROR("Net Profit/Loss ("&TEXT(F1,"mm-yyyy")&"):","Net Gain/Loss:") -> Net Profit/Loss (10-2017): | F7: =IFERROR(F9-(F8+F6+F5+F4),0) -> Php-3,543 | H7: =IFERROR((F7)/F4,0) -> -2.49% | I7: =IFERROR(Z7/'Stock Position'!$W$11,"") -> 0.0% | K7: =Settings!W5 -> Amount | L7: =Settings!X5 -> 0.00015 | M7: =Settings!Y5 -> 0 | N7: =Settings!Z5 -> Amount | O7: =Settings!AA5 -> 0 | T7: =calc!BI17 ->  | U7: =calc!BK17 -> 0.0000 | V7: =calc!BJ17 -> 0 | Z7: =V7*U7 -> 0 | AA7: =IFERROR(IF(AM7="L",((Z7-($AA$10*$AK$9)+BQ7)/V7),((Z7+($AA$10*$AK$9)+BQ7)/V7)),"") ->  | AB7: =IFERROR(IF(AM7="L",((Z7+($AB$10*$AK$9)+BQ7)/V7),((Z7+($AB$10*$AK$9)+BQ7)/V7)),"") ->  | AH7: =COUNT(C15:C19991)+14 -> 64 | AI7: las row | AM7: =calc!BP17 ->  | AS7: ave.gain | AT7: =AT6/AT4 -> 15% | AY7: =AY5-AY4 -> -100000 | AZ7: Total Shares | BB7: max drawdown % | BD7: =MIN(BI15:BI17341,BG7) -> -0.02817038017 | BE7: max drawdown % | BJ7: max formula retained | BK7: =BK4+Settings!Q9+14 -> 55 | BM7: =IF(V7="","",IF(IF($N$5="Amount",$O$5*Z7,IF($N$5="Total Shares",$O$5*V7,$O$5))=0,MAX(IF($K$5="amount",(Z7*$L$5),IF($K$5="Total Shares",($L$5*V7),$L$5)),$M$5),MIN(IF($N$5="Amount",$O$5*Z7,IF($N$5="Total Shares",$O$5*V7,$O$5)),MAX(IF($K$5="amount",(Z7*$L$5),IF($K$5="Total Shares",($L$5*V7),$L$5)),$M$5)))) -> 20 | BN7: =IF(V7="","",IF(IF($N$6="Amount",$O$6*Z7,IF($N$6="Total Shares",$O$6*V7,$O$6))=0,MAX(IF($K$6="amount",(Z7*$L$6),IF($K$6="Total Shares",($L$6*V7),$L$6)),$M$6),MIN(IF($N$6="Amount",$O$6*Z7,IF($N$6="Total Shares",$O$6*V7,$O$6)),MAX(IF($K$6="amount",(Z7*$L$6),IF($K$6="Total Shares",($L$6*V7),$L$6)),$M$6)))) -> 2.4 | BO7: =IF(IF($N$7="Amount",$O$7*Z7,IF($N$7="Total Shares",$O$7*V7,$O$7))=0,MAX(IF($K$7="amount",(Z7*$L$7),IF($K$7="Total Shares",($L$7*V7),$L$7)),$M$7),MIN(IF($N$7="Amount",$O$7*Z7,IF($N$7="Total Shares",$O$7*V7,$O$7)),MAX(IF($K$7="amount",(Z7*$L$7),IF($K$7="Total Shares",($L$7*V7),$L$7)),$M$7))) -> 0 | BP7: =IF(IF($N$8="Amount",$O$8*Z7,IF($N$8="Total Shares",$O$8*V7,$O$8))=0,MAX(IF($K$8="amount",(Z7*$L$8),IF($K$8="Total Shares",($L$8*V7),$L$8)),$M$8),MIN(IF($N$8="Amount",$O$8*Z7,IF($N$8="Total Shares",$O$8*V7,$O$8)),MAX(IF($K$8="amount",(Z7*$L$8),IF($K$8="Total Shares",($L$8*V7),$L$8)),$M$8))) -> 0 | BQ7: 22.4
D8: =IFERROR("Withdrawal ("&TEXT(F1,"mm-yyyy")&"):","Withdrawal:") -> Withdrawal (10-2017): | F8: =IFERROR(INDEX('Monthly Report'!$AH$21:$AH$87,MATCH(G1,'Monthly Report'!$D$21:$D$87,0)),"") -> 0 | H8: =IFERROR(F8/F4,0) -> 0.00% | I8: =IFERROR(Z8/'Stock Position'!$W$11,"") -> 0.0% | K8: =Settings!W6 -> Amount | L8: =Settings!X6 -> 0.006 | M8: =Settings!Y6 -> 0 | N8: =Settings!Z6 -> Amount | O8: =Settings!AA6 -> 0 | T8: =calc!BI18 ->  | U8: =calc!BK18 -> 0.0000 | V8: =calc!BJ18 -> 0 | Z8: =V8*U8 -> 0 | AA8: =IFERROR(IF(AM8="L",((Z8-($AA$10*$AK$9)+BQ8)/V8),((Z8+($AA$10*$AK$9)+BQ8)/V8)),"") ->  | AB8: =IFERROR(IF(AM8="L",((Z8+($AB$10*$AK$9)+BQ8)/V8),((Z8+($AB$10*$AK$9)+BQ8)/V8)),"") ->  | AH8: =IF((AH7+Settings!Q10)>10014,10014,AH7+Settings!Q10) -> 74 | AI8: add row | AJ8: risk % | AK8: =Portfolio!G6 -> 0.01 | AM8: =calc!BP18 ->  | AS8: weighted return | AT8: =INDEX(AY15:AY20100,BJ14) -> 0.3877795444 | AY8: =AY7/AY4 -> -1 | AZ8: Per Trade | BB8: losing streak | BC8: =MIN(BG15:BG17341,BF8) -> -3 | BD8: =MIN(BF15:BF17441,BG8) -> -3761.5125 | BE8: losing streak | BK8: =COUNT(BJ15:BJ9991)+14 -> 35 | BM8: =IF(V8="","",IF(IF($N$5="Amount",$O$5*Z8,IF($N$5="Total Shares",$O$5*V8,$O$5))=0,MAX(IF($K$5="amount",(Z8*$L$5),IF($K$5="Total Shares",($L$5*V8),$L$5)),$M$5),MIN(IF($N$5="Amount",$O$5*Z8,IF($N$5="Total Shares",$O$5*V8,$O$5)),MAX(IF($K$5="amount",(Z8*$L$5),IF($K$5="Total Shares",($L$5*V8),$L$5)),$M$5)))) -> 20 | BN8: =IF(V8="","",IF(IF($N$6="Amount",$O$6*Z8,IF($N$6="Total Shares",$O$6*V8,$O$6))=0,MAX(IF($K$6="amount",(Z8*$L$6),IF($K$6="Total Shares",($L$6*V8),$L$6)),$M$6),MIN(IF($N$6="Amount",$O$6*Z8,IF($N$6="Total Shares",$O$6*V8,$O$6)),MAX(IF($K$6="amount",(Z8*$L$6),IF($K$6="Total Shares",($L$6*V8),$L$6)),$M$6)))) -> 2.4 | BO8: =IF(IF($N$7="Amount",$O$7*Z8,IF($N$7="Total Shares",$O$7*V8,$O$7))=0,MAX(IF($K$7="amount",(Z8*$L$7),IF($K$7="Total Shares",($L$7*V8),$L$7)),$M$7),MIN(IF($N$7="Amount",$O$7*Z8,IF($N$7="Total Shares",$O$7*V8,$O$7)),MAX(IF($K$7="amount",(Z8*$L$7),IF($K$7="Total Shares",($L$7*V8),$L$7)),$M$7))) -> 0 | BP8: =IF(IF($N$8="Amount",$O$8*Z8,IF($N$8="Total Shares",$O$8*V8,$O$8))=0,MAX(IF($K$8="amount",(Z8*$L$8),IF($K$8="Total Shares",($L$8*V8),$L$8)),$M$8),MIN(IF($N$8="Amount",$O$8*Z8,IF($N$8="Total Shares",$O$8*V8,$O$8)),MAX(IF($K$8="amount",(Z8*$L$8),IF($K$8="Total Shares",($L$8*V8),$L$8)),$M$8))) -> 0 | BQ8: 22.4
D9: =IFERROR("End Capital ("&TEXT(F1,"mm-yyyy")&"):","End Capital:") -> End Capital (10-2017): | F9: =IFERROR(INDEX('Monthly Report'!$J$21:$J$87,MATCH(G1,'Monthly Report'!$D$21:$D$87,0)),"") -> Php164,487 | H9: =IFERROR(INDEX('Monthly Report'!$AL$21:$AL$87,MATCH(G1,'Monthly Report'!$D$21:$D$87,0)),"") -> 15.45% | I9: =IFERROR(Z9/'Stock Position'!$W$11,"") -> 0.0% | T9: =calc!BI19 ->  | U9: =calc!BK19 -> 0.0000 | V9: =calc!BJ19 -> 0 | Z9: =V9*U9 -> 0 | AA9: =IFERROR(IF(AM9="L",((Z9-($AA$10*$AK$9)+BQ9)/V9),((Z9+($AA$10*$AK$9)+BQ9)/V9)),"") ->  | AB9: =IFERROR(IF(AM9="L",((Z9+($AB$10*$AK$9)+BQ9)/V9),((Z9+($AB$10*$AK$9)+BQ9)/V9)),"") ->  | AE9: ='Stock Position'!W11/$F$9 -> 28% | AF9: =F10/$F$9 -> 72% | AH9: =AH7+1 -> 65 | AI9: next to last | AJ9: var | AK9: =Portfolio!G7 -> 1644.865348 | AM9: =calc!BP19 ->  | BB9: winning streak | BC9: =MAX(BG15:BG17341,BF9) -> 5 | BD9: =MAX(BF15:BF17441,BG9) -> 38275.3805 | BE9: winning streak | BK9: =IF(BK4>64,BK4-Settings!Q9,20) -> 20 | BM9: =IF(V9="","",IF(IF($N$5="Amount",$O$5*Z9,IF($N$5="Total Shares",$O$5*V9,$O$5))=0,MAX(IF($K$5="amount",(Z9*$L$5),IF($K$5="Total Shares",($L$5*V9),$L$5)),$M$5),MIN(IF($N$5="Amount",$O$5*Z9,IF($N$5="Total Shares",$O$5*V9,$O$5)),MAX(IF($K$5="amount",(Z9*$L$5),IF($K$5="Total Shares",($L$5*V9),$L$5)),$M$5)))) -> 20 | BN9: =IF(V9="","",IF(IF($N$6="Amount",$O$6*Z9,IF($N$6="Total Shares",$O$6*V9,$O$6))=0,MAX(IF($K$6="amount",(Z9*$L$6),IF($K$6="Total Shares",($L$6*V9),$L$6)),$M$6),MIN(IF($N$6="Amount",$O$6*Z9,IF($N$6="Total Shares",$O$6*V9,$O$6)),MAX(IF($K$6="amount",(Z9*$L$6),IF($K$6="Total Shares",($L$6*V9),$L$6)),$M$6)))) -> 2.4 | BO9: =IF(IF($N$7="Amount",$O$7*Z9,IF($N$7="Total Shares",$O$7*V9,$O$7))=0,MAX(IF($K$7="amount",(Z9*$L$7),IF($K$7="Total Shares",($L$7*V9),$L$7)),$M$7),MIN(IF($N$7="Amount",$O$7*Z9,IF($N$7="Total Shares",$O$7*V9,$O$7)),MAX(IF($K$7="amount",(Z9*$L$7),IF($K$7="Total Shares",($L$7*V9),$L$7)),$M$7))) -> 0 | BP9: =IF(IF($N$8="Amount",$O$8*Z9,IF($N$8="Total Shares",$O$8*V9,$O$8))=0,MAX(IF($K$8="amount",(Z9*$L$8),IF($K$8="Total Shares",($L$8*V9),$L$8)),$M$8),MIN(IF($N$8="Amount",$O$8*Z9,IF($N$8="Total Shares",$O$8*V9,$O$8)),MAX(IF($K$8="amount",(Z9*$L$8),IF($K$8="Total Shares",($L$8*V9),$L$8)),$M$8))) -> 0 | BQ9: 22.4
D10: Cash Balance: | F10: =IFERROR((F9-'Stock Position'!AP8),"") -> Php118,120 | H10: =IF(F10<0,"Insufficient Funds",IFERROR(F10/F9,0)) -> 71.81% | I10: ='Monthly Report'!W3 -> 2017-10-30 | U10: =AK11&" Invalid Date Entry, should be the same with computer date format " -> 0 Invalid Date Entry, should be the same with computer date format | AA10: 1.0 R | AB10: 3.0 R | AH10: =MAX(COUNT(H15:H19998)+14,AH7) -> 64 | AI10: last data | AU10: dividend | AV10: transfers | AW10: equity | AX10: performance | BB10: cons. Losses | BC10: =MIN(BC15:BC17441,BF10) -> -3898.1946 | BD10: =IFERROR(INDEX(BB15:BB17341,MATCH(BC10,BC15:BC17341,0)),BG10) -> -2 | BE10: cons. Losses | BG10: =SMALL(AZ17:AZ26,1) -> 4
AA11: 1R Value (VAR) : | AB11: =AK9 -> ₱1,644.87 | AJ11: position | AK11: =BJ14-COUNT($D$15:$D$17341) -> 0 | AM11: =Settings!T9 -> Per Tranche | AN11: =IF(AM11="Sold all position",1,0) -> 0 | AU11: =SUM(AU14:AU17441) -> 5555 | AV11: =SUM(AV14:AV17441) -> 120000 | BB11: cons profit | BC11: =MAX(BE15:BE17441,BF11) -> 38275.3805 | BD11: =IFERROR(INDEX(BD15:BD17341,MATCH(BC11,BE15:BE17341,0)),BG11) -> 5 | BE11: cons profit | BJ11: Curve chart
D12: 1 | K12: 10 | AU12: dividend | AV12: transfer | AW12: equity | AX12: performance | AY12: performance% | BB12: loss streak | BC12: loss cost | BD12: win streak | BE12: win cost | BF12: streak cost | BG12: Max streak | BJ12: sort latest to old | BO12: stock name list limit | BT12: STOCK POSITION
C13: =C12+1 -> 1 | K13: =H13*G13 -> 0 | L13: =IF(H13="","",IF(IF($N$5="Amount",$O$5*K13,IF($N$5="Total Shares",$O$5*H13,$O$5))=0,MAX(IF($K$5="amount",(K13*$L$5),IF($K$5="Total Shares",($L$5*H13),$L$5)),$M$5),MIN(IF($N$5="Amount",$O$5*K13,IF($N$5="Total Shares",$O$5*H13,$O$5)),MAX(IF($K$5="amount",(K13*$L$5),IF($K$5="Total Shares",($L$5*H13),$L$5)),$M$5)))) ->  | M13: =IF(H13="","",IF(IF($N$6="Amount",$O$6*K13,IF($N$6="Total Shares",$O$6*H13,$O$6))=0,MAX(IF($K$6="amount",(K13*$L$6),IF($K$6="Total Shares",($L$6*H13),$L$6)),$M$6),MIN(IF($N$6="Amount",$O$6*K13,IF($N$6="Total Shares",$O$6*H13,$O$6)),MAX(IF($K$6="amount",(K13*$L$6),IF($K$6="Total Shares",($L$6*H13),$L$6)),$M$6)))) ->  | N13: =IF(IF($N$7="Amount",$O$7*K13,IF($N$7="Total Shares",$O$7*H13,$O$7))=0,MAX(IF($K$7="amount",(K13*$L$7),IF($K$7="Total Shares",($L$7*H13),$L$7)),$M$7),MIN(IF($N$7="Amount",$O$7*K13,IF($N$7="Total Shares",$O$7*H13,$O$7)),MAX(IF($K$7="amount",(K13*$L$7),IF($K$7="Total Shares",($L$7*H13),$L$7)),$M$7))) -> 0 | O13: =IF(IF($N$8="Amount",$O$8*K13,IF($N$8="Total Shares",$O$8*H13,$O$8))=0,MAX(IF($K$8="amount",(K13*$L$8),IF($K$8="Total Shares",($L$8*H13),$L$8)),$M$8),MIN(IF($N$8="Amount",$O$8*K13,IF($N$8="Total Shares",$O$8*H13,$O$8)),MAX(IF($K$8="amount",(K13*$L$8),IF($K$8="Total Shares",($L$8*H13),$L$8)),$M$8))) -> 0 | P13: =IF(OR(F13="buy",F13="short"),H13,-H13) -> 0 | Q13: =SUMIF($E13:E$15,E13,$P13:P$15) -> 0 | R13: =Q13-P13 -> 0 | S13: =E13&COUNTIFS($E13:E$15,E13,$R13:R$15,0) -> 0 | T13: =IF(I13="",IF(OR(F13="sell",F13="short"),SUM(L13:N13)+O13,SUM(L13:N13)),I13) -> 0 | U13: =IF(OR(F13="SELL",F13="Short"),K13-T13,K13+T13) -> 0 | V13: =IFERROR(IF(OR(F13="sell",F13="cover"),(X13/R13),Y13),0) -> 0 | W13: =IF(OR(F13="SELL",F13="cover"),V13*H13*-1,U13) -> 0 | X13: =SUMIFS($W12:W$15,$E12:E$15,E13) -> 0 | Y13: =SUMIF($S13:S$15,S13,$W13:W$15)/Q13 ->  | Z13: =IFERROR(IF(F13="COVER",-(U13+W13),(IF(F13="SELL",U13+W13,0))),"") -> 0.00 | AA13: =IFERROR(Z13/(W13*-1),0) -> 0.00% | AB13: =IFERROR(IF(D13="",0,D13-INDEX($D13:D$15,MATCH(S13,$S13:S$15,0))),0) -> 0 d | AC13: =IFERROR(Z13/(AW12*$AK$8),"") ->  | AD13: =IF(E13="","",AW13) ->  | AI13: =IF(AN13>0,AL13,IF($AN$11=1,0,Z13)) -> 0 | AJ13: =SUMIFS($U13:U$15,$S13:S$15,S13,$W13:W$15,">0") -> 0 | AK13: =IF(COUNTIF($E13:E$15,E13)=1,C13,"") ->  | AL13: =SUMIF(symbolCode,S13,profitLoss) -> 0 | AM13: =DATE(YEAR(D13),MONTH(D13),DAY(1)) -> 1 | AN13: =IF($AN$11=1,AO13,AP13) -> 0 | AO13: =IF(Q13>0,0,IF(AL13<0,1,IF(AL13>0,2,0))) -> 0 | AP13: =IF(Z13<0,1,IF(Z13>0,2,0)) -> 0 | AR13: =IF(AO13>0,AJ13/AW13,"") ->  | AS13: =IF(AN13>0,AS12+1,AS12) -> 0 | AT13: =IF(AN13>0,AL13/AJ13,"") ->  | AU13: =SUMIF(Dividends!$N$15:$N$274,C13,Dividends!$G$15:$G$274) -> 0 | AV13: =SUMIF('Bank Transfers'!$P$15:$P$114,C13,'Bank Transfers'!$H$15:$H$114) -> 0 | AW13: =AW12+AV12+AU12+Z12 ->  | AX13: =AX12+AU13+Z13 ->  | AY13: =(AX13/AX12-1)+AY12 ->  | AZ13: =IFERROR(IF(AP13>0,C13,""),"") ->  | BA13: =IF(AY13>AY12,1,IF(AY13<AY12,-1,0)) ->  | BB13: =IF(BA13=1,0,BA13+BB12) ->  | BC13: =IF(BB13<0,Z13+BC12,0) ->  | BD13: =IF(BA13=-1,0,BA13+BD12) ->  | BE13: =IF(BD13>0,Z13+BE12,0) ->  | BF13: =IF(BG13=$BC$9,BE13,IF(BG13=$BC$8,BC13,0)) -> 0 | BG13: =IFERROR(BD13+BB13,"") ->  | BH13: =IFERROR(MAX($AX13:AX$14),"") ->  | BI13: =IFERROR((AX13-BH13)/BH13,"") ->  | BJ13: =SMALL(AZ$15:AZ$26022,C13) -> 4 | BK13: =IFERROR(INDEX($AX$15:$AX$26022,MATCH(BJ13,$AZ$15:$AZ$26022,0)),BK12) -> 99246.96275 | BM13: =IFERROR(IF(BJ13>0,BM12+1),"") -> 1
D14: DATE | E14: STOCK CODE | F14: ACTION | G14: PRICE | H14: VOLUME | I14: O.WRITE FEES | K14: Gross Amount | L14: COMM+ VAT (0.25% , min=P20) | M14: VAT (0.03% , min=P2.4) | N14: OTHER (0.015%) | O14: DST/ SALES TAX (0.5%) | P14: shares | Q14: cum.shares | R14: rem.shares | T14: FEES | U14: ="NET AMOUNT ("&Settings!T3&")" -> NET AMOUNT (Php) | V14: AVE. PRICE | W14: gross Amount | X14: sum amount | Y14: helper | Z14: ="PROFIT ("&Settings!T3&")" -> PROFIT (Php) | AA14: % PROFIT | AB14: DAYS | AC14: R-MUL. | AD14: ="EQUITY ("&Settings!T3&")" -> EQUITY (Php) | AE14: =Settings!M13 -> SETUP | AF14: =Settings!S13 -> REASON FOR BUYING / SELLING | AG14: ADDITIONAL NOTES | AH14: ADDITIONAL NOTES | AI14: profit with count stats settings | AJ14: cum.buy amount | AK14: symbol no. | AL14: cum profit per trade | AM14: datecode | AN14: w&L stats | AO14: sold all | AP14: winloss | AR14: allocation% | AS14: trade count | AT14: profit % | AU14: 0 | AV14: ='Monthly Report'!E21 -> 100000 | AX14: =AV14 -> 100000 | AZ14: helper,tick change | BA14: tally | BC14: amount loss | BH14: Max equity | BI14: drawdown% | BJ14: =COUNTA(E15:E25863) -> 47 | BK14: =AV14 -> 100000 | BL14: Chart MA | BO14: match symbol | BP14: last trade action | BQ14: action code | BR14: total trades | BS14: # | BT14: Stock Code | BU14: Total Shares | BV14: Average Price | BW14: Current Amount | BX14: trade code | BY14: unique amount | BZ14: UNI COUNT
C15: 1 | D15: 4298200.00% | E15: WLCON | F15: BUY | G15: 9.100 | H15: 3,600 | K15: =H15*G15 -> 32760 | L15: =IF(H15="","",IF(IF($N$5="Amount",$O$5*K15,IF($N$5="Total Shares",$O$5*H15,$O$5))=0,MAX(IF($K$5="amount",(K15*$L$5),IF($K$5="Total Shares",($L$5*H15),$L$5)),$M$5),MIN(IF($N$5="Amount",$O$5*K15,IF($N$5="Total Shares",$O$5*H15,$O$5)),MAX(IF($K$5="amount",(K15*$L$5),IF($K$5="Total Shares",($L$5*H15),$L$5)),$M$5)))) -> 81.9 | M15: =IF(H15="","",IF(IF($N$6="Amount",$O$6*K15,IF($N$6="Total Shares",$O$6*H15,$O$6))=0,MAX(IF($K$6="amount",(K15*$L$6),IF($K$6="Total Shares",($L$6*H15),$L$6)),$M$6),MIN(IF($N$6="Amount",$O$6*K15,IF($N$6="Total Shares",$O$6*H15,$O$6)),MAX(IF($K$6="amount",(K15*$L$6),IF($K$6="Total Shares",($L$6*H15),$L$6)),$M$6)))) -> 9.828 | N15: =IF(IF($N$7="Amount",$O$7*K15,IF($N$7="Total Shares",$O$7*H15,$O$7))=0,MAX(IF($K$7="amount",(K15*$L$7),IF($K$7="Total Shares",($L$7*H15),$L$7)),$M$7),MIN(IF($N$7="Amount",$O$7*K15,IF($N$7="Total Shares",$O$7*H15,$O$7)),MAX(IF($K$7="amount",(K15*$L$7),IF($K$7="Total Shares",($L$7*H15),$L$7)),$M$7))) -> 4.914 | O15: =IF(IF($N$8="Amount",$O$8*K15,IF($N$8="Total Shares",$O$8*H15,$O$8))=0,MAX(IF($K$8="amount",(K15*$L$8),IF($K$8="Total Shares",($L$8*H15),$L$8)),$M$8),MIN(IF($N$8="Amount",$O$8*K15,IF($N$8="Total Shares",$O$8*H15,$O$8)),MAX(IF($K$8="amount",(K15*$L$8),IF($K$8="Total Shares",($L$8*H15),$L$8)),$M$8))) -> 196.56 | P15: =IF(OR(F15="buy",F15="short"),H15,-H15) -> 3600 | Q15: =SUMIF($E15:E$15,E15,$P15:P$15) -> 3600 | R15: =Q15-P15 -> 0 | S15: =E15&COUNTIFS($E15:E$15,E15,$R15:R$15,0) -> WLCON1 | T15: =IF(I15="",IF(OR(F15="sell",F15="short"),SUM(L15:N15)+O15,SUM(L15:N15)),I15) -> 96.64 | U15: =IF(OR(F15="SELL",F15="Short"),K15-T15,K15+T15) -> 32,856.64 | V15: =IFERROR(IF(OR(F15="sell",F15="cover"),(X15/R15),Y15),0) -> 9.1268 | W15: =IF(OR(F15="SELL",F15="cover"),V15*H15*-1,U15) -> 32856.642 | X15: =SUMIFS($W14:W$15,$E14:E$15,E15) -> 32856.642 | Y15: =SUMIF($S15:S$15,S15,$W15:W$15)/Q15 -> 9.126845 | Z15: =IFERROR(IF(F15="COVER",-(U15+W15),(IF(F15="SELL",U15+W15,0))),"") -> 0.00 | AA15: =IFERROR(Z15/(W15*-1),0) -> 0.00% | AB15: =IFERROR(IF(D15="",0,D15-INDEX($D15:D$15,MATCH(S15,$S15:S$15,0))),0) -> 0 d | AC15: =IFERROR(Z15/(AW14*$AK$8),"") ->  | AD15: =IF(E15="","",AW15) -> 100,000.00 | AE15: Trend Follow | AI15: =IF(AN15>0,AL15,IF($AN$11=1,0,Z15)) -> 0 | AJ15: =SUMIFS($U$15:U15,$S$15:S15,S15,$W$15:W15,">0") -> 32856.642 | AK15: =IF(COUNTIF($E$15:E15,E15)=1,C15,"") -> 1 | AL15: =SUMIF(symbolCode,S15,profitLoss) -> 359.3898 | AM15: =DATE(YEAR(D15),MONTH(D15),DAY(1)) -> 42979 | AN15: =IF($AN$11=1,AO15,AP15) -> 0 | AO15: =IF(Q15>0,0,IF(AL15<0,1,IF(AL15>0,2,0))) -> 0 | AP15: =IF(Z15<0,1,IF(Z15>0,2,0)) -> 0 | AR15: =IF(AO15>0,AJ15/AW15,"") ->  | AS15: =IF(AN15>0,1,0) -> 0 | AU15: =SUMIF(Dividends!$N$15:$N$274,C15,Dividends!$G$15:$G$274) -> 0 | AV15: =SUMIF('Bank Transfers'!$P$15:$P$114,C15,'Bank Transfers'!$H$15:$H$114) -> 0 | AW15: =AV14 -> 100000 | AX15: =AX14+AU15+Z15 -> 100000 | AY15: =AX15/AX14-1 -> 0 | AZ15: =IFERROR(IF(AP15>0,C15,""),"") ->  | BA15: =IF(AY15>AY14,1,IF(AY15<AY14,-1,0)) -> 0 | BB15: =IF(BA15=1,0,BA15+BB14) -> 0 | BC15: =IF(BB15<0,Z15+BC14,0) -> 0 | BD15: =IF(BA15=-1,0,BA15+BD14)+BB15 -> 0 | BE15: =IF(BD15>0,Z15+BE14,0) -> 0 | BF15: =IF(BG15=$BC$9,BE15,IF(BG15=$BC$8,BC15,0)) -> 0 | BG15: =IFERROR(BD15+BB15,"") -> 0 | BH15: =IFERROR(MAX($AX$14:AX15),"") -> 100000 | BI15: =IFERROR((AX15-BH15)/BH15,"") -> 0 | BJ15: =SMALL(AZ$15:AZ$26022,C15) -> 4 | BK15: =IFERROR(INDEX($AX$15:$AX$26022,MATCH(BJ15,$AZ$15:$AZ$26022,0)),BK14) -> 99246.96275 | BM15: =IFERROR(IF(BJ15>0,BM14+1),"") -> 1 | BO15: =SMALL($AK$15:$AK$26022,C15) -> 1 | BP15: =INDEX(actionLog,MATCH(BT15&BR15,S15:S20100,0)) -> BUY | BQ15: =IF(OR(BP15="buy",BP15="sell"),"L","S") -> L | BR15: =COUNTIFS(symbol,BT15,$R$15:$R$20100,0) -> 1 | BS15: 1e-07 | BT15: =IFERROR(INDEX(symbol,BO15),"") -> WLCON | BU15: =SUMIFS(P$15:P$20100,symbol,BT15) -> 0 | BV15: =IFERROR(SUMIFS($W$15:$W$20100,symbol,BT15)/BU15,0) -> 0 | BW15: =BV15*BU15 -> 0 | BX15: =BT15&BR15 -> WLCON1 | BY15: =IF(BW15=0,0,ROUND(BW15+BS15,5)) -> 0 | BZ15: =IF(BT15="","",BR15+BS15) -> 1.0000001
C16: =C15+1 -> 2 | D16: 4298200.00% | E16: CHP | F16: BUY | G16: 6.110 | H16: 5,300 | K16: 32383 | L16: 80.9575 | M16: 9.7149 | N16: 4.85745 | O16: 194.298 | P16: 5300 | Q16: =SUMIF($E$15:E16,E16,$P$15:P16) -> 5300 | R16: 0 | S16: =E16&COUNTIFS($E$15:E16,E16,$R$15:R16,0) -> CHP1 | T16: 95.53 | U16: 32,478.53 | V16: 6.1280 | W16: 32478.52985 | X16: =SUMIFS($W15:W$15,$E15:E$15,E16) -> 0 | Y16: =SUMIF($S$15:S16,S16,$W$15:W16)/Q16 -> 6.1280245 | Z16: 0.00 | AA16: 0.00% | AB16: =IFERROR(IF(D16="",0,D16-INDEX($D$15:D16,MATCH(S16,$S$15:S16,0))),0) -> 0 d | AC16: 0.00R | AD16: 100,000.00 | AE16: Bottom fishing | AI16: =IF(AN16>0,AL16,IF($AN$11=1,0,Z16)) -> 0 | AJ16: =SUMIFS($U$15:U16,$S$15:S16,S16,$W$15:W16,">0") -> 32478.52985 | AK16: =IF(COUNTIF($E$15:E16,E16)=1,C16,"") -> 2 | AL16: -753.03725 | AM16: 42979 | AN16: =IF($AN$11=1,AO16,AP16) -> 0 | AO16: 0 | AP16: =IF(Z16<0,1,IF(Z16>0,2,0)) -> 0 | AR16: =IF(AO16>0,AJ16/AW16,"") ->  | AS16: =IF(AN16>0,AS15+1,AS15) -> 0 | AT16: =IF(AN16>0,AL16/AJ16,"") ->  | AU16: =SUMIF(Dividends!$N$15:$N$274,C16,Dividends!$G$15:$G$274) -> 0 | AV16: =SUMIF('Bank Transfers'!$P$15:$P$114,C16,'Bank Transfers'!$H$15:$H$114) -> 0 | AW16: =AW15+AV15+AU15+Z15 -> 100000 | AX16: =AX15+AU16+Z16 -> 100000 | AY16: =(AX16/AX15-1)+AY15 -> 0 | BA16: 0 | BB16: 0 | BC16: 0 | BD16: =IF(BA16=-1,0,BA16+BD15) -> 0 | BE16: 0 | BF16: 0 | BG16: =IFERROR(BD16+BB16,"") -> 0 | BH16: =IFERROR(MAX($AX$14:AX16),"") -> 100000 | BI16: 0 | BJ16: 6 | BK16: =IFERROR(INDEX($AX$15:$AX$26022,MATCH(BJ16,$AZ$15:$AZ$26022,0)),BK15) -> 101961.5707 | BM16: =IFERROR(IF(BJ16>0,BM15+1),"") -> 2 | BO16: 2 | BP16: BUY | BQ16: =IF(OR(BP16="buy",BP16="sell"),"L","S") -> L | BR16: 2 | BS16: =BS15+0.0000001 -> 2e-07 | BT16: CHP | BU16: 0 | BV16: 0 | BW16: =BV16*BU16 -> 0 | BX16: =BT16&BR16 -> CHP2 | BY16: =IF(BW16=0,0,ROUND(BW16+BS16,5)) -> 0 | BZ16: 2.0000002
C17: =C16+1 -> 3 | D17: 4298200.00% | E17: TUGS | F17: BUY | G17: 2.440 | H17: 13,000 | K17: 31720 | L17: 79.3 | M17: 9.516 | N17: 4.758 | O17: 190.32 | P17: 13000 | Q17: =SUMIF($E$15:E17,E17,$P$15:P17) -> 13000 | R17: 0 | S17: =E17&COUNTIFS($E$15:E17,E17,$R$15:R17,0) -> TUGS1 | T17: 93.57 | U17: 31,813.57 | V17: 2.4472 | W17: 31813.574 | X17: =SUMIFS($W$15:W16,$E$15:E16,E17) -> 0 | Y17: =SUMIF($S$15:S17,S17,$W$15:W17)/Q17 -> 2.447198 | Z17: 0.00 | AA17: 0.00% | AB17: =IFERROR(IF(D17="",0,D17-INDEX($D$15:D17,MATCH(S17,$S$15:S17,0))),0) -> 0 d | AC17: 0.00R | AD17: 100,000.00 | AE17: Swing Trade | AI17: 0 | AJ17: =SUMIFS($U$15:U17,$S$15:S17,S17,$W$15:W17,">0") -> 31813.574 | AK17: =IF(COUNTIF($E$15:E17,E17)=1,C17,"") -> 3 | AL17: 2714.608 | AM17: 42979 | AN17: 0 | AO17: 0 | AP17: 0 | AS17: 0 | AU17: =SUMIF(Dividends!$N$15:$N$274,C17,Dividends!$G$15:$G$274) -> 0 | AV17: =SUMIF('Bank Transfers'!$P$15:$P$114,C17,'Bank Transfers'!$H$15:$H$114) -> 0 | AW17: 100000 | AX17: 100000 | AY17: 0 | BA17: 0 | BB17: 0 | BC17: 0 | BD17: 0 | BE17: 0 | BF17: 0 | BG17: 0 | BH17: =IFERROR(MAX($AX$14:AX17),"") -> 100000 | BI17: 0 | BJ17: 8 | BK17: 100876.3257 | BM17: 3 | BO17: =SMALL($AK$15:$AK$26022,C17) -> 3 | BP17: =INDEX(actionLog,MATCH(BT17&BR17,S17:S20102,0)) -> BUY | BQ17: =IF(OR(BP17="buy",BP17="sell"),"L","S") -> L | BR17: =COUNTIFS(symbol,BT17,$R$15:$R$20100,0) -> 1 | BS17: =BS16+0.0000001 -> 3e-07 | BT17: =IFERROR(INDEX(symbol,BO17),"") -> TUGS | BU17: =SUMIFS(P$15:P$20100,symbol,BT17) -> 0 | BV17: =IFERROR(SUMIFS($W$15:$W$20100,symbol,BT17)/BU17,0) -> 0 | BW17: =BV17*BU17 -> 0 | BX17: =BT17&BR17 -> TUGS1 | BY17: =IF(BW17=0,0,ROUND(BW17+BS17,5)) -> 0 | BZ17: =IF(BT17="","",BR17+BS17) -> 1.0000003
C18: 4 | D18: 4298300.00% | E18: CHP | F18: SELL | G18: 6.040 | H18: 5,300 | K18: 32012 | L18: 80.03 | M18: 9.6036 | N18: 4.8018 | O18: 192.072 | P18: -5300 | Q18: =SUMIF($E$15:E18,E18,$P$15:P18) -> 0 | R18: 5300 | S18: =E18&COUNTIFS($E$15:E18,E18,$R$15:R18,0) -> CHP1 | T18: 286.51 | U18: 31,725.49 | V18: 6.1280 | W18: -32478.52985 | X18: =SUMIFS($W$15:W17,$E$15:E17,E18) -> 32478.52985 | Y18: =SUMIF($S$15:S18,S18,$W$15:W18)/Q18 ->  | Z18: -753.04 | AA18: -2.32% | AB18: =IFERROR(IF(D18="",0,D18-INDEX($D$15:D18,MATCH(S18,$S$15:S18,0))),0) -> 1 d | AC18: -0.75R | AD18: 100,000.00 | AE18: Bottom fishing | AI18: -753.03725 | AJ18: =SUMIFS($U$15:U18,$S$15:S18,S18,$W$15:W18,">0") -> 32478.52985 | AK18: =IF(COUNTIF($E$15:E18,E18)=1,C18,"") ->  | AL18: -753.03725 | AM18: 42979 | AN18: 1 | AO18: 1 | AP18: 1 | AR18: 0.3247852985 | AS18: 1 | AT18: -0.02318569386 | AU18: =SUMIF(Dividends!$N$15:$N$274,C18,Dividends!$G$15:$G$274) -> 0 | AV18: =SUMIF('Bank Transfers'!$P$15:$P$114,C18,'Bank Transfers'!$H$15:$H$114) -> 0 | AW18: 100000 | AX18: 99246.96275 | AY18: -0.0075303725 | AZ18: 4 | BA18: -1 | BB18: -1 | BC18: -753.03725 | BD18: 0 | BE18: 0 | BF18: 0 | BG18: -1 | BH18: =IFERROR(MAX($AX$14:AX18),"") -> 100000 | BI18: -0.0075303725 | BJ18: 10 | BK18: 100744.8546 | BM18: 4 | BO18: 5 | BP18: BUY | BQ18: L | BR18: 7 | BS18: 4e-07 | BT18: PXP | BU18: 6900 | BV18: 6.719765 | BW18: 46366.3785 | BX18: PXP7 | BY18: 46366.3785 | BZ18: 7.0000004
C19: 5 | D19: 4298300.00% | E19: PXP | F19: BUY | G19: 4.700 | H19: 7,000 | K19: 32900 | L19: 82.25 | M19: 9.87 | N19: 4.935 | O19: 197.4 | P19: 7000 | Q19: =SUMIF($E$15:E19,E19,$P$15:P19) -> 7000 | R19: 0 | S19: =E19&COUNTIFS($E$15:E19,E19,$R$15:R19,0) -> PXP1 | T19: 97.06 | U19: 32,997.06 | V19: 4.7139 | W19: 32997.055 | X19: =SUMIFS($W$15:W18,$E$15:E18,E19) -> 0 | Y19: =SUMIF($S$15:S19,S19,$W$15:W19)/Q19 -> 4.713865 | Z19: 0.00 | AA19: 0.00% | AB19: =IFERROR(IF(D19="",0,D19-INDEX($D$15:D19,MATCH(S19,$S$15:S19,0))),0) -> 0 d | AC19: 0.00R | AD19: 99,246.96 | AE19: Momentum | AI19: 0 | AJ19: =SUMIFS($U$15:U19,$S$15:S19,S19,$W$15:W19,">0") -> 32997.055 | AK19: =IF(COUNTIF($E$15:E19,E19)=1,C19,"") -> 5 | AL19: -1085.245 | AM19: 42979 | AN19: 0 | AO19: 0 | AP19: 0 | AS19: 1 | AU19: =SUMIF(Dividends!$N$15:$N$274,C19,Dividends!$G$15:$G$274) -> 0 | AV19: =SUMIF('Bank Transfers'!$P$15:$P$114,C19,'Bank Transfers'!$H$15:$H$114) -> 0 | AW19: 99246.96275 | AX19: 99246.96275 | AY19: -0.0075303725 | BA19: 0 | BB19: -1 | BC19: -753.03725 | BD19: 0 | BE19: 0 | BF19: 0 | BG19: -1 | BH19: =IFERROR(MAX($AX$14:AX19),"") -> 100000 | BI19: -0.0075303725 | BJ19: 12 | BK19: 100008.9426 | BM19: 5 | BO19: 7 | BP19: SELL | BQ19: L | BR19: 2 | BS19: 5e-07 | BT19: MAC | BU19: 0 | BV19: 0 | BW19: 0 | BX19: MAC2 | BY19: 0 | BZ19: 2.0000005
C20: 6 | D20: 4298400.00% | E20: TUGS | F20: SELL | G20: 2.680 | H20: 13,000 | K20: 34840 | L20: 87.1 | M20: 10.452 | N20: 5.226 | O20: 209.04 | P20: -13000 | Q20: =SUMIF($E$15:E20,E20,$P$15:P20) -> 0 | R20: 13000 | S20: =E20&COUNTIFS($E$15:E20,E20,$R$15:R20,0) -> TUGS1 | T20: 311.82 | U20: 34,528.18 | V20: 2.4472 | W20: -31813.574 | X20: =SUMIFS($W$15:W19,$E$15:E19,E20) -> 31813.574 | Y20: =SUMIF($S$15:S20,S20,$W$15:W20)/Q20 ->  | Z20: 2,714.61 | AA20: 8.53% | AB20: =IFERROR(IF(D20="",0,D20-INDEX($D$15:D20,MATCH(S20,$S$15:S20,0))),0) -> 2 d | AC20: 2.74R | AD20: 99,246.96 | AE20: Swing Trade | AI20: 2714.608 | AJ20: =SUMIFS($U$15:U20,$S$15:S20,S20,$W$15:W20,">0") -> 31813.574 | AK20: =IF(COUNTIF($E$15:E20,E20)=1,C20,"") ->  | AL20: 2714.608 | AM20: 42979 | AN20: 2 | AO20: 2 | AP20: 2 | AR20: 0.3205495979 | AS20: 2 | AT20: 0.08532860847 | AU20: =SUMIF(Dividends!$N$15:$N$274,C20,Dividends!$G$15:$G$274) -> 0 | AV20: =SUMIF('Bank Transfers'!$P$15:$P$114,C20,'Bank Transfers'!$H$15:$H$114) -> 0 | AW20: 99246.96275 | AX20: 101961.5707 | AY20: 0.01982167863 | AZ20: 6 | BA20: 1 | BB20: 0 | BC20: 0 | BD20: 1 | BE20: 2714.608 | BF20: 0 | BG20: 1 | BH20: =IFERROR(MAX($AX$14:AX20),"") -> 101961.5707 | BI20: 0 | BJ20: 14 | BK20: 100971.1084 | BM20: 6 | BO20: 9 | BP20: SELL | BQ20: L | BR20: 1 | BS20: 6e-07 | BT20: X | BU20: 0 | BV20: 0 | BW20: 0 | BX20: X1 | BY20: 0 | BZ20: 1.0000006
C21: 7 | D21: 4298400.00% | E21: MAC | F21: BUY | G21: 10.700 | H21: 3,100 | K21: 33170 | L21: 82.925 | M21: 9.951 | N21: 4.9755 | O21: 199.02 | P21: 3100 | Q21: =SUMIF($E$15:E21,E21,$P$15:P21) -> 3100 | R21: 0 | S21: =E21&COUNTIFS($E$15:E21,E21,$R$15:R21,0) -> MAC1 | T21: 97.85 | U21: 33,267.85 | V21: 10.7316 | W21: 33267.8515 | X21: =SUMIFS($W$15:W20,$E$15:E20,E21) -> 0 | Y21: =SUMIF($S$15:S21,S21,$W$15:W21)/Q21 -> 10.731565 | Z21: 0.00 | AA21: 0.00% | AB21: =IFERROR(IF(D21="",0,D21-INDEX($D$15:D21,MATCH(S21,$S$15:S21,0))),0) -> 0 d | AC21: 0.00R | AD21: 101,961.57 | AI21: 0 | AJ21: =SUMIFS($U$15:U21,$S$15:S21,S21,$W$15:W21,">0") -> 33267.8515 | AK21: =IF(COUNTIF($E$15:E21,E21)=1,C21,"") -> 7 | AL21: 9089.4843 | AM21: 42979 | AN21: 0 | AO21: 0 | AP21: 0 | AS21: 2 | AU21: =SUMIF(Dividends!$N$15:$N$274,C21,Dividends!$G$15:$G$274) -> 0 | AV21: =SUMIF('Bank Transfers'!$P$15:$P$114,C21,'Bank Transfers'!$H$15:$H$114) -> 0 | AW21: 101961.5707 | AX21: 101961.5707 | AY21: 0.01982167863 | BA21: 0 | BB21: 0 | BC21: 0 | BD21: 1 | BE21: 2714.608 | BF21: 0 | BG21: 1 | BH21: =IFERROR(MAX($AX$14:AX21),"") -> 101961.5707 | BI21: 0 | BJ21: 16 | BK21: 101330.4982 | BM21: 7 | BO21: 11 | BP21: SELL | BQ21: L | BR21: 3 | BS21: 7e-07 | BT21: APX | BU21: 0 | BV21: 0 | BW21: 0 | BX21: APX3 | BY21: 0 | BZ21: 3.0000007
C22: 8 | D22: 4298400.00% | E22: PXP | F22: SELL | G22: 4.600 | H22: 7,000 | K22: 32200 | L22: 80.5 | M22: 9.66 | N22: 4.83 | O22: 193.2 | P22: -7000 | Q22: =SUMIF($E$15:E22,E22,$P$15:P22) -> 0 | R22: 7000 | S22: =E22&COUNTIFS($E$15:E22,E22,$R$15:R22,0) -> PXP1 | T22: 288.19 | U22: 31,911.81 | V22: 4.7139 | W22: -32997.055 | X22: =SUMIFS($W$15:W21,$E$15:E21,E22) -> 32997.055 | Y22: =SUMIF($S$15:S22,S22,$W$15:W22)/Q22 ->  | Z22: -1,085.25 | AA22: -3.29% | AB22: =IFERROR(IF(D22="",0,D22-INDEX($D$15:D22,MATCH(S22,$S$15:S22,0))),0) -> 1 d | AC22: -1.06R | AD22: 101,961.57 | AE22: Momentum | AI22: -1085.245 | AJ22: =SUMIFS($U$15:U22,$S$15:S22,S22,$W$15:W22,">0") -> 32997.055 | AK22: =IF(COUNTIF($E$15:E22,E22)=1,C22,"") ->  | AL22: -1085.245 | AM22: 42979 | AN22: 1 | AO22: 1 | AP22: 1 | AR22: 0.3236224664 | AS22: 3 | AT22: -0.03288914723 | AU22: =SUMIF(Dividends!$N$15:$N$274,C22,Dividends!$G$15:$G$274) -> 0 | AV22: =SUMIF('Bank Transfers'!$P$15:$P$114,C22,'Bank Transfers'!$H$15:$H$114) -> 0 | AW22: 101961.5707 | AX22: 100876.3257 | AY22: 0.009178011691 | AZ22: 8 | BA22: -1 | BB22: -1 | BC22: -1085.245 | BD22: 0 | BE22: 0 | BF22: 0 | BG22: -1 | BH22: =IFERROR(MAX($AX$14:AX22),"") -> 101961.5707 | BI22: -0.01064366694 | BJ22: 18 | BK22: 101116.7171 | BM22: 8 | BO22: 15 | BP22: SELL | BQ22: L | BR22: 1 | BS22: 8e-07 | BT22: IMI | BU22: 0 | BV22: 0 | BW22: 0 | BX22: IMI1 | BY22: 0 | BZ22: 1.0000008
C23: 9 | D23: 4298400.00% | E23: X | F23: BUY | G23: 6.210 | H23: 5,400 | K23: 33534 | L23: 83.835 | M23: 10.0602 | N23: 5.0301 | O23: 201.204 | P23: 5400 | Q23: =SUMIF($E$15:E23,E23,$P$15:P23) -> 5400 | R23: 0 | S23: =E23&COUNTIFS($E$15:E23,E23,$R$15:R23,0) -> X1 | T23: 98.93 | U23: 33,632.93 | V23: 6.2283 | W23: 33632.9253 | X23: =SUMIFS($W$15:W22,$E$15:E22,E23) -> 0 | Y23: =SUMIF($S$15:S23,S23,$W$15:W23)/Q23 -> 6.2283195 | Z23: 0.00 | AA23: 0.00% | AB23: =IFERROR(IF(D23="",0,D23-INDEX($D$15:D23,MATCH(S23,$S$15:S23,0))),0) -> 0 d | AC23: 0.00R | AD23: 100,876.33 | AI23: 0 | AJ23: =SUMIFS($U$15:U23,$S$15:S23,S23,$W$15:W23,">0") -> 33632.9253 | AK23: =IF(COUNTIF($E$15:E23,E23)=1,C23,"") -> 9 | AL23: -131.4711 | AM23: 42979 | AN23: 0 | AO23: 0 | AP23: 0 | AS23: 3 | AU23: =SUMIF(Dividends!$N$15:$N$274,C23,Dividends!$G$15:$G$274) -> 0 | AV23: =SUMIF('Bank Transfers'!$P$15:$P$114,C23,'Bank Transfers'!$H$15:$H$114) -> 0 | AW23: 100876.3257 | AX23: 100876.3257 | AY23: 0.009178011691 | BA23: 0 | BB23: -1 | BC23: -1085.245 | BD23: 0 | BE23: 0 | BF23: 0 | BG23: -1 | BH23: =IFERROR(MAX($AX$14:AX23),"") -> 101961.5707 | BI23: -0.01064366694 | BJ23: 20 | BK23: 100103.8169 | BM23: 9 | BO23: 17 | BP23: BUY | BQ23: L | BR23: 1 | BS23: 9e-07 | BT23: MEG | BU23: 0 | BV23: 0 | BW23: 0 | BX23: MEG1 | BY23: 0 | BZ23: 1.0000009
C24: 10 | D24: 4298500.00% | E24: X | F24: SELL | G24: 6.260 | H24: 5,400 | K24: 33804 | L24: 84.51 | M24: 10.1412 | N24: 5.0706 | O24: 202.824 | P24: -5400 | Q24: =SUMIF($E$15:E24,E24,$P$15:P24) -> 0 | R24: 5400 | S24: =E24&COUNTIFS($E$15:E24,E24,$R$15:R24,0) -> X1 | T24: 302.55 | U24: 33,501.45 | V24: 6.2283 | W24: -33632.9253 | X24: =SUMIFS($W$15:W23,$E$15:E23,E24) -> 33632.9253 | Y24: =SUMIF($S$15:S24,S24,$W$15:W24)/Q24 ->  | Z24: -131.47 | AA24: -0.39% | AB24: =IFERROR(IF(D24="",0,D24-INDEX($D$15:D24,MATCH(S24,$S$15:S24,0))),0) -> 1 d | AC24: -0.13R | AD24: 100,876.33 | AI24: -131.4711 | AJ24: =SUMIFS($U$15:U24,$S$15:S24,S24,$W$15:W24,">0") -> 33632.9253 | AK24: =IF(COUNTIF($E$15:E24,E24)=1,C24,"") ->  | AL24: -131.4711 | AM24: 42979 | AN24: 1 | AO24: 1 | AP24: 1 | AR24: 0.3334075171 | AS24: 4 | AT24: -0.003908999851 | AU24: =SUMIF(Dividends!$N$15:$N$274,C24,Dividends!$G$15:$G$274) -> 0 | AV24: =SUMIF('Bank Transfers'!$P$15:$P$114,C24,'Bank Transfers'!$H$15:$H$114) -> 0 | AW24: 100876.3257 | AX24: 100744.8546 | AY24: 0.007874721756 | AZ24: 10 | BA24: -1 | BB24: -2 | BC24: -1216.7161 | BD24: 0 | BE24: 0 | BF24: 0 | BG24: -2 | BH24: =IFERROR(MAX($AX$14:AX24),"") -> 101961.5707 | BI24: -0.01193308509 | BJ24: 22 | BK24: 115171.497 | BM24: 10 | BO24: 19 | BP24: SELL | BQ24: L | BR24: 1 | BS24: 1e-06 | BT24: MRP | BU24: 0 | BV24: 0 | BW24: 0 | BX24: MRP1 | BY24: 0 | BZ24: 1.000001
C25: 11 | D25: 4298600.00% | E25: APX | F25: BUY | G25: 1.770 | H25: 18,000 | K25: 31860 | L25: 79.65 | M25: 9.558 | N25: 4.779 | O25: 191.16 | P25: 18000 | Q25: =SUMIF($E$15:E25,E25,$P$15:P25) -> 18000 | R25: 0 | S25: =E25&COUNTIFS($E$15:E25,E25,$R$15:R25,0) -> APX1 | T25: 93.99 | U25: 31,953.99 | V25: 1.7752 | W25: 31953.987 | X25: =SUMIFS($W$15:W24,$E$15:E24,E25) -> 0 | Y25: =SUMIF($S$15:S25,S25,$W$15:W25)/Q25 -> 1.7752215 | Z25: 0.00 | AA25: 0.00% | AB25: =IFERROR(IF(D25="",0,D25-INDEX($D$15:D25,MATCH(S25,$S$15:S25,0))),0) -> 0 d | AC25: 0.00R | AD25: 100,744.85 | AI25: 0 | AJ25: =SUMIFS($U$15:U25,$S$15:S25,S25,$W$15:W25,">0") -> 31953.987 | AK25: =IF(COUNTIF($E$15:E25,E25)=1,C25,"") -> 11 | AL25: -735.912 | AM25: 42979 | AN25: 0 | AO25: 0 | AP25: 0 | AS25: 4 | AU25: =SUMIF(Dividends!$N$15:$N$274,C25,Dividends!$G$15:$G$274) -> 0 | AV25: =SUMIF('Bank Transfers'!$P$15:$P$114,C25,'Bank Transfers'!$H$15:$H$114) -> 0 | AW25: 100744.8546 | AX25: 100744.8546 | AY25: 0.007874721756 | BA25: 0 | BB25: -2 | BC25: -1216.7161 | BD25: 0 | BE25: 0 | BF25: 0 | BG25: -2 | BH25: =IFERROR(MAX($AX$14:AX25),"") -> 101961.5707 | BI25: -0.01193308509 | BJ25: 26 | BK25: 119797.2618 | BM25: 11 | BO25: 35 | BP25: BUY | BQ25: L | BR25: 1 | BS25: 1.1e-06 | BT25: EDC | BU25: 0 | BV25: 0 | BW25: 0 | BX25: EDC1 | BY25: 0 | BZ25: 1.0000011
C26: 12 | D26: 4298600.00% | E26: APX | F26: SELL | G26: 1.750 | H26: 18,000 | K26: 31500 | L26: 78.75 | M26: 9.45 | N26: 4.725 | O26: 189 | P26: -18000 | Q26: =SUMIF($E$15:E26,E26,$P$15:P26) -> 0 | R26: 18000 | S26: =E26&COUNTIFS($E$15:E26,E26,$R$15:R26,0) -> APX1 | T26: 281.93 | U26: 31,218.08 | V26: 1.7752 | W26: -31953.987 | X26: =SUMIFS($W$15:W25,$E$15:E25,E26) -> 31953.987 | Y26: =SUMIF($S$15:S26,S26,$W$15:W26)/Q26 ->  | Z26: -735.91 | AA26: -2.30% | AB26: =IFERROR(IF(D26="",0,D26-INDEX($D$15:D26,MATCH(S26,$S$15:S26,0))),0) -> 0 d | AC26: -0.73R | AD26: 100,744.85 | AI26: -735.912 | AJ26: =SUMIFS($U$15:U26,$S$15:S26,S26,$W$15:W26,">0") -> 31953.987 | AK26: =IF(COUNTIF($E$15:E26,E26)=1,C26,"") ->  | AL26: -735.912 | AM26: 42979 | AN26: 1 | AO26: 1 | AP26: 1 | AR26: 0.3171773597 | AS26: 5 | AT26: -0.02303036551 | AU26: =SUMIF(Dividends!$N$15:$N$274,C26,Dividends!$G$15:$G$274) -> 0 | AV26: =SUMIF('Bank Transfers'!$P$15:$P$114,C26,'Bank Transfers'!$H$15:$H$114) -> 0 | AW26: 100744.8546 | AX26: 100008.9426 | AY26: 0.0005700112324 | AZ26: 12 | BA26: -1 | BB26: -3 | BC26: -1952.6281 | BD26: 0 | BE26: 0 | BF26: -1952.6281 | BG26: -3 | BH26: =IFERROR(MAX($AX$14:AX26),"") -> 101961.5707 | BI26: -0.01915062788 | BJ26: 30 | BK26: 128535.7153 | BM26: 12 | BO26: 43 | BP26: SELL | BQ26: L | BR26: 1 | BS26: 1.2e-06 | BT26: EW | BU26: 0 | BV26: 0 | BW26: 0 | BX26: EW1 | BY26: 0 | BZ26: 1.0000012
C27: 13 | D27: 4298600.00% | E27: PXP | F27: BUY | G27: 5.050 | H27: 6,500 | K27: 32825 | L27: 82.0625 | M27: 9.8475 | N27: 4.92375 | O27: 196.95 | P27: 6500 | Q27: =SUMIF($E$15:E27,E27,$P$15:P27) -> 6500 | R27: 0 | S27: =E27&COUNTIFS($E$15:E27,E27,$R$15:R27,0) -> PXP2 | T27: 96.83 | U27: 32,921.83 | V27: 5.0649 | W27: 32921.83375 | X27: =SUMIFS($W$15:W26,$E$15:E26,E27) -> 0 | Y27: =SUMIF($S$15:S27,S27,$W$15:W27)/Q27 -> 5.0648975 | Z27: 0.00 | AA27: 0.00% | AB27: =IFERROR(IF(D27="",0,D27-INDEX($D$15:D27,MATCH(S27,$S$15:S27,0))),0) -> 0 d | AC27: 0.00R | AD27: 100,008.94 | AE27: Momentum | AI27: 0 | AJ27: =SUMIFS($U$15:U27,$S$15:S27,S27,$W$15:W27,">0") -> 32921.83375 | AK27: =IF(COUNTIF($E$15:E27,E27)=1,C27,"") ->  | AL27: 962.16575 | AM27: 42979 | AN27: 0 | AO27: 0 | AP27: 0 | AS27: 5 | AU27: =SUMIF(Dividends!$N$15:$N$274,C27,Dividends!$G$15:$G$274) -> 0 | AV27: =SUMIF('Bank Transfers'!$P$15:$P$114,C27,'Bank Transfers'!$H$15:$H$114) -> 0 | AW27: 100008.9426 | AX27: 100008.9426 | AY27: 0.0005700112324 | BA27: 0 | BB27: -3 | BC27: -1952.6281 | BD27: 0 | BE27: 0 | BF27: -1952.6281 | BG27: -3 | BH27: =IFERROR(MAX($AX$14:AX27),"") -> 101961.5707 | BI27: -0.01915062788 | BJ27: 31 | BK27: 129289.7131 | BM27: 13 | BR27: 3 | BS27: 1.3e-06 | BU27: 0 | BV27: 0 | BW27: 0 | BX27: 3 | BY27: 0
C28: 14 | D28: 4298900.00% | E28: PXP | F28: SELL | G28: 5.260 | H28: 6,500 | K28: 34190 | L28: 85.475 | M28: 10.257 | N28: 5.1285 | O28: 205.14 | P28: -6500 | Q28: =SUMIF($E$15:E28,E28,$P$15:P28) -> 0 | R28: 6500 | S28: =E28&COUNTIFS($E$15:E28,E28,$R$15:R28,0) -> PXP2 | T28: 306.00 | U28: 33,884.00 | V28: 5.0649 | W28: -32921.83375 | X28: =SUMIFS($W$15:W27,$E$15:E27,E28) -> 32921.83375 | Y28: =SUMIF($S$15:S28,S28,$W$15:W28)/Q28 ->  | Z28: 962.17 | AA28: 2.92% | AB28: =IFERROR(IF(D28="",0,D28-INDEX($D$15:D28,MATCH(S28,$S$15:S28,0))),0) -> 3 d | AC28: 0.96R | AD28: 100,008.94 | AE28: Momentum | AI28: 962.16575 | AJ28: =SUMIFS($U$15:U28,$S$15:S28,S28,$W$15:W28,">0") -> 32921.83375 | AK28: =IF(COUNTIF($E$15:E28,E28)=1,C28,"") ->  | AL28: 962.16575 | AM28: 42979 | AN28: 2 | AO28: 2 | AP28: 2 | AR28: 0.3291888993 | AS28: 6 | AT28: 0.02922576419 | AU28: =SUMIF(Dividends!$N$15:$N$274,C28,Dividends!$G$15:$G$274) -> 0 | AV28: =SUMIF('Bank Transfers'!$P$15:$P$114,C28,'Bank Transfers'!$H$15:$H$114) -> 0 | AW28: 100008.9426 | AX28: 100971.1084 | AY28: 0.01019080838 | AZ28: 14 | BA28: 1 | BB28: 0 | BC28: 0 | BD28: 1 | BE28: 962.16575 | BF28: 0 | BG28: 1 | BH28: =IFERROR(MAX($AX$14:AX28),"") -> 101961.5707 | BI28: -0.009714075045 | BJ28: 32 | BK28: 138379.1975 | BM28: 14 | BR28: 3 | BS28: 1.4e-06 | BU28: 0 | BV28: 0 | BW28: 0 | BX28: 3 | BY28: 0
C29: 15 | D29: 4299100.00% | E29: IMI | F29: BUY | G29: 15.900 | H29: 2,100 | K29: 33390 | L29: 83.475 | M29: 10.017 | N29: 5.0085 | O29: 200.34 | P29: 2100 | Q29: =SUMIF($E$15:E29,E29,$P$15:P29) -> 2100 | R29: 0 | S29: =E29&COUNTIFS($E$15:E29,E29,$R$15:R29,0) -> IMI1 | T29: 98.50 | U29: 33,488.50 | V29: 15.9469 | W29: 33488.5005 | X29: =SUMIFS($W$15:W28,$E$15:E28,E29) -> 0 | Y29: =SUMIF($S$15:S29,S29,$W$15:W29)/Q29 -> 15.946905 | Z29: 0.00 | AA29: 0.00% | AB29: =IFERROR(IF(D29="",0,D29-INDEX($D$15:D29,MATCH(S29,$S$15:S29,0))),0) -> 0 d | AC29: 0.00R | AD29: 100,971.11 | AI29: 0 | AJ29: =SUMIFS($U$15:U29,$S$15:S29,S29,$W$15:W29,">0") -> 33488.5005 | AK29: =IF(COUNTIF($E$15:E29,E29)=1,C29,"") -> 15 | AL29: 4625.7649 | AM29: 42979 | AN29: 0 | AO29: 0 | AP29: 0 | AS29: 6 | AU29: =SUMIF(Dividends!$N$15:$N$274,C29,Dividends!$G$15:$G$274) -> 0 | AV29: =SUMIF('Bank Transfers'!$P$15:$P$114,C29,'Bank Transfers'!$H$15:$H$114) -> 0 | AW29: 100971.1084 | AX29: 100971.1084 | AY29: 0.01019080838 | BA29: 0 | BB29: 0 | BC29: 0 | BD29: 1 | BE29: 962.16575 | BF29: 0 | BG29: 1 | BH29: =IFERROR(MAX($AX$14:AX29),"") -> 101961.5707 | BI29: -0.009714075045 | BJ29: 36 | BK29: 135189.2824 | BM29: 15 | BR29: 3 | BS29: 1.5e-06 | BU29: 0 | BV29: 0 | BW29: 0 | BX29: 3 | BY29: 0
C30: 16 | D30: 4299100.00% | E30: WLCON | F30: SELL | G30: 9.310 | H30: 3,600 | K30: 33516 | L30: 83.79 | M30: 10.0548 | N30: 5.0274 | O30: 201.096 | P30: -3600 | Q30: =SUMIF($E$15:E30,E30,$P$15:P30) -> 0 | R30: 3600 | S30: =E30&COUNTIFS($E$15:E30,E30,$R$15:R30,0) -> WLCON1 | T30: 299.97 | U30: 33,216.03 | V30: 9.1268 | W30: -32856.642 | X30: =SUMIFS($W$15:W29,$E$15:E29,E30) -> 32856.642 | Y30: =SUMIF($S$15:S30,S30,$W$15:W30)/Q30 ->  | Z30: 359.39 | AA30: 1.09% | AB30: =IFERROR(IF(D30="",0,D30-INDEX($D$15:D30,MATCH(S30,$S$15:S30,0))),0) -> 9 d | AC30: 0.36R | AD30: 100,971.11 | AE30: Trend Follow | AI30: 359.3898 | AJ30: =SUMIFS($U$15:U30,$S$15:S30,S30,$W$15:W30,">0") -> 32856.642 | AK30: =IF(COUNTIF($E$15:E30,E30)=1,C30,"") ->  | AL30: 359.3898 | AM30: 42979 | AN30: 2 | AO30: 2 | AP30: 2 | AR30: 0.3254063714 | AS30: 7 | AT30: 0.01093811717 | AU30: =SUMIF(Dividends!$N$15:$N$274,C30,Dividends!$G$15:$G$274) -> 0 | AV30: =SUMIF('Bank Transfers'!$P$15:$P$114,C30,'Bank Transfers'!$H$15:$H$114) -> 0 | AW30: 100971.1084 | AX30: 101330.4982 | AY30: 0.0137501414 | AZ30: 16 | BA30: 1 | BB30: 0 | BC30: 0 | BD30: 2 | BE30: 1321.55555 | BF30: 0 | BG30: 2 | BH30: =IFERROR(MAX($AX$14:AX30),"") -> 101961.5707 | BI30: -0.006189317655 | BJ30: 37 | BK30: 134481.0028 | BM30: 16 | BR30: 3 | BS30: 1.6e-06 | BU30: 0 | BV30: 0 | BW30: 0 | BX30: 3 | BY30: 0
C31: 17 | D31: 4299200.00% | E31: MEG | F31: BUY | G31: 5.350 | H31: 6,300 | K31: 33705 | L31: 84.2625 | M31: 10.1115 | N31: 5.05575 | O31: 202.23 | P31: 6300 | Q31: =SUMIF($E$15:E31,E31,$P$15:P31) -> 6300 | R31: 0 | S31: =E31&COUNTIFS($E$15:E31,E31,$R$15:R31,0) -> MEG1 | T31: 99.43 | U31: 33,804.43 | V31: 5.3658 | W31: 33804.42975 | X31: =SUMIFS($W$15:W30,$E$15:E30,E31) -> 0 | Y31: =SUMIF($S$15:S31,S31,$W$15:W31)/Q31 -> 5.3657825 | Z31: 0.00 | AA31: 0.00% | AB31: =IFERROR(IF(D31="",0,D31-INDEX($D$15:D31,MATCH(S31,$S$15:S31,0))),0) -> 0 d | AC31: 0.00R | AD31: 101,330.50 | AI31: 0 | AJ31: =SUMIFS($U$15:U31,$S$15:S31,S31,$W$15:W31,">0") -> 33804.42975 | AK31: =IF(COUNTIF($E$15:E31,E31)=1,C31,"") -> 17 | AL31: -213.78105 | AM31: 42979 | AN31: 0 | AO31: 0 | AP31: 0 | AS31: 7 | AU31: =SUMIF(Dividends!$N$15:$N$274,C31,Dividends!$G$15:$G$274) -> 0 | AV31: =SUMIF('Bank Transfers'!$P$15:$P$114,C31,'Bank Transfers'!$H$15:$H$114) -> 0 | AW31: 101330.4982 | AX31: 101330.4982 | AY31: 0.0137501414 | BA31: 0 | BB31: 0 | BC31: 0 | BD31: 2 | BE31: 1321.55555 | BF31: 0 | BG31: 2 | BH31: =IFERROR(MAX($AX$14:AX31),"") -> 101961.5707 | BI31: -0.006189317655 | BJ31: 38 | BK31: 143596.3588 | BM31: 17 | BR31: 3 | BS31: 1.7e-06 | BU31: 0 | BV31: 0 | BW31: 0 | BX31: 3 | BY31: 0
C32: 18 | D32: 4299300.00% | E32: MEG | F32: SELL | G32: 5.380 | H32: 6,300 | K32: 33894 | L32: 84.735 | M32: 10.1682 | N32: 5.0841 | O32: 203.364 | P32: -6300 | Q32: =SUMIF($E$15:E32,E32,$P$15:P32) -> 0 | R32: 6300 | S32: =E32&COUNTIFS($E$15:E32,E32,$R$15:R32,0) -> MEG1 | T32: 303.35 | U32: 33,590.65 | V32: 5.3658 | W32: -33804.42975 | X32: =SUMIFS($W$15:W31,$E$15:E31,E32) -> 33804.42975 | Y32: =SUMIF($S$15:S32,S32,$W$15:W32)/Q32 ->  | Z32: -213.78 | AA32: -0.63% | AB32: =IFERROR(IF(D32="",0,D32-INDEX($D$15:D32,MATCH(S32,$S$15:S32,0))),0) -> 1 d | AC32: -0.21R | AD32: 101,330.50 | AI32: -213.78105 | AJ32: =SUMIFS($U$15:U32,$S$15:S32,S32,$W$15:W32,">0") -> 33804.42975 | AK32: =IF(COUNTIF($E$15:E32,E32)=1,C32,"") ->  | AL32: -213.78105 | AM32: 42979 | AN32: 1 | AO32: 1 | AP32: 1 | AR32: 0.3336056799 | AS32: 8 | AT32: -0.00632405432 | AU32: =SUMIF(Dividends!$N$15:$N$274,C32,Dividends!$G$15:$G$274) -> 0 | AV32: =SUMIF('Bank Transfers'!$P$15:$P$114,C32,'Bank Transfers'!$H$15:$H$114) -> 0 | AW32: 101330.4982 | AX32: 101116.7171 | AY32: 0.01164040095 | AZ32: 18 | BA32: -1 | BB32: -1 | BC32: -213.78105 | BD32: 0 | BE32: 0 | BF32: 0 | BG32: -1 | BH32: =IFERROR(MAX($AX$14:AX32),"") -> 101961.5707 | BI32: -0.008286000243 | BJ32: 41 | BK32: 142474.5091 | BM32: 18 | BR32: 3 | BS32: 1.8e-06 | BU32: 0 | BV32: 0 | BW32: 0 | BX32: 3 | BY32: 0
C33: 19 | D33: 4299300.00% | E33: MRP | F33: BUY | G33: 8.500 | H33: 3,900 | K33: 33150 | L33: 82.875 | M33: 9.945 | N33: 4.9725 | O33: 198.9 | P33: 3900 | Q33: =SUMIF($E$15:E33,E33,$P$15:P33) -> 3900 | R33: 0 | S33: =E33&COUNTIFS($E$15:E33,E33,$R$15:R33,0) -> MRP1 | T33: 97.79 | U33: 33,247.79 | V33: 8.5251 | W33: 33247.7925 | X33: =SUMIFS($W$15:W32,$E$15:E32,E33) -> 0 | Y33: =SUMIF($S$15:S33,S33,$W$15:W33)/Q33 -> 8.525075 | Z33: 0.00 | AA33: 0.00% | AB33: =IFERROR(IF(D33="",0,D33-INDEX($D$15:D33,MATCH(S33,$S$15:S33,0))),0) -> 0 d | AC33: 0.00R | AD33: 101,116.72 | AI33: 0 | AJ33: =SUMIFS($U$15:U33,$S$15:S33,S33,$W$15:W33,">0") -> 33247.7925 | AK33: =IF(COUNTIF($E$15:E33,E33)=1,C33,"") -> 19 | AL33: -1012.9002 | AM33: 42979 | AN33: 0 | AO33: 0 | AP33: 0 | AS33: 8 | AU33: =SUMIF(Dividends!$N$15:$N$274,C33,Dividends!$G$15:$G$274) -> 0 | AV33: =SUMIF('Bank Transfers'!$P$15:$P$114,C33,'Bank Transfers'!$H$15:$H$114) -> 0 | AW33: 101116.7171 | AX33: 101116.7171 | AY33: 0.01164040095 | BA33: 0 | BB33: -1 | BC33: -213.78105 | BD33: 0 | BE33: 0 | BF33: 0 | BG33: -1 | BH33: =IFERROR(MAX($AX$14:AX33),"") -> 101961.5707 | BI33: -0.008286000243 | BJ33: 44 | BK33: 140388.6724 | BM33: 19 | BR33: 3 | BS33: 1.9e-06 | BU33: 0 | BV33: 0 | BW33: 0 | BX33: 3 | BY33: 0
C34: 20 | D34: 4299700.00% | E34: MRP | F34: SELL | G34: 8.340 | H34: 3,900 | K34: 32526 | L34: 81.315 | M34: 9.7578 | N34: 4.8789 | O34: 195.156 | P34: -3900 | Q34: =SUMIF($E$15:E34,E34,$P$15:P34) -> 0 | R34: 3900 | S34: =E34&COUNTIFS($E$15:E34,E34,$R$15:R34,0) -> MRP1 | T34: 291.11 | U34: 32,234.89 | V34: 8.5251 | W34: -33247.7925 | X34: =SUMIFS($W$15:W33,$E$15:E33,E34) -> 33247.7925 | Y34: =SUMIF($S$15:S34,S34,$W$15:W34)/Q34 ->  | Z34: -1,012.90 | AA34: -3.05% | AB34: =IFERROR(IF(D34="",0,D34-INDEX($D$15:D34,MATCH(S34,$S$15:S34,0))),0) -> 4 d | AC34: -1.00R | AD34: 101,116.72 | AI34: -1012.9002 | AJ34: =SUMIFS($U$15:U34,$S$15:S34,S34,$W$15:W34,">0") -> 33247.7925 | AK34: =IF(COUNTIF($E$15:E34,E34)=1,C34,"") ->  | AL34: -1012.9002 | AM34: 42979 | AN34: 1 | AO34: 1 | AP34: 1 | AR34: 0.328806091 | AS34: 9 | AT34: -0.03046518652 | AU34: =SUMIF(Dividends!$N$15:$N$274,C34,Dividends!$G$15:$G$274) -> 0 | AV34: =SUMIF('Bank Transfers'!$P$15:$P$114,C34,'Bank Transfers'!$H$15:$H$114) -> 0 | AW34: 101116.7171 | AX34: 100103.8169 | AY34: 0.001623262063 | AZ34: 20 | BA34: -1 | BB34: -2 | BC34: -1226.68125 | BD34: 0 | BE34: 0 | BF34: 0 | BG34: -2 | BH34: =IFERROR(MAX($AX$14:AX34),"") -> 101961.5707 | BI34: -0.01822013712 | BJ34: 45 | BK34: 139834.8464 | BM34: 20 | BR34: 3 | BS34: 2e-06 | BU34: 0 | BV34: 0 | BW34: 0 | BX34: 3 | BY34: 0
C35: 21 | D35: 4299800.00% | E35: PXP | F35: BUY | G35: 5.500 | H35: 6,000 | K35: 33000 | L35: 82.5 | M35: 9.9 | N35: 4.95 | O35: 198 | P35: 6000 | Q35: =SUMIF($E$15:E35,E35,$P$15:P35) -> 6000 | R35: 0 | S35: =E35&COUNTIFS($E$15:E35,E35,$R$15:R35,0) -> PXP3 | T35: 97.35 | U35: 33,097.35 | V35: 5.5162 | W35: 33097.35 | X35: =SUMIFS($W$15:W34,$E$15:E34,E35) -> 0 | Y35: =SUMIF($S$15:S35,S35,$W$15:W35)/Q35 -> 5.516225 | Z35: 0.00 | AA35: 0.00% | AB35: =IFERROR(IF(D35="",0,D35-INDEX($D$15:D35,MATCH(S35,$S$15:S35,0))),0) -> 0 d | AC35: 0.00R | AD35: 100,103.82 | AE35: Momentum | AI35: 0 | AJ35: =SUMIFS($U$15:U35,$S$15:S35,S35,$W$15:W35,">0") -> 33097.35 | AK35: =IF(COUNTIF($E$15:E35,E35)=1,C35,"") ->  | AL35: 15067.68 | AM35: 42979 | AN35: 0 | AO35: 0 | AP35: 0 | AS35: 9 | AU35: =SUMIF(Dividends!$N$15:$N$274,C35,Dividends!$G$15:$G$274) -> 0 | AV35: =SUMIF('Bank Transfers'!$P$15:$P$114,C35,'Bank Transfers'!$H$15:$H$114) -> 0 | AW35: 100103.8169 | AX35: 100103.8169 | AY35: 0.001623262063 | BA35: 0 | BB35: -2 | BC35: -1226.68125 | BD35: 0 | BE35: 0 | BF35: 0 | BG35: -2 | BH35: =IFERROR(MAX($AX$14:AX35),"") -> 101961.5707 | BI35: -0.01822013712 | BJ35: 47 | BK35: 144486.5348 | BM35: 21 | BR35: 3 | BS35: 2.1e-06 | BU35: 0 | BV35: 0 | BW35: 0 | BX35: 3 | BY35: 0
C36: 22 | D36: 4300300.00% | E36: PXP | F36: SELL | G36: 8.100 | H36: 6,000 | K36: 48600 | L36: 121.5 | M36: 14.58 | N36: 7.29 | O36: 291.6 | P36: -6000 | Q36: =SUMIF($E$15:E36,E36,$P$15:P36) -> 0 | R36: 6000 | S36: =E36&COUNTIFS($E$15:E36,E36,$R$15:R36,0) -> PXP3 | T36: 434.97 | U36: 48,165.03 | V36: 5.5162 | W36: -33097.35 | X36: =SUMIFS($W$15:W35,$E$15:E35,E36) -> 33097.35 | Y36: =SUMIF($S$15:S36,S36,$W$15:W36)/Q36 ->  | Z36: 15,067.68 | AA36: 45.53% | AB36: =IFERROR(IF(D36="",0,D36-INDEX($D$15:D36,MATCH(S36,$S$15:S36,0))),0) -> 5 d | AC36: 15.05R | AD36: 100,103.82 | AE36: Momentum | AI36: 15067.68 | AJ36: =SUMIFS($U$15:U36,$S$15:S36,S36,$W$15:W36,">0") -> 33097.35 | AK36: =IF(COUNTIF($E$15:E36,E36)=1,C36,"") ->  | AL36: 15067.68 | AM36: 42979 | AN36: 2 | AO36: 2 | AP36: 2 | AR36: 0.3306302498 | AS36: 10 | AT36: 0.4552533662 | AU36: =SUMIF(Dividends!$N$15:$N$274,C36,Dividends!$G$15:$G$274) -> 0 | AV36: =SUMIF('Bank Transfers'!$P$15:$P$114,C36,'Bank Transfers'!$H$15:$H$114) -> 0 | AW36: 100103.8169 | AX36: 115171.497 | AY36: 0.1521437962 | AZ36: 22 | BA36: 1 | BB36: 0 | BC36: 0 | BD36: 1 | BE36: 15067.68 | BF36: 0 | BG36: 1 | BH36: =IFERROR(MAX($AX$14:AX36),"") -> 115171.497 | BI36: 0 | BK36: 144486.5348 | BR36: 3 | BS36: 2.2e-06 | BU36: 0 | BV36: 0 | BW36: 0 | BX36: 3 | BY36: 0
C37: 23 | D37: 4300300.00% | E37: APX | F37: BUY | G37: 1.880 | H37: 20,000 | K37: 37600 | L37: 94 | M37: 11.28 | N37: 5.64 | O37: 225.6 | P37: 20000 | Q37: =SUMIF($E$15:E37,E37,$P$15:P37) -> 20000 | R37: 0 | S37: =E37&COUNTIFS($E$15:E37,E37,$R$15:R37,0) -> APX2 | T37: 110.92 | U37: 37,710.92 | V37: 1.8855 | W37: 37710.92 | X37: =SUMIFS($W$15:W36,$E$15:E36,E37) -> 0 | Y37: =SUMIF($S$15:S37,S37,$W$15:W37)/Q37 -> 1.885546 | Z37: 0.00 | AA37: 0.00% | AB37: =IFERROR(IF(D37="",0,D37-INDEX($D$15:D37,MATCH(S37,$S$15:S37,0))),0) -> 0 d | AC37: 0.00R | AD37: 115,171.50 | AI37: 0 | AJ37: =SUMIFS($U$15:U37,$S$15:S37,S37,$W$15:W37,">0") -> 37710.92 | AK37: =IF(COUNTIF($E$15:E37,E37)=1,C37,"") ->  | AL37: 8738.4535 | AM37: 42979 | AN37: 0 | AO37: 0 | AP37: 0 | AS37: 10 | AU37: =SUMIF(Dividends!$N$15:$N$274,C37,Dividends!$G$15:$G$274) -> 0 | AV37: =SUMIF('Bank Transfers'!$P$15:$P$114,C37,'Bank Transfers'!$H$15:$H$114) -> 0 | AW37: 115171.497 | AX37: 115171.497 | AY37: 0.1521437962 | BA37: 0 | BB37: 0 | BC37: 0 | BD37: 1 | BE37: 15067.68 | BF37: 0 | BG37: 1 | BH37: =IFERROR(MAX($AX$14:AX37),"") -> 115171.497 | BI37: 0 | BK37: 144486.5348 | BR37: 3 | BS37: 2.3e-06 | BU37: 0 | BV37: 0 | BW37: 0 | BX37: 3 | BY37: 0
C38: 24 | D38: 4300300.00% | E38: MAC | F38: BUY | G38: 15.080 | H38: 300 | K38: 4524 | L38: 20 | M38: 2.4 | N38: 0.6786 | O38: 27.144 | P38: 300 | Q38: =SUMIF($E$15:E38,E38,$P$15:P38) -> 3400 | R38: 3100 | S38: =E38&COUNTIFS($E$15:E38,E38,$R$15:R38,0) -> MAC1 | T38: 23.08 | U38: 4,547.08 | V38: 11.1220 | W38: 4547.0786 | X38: =SUMIFS($W$15:W37,$E$15:E37,E38) -> 33267.8515 | Y38: =SUMIF($S$15:S38,S38,$W$15:W38)/Q38 -> 11.12203826 | Z38: 0.00 | AA38: 0.00% | AB38: =IFERROR(IF(D38="",0,D38-INDEX($D$15:D38,MATCH(S38,$S$15:S38,0))),0) -> 19 d | AC38: 0.00R | AD38: 115,171.50 | AI38: 0 | AJ38: =SUMIFS($U$15:U38,$S$15:S38,S38,$W$15:W38,">0") -> 37814.9301 | AK38: =IF(COUNTIF($E$15:E38,E38)=1,C38,"") ->  | AL38: 9089.4843 | AM38: 42979 | AN38: 0 | AO38: 0 | AP38: 0 | AS38: 10 | AU38: =SUMIF(Dividends!$N$15:$N$274,C38,Dividends!$G$15:$G$274) -> 0 | AV38: =SUMIF('Bank Transfers'!$P$15:$P$114,C38,'Bank Transfers'!$H$15:$H$114) -> 0 | AW38: 115171.497 | AX38: 115171.497 | AY38: 0.1521437962 | BA38: 0 | BB38: 0 | BC38: 0 | BD38: 1 | BE38: 15067.68 | BF38: 0 | BG38: 1 | BH38: =IFERROR(MAX($AX$14:AX38),"") -> 115171.497 | BI38: 0 | BK38: 144486.5348 | BR38: 3 | BS38: 2.4e-06 | BU38: 0 | BV38: 0 | BW38: 0 | BX38: 3 | BY38: 0
C39: 25 | D39: 4300300.00% | E39: IMI | F39: BUY | G39: 19.020 | H39: 200 | K39: 3804 | L39: 20 | M39: 2.4 | N39: 0.5706 | O39: 22.824 | P39: 200 | Q39: =SUMIF($E$15:E39,E39,$P$15:P39) -> 2300 | R39: 2100 | S39: =E39&COUNTIFS($E$15:E39,E39,$R$15:R39,0) -> IMI1 | T39: 22.97 | U39: 3,826.97 | V39: 16.2241 | W39: 3826.9706 | X39: =SUMIFS($W$15:W38,$E$15:E38,E39) -> 33488.5005 | Y39: =SUMIF($S$15:S39,S39,$W$15:W39)/Q39 -> 16.22411787 | Z39: 0.00 | AA39: 0.00% | AB39: =IFERROR(IF(D39="",0,D39-INDEX($D$15:D39,MATCH(S39,$S$15:S39,0))),0) -> 12 d | AC39: 0.00R | AD39: 115,171.50 | AE39: Trend Follow | AI39: 0 | AJ39: =SUMIFS($U$15:U39,$S$15:S39,S39,$W$15:W39,">0") -> 37315.4711 | AK39: =IF(COUNTIF($E$15:E39,E39)=1,C39,"") ->  | AL39: 4625.7649 | AM39: 42979 | AN39: 0 | AO39: 0 | AP39: 0 | AS39: 10 | AU39: =SUMIF(Dividends!$N$15:$N$274,C39,Dividends!$G$15:$G$274) -> 0 | AV39: =SUMIF('Bank Transfers'!$P$15:$P$114,C39,'Bank Transfers'!$H$15:$H$114) -> 0 | AW39: 115171.497 | AX39: 115171.497 | AY39: 0.1521437962 | BA39: 0 | BB39: 0 | BC39: 0 | BD39: 1 | BE39: 15067.68 | BF39: 0 | BG39: 1 | BH39: =IFERROR(MAX($AX$14:AX39),"") -> 115171.497 | BI39: 0 | BK39: 144486.5348 | BR39: 3 | BS39: 2.5e-06 | BU39: 0 | BV39: 0 | BW39: 0 | BX39: 3 | BY39: 0
C40: 26 | D40: 4300300.00% | E40: IMI | F40: SELL | G40: 18.400 | H40: 2,300 | K40: 42320 | L40: 105.8 | M40: 12.696 | N40: 6.348 | O40: 253.92 | P40: -2300 | Q40: =SUMIF($E$15:E40,E40,$P$15:P40) -> 0 | R40: 2300 | S40: =E40&COUNTIFS($E$15:E40,E40,$R$15:R40,0) -> IMI1 | T40: 378.76 | U40: 41,941.24 | V40: 16.2241 | W40: -37315.4711 | X40: =SUMIFS($W$15:W39,$E$15:E39,E40) -> 37315.4711 | Y40: =SUMIF($S$15:S40,S40,$W$15:W40)/Q40 ->  | Z40: 4,625.76 | AA40: 12.40% | AB40: =IFERROR(IF(D40="",0,D40-INDEX($D$15:D40,MATCH(S40,$S$15:S40,0))),0) -> 12 d | AC40: 4.02R | AD40: 115,171.50 | AE40: Trend Follow | AI40: 4625.7649 | AJ40: =SUMIFS($U$15:U40,$S$15:S40,S40,$W$15:W40,">0") -> 37315.4711 | AK40: =IF(COUNTIF($E$15:E40,E40)=1,C40,"") ->  | AL40: 4625.7649 | AM40: 42979 | AN40: 2 | AO40: 2 | AP40: 2 | AR40: 0.3239991846 | AS40: 11 | AT40: 0.1239637277 | AU40: =SUMIF(Dividends!$N$15:$N$274,C40,Dividends!$G$15:$G$274) -> 0 | AV40: =SUMIF('Bank Transfers'!$P$15:$P$114,C40,'Bank Transfers'!$H$15:$H$114) -> 0 | AW40: 115171.497 | AX40: 119797.2618 | AY40: 0.1923079429 | AZ40: 26 | BA40: 1 | BB40: 0 | BC40: 0 | BD40: 2 | BE40: 19693.4449 | BF40: 0 | BG40: 2 | BH40: =IFERROR(MAX($AX$14:AX40),"") -> 119797.2618 | BI40: 0 | BK40: 144486.5348 | BR40: 3 | BS40: 2.6e-06 | BU40: 0 | BV40: 0 | BW40: 0 | BX40: 3 | BY40: 0
C41: 27 | D41: 4300300.00% | E41: PXP | F41: BUY | G41: 9.380 | H41: 4,000 | K41: 37520 | L41: 93.8 | M41: 11.256 | N41: 5.628 | O41: 225.12 | P41: 4000 | Q41: =SUMIF($E$15:E41,E41,$P$15:P41) -> 4000 | R41: 0 | S41: =E41&COUNTIFS($E$15:E41,E41,$R$15:R41,0) -> PXP4 | T41: 110.68 | U41: 37,630.68 | V41: 9.4077 | W41: 37630.684 | X41: =SUMIFS($W$15:W40,$E$15:E40,E41) -> 0 | Y41: =SUMIF($S$15:S41,S41,$W$15:W41)/Q41 -> 9.407671 | Z41: 0.00 | AA41: 0.00% | AB41: =IFERROR(IF(D41="",0,D41-INDEX($D$15:D41,MATCH(S41,$S$15:S41,0))),0) -> 0 d | AC41: 0.00R | AD41: 119,797.26 | AE41: Momentum | AI41: 0 | AJ41: =SUMIFS($U$15:U41,$S$15:S41,S41,$W$15:W41,">0") -> 37630.684 | AK41: =IF(COUNTIF($E$15:E41,E41)=1,C41,"") ->  | AL41: 753.9978 | AM41: 42979 | AN41: 0 | AO41: 0 | AP41: 0 | AS41: 11 | AU41: =SUMIF(Dividends!$N$15:$N$274,C41,Dividends!$G$15:$G$274) -> 0 | AV41: =SUMIF('Bank Transfers'!$P$15:$P$114,C41,'Bank Transfers'!$H$15:$H$114) -> 0 | AW41: 119797.2618 | AX41: 119797.2618 | AY41: 0.1923079429 | BA41: 0 | BB41: 0 | BC41: 0 | BD41: 2 | BE41: 19693.4449 | BF41: 0 | BG41: 2 | BH41: =IFERROR(MAX($AX$14:AX41),"") -> 119797.2618 | BI41: 0 | BK41: 144486.5348 | BR41: 3 | BS41: 2.7e-06 | BU41: 0 | BV41: 0 | BW41: 0 | BX41: 3 | BY41: 0
C42: 28 | D42: 4300300.00% | E42: APX | F42: BUY | G42: 2.020 | H42: 1,000 | K42: 2020 | L42: 20 | M42: 2.4 | N42: 0.303 | O42: 12.12 | P42: 1000 | Q42: =SUMIF($E$15:E42,E42,$P$15:P42) -> 21000 | R42: 20000 | S42: =E42&COUNTIFS($E$15:E42,E42,$R$15:R42,0) -> APX2 | T42: 22.70 | U42: 2,042.70 | V42: 1.8930 | W42: 2042.703 | X42: =SUMIFS($W$15:W41,$E$15:E41,E42) -> 37710.92 | Y42: =SUMIF($S$15:S42,S42,$W$15:W42)/Q42 -> 1.893029667 | Z42: 0.00 | AA42: 0.00% | AB42: =IFERROR(IF(D42="",0,D42-INDEX($D$15:D42,MATCH(S42,$S$15:S42,0))),0) -> 0 d | AC42: 0.00R | AD42: 119,797.26 | AI42: 0 | AJ42: =SUMIFS($U$15:U42,$S$15:S42,S42,$W$15:W42,">0") -> 39753.623 | AK42: =IF(COUNTIF($E$15:E42,E42)=1,C42,"") ->  | AL42: 8738.4535 | AM42: 42979 | AN42: 0 | AO42: 0 | AP42: 0 | AS42: 11 | AU42: =SUMIF(Dividends!$N$15:$N$274,C42,Dividends!$G$15:$G$274) -> 0 | AV42: =SUMIF('Bank Transfers'!$P$15:$P$114,C42,'Bank Transfers'!$H$15:$H$114) -> 0 | AW42: 119797.2618 | AX42: 119797.2618 | AY42: 0.1923079429 | BA42: 0 | BB42: 0 | BC42: 0 | BD42: 2 | BE42: 19693.4449 | BF42: 0 | BG42: 2 | BH42: =IFERROR(MAX($AX$14:AX42),"") -> 119797.2618 | BI42: 0 | BK42: 144486.5348 | BR42: 3 | BS42: 2.8e-06 | BU42: 0 | BV42: 0 | BW42: 0 | BX42: 3 | BY42: 0
C43: 29 | D43: 4300300.00% | E43: PXP | F43: BUY | G43: 9.840 | H43: 200 | K43: 1968 | L43: 20 | M43: 2.4 | N43: 0.2952 | O43: 11.808 | P43: 200 | Q43: =SUMIF($E$15:E43,E43,$P$15:P43) -> 4200 | R43: 4000 | S43: =E43&COUNTIFS($E$15:E43,E43,$R$15:R43,0) -> PXP4 | T43: 22.70 | U43: 1,990.70 | V43: 9.4337 | W43: 1990.6952 | X43: =SUMIFS($W$15:W42,$E$15:E42,E43) -> 37630.684 | Y43: =SUMIF($S$15:S43,S43,$W$15:W43)/Q43 -> 9.433661714 | Z43: 0.00 | AA43: 0.00% | AB43: =IFERROR(IF(D43="",0,D43-INDEX($D$15:D43,MATCH(S43,$S$15:S43,0))),0) -> 0 d | AC43: 0.00R | AD43: 119,797.26 | AE43: Momentum | AI43: 0 | AJ43: =SUMIFS($U$15:U43,$S$15:S43,S43,$W$15:W43,">0") -> 39621.3792 | AK43: =IF(COUNTIF($E$15:E43,E43)=1,C43,"") ->  | AL43: 753.9978 | AM43: 42979 | AN43: 0 | AO43: 0 | AP43: 0 | AS43: 11 | AU43: =SUMIF(Dividends!$N$15:$N$274,C43,Dividends!$G$15:$G$274) -> 0 | AV43: =SUMIF('Bank Transfers'!$P$15:$P$114,C43,'Bank Transfers'!$H$15:$H$114) -> 0 | AW43: 119797.2618 | AX43: 119797.2618 | AY43: 0.1923079429 | BA43: 0 | BB43: 0 | BC43: 0 | BD43: 2 | BE43: 19693.4449 | BF43: 0 | BG43: 2 | BH43: =IFERROR(MAX($AX$14:AX43),"") -> 119797.2618 | BI43: 0 | BK43: 144486.5348 | BR43: 3 | BS43: 2.9e-06 | BU43: 0 | BV43: 0 | BW43: 0 | BX43: 3 | BY43: 0
C44: 30 | D44: 4300400.00% | E44: APX | F44: SELL | G44: 2.330 | H44: 21,000 | K44: 48930 | L44: 122.325 | M44: 14.679 | N44: 7.3395 | O44: 293.58 | P44: -21000 | Q44: =SUMIF($E$15:E44,E44,$P$15:P44) -> 0 | R44: 21000 | S44: =E44&COUNTIFS($E$15:E44,E44,$R$15:R44,0) -> APX2 | T44: 437.92 | U44: 48,492.08 | V44: 1.8930 | W44: -39753.623 | X44: =SUMIFS($W$15:W43,$E$15:E43,E44) -> 39753.623 | Y44: =SUMIF($S$15:S44,S44,$W$15:W44)/Q44 ->  | Z44: 8,738.45 | AA44: 21.98% | AB44: =IFERROR(IF(D44="",0,D44-INDEX($D$15:D44,MATCH(S44,$S$15:S44,0))),0) -> 1 d | AC44: 7.29R | AD44: 119,797.26 | AI44: 8738.4535 | AJ44: =SUMIFS($U$15:U44,$S$15:S44,S44,$W$15:W44,">0") -> 39753.623 | AK44: =IF(COUNTIF($E$15:E44,E44)=1,C44,"") ->  | AL44: 8738.4535 | AM44: 42979 | AN44: 2 | AO44: 2 | AP44: 2 | AR44: 0.3318408316 | AS44: 12 | AT44: 0.2198152732 | AU44: =SUMIF(Dividends!$N$15:$N$274,C44,Dividends!$G$15:$G$274) -> 0 | AV44: =SUMIF('Bank Transfers'!$P$15:$P$114,C44,'Bank Transfers'!$H$15:$H$114) -> 0 | AW44: 119797.2618 | AX44: 128535.7153 | AY44: 0.265251626 | AZ44: 30 | BA44: 1 | BB44: 0 | BC44: 0 | BD44: 3 | BE44: 28431.8984 | BF44: 0 | BG44: 3 | BH44: =IFERROR(MAX($AX$14:AX44),"") -> 128535.7153 | BI44: 0 | BK44: 144486.5348 | BR44: 3 | BS44: 3e-06 | BU44: 0 | BV44: 0 | BW44: 0 | BX44: 3 | BY44: 0
C45: 31 | D45: 4300400.00% | E45: PXP | F45: SELL | G45: 9.700 | H45: 4,200 | K45: 40740 | L45: 101.85 | M45: 12.222 | N45: 6.111 | O45: 244.44 | P45: -4200 | Q45: =SUMIF($E$15:E45,E45,$P$15:P45) -> 0 | R45: 4200 | S45: =E45&COUNTIFS($E$15:E45,E45,$R$15:R45,0) -> PXP4 | T45: 364.62 | U45: 40,375.38 | V45: 9.4337 | W45: -39621.3792 | X45: =SUMIFS($W$15:W44,$E$15:E44,E45) -> 39621.3792 | Y45: =SUMIF($S$15:S45,S45,$W$15:W45)/Q45 ->  | Z45: 754.00 | AA45: 1.90% | AB45: =IFERROR(IF(D45="",0,D45-INDEX($D$15:D45,MATCH(S45,$S$15:S45,0))),0) -> 1 d | AC45: 0.63R | AD45: 128,535.72 | AE45: Momentum | AI45: 753.9978 | AJ45: =SUMIFS($U$15:U45,$S$15:S45,S45,$W$15:W45,">0") -> 39621.3792 | AK45: =IF(COUNTIF($E$15:E45,E45)=1,C45,"") ->  | AL45: 753.9978 | AM45: 42979 | AN45: 2 | AO45: 2 | AP45: 2 | AR45: 0.3082519056 | AS45: 13 | AT45: 0.01903007455 | AU45: =SUMIF(Dividends!$N$15:$N$274,C45,Dividends!$G$15:$G$274) -> 0 | AV45: =SUMIF('Bank Transfers'!$P$15:$P$114,C45,'Bank Transfers'!$H$15:$H$114) -> 0 | AW45: 128535.7153 | AX45: 129289.7131 | AY45: 0.2711176827 | AZ45: 31 | BA45: 1 | BB45: 0 | BC45: 0 | BD45: 4 | BE45: 29185.8962 | BF45: 0 | BG45: 4 | BH45: =IFERROR(MAX($AX$14:AX45),"") -> 129289.7131 | BI45: 0 | BK45: 144486.5348 | BR45: 3 | BS45: 3.1e-06 | BU45: 0 | BV45: 0 | BW45: 0 | BX45: 3 | BY45: 0
C46: 32 | D46: 4300400.00% | E46: MAC | F46: SELL | G46: 13.920 | H46: 3,400 | K46: 47328 | L46: 118.32 | M46: 14.1984 | N46: 7.0992 | O46: 283.968 | P46: -3400 | Q46: =SUMIF($E$15:E46,E46,$P$15:P46) -> 0 | R46: 3400 | S46: =E46&COUNTIFS($E$15:E46,E46,$R$15:R46,0) -> MAC1 | T46: 423.59 | U46: 46,904.41 | V46: 11.1220 | W46: -37814.9301 | X46: =SUMIFS($W$15:W45,$E$15:E45,E46) -> 37814.9301 | Y46: =SUMIF($S$15:S46,S46,$W$15:W46)/Q46 ->  | Z46: 9,089.48 | AA46: 24.04% | AB46: =IFERROR(IF(D46="",0,D46-INDEX($D$15:D46,MATCH(S46,$S$15:S46,0))),0) -> 20 d | AC46: 7.07R | AD46: 129,289.71 | AI46: 9089.4843 | AJ46: =SUMIFS($U$15:U46,$S$15:S46,S46,$W$15:W46,">0") -> 37814.9301 | AK46: =IF(COUNTIF($E$15:E46,E46)=1,C46,"") ->  | AL46: 9089.4843 | AM46: 42979 | AN46: 2 | AO46: 2 | AP46: 2 | AR46: 0.2924821254 | AS46: 14 | AT46: 0.2403676081 | AU46: =SUMIF(Dividends!$N$15:$N$274,C46,Dividends!$G$15:$G$274) -> 0 | AV46: =SUMIF('Bank Transfers'!$P$15:$P$114,C46,'Bank Transfers'!$H$15:$H$114) -> 0 | AW46: 129289.7131 | AX46: 138379.1975 | AY46: 0.3414209117 | AZ46: 32 | BA46: 1 | BB46: 0 | BC46: 0 | BD46: 5 | BE46: 38275.3805 | BF46: 38275.3805 | BG46: 5 | BH46: =IFERROR(MAX($AX$14:AX46),"") -> 138379.1975 | BI46: 0 | BK46: 144486.5348 | BR46: 3 | BS46: 3.2e-06 | BU46: 0 | BV46: 0 | BW46: 0 | BX46: 3 | BY46: 0
C47: 33 | D47: 4300500.00% | E47: PXP | F47: BUY | G47: 7.250 | H47: 6,000 | K47: 43500 | L47: 108.75 | M47: 13.05 | N47: 6.525 | O47: 261 | P47: 6000 | Q47: =SUMIF($E$15:E47,E47,$P$15:P47) -> 6000 | R47: 0 | S47: =E47&COUNTIFS($E$15:E47,E47,$R$15:R47,0) -> PXP5 | T47: 128.33 | U47: 43,628.33 | V47: 7.2714 | W47: 43628.325 | X47: =SUMIFS($W$15:W46,$E$15:E46,E47) -> 0 | Y47: =SUMIF($S$15:S47,S47,$W$15:W47)/Q47 -> 7.2713875 | Z47: 0.00 | AA47: 0.00% | AB47: =IFERROR(IF(D47="",0,D47-INDEX($D$15:D47,MATCH(S47,$S$15:S47,0))),0) -> 0 d | AC47: 0.00R | AD47: 138,379.20 | AE47: Bounce | AI47: 0 | AJ47: =SUMIFS($U$15:U47,$S$15:S47,S47,$W$15:W47,">0") -> 43628.325 | AK47: =IF(COUNTIF($E$15:E47,E47)=1,C47,"") ->  | AL47: 9115.356 | AM47: 42979 | AN47: 0 | AO47: 0 | AP47: 0 | AS47: 14 | AU47: =SUMIF(Dividends!$N$15:$N$274,C47,Dividends!$G$15:$G$274) -> 0 | AV47: =SUMIF('Bank Transfers'!$P$15:$P$114,C47,'Bank Transfers'!$H$15:$H$114) -> 0 | AW47: 138379.1975 | AX47: 138379.1975 | AY47: 0.3414209117 | BA47: 0 | BB47: 0 | BC47: 0 | BD47: 5 | BE47: 38275.3805 | BF47: 38275.3805 | BG47: 5 | BH47: =IFERROR(MAX($AX$14:AX47),"") -> 138379.1975 | BI47: 0 | BK47: 144486.5348 | BO47: =SMALL($AK$15:$AK$26022,C47) ->  | BP47: =INDEX(actionLog,MATCH(BT47&BR47,S47:S20132,0)) ->  | BQ47: =IF(OR(BP47="buy",BP47="sell"),"L","S") ->  | BR47: =COUNTIFS(symbol,BT47,$R$15:$R$20100,0) -> 3 | BS47: =BS46+0.0000001 -> 3.3e-06 | BT47: =IFERROR(INDEX(symbol,BO47),"") ->  | BU47: =SUMIFS(P$15:P$20100,symbol,BT47) -> 0 | BV47: =IFERROR(SUMIFS($W$15:$W$20100,symbol,BT47)/BU47,0) -> 0 | BW47: =BV47*BU47 -> 0 | BX47: =BT47&BR47 -> 3 | BY47: =IF(BW47=0,0,ROUND(BW47+BS47,5)) -> 0 | BZ47: =IF(BT47="","",BR47+BS47) -> 
C48: 34 | D48: 4300500.00% | E48: MAC | F48: BUY | G48: 16.000 | H48: 2,700 | K48: 43200 | L48: 108 | M48: 12.96 | N48: 6.48 | O48: 259.2 | P48: 2700 | Q48: =SUMIF($E$15:E48,E48,$P$15:P48) -> 2700 | R48: 0 | S48: =E48&COUNTIFS($E$15:E48,E48,$R$15:R48,0) -> MAC2 | T48: 127.44 | U48: 43,327.44 | V48: 16.0472 | W48: 43327.44 | X48: =SUMIFS($W$15:W47,$E$15:E47,E48) -> 0 | Y48: =SUMIF($S$15:S48,S48,$W$15:W48)/Q48 -> 16.0472 | Z48: 0.00 | AA48: 0.00% | AB48: =IFERROR(IF(D48="",0,D48-INDEX($D$15:D48,MATCH(S48,$S$15:S48,0))),0) -> 0 d | AC48: 0.00R | AD48: 138,379.20 | AI48: 0 | AJ48: =SUMIFS($U$15:U48,$S$15:S48,S48,$W$15:W48,">0") -> 43327.44 | AK48: =IF(COUNTIF($E$15:E48,E48)=1,C48,"") ->  | AL48: -3189.915 | AM48: 42979 | AN48: 0 | AO48: 0 | AP48: 0 | AS48: 14 | AU48: =SUMIF(Dividends!$N$15:$N$274,C48,Dividends!$G$15:$G$274) -> 0 | AV48: =SUMIF('Bank Transfers'!$P$15:$P$114,C48,'Bank Transfers'!$H$15:$H$114) -> 0 | AW48: 138379.1975 | AX48: 138379.1975 | AY48: 0.3414209117 | BA48: 0 | BB48: 0 | BC48: 0 | BD48: 5 | BE48: 38275.3805 | BF48: 38275.3805 | BG48: 5 | BH48: =IFERROR(MAX($AX$14:AX48),"") -> 138379.1975 | BI48: 0 | BK48: 144486.5348 | BR48: 3 | BS48: 3.4e-06 | BU48: 0 | BV48: 0 | BW48: 0 | BX48: 3 | BY48: 0
C49: 35 | D49: 4300500.00% | E49: EDC | F49: BUY | G49: 5.420 | H49: 8,400 | K49: 45528 | L49: 113.82 | M49: 13.6584 | N49: 6.8292 | O49: 273.168 | P49: 8400 | Q49: =SUMIF($E$15:E49,E49,$P$15:P49) -> 8400 | R49: 0 | S49: =E49&COUNTIFS($E$15:E49,E49,$R$15:R49,0) -> EDC1 | T49: 134.31 | U49: 45,662.31 | V49: 5.4360 | W49: 45662.3076 | X49: =SUMIFS($W$15:W48,$E$15:E48,E49) -> 0 | Y49: =SUMIF($S$15:S49,S49,$W$15:W49)/Q49 -> 5.435989 | Z49: 0.00 | AA49: 0.00% | AB49: =IFERROR(IF(D49="",0,D49-INDEX($D$15:D49,MATCH(S49,$S$15:S49,0))),0) -> 0 d | AC49: 0.00R | AD49: 138,379.20 | AI49: 0 | AJ49: =SUMIFS($U$15:U49,$S$15:S49,S49,$W$15:W49,">0") -> 45662.3076 | AK49: =IF(COUNTIF($E$15:E49,E49)=1,C49,"") -> 35 | AL49: -708.2796 | AM49: 42979 | AN49: 0 | AO49: 0 | AP49: 0 | AS49: 14 | AU49: =SUMIF(Dividends!$N$15:$N$274,C49,Dividends!$G$15:$G$274) -> 0 | AV49: =SUMIF('Bank Transfers'!$P$15:$P$114,C49,'Bank Transfers'!$H$15:$H$114) -> 0 | AW49: 138379.1975 | AX49: 138379.1975 | AY49: 0.3414209117 | BA49: 0 | BB49: 0 | BC49: 0 | BD49: 5 | BE49: 38275.3805 | BF49: 38275.3805 | BG49: 5 | BH49: =IFERROR(MAX($AX$14:AX49),"") -> 138379.1975 | BI49: 0 | BK49: 144486.5348 | BR49: 3 | BS49: 3.5e-06 | BU49: 0 | BV49: 0 | BW49: 0 | BX49: 3 | BY49: 0
C50: 36 | D50: 4300600.00% | E50: MAC | F50: SELL | G50: 15.000 | H50: 2,700 | K50: 40500 | L50: 101.25 | M50: 12.15 | N50: 6.075 | O50: 243 | P50: -2700 | Q50: =SUMIF($E$15:E50,E50,$P$15:P50) -> 0 | R50: 2700 | S50: =E50&COUNTIFS($E$15:E50,E50,$R$15:R50,0) -> MAC2 | T50: 362.48 | U50: 40,137.53 | V50: 16.0472 | W50: -43327.44 | X50: =SUMIFS($W$15:W49,$E$15:E49,E50) -> 43327.44 | Y50: =SUMIF($S$15:S50,S50,$W$15:W50)/Q50 ->  | Z50: -3,189.92 | AA50: -7.36% | AB50: =IFERROR(IF(D50="",0,D50-INDEX($D$15:D50,MATCH(S50,$S$15:S50,0))),0) -> 1 d | AC50: -2.31R | AD50: 138,379.20 | AI50: -3189.915 | AJ50: =SUMIFS($U$15:U50,$S$15:S50,S50,$W$15:W50,">0") -> 43327.44 | AK50: =IF(COUNTIF($E$15:E50,E50)=1,C50,"") ->  | AL50: -3189.915 | AM50: 42979 | AN50: 1 | AO50: 1 | AP50: 1 | AR50: 0.3131065998 | AS50: 15 | AT50: -0.07362343586 | AU50: =SUMIF(Dividends!$N$15:$N$274,C50,Dividends!$G$15:$G$274) -> 0 | AV50: =SUMIF('Bank Transfers'!$P$15:$P$114,C50,'Bank Transfers'!$H$15:$H$114) -> 0 | AW50: 138379.1975 | AX50: 135189.2824 | AY50: 0.318368928 | AZ50: 36 | BA50: -1 | BB50: -1 | BC50: -3189.915 | BD50: 0 | BE50: 0 | BF50: 0 | BG50: -1 | BH50: =IFERROR(MAX($AX$14:AX50),"") -> 138379.1975 | BI50: -0.02305198367 | BK50: 144486.5348 | BR50: 3 | BS50: 3.6e-06 | BU50: 0 | BV50: 0 | BW50: 0 | BX50: 3 | BY50: 0
C51: 37 | D51: 4300600.00% | E51: EDC | F51: SELL | G51: 5.400 | H51: 8,400 | K51: 45360 | L51: 113.4 | M51: 13.608 | N51: 6.804 | O51: 272.16 | P51: -8400 | Q51: =SUMIF($E$15:E51,E51,$P$15:P51) -> 0 | R51: 8400 | S51: =E51&COUNTIFS($E$15:E51,E51,$R$15:R51,0) -> EDC1 | T51: 405.97 | U51: 44,954.03 | V51: 5.4360 | W51: -45662.3076 | X51: =SUMIFS($W$15:W50,$E$15:E50,E51) -> 45662.3076 | Y51: =SUMIF($S$15:S51,S51,$W$15:W51)/Q51 ->  | Z51: -708.28 | AA51: -1.55% | AB51: =IFERROR(IF(D51="",0,D51-INDEX($D$15:D51,MATCH(S51,$S$15:S51,0))),0) -> 1 d | AC51: -0.51R | AD51: 135,189.28 | AI51: -708.2796 | AJ51: =SUMIFS($U$15:U51,$S$15:S51,S51,$W$15:W51,">0") -> 45662.3076 | AK51: =IF(COUNTIF($E$15:E51,E51)=1,C51,"") ->  | AL51: -708.2796 | AM51: 42979 | AN51: 1 | AO51: 1 | AP51: 1 | AR51: 0.3377657368 | AS51: 16 | AT51: -0.01551125287 | AU51: =SUMIF(Dividends!$N$15:$N$274,C51,Dividends!$G$15:$G$274) -> 0 | AV51: =SUMIF('Bank Transfers'!$P$15:$P$114,C51,'Bank Transfers'!$H$15:$H$114) -> 0 | AW51: 135189.2824 | AX51: 134481.0028 | AY51: 0.3131297582 | AZ51: 37 | BA51: -1 | BB51: -2 | BC51: -3898.1946 | BD51: 0 | BE51: 0 | BF51: 0 | BG51: -2 | BH51: =IFERROR(MAX($AX$14:AX51),"") -> 138379.1975 | BI51: -0.02817038017 | BK51: 144486.5348 | BR51: 3 | BS51: 3.7e-06 | BU51: 0 | BV51: 0 | BW51: 0 | BX51: 3 | BY51: 0
C52: 38 | D52: 4300600.00% | E52: PXP | F52: SELL | G52: 8.870 | H52: 6,000 | K52: 53220 | L52: 133.05 | M52: 15.966 | N52: 7.983 | O52: 319.32 | P52: -6000 | Q52: =SUMIF($E$15:E52,E52,$P$15:P52) -> 0 | R52: 6000 | S52: =E52&COUNTIFS($E$15:E52,E52,$R$15:R52,0) -> PXP5 | T52: 476.32 | U52: 52,743.68 | V52: 7.2714 | W52: -43628.325 | X52: =SUMIFS($W$15:W51,$E$15:E51,E52) -> 43628.325 | Y52: =SUMIF($S$15:S52,S52,$W$15:W52)/Q52 ->  | Z52: 9,115.36 | AA52: 20.89% | AB52: =IFERROR(IF(D52="",0,D52-INDEX($D$15:D52,MATCH(S52,$S$15:S52,0))),0) -> 1 d | AC52: 6.74R | AD52: 134,481.00 | AE52: Bounce | AI52: 9115.356 | AJ52: =SUMIFS($U$15:U52,$S$15:S52,S52,$W$15:W52,">0") -> 43628.325 | AK52: =IF(COUNTIF($E$15:E52,E52)=1,C52,"") ->  | AL52: 9115.356 | AM52: 42979 | AN52: 2 | AO52: 2 | AP52: 2 | AR52: 0.3244199855 | AS52: 17 | AT52: 0.2089320642 | AU52: =SUMIF(Dividends!$N$15:$N$274,C52,Dividends!$G$15:$G$274) -> 0 | AV52: =SUMIF('Bank Transfers'!$P$15:$P$114,C52,'Bank Transfers'!$H$15:$H$114) -> 0 | AW52: 134481.0028 | AX52: 143596.3588 | AY52: 0.3809114955 | AZ52: 38 | BA52: 1 | BB52: 0 | BC52: 0 | BD52: 1 | BE52: 9115.356 | BF52: 0 | BG52: 1 | BH52: =IFERROR(MAX($AX$14:AX52),"") -> 143596.3588 | BI52: 0 | BK52: 144486.5348 | BR52: 3 | BS52: 3.8e-06 | BU52: 0 | BV52: 0 | BW52: 0 | BX52: 3 | BY52: 0
C53: 39 | D53: 4300700.00% | E53: PXP | F53: BUY | G53: 7.400 | H53: 6,400 | K53: 47360 | L53: 118.4 | M53: 14.208 | N53: 7.104 | O53: 284.16 | P53: 6400 | Q53: =SUMIF($E$15:E53,E53,$P$15:P53) -> 6400 | R53: 0 | S53: =E53&COUNTIFS($E$15:E53,E53,$R$15:R53,0) -> PXP6 | T53: 139.71 | U53: 47,499.71 | V53: 7.4218 | W53: 47499.712 | X53: =SUMIFS($W$15:W52,$E$15:E52,E53) -> 0 | Y53: =SUMIF($S$15:S53,S53,$W$15:W53)/Q53 -> 7.42183 | Z53: 0.00 | AA53: 0.00% | AB53: =IFERROR(IF(D53="",0,D53-INDEX($D$15:D53,MATCH(S53,$S$15:S53,0))),0) -> 0 d | AC53: 0.00R | AD53: 143,596.36 | AE53: Bounce | AI53: 0 | AJ53: =SUMIFS($U$15:U53,$S$15:S53,S53,$W$15:W53,">0") -> 47499.712 | AK53: =IF(COUNTIF($E$15:E53,E53)=1,C53,"") ->  | AL53: -2085.8368 | AM53: 42979 | AN53: 0 | AO53: 0 | AP53: 0 | AS53: 17 | AU53: =SUMIF(Dividends!$N$15:$N$274,C53,Dividends!$G$15:$G$274) -> 0 | AV53: =SUMIF('Bank Transfers'!$P$15:$P$114,C53,'Bank Transfers'!$H$15:$H$114) -> 0 | AW53: 143596.3588 | AX53: 143596.3588 | AY53: 0.3809114955 | BA53: 0 | BB53: 0 | BC53: 0 | BD53: 1 | BE53: 9115.356 | BF53: 0 | BG53: 1 | BH53: =IFERROR(MAX($AX$14:AX53),"") -> 143596.3588 | BI53: 0 | BK53: 144486.5348 | BR53: 3 | BS53: 3.9e-06 | BU53: 0 | BV53: 0 | BW53: 0 | BX53: 3 | BY53: 0
C54: 40 | D54: 4300700.00% | E54: CHP | F54: BUY | G54: 5.140 | H54: 9,300 | K54: 47802 | L54: 119.505 | M54: 14.3406 | N54: 7.1703 | O54: 286.812 | P54: 9300 | Q54: =SUMIF($E$15:E54,E54,$P$15:P54) -> 9300 | R54: 0 | S54: =E54&COUNTIFS($E$15:E54,E54,$R$15:R54,0) -> CHP2 | T54: 141.02 | U54: 47,943.02 | V54: 5.1552 | W54: 47943.0159 | X54: =SUMIFS($W$15:W53,$E$15:E53,E54) -> 0 | Y54: =SUMIF($S$15:S54,S54,$W$15:W54)/Q54 -> 5.155163 | Z54: 0.00 | AA54: 0.00% | AB54: =IFERROR(IF(D54="",0,D54-INDEX($D$15:D54,MATCH(S54,$S$15:S54,0))),0) -> 0 d | AC54: 0.00R | AD54: 143,596.36 | AE54: Bottom fishing | AI54: 0 | AJ54: =SUMIFS($U$15:U54,$S$15:S54,S54,$W$15:W54,">0") -> 47943.0159 | AK54: =IF(COUNTIF($E$15:E54,E54)=1,C54,"") ->  | AL54: -1121.8497 | AM54: 42979 | AN54: 0 | AO54: 0 | AP54: 0 | AS54: 17 | AU54: =SUMIF(Dividends!$N$15:$N$274,C54,Dividends!$G$15:$G$274) -> 0 | AV54: =SUMIF('Bank Transfers'!$P$15:$P$114,C54,'Bank Transfers'!$H$15:$H$114) -> 0 | AW54: 143596.3588 | AX54: 143596.3588 | AY54: 0.3809114955 | BA54: 0 | BB54: 0 | BC54: 0 | BD54: 1 | BE54: 9115.356 | BF54: 0 | BG54: 1 | BH54: =IFERROR(MAX($AX$14:AX54),"") -> 143596.3588 | BI54: 0 | BK54: 144486.5348 | BR54: 3 | BS54: 4e-06 | BU54: 0 | BV54: 0 | BW54: 0 | BX54: 3 | BY54: 0
C55: 41 | D55: 4300700.00% | E55: CHP | F55: SELL | G55: 5.080 | H55: 9,300 | K55: 47244 | L55: 118.11 | M55: 14.1732 | N55: 7.0866 | O55: 283.464 | P55: -9300 | Q55: =SUMIF($E$15:E55,E55,$P$15:P55) -> 0 | R55: 9300 | S55: =E55&COUNTIFS($E$15:E55,E55,$R$15:R55,0) -> CHP2 | T55: 422.83 | U55: 46,821.17 | V55: 5.1552 | W55: -47943.0159 | X55: =SUMIFS($W$15:W54,$E$15:E54,E55) -> 47943.0159 | Y55: =SUMIF($S$15:S55,S55,$W$15:W55)/Q55 ->  | Z55: -1,121.85 | AA55: -2.34% | AB55: =IFERROR(IF(D55="",0,D55-INDEX($D$15:D55,MATCH(S55,$S$15:S55,0))),0) -> 0 d | AC55: -0.78R | AD55: 143,596.36 | AE55: Bottom fishing | AI55: -1121.8497 | AJ55: =SUMIFS($U$15:U55,$S$15:S55,S55,$W$15:W55,">0") -> 47943.0159 | AK55: =IF(COUNTIF($E$15:E55,E55)=1,C55,"") ->  | AL55: -1121.8497 | AM55: 42979 | AN55: 1 | AO55: 1 | AP55: 1 | AR55: 0.333873479 | AS55: 18 | AT55: -0.02339964808 | AU55: =SUMIF(Dividends!$N$15:$N$274,C55,Dividends!$G$15:$G$274) -> 0 | AV55: =SUMIF('Bank Transfers'!$P$15:$P$114,C55,'Bank Transfers'!$H$15:$H$114) -> 20000 | AW55: 143596.3588 | AX55: 142474.5091 | AY55: 0.3730989736 | AZ55: 41 | BA55: -1 | BB55: -1 | BC55: -1121.8497 | BD55: 0 | BE55: 0 | BF55: 0 | BG55: -1 | BH55: =IFERROR(MAX($AX$14:AX55),"") -> 143596.3588 | BI55: -0.007812521912 | BK55: 144486.5348 | BR55: 3 | BS55: 4.1e-06 | BU55: 0 | BV55: 0 | BW55: 0 | BX55: 3 | BY55: 0
C56: 42 | D56: 4301000.00% | E56: APX | F56: BUY | G56: 1.790 | H56: 26,000 | K56: 46540 | L56: 116.35 | M56: 13.962 | N56: 6.981 | O56: 279.24 | P56: 26000 | Q56: =SUMIF($E$15:E56,E56,$P$15:P56) -> 26000 | R56: 0 | S56: =E56&COUNTIFS($E$15:E56,E56,$R$15:R56,0) -> APX3 | T56: 137.29 | U56: 46,677.29 | V56: 1.7953 | W56: 46677.293 | X56: =SUMIFS($W$15:W55,$E$15:E55,E56) -> 0 | Y56: =SUMIF($S$15:S56,S56,$W$15:W56)/Q56 -> 1.7952805 | Z56: 0.00 | AA56: 0.00% | AB56: =IFERROR(IF(D56="",0,D56-INDEX($D$15:D56,MATCH(S56,$S$15:S56,0))),0) -> 0 d | AC56: 0.00R | AD56: 162,474.51 | AI56: 0 | AJ56: =SUMIFS($U$15:U56,$S$15:S56,S56,$W$15:W56,">0") -> 46677.293 | AK56: =IF(COUNTIF($E$15:E56,E56)=1,C56,"") ->  | AL56: -553.826 | AM56: 43009 | AN56: 0 | AO56: 0 | AP56: 0 | AS56: 18 | AU56: =SUMIF(Dividends!$N$15:$N$274,C56,Dividends!$G$15:$G$274) -> 0 | AV56: =SUMIF('Bank Transfers'!$P$15:$P$114,C56,'Bank Transfers'!$H$15:$H$114) -> 0 | AW56: 162474.5091 | AX56: 142474.5091 | AY56: 0.3730989736 | BA56: 0 | BB56: -1 | BC56: -1121.8497 | BD56: 0 | BE56: 0 | BF56: 0 | BG56: -1 | BH56: =IFERROR(MAX($AX$14:AX56),"") -> 143596.3588 | BI56: -0.007812521912 | BK56: 144486.5348 | BR56: 3 | BS56: 4.2e-06 | BU56: 0 | BV56: 0 | BW56: 0 | BX56: 3 | BY56: 0
C57: 43 | D57: 4301000.00% | E57: EW | F57: BUY | G57: 33.400 | H57: 1,400 | K57: 46760 | L57: 116.9 | M57: 14.028 | N57: 7.014 | O57: 280.56 | P57: 1400 | Q57: =SUMIF($E$15:E57,E57,$P$15:P57) -> 1400 | R57: 0 | S57: =E57&COUNTIFS($E$15:E57,E57,$R$15:R57,0) -> EW1 | T57: 137.94 | U57: 46,897.94 | V57: 33.4985 | W57: 46897.942 | X57: =SUMIFS($W$15:W56,$E$15:E56,E57) -> 0 | Y57: =SUMIF($S$15:S57,S57,$W$15:W57)/Q57 -> 33.49853 | Z57: 0.00 | AA57: 0.00% | AB57: =IFERROR(IF(D57="",0,D57-INDEX($D$15:D57,MATCH(S57,$S$15:S57,0))),0) -> 0 d | AC57: 0.00R | AD57: 162,474.51 | AI57: 0 | AJ57: =SUMIFS($U$15:U57,$S$15:S57,S57,$W$15:W57,">0") -> 46897.942 | AK57: =IF(COUNTIF($E$15:E57,E57)=1,C57,"") -> 43 | AL57: -903.3115 | AM57: 43009 | AN57: 0 | AO57: 0 | AP57: 0 | AS57: 18 | AU57: =SUMIF(Dividends!$N$15:$N$274,C57,Dividends!$G$15:$G$274) -> 0 | AV57: =SUMIF('Bank Transfers'!$P$15:$P$114,C57,'Bank Transfers'!$H$15:$H$114) -> 0 | AW57: 162474.5091 | AX57: 142474.5091 | AY57: 0.3730989736 | BA57: 0 | BB57: -1 | BC57: -1121.8497 | BD57: 0 | BE57: 0 | BF57: 0 | BG57: -1 | BH57: =IFERROR(MAX($AX$14:AX57),"") -> 143596.3588 | BI57: -0.007812521912 | BK57: 144486.5348 | BR57: 3 | BS57: 4.3e-06 | BU57: 0 | BV57: 0 | BW57: 0 | BX57: 3 | BY57: 0
C58: 44 | D58: 4301000.00% | E58: PXP | F58: SELL | G58: 7.160 | H58: 6,400 | K58: 45824 | L58: 114.56 | M58: 13.7472 | N58: 6.8736 | O58: 274.944 | P58: -6400 | Q58: =SUMIF($E$15:E58,E58,$P$15:P58) -> 0 | R58: 6400 | S58: =E58&COUNTIFS($E$15:E58,E58,$R$15:R58,0) -> PXP6 | T58: 410.12 | U58: 45,413.88 | V58: 7.4218 | W58: -47499.712 | X58: =SUMIFS($W$15:W57,$E$15:E57,E58) -> 47499.712 | Y58: =SUMIF($S$15:S58,S58,$W$15:W58)/Q58 ->  | Z58: -2,085.84 | AA58: -4.39% | AB58: =IFERROR(IF(D58="",0,D58-INDEX($D$15:D58,MATCH(S58,$S$15:S58,0))),0) -> 3 d | AC58: -1.28R | AD58: 162,474.51 | AE58: Bounce | AI58: -2085.8368 | AJ58: =SUMIFS($U$15:U58,$S$15:S58,S58,$W$15:W58,">0") -> 47499.712 | AK58: =IF(COUNTIF($E$15:E58,E58)=1,C58,"") ->  | AL58: -2085.8368 | AM58: 43009 | AN58: 1 | AO58: 1 | AP58: 1 | AR58: 0.2923517803 | AS58: 19 | AT58: -0.04391261993 | AU58: =SUMIF(Dividends!$N$15:$N$274,C58,Dividends!$G$15:$G$274) -> 0 | AV58: =SUMIF('Bank Transfers'!$P$15:$P$114,C58,'Bank Transfers'!$H$15:$H$114) -> 0 | AW58: 162474.5091 | AX58: 140388.6724 | AY58: 0.3584589035 | AZ58: 44 | BA58: -1 | BB58: -2 | BC58: -3207.6865 | BD58: 0 | BE58: 0 | BF58: 0 | BG58: -2 | BH58: =IFERROR(MAX($AX$14:AX58),"") -> 143596.3588 | BI58: -0.02233821613 | BK58: 144486.5348 | BR58: 3 | BS58: 4.4e-06 | BU58: 0 | BV58: 0 | BW58: 0 | BX58: 3 | BY58: 0
C59: 45 | D59: 4301000.00% | E59: APX | F59: SELL | G59: 1.790 | H59: 26,000 | K59: 46540 | L59: 116.35 | M59: 13.962 | N59: 6.981 | O59: 279.24 | P59: -26000 | Q59: =SUMIF($E$15:E59,E59,$P$15:P59) -> 0 | R59: 26000 | S59: =E59&COUNTIFS($E$15:E59,E59,$R$15:R59,0) -> APX3 | T59: 416.53 | U59: 46,123.47 | V59: 1.7953 | W59: -46677.293 | X59: =SUMIFS($W$15:W58,$E$15:E58,E59) -> 46677.293 | Y59: =SUMIF($S$15:S59,S59,$W$15:W59)/Q59 ->  | Z59: -553.83 | AA59: -1.19% | AB59: =IFERROR(IF(D59="",0,D59-INDEX($D$15:D59,MATCH(S59,$S$15:S59,0))),0) -> 0 d | AC59: -0.34R | AD59: 160,388.67 | AI59: -553.826 | AJ59: =SUMIFS($U$15:U59,$S$15:S59,S59,$W$15:W59,">0") -> 46677.293 | AK59: =IF(COUNTIF($E$15:E59,E59)=1,C59,"") ->  | AL59: -553.826 | AM59: 43009 | AN59: 1 | AO59: 1 | AP59: 1 | AR59: 0.29102612 | AS59: 20 | AT59: -0.01186499826 | AU59: =SUMIF(Dividends!$N$15:$N$274,C59,Dividends!$G$15:$G$274) -> 0 | AV59: =SUMIF('Bank Transfers'!$P$15:$P$114,C59,'Bank Transfers'!$H$15:$H$114) -> 0 | AW59: 160388.6724 | AX59: 139834.8464 | AY59: 0.3545139556 | AZ59: 45 | BA59: -1 | BB59: -3 | BC59: -3761.5125 | BD59: 0 | BE59: 0 | BF59: -3761.5125 | BG59: -3 | BH59: =IFERROR(MAX($AX$14:AX59),"") -> 143596.3588 | BI59: -0.02619504095 | BK59: 144486.5348 | BR59: 3 | BS59: 4.5e-06 | BU59: 0 | BV59: 0 | BW59: 0 | BX59: 3 | BY59: 0
C60: 46 | D60: 4301100.00% | E60: PXP | F60: BUY | G60: 6.700 | H60: 6,900 | K60: 46230 | L60: 115.575 | M60: 13.869 | N60: 6.9345 | O60: 277.38 | P60: 6900 | Q60: =SUMIF($E$15:E60,E60,$P$15:P60) -> 6900 | R60: 0 | S60: =E60&COUNTIFS($E$15:E60,E60,$R$15:R60,0) -> PXP7 | T60: 136.38 | U60: 46,366.38 | V60: 6.7198 | W60: 46366.3785 | X60: =SUMIFS($W$15:W59,$E$15:E59,E60) -> 0 | Y60: =SUMIF($S$15:S60,S60,$W$15:W60)/Q60 -> 6.719765 | Z60: 0.00 | AA60: 0.00% | AB60: =IFERROR(IF(D60="",0,D60-INDEX($D$15:D60,MATCH(S60,$S$15:S60,0))),0) -> 0 d | AC60: 0.00R | AD60: 159,834.85 | AE60: Bounce | AI60: 0 | AJ60: =SUMIFS($U$15:U60,$S$15:S60,S60,$W$15:W60,">0") -> 46366.3785 | AK60: =IF(COUNTIF($E$15:E60,E60)=1,C60,"") ->  | AL60: 0 | AM60: 43009 | AN60: 0 | AO60: 0 | AP60: 0 | AS60: 20 | AU60: =SUMIF(Dividends!$N$15:$N$274,C60,Dividends!$G$15:$G$274) -> 0 | AV60: =SUMIF('Bank Transfers'!$P$15:$P$114,C60,'Bank Transfers'!$H$15:$H$114) -> 0 | AW60: 159834.8464 | AX60: 139834.8464 | AY60: 0.3545139556 | BA60: 0 | BB60: -3 | BC60: -3761.5125 | BD60: 0 | BE60: 0 | BF60: -3761.5125 | BG60: -3 | BH60: =IFERROR(MAX($AX$14:AX60),"") -> 143596.3588 | BI60: -0.02619504095 | BK60: 144486.5348 | BR60: 3 | BS60: 4.6e-06 | BU60: 0 | BV60: 0 | BW60: 0 | BX60: 3 | BY60: 0
C61: 47 | D61: 4301100.00% | E61: EW | F61: SELL | G61: 33.150 | H61: 1,400 | K61: 46410 | L61: 116.025 | M61: 13.923 | N61: 6.9615 | O61: 278.46 | P61: -1400 | Q61: =SUMIF($E$15:E61,E61,$P$15:P61) -> 0 | R61: 1400 | S61: =E61&COUNTIFS($E$15:E61,E61,$R$15:R61,0) -> EW1 | T61: 415.37 | U61: 45,994.63 | V61: 33.4985 | W61: -46897.942 | X61: =SUMIFS($W$15:W60,$E$15:E60,E61) -> 46897.942 | Y61: =SUMIF($S$15:S61,S61,$W$15:W61)/Q61 ->  | Z61: -903.31 | AA61: -1.93% | AB61: =IFERROR(IF(D61="",0,D61-INDEX($D$15:D61,MATCH(S61,$S$15:S61,0))),0) -> 1 d | AC61: -0.57R | AD61: 159,834.85 | AI61: -903.3115 | AJ61: =SUMIFS($U$15:U61,$S$15:S61,S61,$W$15:W61,">0") -> 46897.942 | AK61: =IF(COUNTIF($E$15:E61,E61)=1,C61,"") ->  | AL61: -903.3115 | AM61: 43009 | AN61: 1 | AO61: 1 | AP61: 1 | AR61: 0.2934150035 | AS61: 21 | AT61: -0.01926121833 | AU61: =SUMIF(Dividends!$N$15:$N$274,C61,Dividends!$G$15:$G$274) -> 5555 | AV61: =SUMIF('Bank Transfers'!$P$15:$P$114,C61,'Bank Transfers'!$H$15:$H$114) -> 0 | AW61: 159834.8464 | AX61: 144486.5348 | AY61: 0.3877795444 | AZ61: 47 | BA61: 1 | BB61: 0 | BC61: 0 | BD61: 1 | BE61: -903.3115 | BF61: 0 | BG61: 1 | BH61: =IFERROR(MAX($AX$14:AX61),"") -> 144486.5348 | BI61: 0 | BK61: 144486.5348 | BR61: 3 | BS61: 4.7e-06 | BU61: 0 | BV61: 0 | BW61: 0 | BX61: 3 | BY61: 0
C62: 48 | K62: 0 | N62: 0 | O62: 0 | P62: 0 | Q62: =SUMIF($E$15:E62,E62,$P$15:P62) -> 0 | R62: 0 | S62: =E62&COUNTIFS($E$15:E62,E62,$R$15:R62,0) -> 0 | T62: 0 | U62: 0 | V62: 0 | W62: 0 | X62: =SUMIFS($W$15:W61,$E$15:E61,E62) -> 0 | Y62: =SUMIF($S$15:S62,S62,$W$15:W62)/Q62 ->  | Z62: 0.00 | AA62: 0.00% | AB62: =IFERROR(IF(D62="",0,D62-INDEX($D$15:D62,MATCH(S62,$S$15:S62,0))),0) -> 0 d | AC62: 0.00R | AI62: 0 | AJ62: =SUMIFS($U$15:U62,$S$15:S62,S62,$W$15:W62,">0") -> 0 | AK62: =IF(COUNTIF($E$15:E62,E62)=1,C62,"") ->  | AL62: 0 | AM62: 1 | AN62: 0 | AO62: 0 | AP62: 0 | AS62: 21 | AU62: =SUMIF(Dividends!$N$15:$N$274,C62,Dividends!$G$15:$G$274) -> 0 | AV62: =SUMIF('Bank Transfers'!$P$15:$P$114,C62,'Bank Transfers'!$H$15:$H$114) -> 0 | AW62: 164486.5348 | AX62: 144486.5348 | AY62: 0.3877795444 | BA62: 0 | BB62: 0 | BC62: 0 | BD62: 1 | BE62: -903.3115 | BF62: 0 | BG62: 1 | BH62: =IFERROR(MAX($AX$14:AX62),"") -> 144486.5348 | BI62: 0 | BK62: 144486.5348 | BR62: 3 | BS62: 4.8e-06 | BU62: 0 | BV62: 0 | BW62: 0 | BX62: 3 | BY62: 0
C63: 49 | K63: 0 | N63: 0 | O63: 0 | P63: 0 | Q63: =SUMIF($E$15:E63,E63,$P$15:P63) -> 0 | R63: 0 | S63: =E63&COUNTIFS($E$15:E63,E63,$R$15:R63,0) -> 0 | T63: 0 | U63: 0 | V63: 0 | W63: 0 | X63: =SUMIFS($W$15:W62,$E$15:E62,E63) -> 0 | Y63: =SUMIF($S$15:S63,S63,$W$15:W63)/Q63 ->  | Z63: 0.00 | AA63: 0.00% | AB63: =IFERROR(IF(D63="",0,D63-INDEX($D$15:D63,MATCH(S63,$S$15:S63,0))),0) -> 0 d | AC63: 0.00R | AI63: 0 | AJ63: =SUMIFS($U$15:U63,$S$15:S63,S63,$W$15:W63,">0") -> 0 | AK63: =IF(COUNTIF($E$15:E63,E63)=1,C63,"") ->  | AL63: 0 | AM63: 1 | AN63: 0 | AO63: 0 | AP63: 0 | AS63: 21 | AU63: =SUMIF(Dividends!$N$15:$N$274,C63,Dividends!$G$15:$G$274) -> 0 | AV63: =SUMIF('Bank Transfers'!$P$15:$P$114,C63,'Bank Transfers'!$H$15:$H$114) -> 0 | AW63: 164486.5348 | AX63: 144486.5348 | AY63: 0.3877795444 | BA63: 0 | BB63: 0 | BC63: 0 | BD63: 1 | BE63: -903.3115 | BF63: 0 | BG63: 1 | BH63: =IFERROR(MAX($AX$14:AX63),"") -> 144486.5348 | BI63: 0 | BK63: 144486.5348 | BR63: 3 | BS63: 4.9e-06 | BU63: 0 | BV63: 0 | BW63: 0 | BX63: 3 | BY63: 0
C64: 50 | K64: 0 | N64: 0 | O64: 0 | P64: 0 | Q64: =SUMIF($E$15:E64,E64,$P$15:P64) -> 0 | R64: 0 | S64: =E64&COUNTIFS($E$15:E64,E64,$R$15:R64,0) -> 0 | T64: 0 | U64: 0 | V64: 0 | W64: 0 | X64: =SUMIFS($W$15:W63,$E$15:E63,E64) -> 0 | Y64: =SUMIF($S$15:S64,S64,$W$15:W64)/Q64 ->  | Z64: 0.00 | AA64: 0.00% | AB64: =IFERROR(IF(D64="",0,D64-INDEX($D$15:D64,MATCH(S64,$S$15:S64,0))),0) -> 0 d | AC64: 0.00R | AI64: 0 | AJ64: =SUMIFS($U$15:U64,$S$15:S64,S64,$W$15:W64,">0") -> 0 | AK64: =IF(COUNTIF($E$15:E64,E64)=1,C64,"") ->  | AL64: 0 | AM64: 1 | AN64: 0 | AO64: 0 | AP64: 0 | AS64: 21 | AU64: =SUMIF(Dividends!$N$15:$N$274,C64,Dividends!$G$15:$G$274) -> 0 | AV64: =SUMIF('Bank Transfers'!$P$15:$P$114,C64,'Bank Transfers'!$H$15:$H$114) -> 0 | AW64: 164486.5348 | AX64: 144486.5348 | AY64: 0.3877795444 | BA64: 0 | BB64: 0 | BC64: 0 | BD64: 1 | BE64: -903.3115 | BF64: 0 | BG64: 1 | BH64: =IFERROR(MAX($AX$14:AX64),"") -> 144486.5348 | BI64: 0 | BK64: 144486.5348 | BR64: 3 | BS64: 5e-06 | BU64: 0 | BV64: 0 | BW64: 0 | BX64: 3 | BY64: 0

Sheet Bank Transfers
A1: 1 | C1: BANK TRANSFER
D4: OVERALL PROFIT/LOSS | H4: PREVIOUS CUMULATIVE | I4: THIS PERIOD | J4: CUMULATIVE | K4: =Settings!T3 -> Php | L4: BUY
C5: ="d"&COUNT(D15:D1472)+15 -> d17 | E5: Profit | F5: Profit % | H5: =TEXT(N8,"mmm-yy") -> Sep-17 | I5: =TEXT(N7,"mmm-yy") -> Oct-17 | J5: =I5 -> Oct-17 | L5: SELL | N5: =J9+J7 -> 38931.53485
D6: Realized Profit | E6: ='Monthly Report'!G21 -> Php51,427 | F6: =IFERROR(E6/'Bank Transfers'!J6,0) -> 42.86% | G6: Total Deposits | H6: =J6-I6 -> Php100,000 | I6: ='Monthly Report'!A22 -> Php20,000 | J6: =SUMIF(E15:E1048576,"Deposit",$H$15:$H$514) -> Php120,000
D7: Realized Loss | E7: ='Monthly Report'!H21 -> Php-12,495 | F7: =IFERROR(E7/'Bank Transfers'!J6,0) -> -10.41% | G7: Total Withdrawals | H7: =J7-I7 -> 0 | I7: ='Trade Log'!F8 -> 0 | J7: =SUMIF(E15:E1048576,"Withdraw",$H$15:$H$514) -> 0 | N7: ='Monthly Report'!W4 -> 43009
D8: Cash Dividend | E8: ='Monthly Report'!I21 -> Php5,555 | F8: =IFERROR(E8/'Bank Transfers'!J6,0) -> 4.63% | G8: Dividend | H8: =J8-I8 -> 0 | I8: ='Trade Log'!F6 -> Php5,555 | J8: ='Monthly Report'!I21 -> Php5,555 | N8: =EOMONTH(N7,-2)+1 -> 42979
D9: Realized P&L | E9: =IFERROR('Monthly Report'!M21,0) -> Php44,487 | F9: =F7+F6+F8 -> 37.07% | G9: Total Profit/Loss: | H9: =J9-I9 -> Php42,475 | I9: ='Monthly Report'!G22+'Monthly Report'!H22 -> Php-3,543 | J9: ='Monthly Report'!M21-J8 -> Php38,932
G10: Total Equity: | H10: =J10-I10 -> Php142,475 | I10: =SUM(I6:I9) -> Php22,012 | J10: =SUM(J6:J9) -> Php164,487
D14: DATE | E14: ACTION | F14: GROSS AMOUNT | G14: FEES | H14: NET AMOUNT | I14: NOTES | O14: =COUNTIF('Trade Log'!$D$14:$D$17341,">"&'Bank Transfers'!D15) -> 47
C15: 1 | D15: 4298100.00% | E15: Deposit | F15: Php100,000 | H15: =IF(F15="","",IF(D15="","***Enter Transaction Date***",IF(E15="Withdraw",(-(F15-G15)),IF(F15=0,"",F15-G15)))) -> Php100,000 | L15: =IFERROR(DATE(YEAR(D15),MONTH(D15),DAY(1)),"") -> 42979 | M15: =Settings!AG1 -> 4303800.00% | O15: =COUNTIFS(dateLog,"<"&D15,dateLog,">="&D14) -> 0 | P15: =O15 -> 0
C16: =C15+1 -> 2 | D16: 4300900.00% | E16: Deposit | F16: Php20,000 | H16: =IF(F16="","",IF(D16="","***Enter Transaction Date***",IF(E16="Withdraw",(-(F16-G16)),IF(F16=0,"",F16-G16)))) -> Php20,000 | L16: =DATE(YEAR(D16),MONTH(D16),DAY(1)) -> 43009 | M16: =DATE(YEAR(M15),MONTH(M15),DAY(1)) -> 4300900.00% | O16: 41 | P16: =O16 -> 41
C17: =C16+1 -> 3 | L17: =DATE(YEAR(D17),MONTH(D17),DAY(1)) -> 1 | M17: =SUMIFS(H15:H514,L15:L514,M16,E15:E514,"deposit") -> 2000000.00% | O17: 0 | P17: =O17+P16 -> 41
C18: 4 | L18: 1 | M18: =SUMIFS(H15:H514,L15:L514,M16,E15:E514,"withdraw") -> 0.00% | O18: 0 | P18: =O18+P17 -> 41
C19: 5 | L19: 1 | O19: 0 | P19: =O19+P18 -> 41
C20: 6 | L20: 1 | O20: 0 | P20: =O20+P19 -> 41
C21: 7 | L21: 1 | O21: 0 | P21: 41
C22: 8 | L22: 1 | O22: 0 | P22: 41
C23: 9 | L23: 1 | O23: 0 | P23: 41
C24: 10 | L24: 1 | O24: 0 | P24: 41
C25: 11 | L25: 1 | O25: 0 | P25: 41
C26: 12 | L26: 1 | O26: 0 | P26: 41
C27: 13 | L27: 1 | O27: 0 | P27: 41
C28: 14 | L28: 1 | O28: 0 | P28: 41
C29: 15 | L29: 1 | O29: 0 | P29: 41
C30: 16 | L30: 1 | O30: 0 | P30: 41
C31: 17 | L31: 1 | O31: 0 | P31: 41
C32: 18 | L32: 1 | O32: 0 | P32: 41
C33: 19 | L33: 1 | O33: 0 | P33: 41
C34: 20 | L34: 1 | O34: 0 | P34: 41
C35: 21 | L35: 1 | O35: 0 | P35: 41
C36: 22 | L36: 1 | O36: 0 | P36: 41
C37: 23 | L37: 1 | O37: 0 | P37: 41
C38: 24 | L38: 1 | O38: 0 | P38: 41
C39: 25 | L39: 1 | O39: 0 | P39: 41
C40: 26 | L40: 1 | O40: 0 | P40: 41
C41: 27 | L41: 1 | O41: 0 | P41: 41
C42: 28 | L42: 1 | O42: 0 | P42: 41
C43: 29 | L43: 1 | O43: 0 | P43: 41
C44: 30 | L44: 1 | O44: 0 | P44: 41
C45: 31 | L45: 1 | O45: 0 | P45: 41
C46: 32 | L46: 1 | O46: 0 | P46: 41
C47: 33 | L47: 1 | O47: =COUNTIFS(dateLog,"<"&D47,dateLog,">="&D46) -> 0 | P47: 41
C48: 34 | L48: 1 | O48: 0 | P48: 41
C49: 35 | L49: 1 | O49: 0 | P49: 41
C50: 36 | L50: 1 | O50: 0 | P50: 41
C51: 37 | L51: 1 | O51: 0 | P51: 41
C52: 38 | L52: 1 | O52: 0 | P52: 41
C53: 39 | L53: 1 | O53: 0 | P53: 41
C54: 40 | L54: 1 | O54: 0 | P54: 41
C55: 41 | L55: 1 | O55: 0 | P55: 41
C56: 42 | L56: 1 | O56: 0 | P56: 41
C57: 43 | L57: 1 | O57: 0 | P57: 41
C58: 44 | L58: 1 | O58: 0 | P58: 41
C59: 45 | L59: 1 | O59: 0 | P59: 41
C60: 46 | L60: 1 | O60: 0 | P60: 41
C61: 47 | L61: 1 | O61: 0 | P61: 41
C62: 48 | L62: 1 | O62: 0 | P62: 41
C63: 49 | L63: 1 | O63: 0 | P63: 41
C64: 50 | L64: 1 | O64: 0 | P64: 41
C65: 51 | L65: 1 | O65: 0 | P65: 41
C66: 52 | L66: 1 | O66: 0 | P66: 41
C67: 53 | L67: 1 | O67: 0 | P67: 41
C68: 54 | L68: 1 | O68: 0 | P68: 41
C69: 55 | L69: 1 | O69: 0 | P69: 41
C70: 56 | L70: 1 | O70: 0 | P70: 41
C71: 57 | L71: 1 | O71: 0 | P71: 41
C72: 58 | L72: 1 | O72: 0 | P72: 41
C73: 59 | L73: 1 | O73: 0 | P73: 41
C74: 60 | L74: 1 | O74: 0 | P74: 41
C75: 61 | L75: 1 | O75: 0 | P75: 41
C76: 62 | L76: 1 | O76: 0 | P76: 41
C77: 63 | L77: 1 | O77: 0 | P77: 41
C78: 64 | L78: 1 | O78: 0 | P78: 41
C79: 65 | L79: 1 | O79: =COUNTIFS(dateLog,"<"&D79,dateLog,">="&D78) -> 0 | P79: 41
C80: 66 | H80: =IF(F80="","",IF(D80="","***Enter Transaction Date***",IF(E80="Withdraw",(-(F80-G80)),IF(F80=0,"",F80-G80)))) ->  | L80: 1 | O80: 0 | P80: 41
C81: =C80+1 -> 67 | L81: =DATE(YEAR(D81),MONTH(D81),DAY(1)) -> 1 | O81: 0 | P81: 41
C82: 68 | L82: 1 | O82: 0 | P82: 41
C83: 69 | L83: 1 | O83: 0 | P83: 41
C84: 70 | L84: 1 | O84: 0 | P84: =O84+P83 -> 41
C85: 71 | L85: 1 | O85: 0 | P85: 41
C86: 72 | L86: 1 | O86: 0 | P86: 41
C87: 73 | L87: 1 | O87: 0 | P87: 41
C88: 74 | L88: 1 | O88: 0 | P88: 41
C89: 75 | L89: 1 | O89: 0 | P89: 41
C90: 76 | L90: 1 | O90: 0 | P90: 41
C91: 77 | L91: 1 | O91: 0 | P91: 41
C92: 78 | L92: 1 | O92: 0 | P92: 41
C93: 79 | L93: 1 | O93: 0 | P93: 41
C94: 80 | L94: 1 | O94: 0 | P94: 41
C95: 81 | L95: 1 | O95: 0 | P95: 41
C96: 82 | L96: 1 | O96: 0 | P96: 41
C97: 83 | L97: 1 | O97: 0 | P97: 41
C98: 84 | L98: 1 | O98: 0 | P98: 41
C99: 85 | L99: 1 | O99: 0 | P99: 41
C100: 86 | L100: 1 | O100: 0 | P100: 41
C101: 87 | L101: 1 | O101: 0 | P101: 41
C102: 88 | L102: 1 | O102: 0 | P102: 41
C103: 89 | L103: 1 | O103: 0 | P103: 41
C104: 90 | L104: 1 | O104: 0 | P104: 41
C105: 91 | L105: 1 | O105: 0 | P105: 41
C106: 92 | L106: 1 | O106: 0 | P106: 41
C107: 93 | L107: 1 | O107: 0 | P107: 41
C108: 94 | L108: 1 | O108: 0 | P108: 41
C109: 95 | L109: 1 | O109: 0 | P109: 41
C110: 96 | L110: 1 | O110: 0 | P110: 41
C111: 97 | L111: 1 | O111: 0 | P111: 41
C112: 98 | L112: 1 | O112: 0 | P112: 41
C113: 99 | L113: 1 | O113: 0 | P113: 41
C114: 100 | L114: 1 | O114: 0 | P114: 41

Sheet Trade Review
P1: 11 | Q1: 2 | X1: ="P"&COUNT(D16:D3387)+16 -> P63 | Y1: last row | AG1: JAN | AH1: =IF(MAX($Q$17:$Q$10014)=0,YEAR('Trade Log'!I10),MAX($Q$17:$Q$10014)) -> 2017 | AJ1: entry exit | AK1: emotion
AG2: FEB | AH2: =AH1-1 -> 2016 | AJ2: =IF(Settings!X14="",NA(),1) -> 1 | AK2: =IF(Settings!Z14="",NA(),1) -> 1
D3: DATE FILTER | G3: TRADE FILTER | J3: TRADE STATISTICS | L3: =S15 -> ENTRY/EXIT | N3: SCORE | O3: PROFIT/LOSS | R3: =" "&T15 -> EMOTION | S3: SCORE | T3: PROFIT/LOSS | AG3: MAR | AH3: =AH2-1 -> 2015 | AJ3: =IF(Settings!X15="",NA(),1) -> 1 | AK3: =IF(Settings!Z15="",NA(),1) -> 1
G4: Stock ID | H4: irc | L4: =calc!AD14 -> BROKE RULES | N4: =calc!AE14 -> -3 | O4: =calc!AF14 -> Php17,828 | P4: ='Trade Log'!I10 -> 4303800.00% | R4: =" "&calc!AJ14 -> FEAR | S4: =calc!AK14 -> -3 | T4: =calc!AL14 -> Php9,089 | W4: ='Trade Log'!AH4+2 -> 63 | AG4: APR | AH4: =AH3-1 -> 2014 | AJ4: =IF(Settings!X16="",NA(),1) -> 1 | AK4: =IF(Settings!Z16="",NA(),1) -> 1 | AO4: ave.win | AP4: ave.loss | AQ4: breakeven | AR4: win%
C5: ="R"&COUNT(D16:D3387)+16 -> R63 | L5: =calc!AD15 -> TOO EARLY | N5: =calc!AE15 -> -2 | O5: =calc!AF15 -> 0 | P5: =UPPER(TEXT(P4,"mmm")) -> OCT | R5: =" "&calc!AJ15 -> FOMO | S5: =calc!AK15 -> -3 | T5: =calc!AL15 -> Php9,701 | W5: =W4 -> 63 | AG5: MAY | AH5: 2013 | AJ5: =IF(Settings!X17="",NA(),1) -> 1 | AK5: =IF(Settings!Z17="",NA(),1) -> 1 | AN5: All trades | AO5: =Dashboard!I38 -> 0.154762 | AP5: =-Dashboard!I39 -> 0.025615 | AQ5: =AP5/(AO5+AP5) -> 14% | AR5: =Dashboard!I33 -> 42.9% | AS5: =1-AQ5 -> 86%
D6: Select a Month & Year: | G6: Setup | H6: Momentum | L6: =calc!AD16 -> AS PLANNED | N6: =calc!AE16 -> 13 | O6: =calc!AF16 -> Php23,176 | P6: =YEAR(P4) -> 2017 | R6: =" "&calc!AJ16 -> GREED | S6: =calc!AK16 -> -1 | T6: =calc!AL16 -> 0 | W6: ='Trade Log'!AH6+2 -> 66 | AG6: JUN | AH6: 2012 | AJ6: =IF(Settings!X18="",NA(),1) -> 1 | AK6: =IF(Settings!Z18="",NA(),1) -> 1 | AN6: =Dashboard!K32 -> Last 50 Trades | AO6: =Dashboard!K38 -> 0.154762 | AP6: =-Dashboard!K39 -> 0.025615 | AQ6: =AP6/(AO6+AP6) -> 14% | AR6: =Dashboard!K33 -> 42.9% | AS6: =1-AQ6 -> 86%
C7: 2 | D7: Month | E7: JAN | G7: Execution | H7: AS PLANNED | L7: =calc!AD17 ->  | N7: =calc!AE17 ->  | O7: =calc!AF17 ->  | R7: =" "&calc!AJ17 -> BORED | S7: =calc!AK17 -> -1 | T7: =calc!AL17 -> 0 | W7: ='Trade Log'!AH7+2 -> 66.00 | AG7: JUL | AH7: 2011 | AJ7: =IF(Settings!X19="",NA(),1) -> 1 | AK7: =IF(Settings!Z19="",NA(),1) -> 1 | AQ7: 1
C8: 1 | D8: Year | E8: 2023 | G8: Emotion | H8: BORED | L8: =calc!AD18 ->  | N8: =calc!AE18 ->  | O8: =calc!AF18 ->  | R8: =" "&calc!AJ18 -> CONFIDENT | S8: =calc!AK18 -> 10 | T8: =calc!AL18 -> Php22,214 | W8: ='Trade Log'!AH8+2 -> 76 | AG8: AUG | AH8: 2010 | AJ8: =IF(Settings!X20="",NA(),1) -> 1 | AK8: =IF(Settings!Z20="",NA(),1) -> 1
C9: 0 | L9: =calc!AD19 ->  | N9: =calc!AE19 ->  | O9: =calc!AF19 ->  | R9: =" "&calc!AJ19 ->  | S9: =calc!AK19 ->  | T9: =calc!AL19 ->  | AG9: SEP | AH9: 2009 | AJ9: =IF(Settings!X21="",NA(),1) ->  | AK9: =IF(Settings!Z21="",NA(),1) -> 
L10: =calc!AD20 ->  | N10: =calc!AE20 ->  | O10: =calc!AF20 ->  | R10: =" "&calc!AJ20 ->  | S10: =calc!AK20 ->  | T10: =calc!AL20 ->  | AG10: OCT | AH10: 2008 | AJ10: =IF(Settings!X22="",NA(),1) ->  | AK10: =IF(Settings!Z22="",NA(),1) -> 
L11: =calc!AD21 ->  | N11: =calc!AE21 ->  | O11: =calc!AF21 ->  | P11: =MATCH(E7,AG1:AG12,0) -> 1 | Q11: =E8 -> 2023 | R11: =" "&calc!AJ21 ->  | S11: =calc!AK21 ->  | T11: =calc!AL21 ->  | AG11: NOV | AJ11: =IF(Settings!X23="",NA(),1) ->  | AK11: =IF(Settings!Z23="",NA(),1) -> 
AG12: DEC | AJ12: =IF(Settings!X24="",NA(),1) ->  | AK12: =IF(Settings!Z24="",NA(),1) -> 
P13: =INDEX(AG1:AG12,P15) -> OCT | Q13: =INDEX(AH1:AH10,Q15) -> 2015 | AJ13: =IF(Settings!X25="",NA(),1) ->  | AK13: =IF(Settings!Z25="",NA(),1) -> 
C14: =IF('Trade Log'!C12=0,"",'Trade Log'!C12) ->  | D14: =IF(('Trade Log'!D12)=0,"",('Trade Log'!D12)) -> 100.00% | E14: ='Trade Log'!E12 -> 0 | F14: ='Trade Log'!F12 -> 0 | G14: ='Trade Log'!G12 -> 0 | H14: ='Trade Log'!H12 -> 0 | I14: ='Trade Log'!U12 -> 0 | J14: ='Trade Log'!V12 -> 0 | K14: ='Trade Log'!Z12 -> 0 | L14: ='Trade Log'!AA12 -> 0.00% | M14: ='Trade Log'!AC12 -> 0.00R | N14: ='Trade Log'!AE12 -> 0 | O14: ='Trade Log'!AF12 -> 0 | P14: =IFERROR(MONTH(D14),"") -> 1 | Q14: =IFERROR(YEAR(D14),"") -> 1900 | AJ14: =IF(Settings!X26="",NA(),1) ->  | AK14: =IF(Settings!Z26="",NA(),1) -> 
D15: DATE | E15: STOCK ID | F15: ACTION | G15: PRICE | H15: SHARES | I15: =I16 -> NET AMOUNT | J15: AVE. PRICE | K15: PROFIT/LOSS | L15: % P&L | M15: R-Multiple | N15: =N16 -> SETUP | O15: ='Trade Log'!$AF$14 -> REASON FOR BUYING / SELLING | P15: 10 | Q15: 3 | R15: CAUSE-OF-ERROR | S15: =Settings!X13 -> ENTRY/EXIT | T15: =Settings!Z13 -> EMOTION | U15: TREND | V15: ADDITIONAL NOTE | W15: ADDITIONAL NOTE | AJ15: =IF(Settings!X27="",NA(),1) ->  | AK15: =IF(Settings!Z27="",NA(),1) -> 
C16: No. | D16: Date | E16: Stock Code | F16: Action | G16: Price | H16: Total Shares | I16: NET AMOUNT | J16: Ave.Price | K16: Amount | L16: % | M16: R-Multiple | N16: SETUP | O16: REASON FOR BUYING / SELLING | P16: month | Q16: year | R16: Column1 | S16: Column2 | T16: Column3 | U16: Column4 | V16: Column5 | W16: Column6 | X16: Column7 | Y16: Column8 | AJ16: =IF(Settings!X28="",NA(),1) ->  | AK16: =IF(Settings!Z28="",NA(),1) -> 
C17: 1 | D17: 4298200.00% | E17: WLCON | F17: BUY | G17: 9.100 | H17: 3,600 | I17: 32,856.64 | J17: 9.13 | K17: 0 | L17: 0.00% | N17: Trend Follow | O17: 0 | P17: 9 | Q17: 2017
C18: 2 | D18: 4298200.00% | E18: CHP | F18: BUY | G18: 6.110 | H18: 5,300 | I18: 32,478.53 | J18: 6.13 | K18: 0 | L18: 0.00% | M18: 0.00R | N18: Bottom fishing | O18: 0 | P18: 9 | Q18: 2017
C19: 3 | D19: 4298200.00% | E19: TUGS | F19: BUY | G19: 2.440 | H19: 13,000 | I19: 31,813.57 | J19: 2.45 | K19: 0 | L19: 0.00% | M19: 0.00R | N19: Swing Trade | O19: 0 | P19: 9 | Q19: 2017
C20: 4 | D20: 4298300.00% | E20: CHP | F20: SELL | G20: 6.040 | H20: 5,300 | I20: 31,725.49 | J20: 6.13 | K20: -753.04 | L20: -2.32% | M20: -0.75R | N20: Bottom fishing | O20: 0 | P20: 9 | Q20: 2017
C21: 5 | D21: 4298300.00% | E21: PXP | F21: BUY | G21: 4.700 | H21: 7,000 | I21: 32,997.06 | J21: 4.71 | K21: 0 | L21: 0.00% | M21: 0.00R | N21: Momentum | O21: 0 | P21: 9 | Q21: 2017
C22: 6 | D22: 4298400.00% | E22: TUGS | F22: SELL | G22: 2.680 | H22: 13,000 | I22: 34,528.18 | J22: 2.45 | K22: 2,714.61 | L22: 8.53% | M22: 2.74R | N22: Swing Trade | O22: 0 | P22: 9 | Q22: 2017 | S22: AS PLANNED | T22: CONFIDENT
C23: 7 | D23: 4298400.00% | E23: MAC | F23: BUY | G23: 10.700 | H23: 3,100 | I23: 33,267.85 | J23: 10.73 | K23: 0 | L23: 0.00% | M23: 0.00R | N23: 0 | O23: 0 | P23: 9 | Q23: 2017 | S23: AS PLANNED | T23: CONFIDENT
C24: 8 | D24: 4298400.00% | E24: PXP | F24: SELL | G24: 4.600 | H24: 7,000 | I24: 31,911.81 | J24: 4.71 | K24: -1,085.25 | L24: -3.29% | M24: -1.06R | N24: Momentum | O24: 0 | P24: 9 | Q24: 2017
C25: 9 | D25: 4298400.00% | E25: X | F25: BUY | G25: 6.210 | H25: 5,400 | I25: 33,632.93 | J25: 6.23 | K25: 0 | L25: 0.00% | M25: 0.00R | N25: 0 | O25: 0 | P25: 9 | Q25: 2017 | S25: TOO EARLY | T25: FEAR
C26: 10 | D26: 4298500.00% | E26: X | F26: SELL | G26: 6.260 | H26: 5,400 | I26: 33,501.45 | J26: 6.23 | K26: -131.47 | L26: -0.39% | M26: -0.13R | N26: 0 | O26: 0 | P26: 9 | Q26: 2017
C27: 11 | D27: 4298600.00% | E27: APX | F27: BUY | G27: 1.770 | H27: 18,000 | I27: 31,953.99 | J27: 1.78 | K27: 0 | L27: 0.00% | M27: 0.00R | N27: 0 | O27: 0 | P27: 9 | Q27: 2017
C28: 12 | D28: 4298600.00% | E28: APX | F28: SELL | G28: 1.750 | H28: 18,000 | I28: 31,218.08 | J28: 1.78 | K28: -735.91 | L28: -2.30% | M28: -0.73R | N28: 0 | O28: 0 | P28: 9 | Q28: 2017
C29: 13 | D29: 4298600.00% | E29: PXP | F29: BUY | G29: 5.050 | H29: 6,500 | I29: 32,921.83 | J29: 5.06 | K29: 0 | L29: 0.00% | M29: 0.00R | N29: Momentum | O29: 0 | P29: 9 | Q29: 2017
C30: 14 | D30: 4298900.00% | E30: PXP | F30: SELL | G30: 5.260 | H30: 6,500 | I30: 33,884.00 | J30: 5.06 | K30: 962.17 | L30: 2.92% | M30: 0.96R | N30: Momentum | O30: 0 | P30: 9 | Q30: 2017 | S30: AS PLANNED | T30: FOMO
C31: 15 | D31: 4299100.00% | E31: IMI | F31: BUY | G31: 15.900 | H31: 2,100 | I31: 33,488.50 | J31: 15.95 | K31: 0 | L31: 0.00% | M31: 0.00R | N31: 0 | O31: 0 | P31: 9 | Q31: 2017 | S31: TOO EARLY | T31: FEAR
C32: 16 | D32: 4299100.00% | E32: WLCON | F32: SELL | G32: 9.310 | H32: 3,600 | I32: 33,216.03 | J32: 9.13 | K32: 359.39 | L32: 1.09% | M32: 0.36R | N32: Trend Follow | O32: 0 | P32: 9 | Q32: 2017 | S32: AS PLANNED | T32: CONFIDENT
C33: 17 | D33: 4299200.00% | E33: MEG | F33: BUY | G33: 5.350 | H33: 6,300 | I33: 33,804.43 | J33: 5.37 | K33: 0 | L33: 0.00% | M33: 0.00R | N33: 0 | O33: 0 | P33: 9 | Q33: 2017 | S33: AS PLANNED | T33: BORED
C34: 18 | D34: 4299300.00% | E34: MEG | F34: SELL | G34: 5.380 | H34: 6,300 | I34: 33,590.65 | J34: 5.37 | K34: -213.78 | L34: -0.63% | M34: -0.21R | N34: 0 | O34: 0 | P34: 9 | Q34: 2017
C35: 19 | D35: 4299300.00% | E35: MRP | F35: BUY | G35: 8.500 | H35: 3,900 | I35: 33,247.79 | J35: 8.53 | K35: 0 | L35: 0.00% | M35: 0.00R | N35: 0 | O35: 0 | P35: 9 | Q35: 2017
C36: 20 | D36: 4299700.00% | E36: MRP | F36: SELL | G36: 8.340 | H36: 3,900 | I36: 32,234.89 | J36: 8.53 | K36: -1,012.90 | L36: -3.05% | M36: -1.00R | N36: 0 | O36: 0 | P36: 9 | Q36: 2017
C37: 21 | D37: 4299800.00% | E37: PXP | F37: BUY | G37: 5.500 | H37: 6,000 | I37: 33,097.35 | J37: 5.52 | K37: 0 | L37: 0.00% | M37: 0.00R | N37: Momentum | O37: 0 | P37: 9 | Q37: 2017
C38: 22 | D38: 4300300.00% | E38: PXP | F38: SELL | G38: 8.100 | H38: 6,000 | I38: 48,165.03 | J38: 5.52 | K38: 15,067.68 | L38: 45.53% | M38: 15.05R | N38: Momentum | O38: 0 | P38: 9 | Q38: 2017 | S38: AS PLANNED | T38: CONFIDENT
C39: 23 | D39: 4300300.00% | E39: APX | F39: BUY | G39: 1.880 | H39: 20,000 | I39: 37,710.92 | J39: 1.89 | K39: 0 | L39: 0.00% | M39: 0.00R | N39: 0 | O39: 0 | P39: 9 | Q39: 2017 | S39: AS PLANNED | T39: CONFIDENT
C40: 24 | D40: 4300300.00% | E40: MAC | F40: BUY | G40: 15.080 | H40: 300 | I40: 4,547.08 | J40: 11.12 | K40: 0 | L40: 0.00% | M40: 0.00R | N40: 0 | O40: 0 | P40: 9 | Q40: 2017
C41: 25 | D41: 4300300.00% | E41: IMI | F41: BUY | G41: 19.020 | H41: 200 | I41: 3,826.97 | J41: 16.22 | K41: 0 | L41: 0.00% | M41: 0.00R | N41: Trend Follow | O41: 0 | P41: 9 | Q41: 2017
C42: 26 | D42: 4300300.00% | E42: IMI | F42: SELL | G42: 18.400 | H42: 2,300 | I42: 41,941.24 | J42: 16.22 | K42: 4,625.76 | L42: 12.40% | M42: 4.02R | N42: Trend Follow | O42: 0 | P42: 9 | Q42: 2017 | S42: AS PLANNED | T42: CONFIDENT
C43: 27 | D43: 4300300.00% | E43: PXP | F43: BUY | G43: 9.380 | H43: 4,000 | I43: 37,630.68 | J43: 9.41 | K43: 0 | L43: 0.00% | M43: 0.00R | N43: Momentum | O43: 0 | P43: 9 | Q43: 2017 | S43: AS PLANNED | T43: CONFIDENT
C44: 28 | D44: 4300300.00% | E44: APX | F44: BUY | G44: 2.020 | H44: 1,000 | I44: 2,042.70 | J44: 1.89 | K44: 0 | L44: 0.00% | M44: 0.00R | N44: 0 | O44: 0 | P44: 9 | Q44: 2017 | S44: BROKE RULES | T44: FOMO
C45: 29 | D45: 4300300.00% | E45: PXP | F45: BUY | G45: 9.840 | H45: 200 | I45: 1,990.70 | J45: 9.43 | K45: 0 | L45: 0.00% | M45: 0.00R | N45: Momentum | O45: 0 | P45: 9 | Q45: 2017
C46: 30 | D46: 4300400.00% | E46: APX | F46: SELL | G46: 2.330 | H46: 21,000 | I46: 48,492.08 | J46: 1.89 | K46: 8,738.45 | L46: 21.98% | M46: 7.29R | N46: 0 | O46: 0 | P46: 9 | Q46: 2017 | S46: BROKE RULES | T46: FOMO
C47: 31 | D47: 4300400.00% | E47: PXP | F47: SELL | G47: 9.700 | H47: 4,200 | I47: 40,375.38 | J47: 9.43 | K47: 754.00 | L47: 1.90% | M47: 0.63R | N47: Momentum | O47: 0 | P47: 9 | Q47: 2017
C48: 32 | D48: 4300400.00% | E48: MAC | F48: SELL | G48: 13.920 | H48: 3,400 | I48: 46,904.41 | J48: 11.12 | K48: 9,089.48 | L48: 24.04% | M48: 7.07R | N48: 0 | O48: 0 | P48: 9 | Q48: 2017 | S48: BROKE RULES | T48: FEAR
C49: 33 | D49: 4300500.00% | E49: PXP | F49: BUY | G49: 7.250 | H49: 6,000 | I49: 43,628.33 | J49: 7.27 | K49: 0 | L49: 0.00% | M49: 0.00R | N49: Bounce | O49: 0 | P49: 9 | Q49: 2017
C50: 34 | D50: 4300500.00% | E50: MAC | F50: BUY | G50: 16.000 | H50: 2,700 | I50: 43,327.44 | J50: 16.05 | K50: 0 | L50: 0.00% | M50: 0.00R | N50: 0 | O50: 0 | P50: 9 | Q50: 2017 | S50: AS PLANNED | T50: CONFIDENT
C51: 35 | D51: 4300500.00% | E51: EDC | F51: BUY | G51: 5.420 | H51: 8,400 | I51: 45,662.31 | J51: 5.44 | K51: 0 | L51: 0.00% | M51: 0.00R | N51: 0 | O51: 0 | P51: 9 | Q51: 2017
C52: 36 | D52: 4300600.00% | E52: MAC | F52: SELL | G52: 15.000 | H52: 2,700 | I52: 40,137.53 | J52: 16.05 | K52: -3,189.92 | L52: -7.36% | M52: -2.31R | N52: 0 | O52: 0 | P52: 9 | Q52: 2017
C53: 37 | D53: 4300600.00% | E53: EDC | F53: SELL | G53: 5.400 | H53: 8,400 | I53: 44,954.03 | J53: 5.44 | K53: -708.28 | L53: -1.55% | M53: -0.51R | N53: 0 | O53: 0 | P53: 9 | Q53: 2017
C54: 38 | D54: 4300600.00% | E54: PXP | F54: SELL | G54: 8.870 | H54: 6,000 | I54: 52,743.68 | J54: 7.27 | K54: 9,115.36 | L54: 20.89% | M54: 6.74R | N54: Bounce | O54: 0 | P54: 9 | Q54: 2017
C55: 39 | D55: 4300700.00% | E55: PXP | F55: BUY | G55: 7.400 | H55: 6,400 | I55: 47,499.71 | J55: 7.42 | K55: 0 | L55: 0.00% | M55: 0.00R | N55: Bounce | O55: 0 | P55: 9 | Q55: 2017 | S55: AS PLANNED | T55: CONFIDENT
C56: 40 | D56: 4300700.00% | E56: CHP | F56: BUY | G56: 5.140 | H56: 9,300 | I56: 47,943.02 | J56: 5.16 | K56: 0 | L56: 0.00% | M56: 0.00R | N56: Bottom fishing | O56: 0 | P56: 9 | Q56: 2017 | S56: AS PLANNED | T56: GREED
C57: 41 | D57: 4300700.00% | E57: CHP | F57: SELL | G57: 5.080 | H57: 9,300 | I57: 46,821.17 | J57: 5.16 | K57: -1,121.85 | L57: -2.34% | M57: -0.78R | N57: Bottom fishing | O57: 0 | P57: 9 | Q57: 2017
C58: 42 | D58: 4301000.00% | E58: APX | F58: BUY | G58: 1.790 | H58: 26,000 | I58: 46,677.29 | J58: 1.80 | K58: 0 | L58: 0.00% | M58: 0.00R | N58: 0 | O58: 0 | P58: 10 | Q58: 2017
C59: 43 | D59: 4301000.00% | E59: EW | F59: BUY | G59: 33.400 | H59: 1,400 | I59: 46,897.94 | J59: 33.50 | K59: 0 | L59: 0.00% | M59: 0.00R | N59: 0 | O59: 0 | P59: 10 | Q59: 2017
C60: 44 | D60: 4301000.00% | E60: PXP | F60: SELL | G60: 7.160 | H60: 6,400 | I60: 45,413.88 | J60: 7.42 | K60: -2,085.84 | L60: -4.39% | M60: -1.28R | N60: Bounce | O60: 0 | P60: 10 | Q60: 2017
C61: 45 | D61: 4301000.00% | E61: APX | F61: SELL | G61: 1.790 | H61: 26,000 | I61: 46,123.47 | J61: 1.80 | K61: -553.83 | L61: -1.19% | M61: -0.34R | N61: 0 | O61: 0 | P61: 10 | Q61: 2017 | S61: AS PLANNED | T61: CONFIDENT
C62: 46 | D62: 4301100.00% | E62: PXP | F62: BUY | G62: 6.700 | H62: 6,900 | I62: 46,366.38 | J62: 6.72 | K62: 0 | L62: 0.00% | M62: 0.00R | N62: Bounce | O62: 0 | P62: 10 | Q62: 2017
C63: 47 | D63: 4301100.00% | E63: EW | F63: SELL | G63: 33.150 | H63: 1,400 | I63: 45,994.63 | J63: 33.50 | K63: -903.31 | L63: -1.93% | M63: -0.57R | N63: 0 | O63: 0 | P63: 10 | Q63: 2017
C64: =IF('Trade Log'!C62=0,"",'Trade Log'!C62) -> 48 | D64: =IF(('Trade Log'!D62)=0,"",('Trade Log'!D62)) ->  | E64: ='Trade Log'!E62 -> 0 | F64: ='Trade Log'!F62 -> 0 | G64: ='Trade Log'!G62 -> 0 | H64: ='Trade Log'!H62 -> 0 | I64: ='Trade Log'!U62 -> 0 | J64: ='Trade Log'!V62 -> 0 | K64: ='Trade Log'!Z62 -> 0 | L64: ='Trade Log'!AA62 -> 0.00% | M64: ='Trade Log'!AC62 -> 0.00R | N64: ='Trade Log'!AE62 -> 0 | O64: ='Trade Log'!AF62 -> 0 | P64: =IFERROR(MONTH(D64),"") ->  | Q64: =IFERROR(YEAR(D64),"") -> 
C65: =IF('Trade Log'!C63=0,"",'Trade Log'!C63) -> 49 | D65: =IF(('Trade Log'!D63)=0,"",('Trade Log'!D63)) ->  | E65: ='Trade Log'!E63 -> 0 | F65: ='Trade Log'!F63 -> 0 | G65: ='Trade Log'!G63 -> 0 | H65: ='Trade Log'!H63 -> 0 | I65: ='Trade Log'!U63 -> 0 | J65: ='Trade Log'!V63 -> 0 | K65: ='Trade Log'!Z63 -> 0 | L65: ='Trade Log'!AA63 -> 0.00% | M65: ='Trade Log'!AC63 -> 0.00R | N65: ='Trade Log'!AE63 -> 0 | O65: ='Trade Log'!AF63 -> 0
C66: =IF('Trade Log'!C64=0,"",'Trade Log'!C64) -> 50 | D66: =IF(('Trade Log'!D64)=0,"",('Trade Log'!D64)) ->  | E66: ='Trade Log'!E64 -> 0 | F66: ='Trade Log'!F64 -> 0 | G66: ='Trade Log'!G64 -> 0 | H66: ='Trade Log'!H64 -> 0 | I66: ='Trade Log'!U64 -> 0 | J66: ='Trade Log'!V64 -> 0 | K66: ='Trade Log'!Z64 -> 0 | L66: ='Trade Log'!AA64 -> 0.00% | M66: ='Trade Log'!AC64 -> 0.00R | N66: ='Trade Log'!AE64 -> 0 | O66: ='Trade Log'!AF64 -> 0
AK719: =IF(Settings!Z728="",NA(),1) -> 
AK720: =IF(Settings!Z729="",NA(),1) -> 
AK721: =IF(Settings!Z730="",NA(),1) -> 
AK722: =IF(Settings!Z731="",NA(),1) -> 
AK723: =IF(Settings!Z732="",NA(),1) -> 
AK724: =IF(Settings!Z733="",NA(),1) -> 
AK725: =IF(Settings!Z734="",NA(),1) -> 
AK726: =IF(Settings!Z735="",NA(),1) -> 
AK727: =IF(Settings!Z736="",NA(),1) -> 
AK728: =IF(Settings!Z737="",NA(),1) -> 
AK729: =IF(Settings!Z738="",NA(),1) -> 
AK730: =IF(Settings!Z739="",NA(),1) -> 
AK731: =IF(Settings!Z740="",NA(),1) -> 
AK732: =IF(Settings!Z741="",NA(),1) -> 
AK733: =IF(Settings!Z742="",NA(),1) -> 
AK734: =IF(Settings!Z743="",NA(),1) -> 
AK735: =IF(Settings!Z744="",NA(),1) -> 
AK736: =IF(Settings!Z745="",NA(),1) -> 
AK737: =IF(Settings!Z746="",NA(),1) -> 
AK738: =IF(Settings!Z747="",NA(),1) -> 
AK739: =IF(Settings!Z748="",NA(),1) -> 
AK740: =IF(Settings!Z749="",NA(),1) -> 
AK741: =IF(Settings!Z750="",NA(),1) -> 
AK742: =IF(Settings!Z751="",NA(),1) -> 
AK743: =IF(Settings!Z752="",NA(),1) -> 
AK744: =IF(Settings!Z753="",NA(),1) -> 
AK745: =IF(Settings!Z754="",NA(),1) -> 
AK746: =IF(Settings!Z755="",NA(),1) -> 
AK747: =IF(Settings!Z756="",NA(),1) -> 
AK748: =IF(Settings!Z757="",NA(),1) -> 
AK749: =IF(Settings!Z758="",NA(),1) -> 
AK750: =IF(Settings!Z759="",NA(),1) -> 
AK751: =IF(Settings!Z760="",NA(),1) -> 
AK752: =IF(Settings!Z761="",NA(),1) -> 
AK753: =IF(Settings!Z762="",NA(),1) -> 
AK754: =IF(Settings!Z763="",NA(),1) -> 
AK755: =IF(Settings!Z764="",NA(),1) -> 
AK756: =IF(Settings!Z765="",NA(),1) -> 
AK757: =IF(Settings!Z766="",NA(),1) -> 
AK758: =IF(Settings!Z767="",NA(),1) -> 
AK759: =IF(Settings!Z768="",NA(),1) -> 
AK760: =IF(Settings!Z769="",NA(),1) -> 
AK761: =IF(Settings!Z770="",NA(),1) -> 
AK762: =IF(Settings!Z771="",NA(),1) -> 
AK763: =IF(Settings!Z772="",NA(),1) -> 
AK764: =IF(Settings!Z773="",NA(),1) -> 
AK765: =IF(Settings!Z774="",NA(),1) -> 
AK766: =IF(Settings!Z775="",NA(),1) -> 
AK767: =IF(Settings!Z776="",NA(),1) -> 
AK768: =IF(Settings!Z777="",NA(),1) -> 
AK769: =IF(Settings!Z778="",NA(),1) -> 
AK770: =IF(Settings!Z779="",NA(),1) -> 
AK771: =IF(Settings!Z780="",NA(),1) -> 
AK772: =IF(Settings!Z781="",NA(),1) -> 
AK773: =IF(Settings!Z782="",NA(),1) -> 
AK774: =IF(Settings!Z783="",NA(),1) -> 
AK775: =IF(Settings!Z784="",NA(),1) -> 
AK776: =IF(Settings!Z785="",NA(),1) -> 
AK777: =IF(Settings!Z786="",NA(),1) -> 
AK778: =IF(Settings!Z787="",NA(),1) -> 
AK779: =IF(Settings!Z788="",NA(),1) -> 
AK780: =IF(Settings!Z789="",NA(),1) -> 
AK781: =IF(Settings!Z790="",NA(),1) -> 
AK782: =IF(Settings!Z791="",NA(),1) -> 
AK783: =IF(Settings!Z792="",NA(),1) -> 
AK784: =IF(Settings!Z793="",NA(),1) -> 
AK785: =IF(Settings!Z794="",NA(),1) -> 
AK786: =IF(Settings!Z795="",NA(),1) -> 
AK787: =IF(Settings!Z796="",NA(),1) -> 
AK788: =IF(Settings!Z797="",NA(),1) -> 
AK789: =IF(Settings!Z798="",NA(),1) -> 
AK790: =IF(Settings!Z799="",NA(),1) -> 
AK791: =IF(Settings!Z800="",NA(),1) -> 
AK792: =IF(Settings!Z801="",NA(),1) -> 
AK793: =IF(Settings!Z802="",NA(),1) -> 
AK794: =IF(Settings!Z803="",NA(),1) -> 
AK795: =IF(Settings!Z804="",NA(),1) -> 
AK796: =IF(Settings!Z805="",NA(),1) -> 
AK797: =IF(Settings!Z806="",NA(),1) -> 
AK798: =IF(Settings!Z807="",NA(),1) -> 
AK799: =IF(Settings!Z808="",NA(),1) -> 
AK800: =IF(Settings!Z809="",NA(),1) -> 
AK801: =IF(Settings!Z810="",NA(),1) -> 
AK802: =IF(Settings!Z811="",NA(),1) -> 
AK803: =IF(Settings!Z812="",NA(),1) -> 
AK804: =IF(Settings!Z813="",NA(),1) -> 
AK805: =IF(Settings!Z814="",NA(),1) -> 
AK806: =IF(Settings!Z815="",NA(),1) -> 
AK807: =IF(Settings!Z816="",NA(),1) -> 
AK808: =IF(Settings!Z817="",NA(),1) -> 
AK809: =IF(Settings!Z818="",NA(),1) -> 
AK810: =IF(Settings!Z819="",NA(),1) -> 
AK811: =IF(Settings!Z820="",NA(),1) -> 
AK812: =IF(Settings!Z821="",NA(),1) -> 
AK813: =IF(Settings!Z822="",NA(),1) -> 
AK814: =IF(Settings!Z823="",NA(),1) -> 
AK815: =IF(Settings!Z824="",NA(),1) -> 
AK816: =IF(Settings!Z825="",NA(),1) -> 
AK817: =IF(Settings!Z826="",NA(),1) -> 
AK818: =IF(Settings!Z827="",NA(),1) -> 
AK819: =IF(Settings!Z828="",NA(),1) -> 
AK820: =IF(Settings!Z829="",NA(),1) -> 
AK821: =IF(Settings!Z830="",NA(),1) -> 
AK822: =IF(Settings!Z831="",NA(),1) -> 
AK823: =IF(Settings!Z832="",NA(),1) -> 
AK824: =IF(Settings!Z833="",NA(),1) -> 
AK825: =IF(Settings!Z834="",NA(),1) -> 
AK826: =IF(Settings!Z835="",NA(),1) -> 
AK827: =IF(Settings!Z836="",NA(),1) -> 
AK828: =IF(Settings!Z837="",NA(),1) -> 
AK829: =IF(Settings!Z838="",NA(),1) -> 
AK830: =IF(Settings!Z839="",NA(),1) -> 
AK831: =IF(Settings!Z840="",NA(),1) -> 
AK832: =IF(Settings!Z841="",NA(),1) -> 
AK833: =IF(Settings!Z842="",NA(),1) -> 
AK834: =IF(Settings!Z843="",NA(),1) -> 
AK835: =IF(Settings!Z844="",NA(),1) -> 
AK836: =IF(Settings!Z845="",NA(),1) -> 
AK837: =IF(Settings!Z846="",NA(),1) -> 
AK838: =IF(Settings!Z847="",NA(),1) -> 
AK839: =IF(Settings!Z848="",NA(),1) -> 
AK840: =IF(Settings!Z849="",NA(),1) -> 
AK841: =IF(Settings!Z850="",NA(),1) -> 
AK842: =IF(Settings!Z851="",NA(),1) -> 
AK843: =IF(Settings!Z852="",NA(),1) -> 
AK844: =IF(Settings!Z853="",NA(),1) -> 
AK845: =IF(Settings!Z854="",NA(),1) -> 
AK846: =IF(Settings!Z855="",NA(),1) -> 
AK847: =IF(Settings!Z856="",NA(),1) -> 
AK848: =IF(Settings!Z857="",NA(),1) -> 
AK849: =IF(Settings!Z858="",NA(),1) -> 
AK850: =IF(Settings!Z859="",NA(),1) -> 
AK851: =IF(Settings!Z860="",NA(),1) -> 
AK852: =IF(Settings!Z861="",NA(),1) -> 
... 139 more rows

Sheet Monthly Report
AE2: =6000*12*5 -> 360000
S3: =AA9 -> Nov-16 to Oct-17 | W3: =Settings!AG1 -> 4303800.00% | X3: current date
S4: =AA10 -> vs. Nov-15 to Oct-16 | W4: =DATE(YEAR(W3),MONTH(W3),DAY(1)) -> 4300900.00% | AA4: EQUITY CURVE
W5: =IF(Y5=0,W3,Y5) -> 4298200.00% | Y5: =MIN('Trade Log'!D15:D18357) -> 4298200.00% | AA5: EQUITY CURVE | AM5: currency format | AN5: =Settings!T3 -> Php
S6: PROFIT | W6: =IF(Y6=0,W3,Y6) -> 4298100.00% | Y6: =MIN('Bank Transfers'!D15:D1000) -> 4298100.00% | AA6: PERFORMANCE CURVE
W7: =MIN(W5:W6) -> 4298100.00% | X7: =DATE(YEAR(W7),MONTH(W7),DAY(1)) -> 4297900.00%
S8: =AP21 ->  | AA8: ="PROFIT "&YEAR(W23)&" vs "&YEAR(W23)-1 -> PROFIT 2017 vs 2016
W9: max | X9: =MAX(AE23:AE47)*1.1 -> 180,935 | AA9: =TEXT(AN34,"mmm-yy") &" to "&TEXT(AN23,"mmm-yy") -> Nov-16 to Oct-17
W10: min | X10: =MIN(AE23:AE47)*0.9 -> 0 | AA10: ="vs. "&TEXT(AP34,"mmm-yy") &" to "&TEXT(AP23,"mmm-yy") -> vs. Nov-15 to Oct-16
W19: back | X19: forward | Y19: helper
A20: Additional Deposits | B20: Withdrawals | D20: MONTH | E20: BEG. BALANCE | F20: TRANSFERS | G20: NET PROFIT | H20: NET LOSS | I20: DIVIDENDS | J20: END BALANCE | K20: TAX & FEES | M20: NET PROFIT | N20: % PROFIT | O20: R-MUL SUM | Q20: TRADES | R20: WIN RATE% | S20: AVE.WIN% | T20: AVE.LOSS% | U20: P.FACTOR | W20: =EOMONTH(W23,-13)+1 -> 4264400.00% | X20: =IF(Y20>W22,W22,Y20) -> 4300900.00% | Y20: =EOMONTH(W23,11)+1 -> 4337400.00% | AB20: win trade | AL20: Monthly Capital Growth Rate | AP20: =AO21-AQ21 -> ₱44,486.53 | AQ20: =MIN(Z22:Z47)*0.8 -> 0 | AS20: HELPER | AT20: HELPER
A21: =IFERROR(SUMIFS('Bank Transfers'!H15:H514,'Bank Transfers'!E15:E514,"deposit")-E21,0) -> 20000 | B21: =SUMIFS('Bank Transfers'!H15:H514,'Bank Transfers'!E15:E514,"Withdraw",'Bank Transfers'!D15:D514,">0") -> 0 | D21: =EOMONTH(W4,0)+1 -> 2017-11-01 | E21: ='Bank Transfers'!H15 -> 100,000.0 | F21: =A21+B21 -> 20,000.0 | G21: =SUMIFS(profitLoss,profitLoss,">0",dateLog,">0") -> 51,426.9 | H21: =SUMIFS(profitLoss,profitLoss,"<0",dateLog,">0") -> -12,495.4 | I21: =SUMIFS(Dividends!$G$15:$G$174,Dividends!$E$15:$E$174,"cash") -> 5,555.0 | J21: =SUM(E21:I21)-F21+B21+A21 -> 164,486.5 | K21: =SUM('Trade Log'!T15:T25905) -> 10,179.8 | M21: =G21+H21+I21 -> 44,486.5 | N21: =IFERROR(M21/(E21+F21),0) -> 37.07% | O21: =SUM('Trade Log'!AC15:AC25905) -> 35.18R | Q21: =AB21+AC21 -> 21 | R21: ='Stock Position'!BF8 -> 42.9% | S21: =Dashboard!I38 -> 15.5% | T21: =Dashboard!I39 -> -2.6% | U21: =Dashboard!P17 -> 4.1 | W21: Month | Y21: Month | Z21: =SUM('Trade Log'!$K$15:$K$25947) -> 1700251 | AA21: beg | AB21: ='Trade Log'!AN3 -> 9 | AC21: ='Trade Log'!AN4 -> 12 | AE21: end | AG21: deposit | AH21: withdraw | AI21: div | AO21: =SUM(AO23:AO34) -> Php44,487 | AP21: =IFERROR(IF(AQ21>0,AP20/AQ21,-AP20/AQ21),"") ->  | AQ21: =SUM(AQ23:AQ34) -> 0 | AS21: DEPOSIT | AT21: WITHDRAW
A22: =IF(D22="","",IF(D22='Bank Transfers'!$L$15, AS22, AS22)) -> 20000 | B22: =IF(D22="","",AT22) -> 0 | C22: 1 | D22: =IF(W22<$X$7,"",W22) -> 2017-10-01 | E22: =IF(D22='Bank Transfers'!L15,'Bank Transfers'!H15,J22-M22-A22-B22) -> 142,474.5 | F22: =IFERROR(IF(D22='Bank Transfers'!L15,A22+B22-E22,A22+B22),"") -> 20,000.0 | G22: =SUMIFS('Trade Log'!$Z$15:$Z$26022,'Trade Log'!$Z$15:$Z$26022,">0",'Trade Log'!$AM$15:$AM$26022,"="&D22) -> 0 | H22: =SUMIFS('Trade Log'!$Z$15:$Z$26022,'Trade Log'!$Z$15:$Z$26022,"<0",'Trade Log'!$AM$15:$AM$26022,"="&D22) -> -3,543.0 | I22: =SUMIFS(Dividends!$G$15:$G$174,Dividends!$L$15:$L$174,D22,Dividends!$E$15:$E$174,"cash") -> 5,555.0 | J22: =J21 -> 164,486.5 | K22: =SUMIFS('Trade Log'!$T$15:$T$26022,'Trade Log'!$AM$15:$AM$26022,"="&D22) -> 1,653.6 | M22: =IFERROR(G22+H22+I22,"") -> 2,012.0 | N22: =IFERROR(M22/IF(COUNT(W22)=0,(E22+A22),E22),"") -> 1.41% | O22: =IFERROR(SUMIFS('Trade Log'!$AC$15:$AC$26022,'Trade Log'!$AM$15:$AM$26022,"="&D22),"") -> -2.19R | Q22: =IFERROR(AB22+AC22,"") -> 3 | R22: =IFERROR(AB22/(AB22+AC22),"") -> 0.0% | S22: =IFERROR(((AVERAGEIFS('Trade Log'!$AT$15:$AT$26022,'Trade Log'!$AN$15:$AN$26022,2,'Trade Log'!$AM$15:$AM$26022,"="&D22))),0) -> 0.0% | T22: =IFERROR(((AVERAGEIFS('Trade Log'!$AT$15:$AT$26022,'Trade Log'!$AN$15:$AN$26022,1,'Trade Log'!$AM$15:$AM$26022,"="&D22))),"") -> -2.5% | U22: =IF(D22="","",IF((AC22+AB22)=0,"",IFERROR((G22/AB22)/-(H22/AC22),0))) -> 0.0 | W22: =W4 -> 4300900.00% | Y22: =D22 -> 4300900.00% | Z22: =SUMIFS('Trade Log'!$K$15:$K$25947,'Trade Log'!$AM$15:$AM$25947,"="&D22) -> 278304 | AA22: =AA23 -> 144,486.53 | AB22: =SUMIFS('Trade Log'!$AN$15:$AN$26022,'Trade Log'!$AN$15:$AN$26022,"=2",'Trade Log'!$AM$15:$AM$26022,"="&D22)/2 -> 0 | AC22: =SUMIFS('Trade Log'!$AN$15:$AN$26022,'Trade Log'!$AN$15:$AN$26022,"=1",'Trade Log'!$AM$15:$AM$26022,"="&D22) -> 3 | AE22: =AE23 -> 164,487 | AG22: =A22 -> 20000 | AH22: =B22 -> 0 | AI22: =I22 -> 5555 | AJ22: =IFERROR(INDEX($Z$22:$Z$47,MATCH(W22,$Y$22:$Y$47,0)),0) -> 278304 | AL22: =IFERROR((J22-E22)/E22,"") -> 0.1544979929 | AS22: =SUMIFS('Bank Transfers'!$H$15:$H$514,'Bank Transfers'!$L$15:$L$514,D22,'Bank Transfers'!$E$15:$E$514,"deposit") -> 20000 | AT22: =SUMIFS('Bank Transfers'!$H$15:$H$514,'Bank Transfers'!$L$15:$L$514,D22,'Bank Transfers'!$E$15:$E$514,"withdraw") -> 0
A23: =IF(D23="","",IF(D23='Bank Transfers'!$L$15, AS23-E23, AS23)) -> 20000 | B23: 0 | C23: 1 | D23: 2017-10-01 | E23: =IF(D23="","",IF(D23='Bank Transfers'!$L$15,'Bank Transfers'!$H$15,J24)) -> 142,474.5 | F23: =IFERROR(A23+B23,"") -> 20,000.0 | G23: =SUMIFS(profitLoss,profitLoss,">0",dateCode,"="&D23) -> 0 | H23: =SUMIFS(profitLoss,profitLoss,"<0",dateCode,"="&D23) -> -3,543.0 | I23: =SUMIFS(Dividends!$G$15:$G$174,Dividends!$L$15:$L$174,D23,Dividends!$E$15:$E$174,"cash") -> 5,555.0 | J23: =IFERROR(IF(D23="","",SUM(E23:I23)+B23+A23)-F23,"") -> 164,486.5 | K23: =SUMIFS('Trade Log'!$T$15:$T$20100,dateCode,"="&D23) -> 1,653.6 | M23: 2,012.0 | N23: =IFERROR(M23/E23,"") -> 1.41% | O23: =IFERROR(SUMIFS('Trade Log'!$AC$15:$AC$20100,dateCode,"="&D23),"") -> -2.19R | Q23: 3 | R23: 0.0% | S23: =IFERROR(((AVERAGEIFS(profitPercent,stats,2,dateCode,"="&D23))),0) -> 0.0% | T23: =IFERROR(((AVERAGEIFS(profitPercent,stats,1,dateCode,"="&D23))),"") -> -2.5% | U23: =IF(D23="","",IF((AC23+AB23)=0,"",IFERROR(((G23/AB23)*R23)/-((H23/AC23)*(1-R23)),"NA"))) -> NA | W23: 4300900.00% | Y23: 4300900.00% | Z23: =SUMIFS('Trade Log'!$K$15:$K$20100,dateCode,"="&D23) -> 278304 | AA23: =SUM(M23:$M$48)+$E$21 -> 144,486.53 | AB23: =SUMIFS(stats,stats,"=2",dateCode,"="&D23)/2 -> 0 | AC23: =SUMIFS(stats,stats,"=1",dateCode,"="&D23) -> 3 | AE23: =IFERROR(INDEX($J$22:$J$47,MATCH(W23,$Y$22:$Y$47,0)),0) -> 164,486.53 | AG23: 20000 | AH23: 0 | AI23: 5555 | AJ23: 278304 | AL23: 0.1544979929 | AN23: =W23 -> 4300900.00% | AO23: =M23 -> 2,012.03 | AP23: =DATE(YEAR(AN23)-1,MONTH(AN23),DAY(AN23)) -> 4264400.00% | AQ23: =M35 -> 0 | AS23: =SUMIFS('Bank Transfers'!$H$15:$H$514,'Bank Transfers'!$L$15:$L$514,D23,'Bank Transfers'!$E$15:$E$514,"deposit") -> 20000 | AT23: =SUMIFS('Bank Transfers'!$H$15:$H$514,'Bank Transfers'!$L$15:$L$514,D23,'Bank Transfers'!$E$15:$E$514,"withdraw") -> 0
A24: =IF(D24="","",IF(D24='Bank Transfers'!$L$15, AS24-E24, AS24)) -> 0 | B24: 0 | C24: =C23+1 -> 2 | D24: 2017-09-01 | E24: =IF(D24="","",IF(D24='Bank Transfers'!$L$15,'Bank Transfers'!$H$15,J25)) -> 100,000.0 | F24: 0 | G24: 51,426.9 | H24: -8,952.4 | I24: =SUMIFS(Dividends!$G$15:$G$174,Dividends!$L$15:$L$174,D24,Dividends!$E$15:$E$174,"cash") -> 0 | J24: 142,474.5 | K24: =SUMIFS('Trade Log'!$T$15:$T$20100,dateCode,"="&D24) -> 8,526.2 | M24: 42,474.5 | N24: 42.47% | O24: =IFERROR(SUMIFS('Trade Log'!$AC$15:$AC$20100,dateCode,"="&D24),"") -> 37.37R | Q24: 18 | R24: 50.0% | S24: 15.5% | T24: -2.6% | U24: =IF(D24="","",IF((AC24+AB24)=0,"",IFERROR(((G24/AB24)*R24)/-((H24/AC24)*(1-R24)),"NA"))) -> 5.7 | W24: =EOMONTH(W23,-2)+1 -> 4297900.00% | Y24: 4297900.00% | Z24: =SUMIFS('Trade Log'!$K$15:$K$20100,dateCode,"="&D24) -> 1421947 | AA24: =SUM(M24:$M$48)+$E$21 -> 142,474.51 | AB24: 9 | AC24: 9 | AE24: 142,474.51 | AG24: 0 | AH24: 0 | AI24: 0 | AJ24: 1421947 | AL24: 0.4247450915 | AN24: 4297900.00% | AO24: 42,474.51 | AP24: =DATE(YEAR(AN24)-1,MONTH(AN24),DAY(AN24)) -> 4261400.00% | AQ24: 0 | AS24: =SUMIFS('Bank Transfers'!$H$15:$H$514,'Bank Transfers'!$L$15:$L$514,D24,'Bank Transfers'!$E$15:$E$514,"deposit") -> 100000 | AT24: =SUMIFS('Bank Transfers'!$H$15:$H$514,'Bank Transfers'!$L$15:$L$514,D24,'Bank Transfers'!$E$15:$E$514,"withdraw") -> 0
A25: =IF(D25="","",IF(D25='Bank Transfers'!$L$15, AS25-E25, AS25)) ->  | C25: 3 | E25: =IF(D25="","",IF(D25='Bank Transfers'!$L$15,'Bank Transfers'!$H$15,J26)) ->  | G25: 0 | H25: 0.0 | I25: =SUMIFS(Dividends!$G$15:$G$174,Dividends!$L$15:$L$174,D25,Dividends!$E$15:$E$174,"cash") -> 0 | K25: =SUMIFS('Trade Log'!$T$15:$T$20100,dateCode,"="&D25) -> 0 | M25: 0.0 | O25: =IFERROR(SUMIFS('Trade Log'!$AC$15:$AC$20100,dateCode,"="&D25),"") -> 0.00R | Q25: 0 | S25: 0.0% | W25: 4294800.00% | Z25: =SUMIFS('Trade Log'!$K$15:$K$20100,dateCode,"="&D25) -> 0 | AA25: =SUM(M25:$M$48)+$E$21 -> 100,000.00 | AB25: 0 | AC25: 0 | AE25: 0 | AI25: 0 | AJ25: 0 | AN25: 4294800.00% | AO25: 0 | AP25: 4258300.00% | AQ25: 0 | AS25: =SUMIFS('Bank Transfers'!$H$15:$H$514,'Bank Transfers'!$L$15:$L$514,D25,'Bank Transfers'!$E$15:$E$514,"deposit") -> 0 | AT25: =SUMIFS('Bank Transfers'!$H$15:$H$514,'Bank Transfers'!$L$15:$L$514,D25,'Bank Transfers'!$E$15:$E$514,"withdraw") -> 0
A26: =IF(D26="","",IF(D26='Bank Transfers'!$L$15, AS26-E26, AS26)) ->  | C26: 4 | E26: =IF(D26="","",IF(D26='Bank Transfers'!$L$15,'Bank Transfers'!$H$15,J27)) ->  | G26: 0 | H26: 0.0 | I26: =SUMIFS(Dividends!$G$15:$G$174,Dividends!$L$15:$L$174,D26,Dividends!$E$15:$E$174,"cash") -> 0 | J26: =IFERROR(IF(D26="","",SUM(E26:I26)+B26+A26)-F26,"") ->  | K26: =SUMIFS('Trade Log'!$T$15:$T$20100,dateCode,"="&D26) -> 0 | M26: 0.0 | O26: =IFERROR(SUMIFS('Trade Log'!$AC$15:$AC$20100,dateCode,"="&D26),"") -> 0.00R | Q26: 0 | S26: 0.0% | W26: 4291700.00% | Z26: =SUMIFS('Trade Log'!$K$15:$K$20100,dateCode,"="&D26) -> 0 | AA26: =SUM(M26:$M$48)+$E$21 -> 100,000.00 | AB26: 0 | AC26: 0 | AE26: 0 | AI26: 0 | AJ26: 0 | AN26: 4291700.00% | AO26: 0 | AP26: 4255200.00% | AQ26: 0 | AS26: =SUMIFS('Bank Transfers'!$H$15:$H$514,'Bank Transfers'!$L$15:$L$514,D26,'Bank Transfers'!$E$15:$E$514,"deposit") -> 0 | AT26: =SUMIFS('Bank Transfers'!$H$15:$H$514,'Bank Transfers'!$L$15:$L$514,D26,'Bank Transfers'!$E$15:$E$514,"withdraw") -> 0
A27: =IF(D27="","",IF(D27='Bank Transfers'!$L$15, AS27-E27, AS27)) ->  | C27: 5 | E27: =IF(D27="","",IF(D27='Bank Transfers'!$L$15,'Bank Transfers'!$H$15,J28)) ->  | G27: 0 | H27: 0.0 | I27: =SUMIFS(Dividends!$G$15:$G$174,Dividends!$L$15:$L$174,D27,Dividends!$E$15:$E$174,"cash") -> 0 | K27: =SUMIFS('Trade Log'!$T$15:$T$20100,dateCode,"="&D27) -> 0 | M27: 0.0 | O27: =IFERROR(SUMIFS('Trade Log'!$AC$15:$AC$20100,dateCode,"="&D27),"") -> 0.00R | Q27: =IFERROR(AB27+AC27,"") -> 0 | S27: 0.0% | W27: 4288700.00% | Z27: =SUMIFS('Trade Log'!$K$15:$K$20100,dateCode,"="&D27) -> 0 | AA27: =SUM(M27:$M$48)+$E$21 -> 100,000.00 | AB27: 0 | AC27: 0 | AE27: 0 | AI27: 0 | AJ27: 0 | AN27: 4288700.00% | AO27: 0 | AP27: 4252200.00% | AQ27: 0 | AS27: =SUMIFS('Bank Transfers'!$H$15:$H$514,'Bank Transfers'!$L$15:$L$514,D27,'Bank Transfers'!$E$15:$E$514,"deposit") -> 0 | AT27: =SUMIFS('Bank Transfers'!$H$15:$H$514,'Bank Transfers'!$L$15:$L$514,D27,'Bank Transfers'!$E$15:$E$514,"withdraw") -> 0
A28: =IF(D28="","",IF(D28='Bank Transfers'!$L$15, AS28-E28, AS28)) ->  | C28: 6 | E28: =IF(D28="","",IF(D28='Bank Transfers'!$L$15,'Bank Transfers'!$H$15,J29)) ->  | G28: 0 | H28: 0.0 | I28: =SUMIFS(Dividends!$G$15:$G$174,Dividends!$L$15:$L$174,D28,Dividends!$E$15:$E$174,"cash") -> 0 | K28: =SUMIFS('Trade Log'!$T$15:$T$20100,dateCode,"="&D28) -> 0 | M28: 0.0 | O28: =IFERROR(SUMIFS('Trade Log'!$AC$15:$AC$20100,dateCode,"="&D28),"") -> 0.00R | Q28: =IFERROR(AB28+AC28,"") -> 0 | S28: 0.0% | W28: 4285600.00% | Z28: =SUMIFS('Trade Log'!$K$15:$K$20100,dateCode,"="&D28) -> 0 | AA28: =SUM(M28:$M$48)+$E$21 -> 100,000.00 | AB28: 0 | AC28: 0 | AE28: 0 | AI28: 0 | AJ28: 0 | AN28: 4285600.00% | AO28: 0 | AP28: 4249100.00% | AQ28: 0 | AS28: =SUMIFS('Bank Transfers'!$H$15:$H$514,'Bank Transfers'!$L$15:$L$514,D28,'Bank Transfers'!$E$15:$E$514,"deposit") -> 0 | AT28: =SUMIFS('Bank Transfers'!$H$15:$H$514,'Bank Transfers'!$L$15:$L$514,D28,'Bank Transfers'!$E$15:$E$514,"withdraw") -> 0
A29: =IF(D29="","",IF(D29='Bank Transfers'!$L$15, AS29-E29, AS29)) ->  | C29: 7 | E29: =IF(D29="","",IF(D29='Bank Transfers'!$L$15,'Bank Transfers'!$H$15,J30)) ->  | G29: 0 | H29: 0.0 | I29: =SUMIFS(Dividends!$G$15:$G$174,Dividends!$L$15:$L$174,D29,Dividends!$E$15:$E$174,"cash") -> 0 | K29: =SUMIFS('Trade Log'!$T$15:$T$20100,dateCode,"="&D29) -> 0 | M29: 0.0 | O29: =IFERROR(SUMIFS('Trade Log'!$AC$15:$AC$20100,dateCode,"="&D29),"") -> 0.00R | Q29: 0 | S29: 0.0% | W29: 4282600.00% | Z29: =SUMIFS('Trade Log'!$K$15:$K$20100,dateCode,"="&D29) -> 0 | AA29: =SUM(M29:$M$48)+$E$21 -> 100,000.00 | AB29: 0 | AC29: 0 | AE29: 0 | AI29: 0 | AJ29: 0 | AN29: 4282600.00% | AO29: 0 | AP29: 4246100.00% | AQ29: 0 | AS29: =SUMIFS('Bank Transfers'!$H$15:$H$514,'Bank Transfers'!$L$15:$L$514,D29,'Bank Transfers'!$E$15:$E$514,"deposit") -> 0 | AT29: =SUMIFS('Bank Transfers'!$H$15:$H$514,'Bank Transfers'!$L$15:$L$514,D29,'Bank Transfers'!$E$15:$E$514,"withdraw") -> 0
A30: =IF(D30="","",IF(D30='Bank Transfers'!$L$15, AS30-E30, AS30)) ->  | C30: 8 | E30: =IF(D30="","",IF(D30='Bank Transfers'!$L$15,'Bank Transfers'!$H$15,J31)) ->  | G30: 0 | H30: 0.0 | I30: =SUMIFS(Dividends!$G$15:$G$174,Dividends!$L$15:$L$174,D30,Dividends!$E$15:$E$174,"cash") -> 0 | K30: =SUMIFS('Trade Log'!$T$15:$T$20100,dateCode,"="&D30) -> 0 | M30: 0.0 | O30: =IFERROR(SUMIFS('Trade Log'!$AC$15:$AC$20100,dateCode,"="&D30),"") -> 0.00R | Q30: 0 | S30: 0.0% | W30: 4279500.00% | Z30: =SUMIFS('Trade Log'!$K$15:$K$20100,dateCode,"="&D30) -> 0 | AA30: =SUM(M30:$M$48)+$E$21 -> 100,000.00 | AB30: 0 | AC30: 0 | AE30: 0 | AI30: 0 | AJ30: 0 | AN30: 4279500.00% | AO30: 0 | AP30: 4243000.00% | AQ30: 0 | AS30: =SUMIFS('Bank Transfers'!$H$15:$H$514,'Bank Transfers'!$L$15:$L$514,D30,'Bank Transfers'!$E$15:$E$514,"deposit") -> 0 | AT30: =SUMIFS('Bank Transfers'!$H$15:$H$514,'Bank Transfers'!$L$15:$L$514,D30,'Bank Transfers'!$E$15:$E$514,"withdraw") -> 0
A31: =IF(D31="","",IF(D31='Bank Transfers'!$L$15, AS31-E31, AS31)) ->  | C31: 9 | E31: =IF(D31="","",IF(D31='Bank Transfers'!$L$15,'Bank Transfers'!$H$15,J32)) ->  | G31: 0 | H31: 0.0 | I31: =SUMIFS(Dividends!$G$15:$G$174,Dividends!$L$15:$L$174,D31,Dividends!$E$15:$E$174,"cash") -> 0 | K31: =SUMIFS('Trade Log'!$T$15:$T$20100,dateCode,"="&D31) -> 0 | M31: 0.0 | O31: =IFERROR(SUMIFS('Trade Log'!$AC$15:$AC$20100,dateCode,"="&D31),"") -> 0.00R | Q31: 0 | S31: 0.0% | W31: 4276700.00% | Z31: =SUMIFS('Trade Log'!$K$15:$K$20100,dateCode,"="&D31) -> 0 | AA31: =SUM(M31:$M$48)+$E$21 -> 100,000.00 | AB31: 0 | AC31: 0 | AE31: 0 | AI31: 0 | AJ31: 0 | AN31: 4276700.00% | AO31: 0 | AP31: 4240100.00% | AQ31: 0 | AS31: =SUMIFS('Bank Transfers'!$H$15:$H$514,'Bank Transfers'!$L$15:$L$514,D31,'Bank Transfers'!$E$15:$E$514,"deposit") -> 0 | AT31: =SUMIFS('Bank Transfers'!$H$15:$H$514,'Bank Transfers'!$L$15:$L$514,D31,'Bank Transfers'!$E$15:$E$514,"withdraw") -> 0
A32: =IF(D32="","",IF(D32='Bank Transfers'!$L$15, AS32-E32, AS32)) ->  | C32: 10 | E32: =IF(D32="","",IF(D32='Bank Transfers'!$L$15,'Bank Transfers'!$H$15,J33)) ->  | G32: 0 | H32: 0.0 | I32: =SUMIFS(Dividends!$G$15:$G$174,Dividends!$L$15:$L$174,D32,Dividends!$E$15:$E$174,"cash") -> 0 | K32: =SUMIFS('Trade Log'!$T$15:$T$20100,dateCode,"="&D32) -> 0 | M32: 0.0 | O32: =IFERROR(SUMIFS('Trade Log'!$AC$15:$AC$20100,dateCode,"="&D32),"") -> 0.00R | Q32: 0 | S32: 0.0% | W32: 4273600.00% | Z32: =SUMIFS('Trade Log'!$K$15:$K$20100,dateCode,"="&D32) -> 0 | AA32: =SUM(M32:$M$48)+$E$21 -> 100,000.00 | AB32: 0 | AC32: 0 | AE32: 0 | AI32: 0 | AJ32: 0 | AN32: 4273600.00% | AO32: 0 | AP32: 4237000.00% | AQ32: 0 | AS32: =SUMIFS('Bank Transfers'!$H$15:$H$514,'Bank Transfers'!$L$15:$L$514,D32,'Bank Transfers'!$E$15:$E$514,"deposit") -> 0 | AT32: =SUMIFS('Bank Transfers'!$H$15:$H$514,'Bank Transfers'!$L$15:$L$514,D32,'Bank Transfers'!$E$15:$E$514,"withdraw") -> 0
A33: =IF(D33="","",IF(D33='Bank Transfers'!$L$15, AS33-E33, AS33)) ->  | C33: 11 | E33: =IF(D33="","",IF(D33='Bank Transfers'!$L$15,'Bank Transfers'!$H$15,J34)) ->  | G33: 0 | H33: 0.0 | I33: =SUMIFS(Dividends!$G$15:$G$174,Dividends!$L$15:$L$174,D33,Dividends!$E$15:$E$174,"cash") -> 0 | K33: =SUMIFS('Trade Log'!$T$15:$T$20100,dateCode,"="&D33) -> 0 | M33: 0.0 | O33: =IFERROR(SUMIFS('Trade Log'!$AC$15:$AC$20100,dateCode,"="&D33),"") -> 0.00R | Q33: 0 | S33: 0.0% | W33: 4270500.00% | Z33: =SUMIFS('Trade Log'!$K$15:$K$20100,dateCode,"="&D33) -> 0 | AA33: =SUM(M33:$M$48)+$E$21 -> 100,000.00 | AB33: 0 | AC33: 0 | AE33: 0 | AI33: 0 | AJ33: 0 | AN33: 4270500.00% | AO33: 0 | AP33: 4233900.00% | AQ33: 0 | AS33: =SUMIFS('Bank Transfers'!$H$15:$H$514,'Bank Transfers'!$L$15:$L$514,D33,'Bank Transfers'!$E$15:$E$514,"deposit") -> 0 | AT33: =SUMIFS('Bank Transfers'!$H$15:$H$514,'Bank Transfers'!$L$15:$L$514,D33,'Bank Transfers'!$E$15:$E$514,"withdraw") -> 0
A34: =IF(D34="","",IF(D34='Bank Transfers'!$L$15, AS34-E34, AS34)) ->  | C34: 12 | E34: =IF(D34="","",IF(D34='Bank Transfers'!$L$15,'Bank Transfers'!$H$15,J35)) ->  | G34: 0 | H34: 0.0 | I34: =SUMIFS(Dividends!$G$15:$G$174,Dividends!$L$15:$L$174,D34,Dividends!$E$15:$E$174,"cash") -> 0 | K34: =SUMIFS('Trade Log'!$T$15:$T$20100,dateCode,"="&D34) -> 0 | M34: 0.0 | O34: =IFERROR(SUMIFS('Trade Log'!$AC$15:$AC$20100,dateCode,"="&D34),"") -> 0.00R | Q34: 0 | S34: 0.0% | W34: 42675 | Z34: =SUMIFS('Trade Log'!$K$15:$K$20100,dateCode,"="&D34) -> 0 | AA34: =SUM(M34:$M$48)+$E$21 -> 100,000.00 | AB34: 0 | AC34: 0 | AE34: 0 | AI34: 0 | AJ34: 0 | AN34: 4267500.00% | AO34: 0 | AP34: 4230900.00% | AQ34: 0 | AS34: =SUMIFS('Bank Transfers'!$H$15:$H$514,'Bank Transfers'!$L$15:$L$514,D34,'Bank Transfers'!$E$15:$E$514,"deposit") -> 0 | AT34: =SUMIFS('Bank Transfers'!$H$15:$H$514,'Bank Transfers'!$L$15:$L$514,D34,'Bank Transfers'!$E$15:$E$514,"withdraw") -> 0
A35: =IF(D35="","",IF(D35='Bank Transfers'!$L$15, AS35-E35, AS35)) ->  | C35: 13 | E35: =IF(D35="","",IF(D35='Bank Transfers'!$L$15,'Bank Transfers'!$H$15,J36)) ->  | G35: 0 | H35: 0.0 | I35: =SUMIFS(Dividends!$G$15:$G$174,Dividends!$L$15:$L$174,D35,Dividends!$E$15:$E$174,"cash") -> 0 | K35: =SUMIFS('Trade Log'!$T$15:$T$20100,dateCode,"="&D35) -> 0 | M35: 0.0 | O35: =IFERROR(SUMIFS('Trade Log'!$AC$15:$AC$20100,dateCode,"="&D35),"") -> 0.00R | Q35: 0 | S35: 0.0% | W35: 42644 | Z35: =SUMIFS('Trade Log'!$K$15:$K$20100,dateCode,"="&D35) -> 0 | AA35: =SUM(M35:$M$48)+$E$21 -> 100,000.00 | AB35: 0 | AC35: 0 | AE35: 0 | AI35: 0 | AJ35: 0 | AS35: =SUMIFS('Bank Transfers'!$H$15:$H$514,'Bank Transfers'!$L$15:$L$514,D35,'Bank Transfers'!$E$15:$E$514,"deposit") -> 0 | AT35: =SUMIFS('Bank Transfers'!$H$15:$H$514,'Bank Transfers'!$L$15:$L$514,D35,'Bank Transfers'!$E$15:$E$514,"withdraw") -> 0
A36: =IF(D36="","",IF(D36='Bank Transfers'!$L$15, AS36-E36, AS36)) ->  | C36: 14 | E36: =IF(D36="","",IF(D36='Bank Transfers'!$L$15,'Bank Transfers'!$H$15,J37)) ->  | G36: 0 | H36: 0.0 | I36: =SUMIFS(Dividends!$G$15:$G$174,Dividends!$L$15:$L$174,D36,Dividends!$E$15:$E$174,"cash") -> 0 | K36: =SUMIFS('Trade Log'!$T$15:$T$20100,dateCode,"="&D36) -> 0 | M36: 0.0 | O36: =IFERROR(SUMIFS('Trade Log'!$AC$15:$AC$20100,dateCode,"="&D36),"") -> 0.00R | Q36: 0 | S36: 0.0% | W36: 42614 | Z36: =SUMIFS('Trade Log'!$K$15:$K$20100,dateCode,"="&D36) -> 0 | AA36: =SUM(M36:$M$48)+$E$21 -> 100,000.00 | AB36: 0 | AC36: 0 | AE36: 0 | AI36: 0 | AJ36: 0 | AS36: =SUMIFS('Bank Transfers'!$H$15:$H$514,'Bank Transfers'!$L$15:$L$514,D36,'Bank Transfers'!$E$15:$E$514,"deposit") -> 0 | AT36: =SUMIFS('Bank Transfers'!$H$15:$H$514,'Bank Transfers'!$L$15:$L$514,D36,'Bank Transfers'!$E$15:$E$514,"withdraw") -> 0
A37: =IF(D37="","",IF(D37='Bank Transfers'!$L$15, AS37-E37, AS37)) ->  | C37: 15 | E37: =IF(D37="","",IF(D37='Bank Transfers'!$L$15,'Bank Transfers'!$H$15,J38)) ->  | G37: 0 | H37: 0.0 | I37: =SUMIFS(Dividends!$G$15:$G$174,Dividends!$L$15:$L$174,D37,Dividends!$E$15:$E$174,"cash") -> 0 | K37: =SUMIFS('Trade Log'!$T$15:$T$20100,dateCode,"="&D37) -> 0 | M37: 0.0 | O37: =IFERROR(SUMIFS('Trade Log'!$AC$15:$AC$20100,dateCode,"="&D37),"") -> 0.00R | Q37: 0 | S37: 0.0% | W37: 42583 | Z37: =SUMIFS('Trade Log'!$K$15:$K$20100,dateCode,"="&D37) -> 0 | AA37: =SUM(M37:$M$48)+$E$21 -> 100,000.00 | AB37: 0 | AC37: 0 | AE37: 0 | AI37: 0 | AJ37: 0 | AS37: =SUMIFS('Bank Transfers'!$H$15:$H$514,'Bank Transfers'!$L$15:$L$514,D37,'Bank Transfers'!$E$15:$E$514,"deposit") -> 0 | AT37: =SUMIFS('Bank Transfers'!$H$15:$H$514,'Bank Transfers'!$L$15:$L$514,D37,'Bank Transfers'!$E$15:$E$514,"withdraw") -> 0
A38: =IF(D38="","",IF(D38='Bank Transfers'!$L$15, AS38-E38, AS38)) ->  | C38: 16 | E38: =IF(D38="","",IF(D38='Bank Transfers'!$L$15,'Bank Transfers'!$H$15,J39)) ->  | G38: 0 | H38: 0.0 | I38: =SUMIFS(Dividends!$G$15:$G$174,Dividends!$L$15:$L$174,D38,Dividends!$E$15:$E$174,"cash") -> 0 | K38: =SUMIFS('Trade Log'!$T$15:$T$20100,dateCode,"="&D38) -> 0 | M38: 0.0 | O38: =IFERROR(SUMIFS('Trade Log'!$AC$15:$AC$20100,dateCode,"="&D38),"") -> 0.00R | Q38: 0 | S38: 0.0% | W38: 42552 | Z38: =SUMIFS('Trade Log'!$K$15:$K$20100,dateCode,"="&D38) -> 0 | AA38: =SUM(M38:$M$48)+$E$21 -> 100,000.00 | AB38: 0 | AC38: 0 | AE38: 0 | AI38: 0 | AJ38: 0 | AS38: =SUMIFS('Bank Transfers'!$H$15:$H$514,'Bank Transfers'!$L$15:$L$514,D38,'Bank Transfers'!$E$15:$E$514,"deposit") -> 0 | AT38: =SUMIFS('Bank Transfers'!$H$15:$H$514,'Bank Transfers'!$L$15:$L$514,D38,'Bank Transfers'!$E$15:$E$514,"withdraw") -> 0
A39: =IF(D39="","",IF(D39='Bank Transfers'!$L$15, AS39-E39, AS39)) ->  | C39: 17 | E39: =IF(D39="","",IF(D39='Bank Transfers'!$L$15,'Bank Transfers'!$H$15,J40)) ->  | G39: 0 | H39: 0.0 | I39: =SUMIFS(Dividends!$G$15:$G$174,Dividends!$L$15:$L$174,D39,Dividends!$E$15:$E$174,"cash") -> 0 | K39: =SUMIFS('Trade Log'!$T$15:$T$20100,dateCode,"="&D39) -> 0 | M39: 0.0 | O39: =IFERROR(SUMIFS('Trade Log'!$AC$15:$AC$20100,dateCode,"="&D39),"") -> 0.00R | Q39: 0 | S39: 0.0% | W39: 42522 | Z39: =SUMIFS('Trade Log'!$K$15:$K$20100,dateCode,"="&D39) -> 0 | AA39: =SUM(M39:$M$48)+$E$21 -> 100,000.00 | AB39: 0 | AC39: 0 | AE39: 0 | AI39: 0 | AJ39: 0 | AS39: =SUMIFS('Bank Transfers'!$H$15:$H$514,'Bank Transfers'!$L$15:$L$514,D39,'Bank Transfers'!$E$15:$E$514,"deposit") -> 0 | AT39: =SUMIFS('Bank Transfers'!$H$15:$H$514,'Bank Transfers'!$L$15:$L$514,D39,'Bank Transfers'!$E$15:$E$514,"withdraw") -> 0
A40: =IF(D40="","",IF(D40='Bank Transfers'!$L$15, AS40-E40, AS40)) ->  | C40: 18 | E40: =IF(D40="","",IF(D40='Bank Transfers'!$L$15,'Bank Transfers'!$H$15,J41)) ->  | G40: 0 | H40: 0.0 | I40: =SUMIFS(Dividends!$G$15:$G$174,Dividends!$L$15:$L$174,D40,Dividends!$E$15:$E$174,"cash") -> 0 | K40: =SUMIFS('Trade Log'!$T$15:$T$20100,dateCode,"="&D40) -> 0 | M40: 0.0 | O40: =IFERROR(SUMIFS('Trade Log'!$AC$15:$AC$20100,dateCode,"="&D40),"") -> 0.00R | Q40: 0 | S40: 0.0% | W40: 42491 | Z40: =SUMIFS('Trade Log'!$K$15:$K$20100,dateCode,"="&D40) -> 0 | AA40: =SUM(M40:$M$48)+$E$21 -> 100,000.00 | AB40: 0 | AC40: 0 | AE40: 0 | AI40: 0 | AJ40: 0 | AS40: =SUMIFS('Bank Transfers'!$H$15:$H$514,'Bank Transfers'!$L$15:$L$514,D40,'Bank Transfers'!$E$15:$E$514,"deposit") -> 0 | AT40: =SUMIFS('Bank Transfers'!$H$15:$H$514,'Bank Transfers'!$L$15:$L$514,D40,'Bank Transfers'!$E$15:$E$514,"withdraw") -> 0
A41: =IF(D41="","",IF(D41='Bank Transfers'!$L$15, AS41-E41, AS41)) ->  | C41: 19 | E41: =IF(D41="","",IF(D41='Bank Transfers'!$L$15,'Bank Transfers'!$H$15,J42)) ->  | G41: 0 | H41: 0.0 | I41: =SUMIFS(Dividends!$G$15:$G$174,Dividends!$L$15:$L$174,D41,Dividends!$E$15:$E$174,"cash") -> 0 | K41: =SUMIFS('Trade Log'!$T$15:$T$20100,dateCode,"="&D41) -> 0 | M41: 0.0 | O41: =IFERROR(SUMIFS('Trade Log'!$AC$15:$AC$20100,dateCode,"="&D41),"") -> 0.00R | Q41: 0 | S41: 0.0% | W41: 42461 | Z41: =SUMIFS('Trade Log'!$K$15:$K$20100,dateCode,"="&D41) -> 0 | AA41: =SUM(M41:$M$48)+$E$21 -> 100,000.00 | AB41: 0 | AC41: 0 | AE41: 0 | AI41: 0 | AJ41: 0 | AS41: =SUMIFS('Bank Transfers'!$H$15:$H$514,'Bank Transfers'!$L$15:$L$514,D41,'Bank Transfers'!$E$15:$E$514,"deposit") -> 0 | AT41: =SUMIFS('Bank Transfers'!$H$15:$H$514,'Bank Transfers'!$L$15:$L$514,D41,'Bank Transfers'!$E$15:$E$514,"withdraw") -> 0
A42: =IF(D42="","",IF(D42='Bank Transfers'!$L$15, AS42-E42, AS42)) ->  | C42: 20 | E42: =IF(D42="","",IF(D42='Bank Transfers'!$L$15,'Bank Transfers'!$H$15,J43)) ->  | G42: 0 | H42: 0.0 | I42: =SUMIFS(Dividends!$G$15:$G$174,Dividends!$L$15:$L$174,D42,Dividends!$E$15:$E$174,"cash") -> 0 | K42: =SUMIFS('Trade Log'!$T$15:$T$20100,dateCode,"="&D42) -> 0 | M42: 0.0 | O42: =IFERROR(SUMIFS('Trade Log'!$AC$15:$AC$20100,dateCode,"="&D42),"") -> 0.00R | Q42: 0 | S42: 0.0% | W42: 42430 | Z42: =SUMIFS('Trade Log'!$K$15:$K$20100,dateCode,"="&D42) -> 0 | AA42: =SUM(M42:$M$48)+$E$21 -> 100,000.00 | AB42: 0 | AC42: 0 | AE42: 0 | AI42: 0 | AJ42: 0 | AS42: =SUMIFS('Bank Transfers'!$H$15:$H$514,'Bank Transfers'!$L$15:$L$514,D42,'Bank Transfers'!$E$15:$E$514,"deposit") -> 0 | AT42: =SUMIFS('Bank Transfers'!$H$15:$H$514,'Bank Transfers'!$L$15:$L$514,D42,'Bank Transfers'!$E$15:$E$514,"withdraw") -> 0
A43: =IF(D43="","",IF(D43='Bank Transfers'!$L$15, AS43-E43, AS43)) ->  | C43: 21 | E43: =IF(D43="","",IF(D43='Bank Transfers'!$L$15,'Bank Transfers'!$H$15,J44)) ->  | G43: 0 | H43: 0.0 | I43: =SUMIFS(Dividends!$G$15:$G$174,Dividends!$L$15:$L$174,D43,Dividends!$E$15:$E$174,"cash") -> 0 | K43: =SUMIFS('Trade Log'!$T$15:$T$20100,dateCode,"="&D43) -> 0 | M43: 0.0 | O43: =IFERROR(SUMIFS('Trade Log'!$AC$15:$AC$20100,dateCode,"="&D43),"") -> 0.00R | Q43: 0 | S43: 0.0% | W43: 42401 | Z43: =SUMIFS('Trade Log'!$K$15:$K$20100,dateCode,"="&D43) -> 0 | AA43: =SUM(M43:$M$48)+$E$21 -> 100,000.00 | AB43: 0 | AC43: 0 | AE43: 0 | AI43: 0 | AJ43: 0 | AS43: =SUMIFS('Bank Transfers'!$H$15:$H$514,'Bank Transfers'!$L$15:$L$514,D43,'Bank Transfers'!$E$15:$E$514,"deposit") -> 0 | AT43: =SUMIFS('Bank Transfers'!$H$15:$H$514,'Bank Transfers'!$L$15:$L$514,D43,'Bank Transfers'!$E$15:$E$514,"withdraw") -> 0
A44: =IF(D44="","",IF(D44='Bank Transfers'!$L$15, AS44-E44, AS44)) ->  | C44: 22 | E44: =IF(D44="","",IF(D44='Bank Transfers'!$L$15,'Bank Transfers'!$H$15,J45)) ->  | G44: 0 | H44: 0.0 | I44: =SUMIFS(Dividends!$G$15:$G$174,Dividends!$L$15:$L$174,D44,Dividends!$E$15:$E$174,"cash") -> 0 | K44: =SUMIFS('Trade Log'!$T$15:$T$20100,dateCode,"="&D44) -> 0 | M44: 0.0 | O44: =IFERROR(SUMIFS('Trade Log'!$AC$15:$AC$20100,dateCode,"="&D44),"") -> 0.00R | Q44: 0 | S44: 0.0% | W44: 42370 | Z44: =SUMIFS('Trade Log'!$K$15:$K$20100,dateCode,"="&D44) -> 0 | AA44: =SUM(M44:$M$48)+$E$21 -> 100,000.00 | AB44: 0 | AC44: 0 | AE44: 0 | AI44: 0 | AJ44: 0 | AS44: =SUMIFS('Bank Transfers'!$H$15:$H$514,'Bank Transfers'!$L$15:$L$514,D44,'Bank Transfers'!$E$15:$E$514,"deposit") -> 0 | AT44: =SUMIFS('Bank Transfers'!$H$15:$H$514,'Bank Transfers'!$L$15:$L$514,D44,'Bank Transfers'!$E$15:$E$514,"withdraw") -> 0
A45: =IF(D45="","",IF(D45='Bank Transfers'!$L$15, AS45-E45, AS45)) ->  | C45: 23 | E45: =IF(D45="","",IF(D45='Bank Transfers'!$L$15,'Bank Transfers'!$H$15,J46)) ->  | G45: 0 | H45: 0.0 | I45: =SUMIFS(Dividends!$G$15:$G$174,Dividends!$L$15:$L$174,D45,Dividends!$E$15:$E$174,"cash") -> 0 | K45: =SUMIFS('Trade Log'!$T$15:$T$20100,dateCode,"="&D45) -> 0 | M45: 0.0 | O45: =IFERROR(SUMIFS('Trade Log'!$AC$15:$AC$20100,dateCode,"="&D45),"") -> 0.00R | Q45: 0 | S45: 0.0% | W45: 42339 | Z45: =SUMIFS('Trade Log'!$K$15:$K$20100,dateCode,"="&D45) -> 0 | AA45: =SUM(M45:$M$48)+$E$21 -> 100,000.00 | AB45: 0 | AC45: 0 | AE45: 0 | AI45: 0 | AJ45: 0 | AS45: =SUMIFS('Bank Transfers'!$H$15:$H$514,'Bank Transfers'!$L$15:$L$514,D45,'Bank Transfers'!$E$15:$E$514,"deposit") -> 0 | AT45: =SUMIFS('Bank Transfers'!$H$15:$H$514,'Bank Transfers'!$L$15:$L$514,D45,'Bank Transfers'!$E$15:$E$514,"withdraw") -> 0
A46: =IF(D46="","",IF(D46='Bank Transfers'!$L$15, AS46-E46, AS46)) ->  | B46: =IF(D46="","",AT46) ->  | C46: 24 | D46: =IF(W46<$X$7,"",W46) ->  | E46: =IF(D46="","",IF(D46='Bank Transfers'!$L$15,'Bank Transfers'!$H$15,J47)) ->  | F46: =IFERROR(A46+B46,"") ->  | G46: 0 | H46: 0.0 | I46: =SUMIFS(Dividends!$G$15:$G$174,Dividends!$L$15:$L$174,D46,Dividends!$E$15:$E$174,"cash") -> 0 | K46: =SUMIFS('Trade Log'!$T$15:$T$20100,dateCode,"="&D46) -> 0 | M46: =IFERROR(G46+H46+I46,"") -> 0.0 | N46: =IFERROR(M46/E46,"") ->  | O46: =IFERROR(SUMIFS('Trade Log'!$AC$15:$AC$20100,dateCode,"="&D46),"") -> 0.00R | Q46: =IFERROR(AB46+AC46,"") -> 0 | R46: =IFERROR(AB46/(AB46+AC46),"") ->  | S46: 0.0% | W46: 42309 | Y46: =D46 ->  | Z46: =SUMIFS('Trade Log'!$K$15:$K$20100,dateCode,"="&D46) -> 0 | AA46: =SUM(M46:$M$48)+$E$21 -> 100,000.00 | AB46: 0 | AC46: 0 | AE46: =IFERROR(INDEX($J$22:$J$47,MATCH(W46,$Y$22:$Y$47,0)),0) -> 0 | AG46: =A46 ->  | AH46: =B46 ->  | AI46: =I46 -> 0 | AJ46: =IFERROR(INDEX($Z$22:$Z$47,MATCH(W46,$Y$22:$Y$47,0)),0) -> 0 | AL46: =IFERROR((J46-E46)/E46,"") ->  | AS46: =SUMIFS('Bank Transfers'!$H$15:$H$514,'Bank Transfers'!$L$15:$L$514,D46,'Bank Transfers'!$E$15:$E$514,"deposit") -> 0 | AT46: =SUMIFS('Bank Transfers'!$H$15:$H$514,'Bank Transfers'!$L$15:$L$514,D46,'Bank Transfers'!$E$15:$E$514,"withdraw") -> 0
A47: =IF(D47="","",IF(D47='Bank Transfers'!$L$15, AS47-E47, AS47)) ->  | C47: 25 | E47: =IF(D47="",0,J48) -> 0 | G47: 0 | H47: 0.0 | I47: =SUMIFS(Dividends!$G$15:$G$174,Dividends!$L$15:$L$174,D47,Dividends!$E$15:$E$174,"cash") -> 0 | K47: =SUMIFS('Trade Log'!$T$15:$T$20100,dateCode,"="&D47) -> 0 | M47: 0.0 | O47: =IFERROR(SUMIFS('Trade Log'!$AC$15:$AC$20100,dateCode,"="&D47),"") -> 0.00R | Q47: 0 | S47: 0.0% | W47: 42278 | Z47: =SUMIFS('Trade Log'!$K$15:$K$20100,dateCode,"="&D47) -> 0 | AA47: =SUM(M47:$M$48)+$E$21 -> 100,000.00 | AB47: 0 | AC47: 0 | AE47: 0 | AI47: 0 | AJ47: 0 | AS47: =SUMIFS('Bank Transfers'!$H$15:$H$514,'Bank Transfers'!$L$15:$L$514,D47,'Bank Transfers'!$E$15:$E$514,"deposit") -> 0 | AT47: =SUMIFS('Bank Transfers'!$H$15:$H$514,'Bank Transfers'!$L$15:$L$514,D47,'Bank Transfers'!$E$15:$E$514,"withdraw") -> 0
D48: =X7 -> 42979 | E48: =J48-F48-M48 -> 100,000.0 | F48: =F21-SUM(F23:F47)-IF(D22=D23,0,F22) -> 0 | G48: =G21-SUM(G23:G47)-IF(D22=D23,0,G22) -> 0 | H48: =H21-SUM(H23:H47)-IF(D22=D23,0,H22) -> 0.0 | I48: =I21-SUM(I23:I47)-IF(D22=D23,0,I22) -> 0 | J48: =M48+F48+E21 -> 100,000.0 | K48: =K21-SUM(K23:K47)-IF(D22=D23,0,K22) -> 0 | M48: =IFERROR(G48+H48+I48,"") -> 0.0 | N48: =IFERROR(M48/(E48+A48),"") -> 0 | O48: =O21-SUM(O23:O47) -> 0 | Q48: =Q21-SUM(Q23:Q47) -> 0 | R48: =IFERROR(AB48/(AB48+AC48),"") ->  | S48: =IFERROR(((AVERAGEIFS('Trade Log'!$AT$15:$AT$26022,'Trade Log'!$AN$15:$AN$26022,2,'Trade Log'!$AM$15:$AM$26022,"="&D48))),0) -> 0.1547616227 | T48: =IFERROR(((AVERAGEIFS('Trade Log'!$AT$15:$AT$26022,'Trade Log'!$AN$15:$AN$26022,1,'Trade Log'!$AM$15:$AM$26022,"="&D48))),"") -> -0.02581530935 | U48: =IF(D48="","",IF((AC48+AB48)=0,"",IFERROR((G48/AB48)/-(H48/AC48),0))) ->  | Z48: =Z21-SUM(Z23:Z47)-IF(D22=D23,0,Z22) -> 0

Sheet Calendar
C2: Starting Month | D2: Year
C3: September | D3: 2017
C6: =DATEVALUE("1"&C3&D3) -> 2017-09-01
C7: SUN | D7: MON | E7: TUE | F7: WED | G7: THU | H7: FRI | I7: SAT
C8: =IF(MONTH(C6)<>MONTH((C6-WEEKDAY(C6,1)+1)),"",(C6-WEEKDAY(C6,1)+1)) ->  | D8: =IF(MONTH(C6)<>MONTH((C6-WEEKDAY(C6,1)+2)),"",(C6-WEEKDAY(C6,1)+2)) ->  | E8: =IF(MONTH(C6)<>MONTH((C6-WEEKDAY(C6,1)+3)),"",(C6-WEEKDAY(C6,1)+3)) ->  | F8: =IF(MONTH(C6)<>MONTH((C6-WEEKDAY(C6,1)+4)),"",(C6-WEEKDAY(C6,1)+4)) ->  | G8: =IF(MONTH(C6)<>MONTH((C6-WEEKDAY(C6,1)+5)),"",(C6-WEEKDAY(C6,1)+5)) ->  | H8: =IF(MONTH(C6)<>MONTH((C6-WEEKDAY(C6,1)+6)),"",(C6-WEEKDAY(C6,1)+6)) -> 2017-09-01 | I8: =IF(MONTH(C6)<>MONTH((C6-WEEKDAY(C6,1)+7)),"",(C6-WEEKDAY(C6,1)+7)) -> 2017-09-02
C9: =SUMIFS(profitLoss,dateLog,">="&C8,dateLog,"<"&C8+1) -> 0 | D9: 0 | E9: 0 | F9: 0 | G9: 0 | H9: 0 | I9: 0
C10: =COUNTIFS(dateLog,">="&C8,dateLog,"<"&C8+1) -> 0 | D10: 0 | E10: 0 | F10: 0 | G10: 0 | H10: 0 | I10: =COUNTIFS(dateLog,">="&I8,dateLog,"<"&(I8+1)) -> 0
C11: =I8+1 -> 2017-09-03 | D11: =C11+1 -> 2017-09-04 | E11: =D11+1 -> 2017-09-05 | F11: 2017-09-06 | G11: 2017-09-07 | H11: 2017-09-08 | I11: 2017-09-09
C12: =SUMIFS(profitLoss,dateLog,">="&C11,dateLog,"<"&C11+1) -> 0 | D12: 0 | E12: Php-753 | F12: Php1,629 | G12: Php-131 | H12: Php-736 | I12: 0
C13: =COUNTIFS(dateLog,">="&C11,dateLog,"<"&C11+1,stats,">0") -> 0 | D13: 0 | E13: 1 Trade(s) | F13: 2 Trade(s) | G13: 1 Trade(s) | H13: 1 Trade(s) | I13: 0
C14: =I11+1 -> 2017-09-10 | D14: =C14+1 -> 2017-09-11 | E14: 2017-09-12 | F14: 2017-09-13 | G14: 2017-09-14 | H14: 2017-09-15 | I14: 2017-09-16
C15: =SUMIFS(profitLoss,dateLog,">="&C14,dateLog,"<"&C14+1) -> 0 | D15: Php962 | E15: 0 | F15: Php359 | G15: 0 | H15: Php-214 | I15: 0
C16: =COUNTIFS(dateLog,">="&C14,dateLog,"<"&C14+1,stats,">0") -> 0 | D16: 1 Trade(s) | E16: 0 | F16: 1 Trade(s) | G16: 0 | H16: 1 Trade(s) | I16: 0
C17: =I14+1 -> 2017-09-17 | D17: =C17+1 -> 2017-09-18 | E17: 2017-09-19 | F17: 2017-09-20 | G17: 2017-09-21 | H17: 2017-09-22 | I17: 2017-09-23
C18: =SUMIFS(profitLoss,dateLog,">="&C17,dateLog,"<"&C17+1) -> 0 | D18: 0 | E18: Php-1,013 | F18: 0 | G18: 0 | H18: 0 | I18: 0
C19: =COUNTIFS(dateLog,">="&C17,dateLog,"<"&C17+1,stats,">0") -> 0 | D19: 0 | E19: 1 Trade(s) | F19: 0 | G19: 0 | H19: 0 | I19: 0
C20: =IFERROR(IF(MONTH(C6)<>MONTH(I17+1),"",(I17+1)),"") -> 2017-09-24 | D20: =IFERROR(IF(MONTH(C6)<>MONTH(C20+1),"",(C20+1)),"") -> 2017-09-25 | E20: =IFERROR(IF(MONTH(C6)<>MONTH(D20+1),"",(D20+1)),"") -> 2017-09-26 | F20: =IFERROR(IF(MONTH(C6)<>MONTH(E20+1),"",(E20+1)),"") -> 2017-09-27 | G20: =IFERROR(IF(MONTH(C6)<>MONTH(F20+1),"",(F20+1)),"") -> 2017-09-28 | H20: =IFERROR(IF(MONTH(C6)<>MONTH(G20+1),"",(G20+1)),"") -> 2017-09-29 | I20: =IFERROR(IF(MONTH(C6)<>MONTH(H20+1),"",(H20+1)),"") -> 2017-09-30
C21: =SUMIFS(profitLoss,dateLog,">="&C20,dateLog,"<"&C20+1) -> 0 | D21: Php19,693 | E21: Php18,582 | F21: 0 | G21: Php5,217 | H21: Php-1,122 | I21: 0
C22: =COUNTIFS(dateLog,">="&C20,dateLog,"<"&C20+1,stats,">0") -> 0 | D22: 2 Trade(s) | E22: 3 Trade(s) | F22: 0 | G22: 3 Trade(s) | H22: 1 Trade(s) | I22: 0
C23: =IFERROR(IF(MONTH(C6)<>MONTH(I20+1),"",(I20+1)),"") ->  | D23: =IFERROR(IF(MONTH(C6)<>MONTH(C23+1),"",(C23+1)),"") ->  | E23: =IFERROR(IF(MONTH(C6)<>MONTH(D23+1),"",(D23+1)),"") ->  | F23: =IFERROR(IF(MONTH(C6)<>MONTH(E23+1),"",(E23+1)),"") ->  | G23: =IFERROR(IF(MONTH(C6)<>MONTH(F23+1),"",(F23+1)),"") ->  | H23: =IFERROR(IF(MONTH(C6)<>MONTH(G23+1),"",(G23+1)),"") ->  | I23: =IFERROR(IF(MONTH(C6)<>MONTH(H23+1),"",(H23+1)),"") -> 
C24: =SUMIFS(profitLoss,dateLog,">="&C23,dateLog,"<"&C23+1) -> 0 | D24: 0 | E24: 0 | F24: 0 | G24: 0 | H24: 0 | I24: 0
C25: =COUNTIFS(dateLog,">="&C23,dateLog,"<"&C23+1,stats,">0") -> 0 | D25: 0 | E25: 0 | F25: 0 | G25: 0 | H25: 0 | I25: 0
C27: =EOMONTH(C6,0)+1 -> 2017-10-01
C28: SUN | D28: MON | E28: TUE | F28: WED | G28: THU | H28: FRI | I28: SAT
C29: =IF(MONTH(C27)<>MONTH((C27-WEEKDAY(C27,1)+1)),"",(C27-WEEKDAY(C27,1)+1)) -> 2017-10-01 | D29: =IF(MONTH(C27)<>MONTH((C27-WEEKDAY(C27,1)+2)),"",(C27-WEEKDAY(C27,1)+2)) -> 2017-10-02 | E29: =IF(MONTH(C27)<>MONTH((C27-WEEKDAY(C27,1)+3)),"",(C27-WEEKDAY(C27,1)+3)) -> 2017-10-03 | F29: =IF(MONTH(C27)<>MONTH((C27-WEEKDAY(C27,1)+4)),"",(C27-WEEKDAY(C27,1)+4)) -> 2017-10-04 | G29: =IF(MONTH(C27)<>MONTH((C27-WEEKDAY(C27,1)+5)),"",(C27-WEEKDAY(C27,1)+5)) -> 2017-10-05 | H29: =IF(MONTH(C27)<>MONTH((C27-WEEKDAY(C27,1)+6)),"",(C27-WEEKDAY(C27,1)+6)) -> 2017-10-06 | I29: =IF(MONTH(C27)<>MONTH((C27-WEEKDAY(C27,1)+7)),"",(C27-WEEKDAY(C27,1)+7)) -> 2017-10-07
C30: =SUMIFS(profitLoss,dateLog,">="&C29,dateLog,"<"&D29) -> 0 | D30: $ -2,639.7 | E30: $ -903.3 | F30: 0 | G30: 0 | H30: 0 | I30: =SUMIFS(profitLoss,dateLog,">="&I29,dateLog,"<"&C32) -> 0
C31: =COUNTIFS(dateLog,">="&C29,dateLog,"<"&D29) -> 0 | D31: 4 Trade(s) | E31: 2 Trade(s) | F31: 0 | G31: 0 | H31: 0 | I31: =COUNTIFS(dateLog,">="&I29,dateLog,"<"&(I29+1)) -> 0
C32: =I29+1 -> 2017-10-08 | D32: =C32+1 -> 2017-10-09 | E32: =D32+1 -> 2017-10-10 | F32: =E32+1 -> 2017-10-11 | G32: =F32+1 -> 2017-10-12 | H32: =G32+1 -> 2017-10-13 | I32: =H32+1 -> 2017-10-14
C33: =SUMIFS(profitLoss,dateLog,">="&C32,dateLog,"<"&D32) -> 0 | D33: 0 | E33: 0 | F33: 0 | G33: 0 | H33: 0 | I33: =SUMIFS(profitLoss,dateLog,">="&I32,dateLog,"<"&C35) -> 0
C34: =COUNTIFS(dateLog,">="&C32,dateLog,"<"&D32,actionLog,"sell")+COUNTIFS(dateLog,">="&C32,dateLog,"<"&D32,actionLog,"cover") -> 0 | D34: 0 | E34: 0 | F34: 0 | G34: 0 | H34: 0 | I34: 0
C35: =I32+1 -> 2017-10-15 | D35: =C35+1 -> 2017-10-16 | E35: =D35+1 -> 2017-10-17 | F35: =E35+1 -> 2017-10-18 | G35: =F35+1 -> 2017-10-19 | H35: =G35+1 -> 2017-10-20 | I35: =H35+1 -> 2017-10-21
C36: =SUMIFS(profitLoss,dateLog,">="&C35,dateLog,"<"&D35) -> 0 | D36: 0 | E36: 0 | F36: 0 | G36: 0 | H36: 0 | I36: =SUMIFS(profitLoss,dateLog,">="&I35,dateLog,"<"&C38) -> 0
C37: =COUNTIFS(dateLog,">="&C35,dateLog,"<"&D35,actionLog,"sell")+COUNTIFS(dateLog,">="&C35,dateLog,"<"&D35,actionLog,"cover") -> 0 | D37: 0 | E37: 0 | F37: 0 | G37: 0 | H37: 0 | I37: 0
C38: =I35+1 -> 2017-10-22 | D38: =C38+1 -> 2017-10-23 | E38: =D38+1 -> 2017-10-24 | F38: =E38+1 -> 2017-10-25 | G38: =F38+1 -> 2017-10-26 | H38: =G38+1 -> 2017-10-27 | I38: =H38+1 -> 2017-10-28
C39: =SUMIFS(profitLoss,dateLog,">="&C38,dateLog,"<"&D38) -> 0 | D39: 0 | E39: 0 | F39: 0 | G39: 0 | H39: 0 | I39: =SUMIFS(profitLoss,dateLog,">="&I38,dateLog,"<"&C41) -> 0
C40: =COUNTIFS(dateLog,">="&C38,dateLog,"<"&D38,actionLog,"sell")+COUNTIFS(dateLog,">="&C38,dateLog,"<"&D38,actionLog,"cover") -> 0 | D40: 0 | E40: 0 | F40: 0 | G40: 0 | H40: 0 | I40: 0
C41: =IFERROR(IF(MONTH(C27)<>MONTH(I38+1),"",(I38+1)),"") -> 2017-10-29 | D41: =IFERROR(IF(MONTH(C27)<>MONTH(C41+1),"",(C41+1)),"") -> 2017-10-30 | E41: =IFERROR(IF(MONTH(C27)<>MONTH(D41+1),"",(D41+1)),"") -> 2017-10-31 | F41: =IFERROR(IF(MONTH(C27)<>MONTH(E41+1),"",(E41+1)),"") ->  | G41: =IFERROR(IF(MONTH(C27)<>MONTH(F41+1),"",(F41+1)),"") ->  | H41: =IFERROR(IF(MONTH(C27)<>MONTH(G41+1),"",(G41+1)),"") ->  | I41: =IFERROR(IF(MONTH(C27)<>MONTH(H41+1),"",(H41+1)),"") -> 
C42: =SUMIFS(profitLoss,dateLog,">="&C41,dateLog,"<"&D41) -> 0 | D42: 0 | E42: 0 | F42: 0 | G42: 0 | H42: 0 | I42: =SUMIFS(profitLoss,dateLog,">="&I41,dateLog,"<"&C44) -> 0
C43: =COUNTIFS(dateLog,">="&C41,dateLog,"<"&D41,actionLog,"sell")+COUNTIFS(dateLog,">="&C41,dateLog,"<"&D41,actionLog,"cover") -> 0 | D43: 0 | E43: 0 | F43: 0 | G43: 0 | H43: 0 | I43: 0
C44: =IFERROR(IF(MONTH(C27)<>MONTH(I41+1),"",(I41+1)),"") ->  | D44: =IFERROR(IF(MONTH(C27)<>MONTH(C44+1),"",(C44+1)),"") ->  | E44: =IFERROR(IF(MONTH(C27)<>MONTH(D44+1),"",(D44+1)),"") ->  | F44: =IFERROR(IF(MONTH(C27)<>MONTH(E44+1),"",(E44+1)),"") ->  | G44: =IFERROR(IF(MONTH(C27)<>MONTH(F44+1),"",(F44+1)),"") ->  | H44: =IFERROR(IF(MONTH(C27)<>MONTH(G44+1),"",(G44+1)),"") ->  | I44: =IFERROR(IF(MONTH(C27)<>MONTH(H44+1),"",(H44+1)),"") -> 
C45: =SUMIFS(profitLoss,dateLog,">="&C44,dateLog,"<"&D44) -> 0 | D45: 0 | E45: 0 | F45: 0 | G45: 0 | H45: 0 | I45: =SUMIFS(profitLoss,dateLog,">="&I44,dateLog,"<"&C47) -> 0
C46: =COUNTIFS(dateLog,">="&C44,dateLog,"<"&D44,actionLog,"sell")+COUNTIFS(dateLog,">="&C44,dateLog,"<"&D44,actionLog,"cover") -> 0 | D46: 0 | E46: 0 | F46: 0 | G46: 0 | H46: 0 | I46: 0
C48: =EOMONTH(C27,0)+1 -> 2017-11-01
C49: SUN | D49: MON | E49: TUE | F49: WED | G49: THU | H49: FRI | I49: SAT
C50: =IF(MONTH(C48)<>MONTH((C48-WEEKDAY(C48,1)+1)),"",(C48-WEEKDAY(C48,1)+1)) ->  | D50: =IF(MONTH(C48)<>MONTH((C48-WEEKDAY(C48,1)+2)),"",(C48-WEEKDAY(C48,1)+2)) ->  | E50: =IF(MONTH(C48)<>MONTH((C48-WEEKDAY(C48,1)+3)),"",(C48-WEEKDAY(C48,1)+3)) ->  | F50: =IF(MONTH(C48)<>MONTH((C48-WEEKDAY(C48,1)+4)),"",(C48-WEEKDAY(C48,1)+4)) -> 2017-11-01 | G50: =IF(MONTH(C48)<>MONTH((C48-WEEKDAY(C48,1)+5)),"",(C48-WEEKDAY(C48,1)+5)) -> 2017-11-02 | H50: =IF(MONTH(C48)<>MONTH((C48-WEEKDAY(C48,1)+6)),"",(C48-WEEKDAY(C48,1)+6)) -> 2017-11-03 | I50: =IF(MONTH(C48)<>MONTH((C48-WEEKDAY(C48,1)+7)),"",(C48-WEEKDAY(C48,1)+7)) -> 2017-11-04
C51: =SUMIFS(profitLoss,dateLog,">="&C50,dateLog,"<"&D50) -> 0 | D51: 0 | E51: 0 | F51: 0 | G51: 0 | H51: 0 | I51: =SUMIFS(profitLoss,dateLog,">="&I50,dateLog,"<"&C53) -> 0
C52: =COUNTIFS(dateLog,">="&C50,dateLog,"<"&D50) -> 0 | D52: 0 | E52: 0 | F52: 0 | G52: 0 | H52: 0 | I52: =COUNTIFS(dateLog,">="&I50,dateLog,"<"&(I50+1)) -> 0
C53: =I50+1 -> 2017-11-05 | D53: =C53+1 -> 2017-11-06 | E53: =D53+1 -> 2017-11-07 | F53: =E53+1 -> 2017-11-08 | G53: =F53+1 -> 2017-11-09 | H53: =G53+1 -> 2017-11-10 | I53: =H53+1 -> 2017-11-11
C54: =SUMIFS(profitLoss,dateLog,">="&C53,dateLog,"<"&D53) -> 0 | D54: 0 | E54: 0 | F54: 0 | G54: 0 | H54: 0 | I54: =SUMIFS(profitLoss,dateLog,">="&I53,dateLog,"<"&C56) -> 0
C55: =COUNTIFS(dateLog,">="&C53,dateLog,"<"&D53,actionLog,"sell")+COUNTIFS(dateLog,">="&C53,dateLog,"<"&D53,actionLog,"cover") -> 0 | D55: 0 | E55: 0 | F55: 0 | G55: 0 | H55: 0 | I55: 0
C56: =I53+1 -> 2017-11-12 | D56: =C56+1 -> 2017-11-13 | E56: =D56+1 -> 2017-11-14 | F56: =E56+1 -> 2017-11-15 | G56: =F56+1 -> 2017-11-16 | H56: =G56+1 -> 2017-11-17 | I56: =H56+1 -> 2017-11-18
C57: =SUMIFS(profitLoss,dateLog,">="&C56,dateLog,"<"&D56) -> 0 | D57: 0 | E57: 0 | F57: 0 | G57: 0 | H57: 0 | I57: =SUMIFS(profitLoss,dateLog,">="&I56,dateLog,"<"&C59) -> 0
C58: =COUNTIFS(dateLog,">="&C56,dateLog,"<"&D56,actionLog,"sell")+COUNTIFS(dateLog,">="&C56,dateLog,"<"&D56,actionLog,"cover") -> 0 | D58: 0 | E58: 0 | F58: 0 | G58: 0 | H58: 0 | I58: 0
C59: =I56+1 -> 2017-11-19 | D59: =C59+1 -> 2017-11-20 | E59: =D59+1 -> 2017-11-21 | F59: =E59+1 -> 2017-11-22 | G59: =F59+1 -> 2017-11-23 | H59: =G59+1 -> 2017-11-24 | I59: =H59+1 -> 2017-11-25
C60: =SUMIFS(profitLoss,dateLog,">="&C59,dateLog,"<"&D59) -> 0 | D60: 0 | E60: 0 | F60: 0 | G60: 0 | H60: 0 | I60: =SUMIFS(profitLoss,dateLog,">="&I59,dateLog,"<"&C62) -> 0
C61: =COUNTIFS(dateLog,">="&C59,dateLog,"<"&D59,actionLog,"sell")+COUNTIFS(dateLog,">="&C59,dateLog,"<"&D59,actionLog,"cover") -> 0 | D61: 0 | E61: 0 | F61: 0 | G61: 0 | H61: 0 | I61: 0
C62: =IFERROR(IF(MONTH(C48)<>MONTH(I59+1),"",(I59+1)),"") -> 2017-11-26 | D62: =IFERROR(IF(MONTH(C48)<>MONTH(C62+1),"",(C62+1)),"") -> 2017-11-27 | E62: =IFERROR(IF(MONTH(C48)<>MONTH(D62+1),"",(D62+1)),"") -> 2017-11-28 | F62: =IFERROR(IF(MONTH(C48)<>MONTH(E62+1),"",(E62+1)),"") -> 2017-11-29 | G62: =IFERROR(IF(MONTH(C48)<>MONTH(F62+1),"",(F62+1)),"") -> 2017-11-30 | H62: =IFERROR(IF(MONTH(C48)<>MONTH(G62+1),"",(G62+1)),"") ->  | I62: =IFERROR(IF(MONTH(C48)<>MONTH(H62+1),"",(H62+1)),"") -> 
C63: =SUMIFS(profitLoss,dateLog,">="&C62,dateLog,"<"&D62) -> 0 | D63: 0 | E63: 0 | F63: 0 | G63: 0 | H63: 0 | I63: =SUMIFS(profitLoss,dateLog,">="&I62,dateLog,"<"&C65) -> 0
C64: =COUNTIFS(dateLog,">="&C62,dateLog,"<"&D62,actionLog,"sell")+COUNTIFS(dateLog,">="&C62,dateLog,"<"&D62,actionLog,"cover") -> 0 | D64: 0 | E64: 0 | F64: 0 | G64: 0 | H64: 0 | I64: 0
C65: =IFERROR(IF(MONTH(C48)<>MONTH(I62+1),"",(I62+1)),"") ->  | D65: =IFERROR(IF(MONTH(C48)<>MONTH(C65+1),"",(C65+1)),"") ->  | E65: =IFERROR(IF(MONTH(C48)<>MONTH(D65+1),"",(D65+1)),"") ->  | F65: =IFERROR(IF(MONTH(C48)<>MONTH(E65+1),"",(E65+1)),"") ->  | G65: =IFERROR(IF(MONTH(C48)<>MONTH(F65+1),"",(F65+1)),"") ->  | H65: =IFERROR(IF(MONTH(C48)<>MONTH(G65+1),"",(G65+1)),"") ->  | I65: =IFERROR(IF(MONTH(C48)<>MONTH(H65+1),"",(H65+1)),"") -> 
C66: =SUMIFS(profitLoss,dateLog,">="&C65,dateLog,"<"&D65) -> 0 | D66: 0 | E66: 0 | F66: 0 | G66: 0 | H66: 0 | I66: =SUMIFS(profitLoss,dateLog,">="&I65,dateLog,"<"&C68) -> 0
C67: =COUNTIFS(dateLog,">="&C65,dateLog,"<"&D65,actionLog,"sell")+COUNTIFS(dateLog,">="&C65,dateLog,"<"&D65,actionLog,"cover") -> 0 | D67: 0 | E67: 0 | F67: 0 | G67: 0 | H67: 0 | I67: 0
C69: =EOMONTH(C48,0)+1 -> 2017-12-01
C70: SUN | D70: MON | E70: TUE | F70: WED | G70: THU | H70: FRI | I70: SAT
C71: =IF(MONTH(C69)<>MONTH((C69-WEEKDAY(C69,1)+1)),"",(C69-WEEKDAY(C69,1)+1)) ->  | D71: =IF(MONTH(C69)<>MONTH((C69-WEEKDAY(C69,1)+2)),"",(C69-WEEKDAY(C69,1)+2)) ->  | E71: =IF(MONTH(C69)<>MONTH((C69-WEEKDAY(C69,1)+3)),"",(C69-WEEKDAY(C69,1)+3)) ->  | F71: =IF(MONTH(C69)<>MONTH((C69-WEEKDAY(C69,1)+4)),"",(C69-WEEKDAY(C69,1)+4)) ->  | G71: =IF(MONTH(C69)<>MONTH((C69-WEEKDAY(C69,1)+5)),"",(C69-WEEKDAY(C69,1)+5)) ->  | H71: =IF(MONTH(C69)<>MONTH((C69-WEEKDAY(C69,1)+6)),"",(C69-WEEKDAY(C69,1)+6)) -> 2017-12-01 | I71: =IF(MONTH(C69)<>MONTH((C69-WEEKDAY(C69,1)+7)),"",(C69-WEEKDAY(C69,1)+7)) -> 2017-12-02
C72: =SUMIFS(profitLoss,dateLog,">="&C71,dateLog,"<"&D71) -> 0 | D72: 0 | E72: 0 | F72: 0 | G72: 0 | H72: 0 | I72: =SUMIFS(profitLoss,dateLog,">="&I71,dateLog,"<"&C74) -> 0
C73: =COUNTIFS(dateLog,">="&C71,dateLog,"<"&D71) -> 0 | D73: 0 | E73: 0 | F73: 0 | G73: 0 | H73: 0 | I73: =COUNTIFS(dateLog,">="&I71,dateLog,"<"&(I71+1)) -> 0
C74: =I71+1 -> 2017-12-03 | D74: =C74+1 -> 2017-12-04 | E74: =D74+1 -> 2017-12-05 | F74: =E74+1 -> 2017-12-06 | G74: =F74+1 -> 2017-12-07 | H74: =G74+1 -> 2017-12-08 | I74: =H74+1 -> 2017-12-09
C75: =SUMIFS(profitLoss,dateLog,">="&C74,dateLog,"<"&D74) -> 0 | D75: 0 | E75: 0 | F75: 0 | G75: 0 | H75: 0 | I75: =SUMIFS(profitLoss,dateLog,">="&I74,dateLog,"<"&C77) -> 0
C76: =COUNTIFS(dateLog,">="&C74,dateLog,"<"&D74,actionLog,"sell")+COUNTIFS(dateLog,">="&C74,dateLog,"<"&D74,actionLog,"cover") -> 0 | D76: 0 | E76: 0 | F76: 0 | G76: 0 | H76: 0 | I76: 0
C77: =I74+1 -> 2017-12-10 | D77: =C77+1 -> 2017-12-11 | E77: =D77+1 -> 2017-12-12 | F77: =E77+1 -> 2017-12-13 | G77: =F77+1 -> 2017-12-14 | H77: =G77+1 -> 2017-12-15 | I77: =H77+1 -> 2017-12-16
C78: =SUMIFS(profitLoss,dateLog,">="&C77,dateLog,"<"&D77) -> 0 | D78: 0 | E78: 0 | F78: 0 | G78: 0 | H78: 0 | I78: =SUMIFS(profitLoss,dateLog,">="&I77,dateLog,"<"&C80) -> 0
C79: =COUNTIFS(dateLog,">="&C77,dateLog,"<"&D77,actionLog,"sell")+COUNTIFS(dateLog,">="&C77,dateLog,"<"&D77,actionLog,"cover") -> 0 | D79: 0 | E79: 0 | F79: 0 | G79: 0 | H79: 0 | I79: 0
C80: =I77+1 -> 2017-12-17 | D80: =C80+1 -> 2017-12-18 | E80: =D80+1 -> 2017-12-19 | F80: =E80+1 -> 2017-12-20 | G80: =F80+1 -> 2017-12-21 | H80: =G80+1 -> 2017-12-22 | I80: =H80+1 -> 2017-12-23
C81: =SUMIFS(profitLoss,dateLog,">="&C80,dateLog,"<"&D80) -> 0 | D81: 0 | E81: 0 | F81: 0 | G81: 0 | H81: 0 | I81: =SUMIFS(profitLoss,dateLog,">="&I80,dateLog,"<"&C83) -> 0
C82: =COUNTIFS(dateLog,">="&C80,dateLog,"<"&D80,actionLog,"sell")+COUNTIFS(dateLog,">="&C80,dateLog,"<"&D80,actionLog,"cover") -> 0 | D82: 0 | E82: 0 | F82: 0 | G82: 0 | H82: 0 | I82: 0
C83: =IFERROR(IF(MONTH(C69)<>MONTH(I80+1),"",(I80+1)),"") -> 2017-12-24 | D83: =IFERROR(IF(MONTH(C69)<>MONTH(C83+1),"",(C83+1)),"") -> 2017-12-25 | E83: =IFERROR(IF(MONTH(C69)<>MONTH(D83+1),"",(D83+1)),"") -> 2017-12-26 | F83: =IFERROR(IF(MONTH(C69)<>MONTH(E83+1),"",(E83+1)),"") -> 2017-12-27 | G83: =IFERROR(IF(MONTH(C69)<>MONTH(F83+1),"",(F83+1)),"") -> 2017-12-28 | H83: =IFERROR(IF(MONTH(C69)<>MONTH(G83+1),"",(G83+1)),"") -> 2017-12-29 | I83: =IFERROR(IF(MONTH(C69)<>MONTH(H83+1),"",(H83+1)),"") -> 2017-12-30
C84: =SUMIFS(profitLoss,dateLog,">="&C83,dateLog,"<"&D83) -> 0 | D84: 0 | E84: 0 | F84: 0 | G84: 0 | H84: 0 | I84: =SUMIFS(profitLoss,dateLog,">="&I83,dateLog,"<"&C86) -> 0
C85: =COUNTIFS(dateLog,">="&C83,dateLog,"<"&D83,actionLog,"sell")+COUNTIFS(dateLog,">="&C83,dateLog,"<"&D83,actionLog,"cover") -> 0 | D85: 0 | E85: 0 | F85: 0 | G85: 0 | H85: 0 | I85: 0
C86: =IFERROR(IF(MONTH(C69)<>MONTH(I83+1),"",(I83+1)),"") -> 2017-12-31 | D86: =IFERROR(IF(MONTH(C69)<>MONTH(C86+1),"",(C86+1)),"") ->  | E86: =IFERROR(IF(MONTH(C69)<>MONTH(D86+1),"",(D86+1)),"") ->  | F86: =IFERROR(IF(MONTH(C69)<>MONTH(E86+1),"",(E86+1)),"") ->  | G86: =IFERROR(IF(MONTH(C69)<>MONTH(F86+1),"",(F86+1)),"") ->  | H86: =IFERROR(IF(MONTH(C69)<>MONTH(G86+1),"",(G86+1)),"") ->  | I86: =IFERROR(IF(MONTH(C69)<>MONTH(H86+1),"",(H86+1)),"") -> 
C87: =SUMIFS(profitLoss,dateLog,">="&C86,dateLog,"<"&D86) -> 0 | D87: 0 | E87: 0 | F87: 0 | G87: 0 | H87: 0 | I87: =SUMIFS(profitLoss,dateLog,">="&I86,dateLog,"<"&C89) -> 0
C88: =COUNTIFS(dateLog,">="&C86,dateLog,"<"&D86,actionLog,"sell")+COUNTIFS(dateLog,">="&C86,dateLog,"<"&D86,actionLog,"cover") -> 0 | D88: 0 | E88: 0 | F88: 0 | G88: 0 | H88: 0 | I88: 0
C90: =EOMONTH(C69,0)+1 -> 2018-01-01
C91: SUN | D91: MON | E91: TUE | F91: WED | G91: THU | H91: FRI | I91: SAT
C92: =IF(MONTH(C90)<>MONTH((C90-WEEKDAY(C90,1)+1)),"",(C90-WEEKDAY(C90,1)+1)) ->  | D92: =IF(MONTH(C90)<>MONTH((C90-WEEKDAY(C90,1)+2)),"",(C90-WEEKDAY(C90,1)+2)) -> 2018-01-01 | E92: =IF(MONTH(C90)<>MONTH((C90-WEEKDAY(C90,1)+3)),"",(C90-WEEKDAY(C90,1)+3)) -> 2018-01-02 | F92: =IF(MONTH(C90)<>MONTH((C90-WEEKDAY(C90,1)+4)),"",(C90-WEEKDAY(C90,1)+4)) -> 2018-01-03 | G92: =IF(MONTH(C90)<>MONTH((C90-WEEKDAY(C90,1)+5)),"",(C90-WEEKDAY(C90,1)+5)) -> 2018-01-04 | H92: =IF(MONTH(C90)<>MONTH((C90-WEEKDAY(C90,1)+6)),"",(C90-WEEKDAY(C90,1)+6)) -> 2018-01-05 | I92: =IF(MONTH(C90)<>MONTH((C90-WEEKDAY(C90,1)+7)),"",(C90-WEEKDAY(C90,1)+7)) -> 2018-01-06
C93: =SUMIFS(profitLoss,dateLog,">="&C92,dateLog,"<"&D92) -> 0 | D93: 0 | E93: 0 | F93: 0 | G93: 0 | H93: 0 | I93: =SUMIFS(profitLoss,dateLog,">="&I92,dateLog,"<"&C95) -> 0
C94: =COUNTIFS(dateLog,">="&C92,dateLog,"<"&D92) -> 0 | D94: 0 | E94: 0 | F94: 0 | G94: 0 | H94: 0 | I94: =COUNTIFS(dateLog,">="&I92,dateLog,"<"&(I92+1)) -> 0
C95: =I92+1 -> 2018-01-07 | D95: =C95+1 -> 2018-01-08 | E95: =D95+1 -> 2018-01-09 | F95: =E95+1 -> 2018-01-10 | G95: =F95+1 -> 2018-01-11 | H95: =G95+1 -> 2018-01-12 | I95: =H95+1 -> 2018-01-13
C96: =SUMIFS(profitLoss,dateLog,">="&C95,dateLog,"<"&D95) -> 0 | D96: 0 | E96: 0 | F96: 0 | G96: 0 | H96: 0 | I96: =SUMIFS(profitLoss,dateLog,">="&I95,dateLog,"<"&C98) -> 0
C97: =COUNTIFS(dateLog,">="&C95,dateLog,"<"&D95,actionLog,"sell")+COUNTIFS(dateLog,">="&C95,dateLog,"<"&D95,actionLog,"cover") -> 0 | D97: 0 | E97: 0 | F97: 0 | G97: 0 | H97: 0 | I97: 0
C98: =I95+1 -> 2018-01-14 | D98: =C98+1 -> 2018-01-15 | E98: =D98+1 -> 2018-01-16 | F98: =E98+1 -> 2018-01-17 | G98: =F98+1 -> 2018-01-18 | H98: =G98+1 -> 2018-01-19 | I98: =H98+1 -> 2018-01-20
C99: =SUMIFS(profitLoss,dateLog,">="&C98,dateLog,"<"&D98) -> 0 | D99: 0 | E99: 0 | F99: 0 | G99: 0 | H99: 0 | I99: =SUMIFS(profitLoss,dateLog,">="&I98,dateLog,"<"&C101) -> 0
C100: =COUNTIFS(dateLog,">="&C98,dateLog,"<"&D98,actionLog,"sell")+COUNTIFS(dateLog,">="&C98,dateLog,"<"&D98,actionLog,"cover") -> 0 | D100: 0 | E100: 0 | F100: 0 | G100: 0 | H100: 0 | I100: 0
C101: =I98+1 -> 2018-01-21 | D101: =C101+1 -> 2018-01-22 | E101: =D101+1 -> 2018-01-23 | F101: =E101+1 -> 2018-01-24 | G101: =F101+1 -> 2018-01-25 | H101: =G101+1 -> 2018-01-26 | I101: =H101+1 -> 2018-01-27
C102: =SUMIFS(profitLoss,dateLog,">="&C101,dateLog,"<"&D101) -> 0 | D102: 0 | E102: 0 | F102: 0 | G102: 0 | H102: 0 | I102: =SUMIFS(profitLoss,dateLog,">="&I101,dateLog,"<"&C104) -> 0
C103: =COUNTIFS(dateLog,">="&C101,dateLog,"<"&D101,actionLog,"sell")+COUNTIFS(dateLog,">="&C101,dateLog,"<"&D101,actionLog,"cover") -> 0 | D103: 0 | E103: 0 | F103: 0 | G103: 0 | H103: 0 | I103: 0
C104: =IFERROR(IF(MONTH(C90)<>MONTH(I101+1),"",(I101+1)),"") -> 2018-01-28 | D104: =IFERROR(IF(MONTH(C90)<>MONTH(C104+1),"",(C104+1)),"") -> 2018-01-29 | E104: =IFERROR(IF(MONTH(C90)<>MONTH(D104+1),"",(D104+1)),"") -> 2018-01-30 | F104: =IFERROR(IF(MONTH(C90)<>MONTH(E104+1),"",(E104+1)),"") -> 2018-01-31 | G104: =IFERROR(IF(MONTH(C90)<>MONTH(F104+1),"",(F104+1)),"") ->  | H104: =IFERROR(IF(MONTH(C90)<>MONTH(G104+1),"",(G104+1)),"") ->  | I104: =IFERROR(IF(MONTH(C90)<>MONTH(H104+1),"",(H104+1)),"") -> 
C105: =SUMIFS(profitLoss,dateLog,">="&C104,dateLog,"<"&D104) -> 0 | D105: 0 | E105: 0 | F105: 0 | G105: 0 | H105: 0 | I105: =SUMIFS(profitLoss,dateLog,">="&I104,dateLog,"<"&C107) -> 0
C106: =COUNTIFS(dateLog,">="&C104,dateLog,"<"&D104,actionLog,"sell")+COUNTIFS(dateLog,">="&C104,dateLog,"<"&D104,actionLog,"cover") -> 0 | D106: 0 | E106: 0 | F106: 0 | G106: 0 | H106: 0 | I106: 0
C107: =IFERROR(IF(MONTH(C90)<>MONTH(I104+1),"",(I104+1)),"") ->  | D107: =IFERROR(IF(MONTH(C90)<>MONTH(C107+1),"",(C107+1)),"") ->  | E107: =IFERROR(IF(MONTH(C90)<>MONTH(D107+1),"",(D107+1)),"") ->  | F107: =IFERROR(IF(MONTH(C90)<>MONTH(E107+1),"",(E107+1)),"") ->  | G107: =IFERROR(IF(MONTH(C90)<>MONTH(F107+1),"",(F107+1)),"") ->  | H107: =IFERROR(IF(MONTH(C90)<>MONTH(G107+1),"",(G107+1)),"") ->  | I107: =IFERROR(IF(MONTH(C90)<>MONTH(H107+1),"",(H107+1)),"") -> 
C108: =SUMIFS(profitLoss,dateLog,">="&C107,dateLog,"<"&D107) -> 0 | D108: 0 | E108: 0 | F108: 0 | G108: 0 | H108: 0 | I108: =SUMIFS(profitLoss,dateLog,">="&I107,dateLog,"<"&C110) -> 0
C109: =COUNTIFS(dateLog,">="&C107,dateLog,"<"&D107,actionLog,"sell")+COUNTIFS(dateLog,">="&C107,dateLog,"<"&D107,actionLog,"cover") -> 0 | D109: 0 | E109: 0 | F109: 0 | G109: 0 | H109: 0 | I109: 0
C111: =EOMONTH(C90,0)+1 -> 2018-02-01
C112: SUN | D112: MON | E112: TUE | F112: WED | G112: THU | H112: FRI | I112: SAT
C113: =IF(MONTH(C111)<>MONTH((C111-WEEKDAY(C111,1)+1)),"",(C111-WEEKDAY(C111,1)+1)) ->  | D113: =IF(MONTH(C111)<>MONTH((C111-WEEKDAY(C111,1)+2)),"",(C111-WEEKDAY(C111,1)+2)) ->  | E113: =IF(MONTH(C111)<>MONTH((C111-WEEKDAY(C111,1)+3)),"",(C111-WEEKDAY(C111,1)+3)) ->  | F113: =IF(MONTH(C111)<>MONTH((C111-WEEKDAY(C111,1)+4)),"",(C111-WEEKDAY(C111,1)+4)) ->  | G113: =IF(MONTH(C111)<>MONTH((C111-WEEKDAY(C111,1)+5)),"",(C111-WEEKDAY(C111,1)+5)) -> 2018-02-01 | H113: =IF(MONTH(C111)<>MONTH((C111-WEEKDAY(C111,1)+6)),"",(C111-WEEKDAY(C111,1)+6)) -> 2018-02-02 | I113: =IF(MONTH(C111)<>MONTH((C111-WEEKDAY(C111,1)+7)),"",(C111-WEEKDAY(C111,1)+7)) -> 2018-02-03
C114: =SUMIFS(profitLoss,dateLog,">="&C113,dateLog,"<"&D113) -> 0 | D114: 0 | E114: 0 | F114: 0 | G114: 0 | H114: 0 | I114: =SUMIFS(profitLoss,dateLog,">="&I113,dateLog,"<"&C116) -> 0
C115: =COUNTIFS(dateLog,">="&C113,dateLog,"<"&D113) -> 0 | D115: 0 | E115: 0 | F115: 0 | G115: 0 | H115: 0 | I115: =COUNTIFS(dateLog,">="&I113,dateLog,"<"&(I113+1)) -> 0
C116: =I113+1 -> 2018-02-04 | D116: =C116+1 -> 2018-02-05 | E116: =D116+1 -> 2018-02-06 | F116: =E116+1 -> 2018-02-07 | G116: =F116+1 -> 2018-02-08 | H116: =G116+1 -> 2018-02-09 | I116: =H116+1 -> 2018-02-10
C117: =SUMIFS(profitLoss,dateLog,">="&C116,dateLog,"<"&D116) -> 0 | D117: 0 | E117: 0 | F117: 0 | G117: 0 | H117: 0 | I117: =SUMIFS(profitLoss,dateLog,">="&I116,dateLog,"<"&C119) -> 0
C118: =COUNTIFS(dateLog,">="&C116,dateLog,"<"&D116,actionLog,"sell")+COUNTIFS(dateLog,">="&C116,dateLog,"<"&D116,actionLog,"cover") -> 0 | D118: 0 | E118: 0 | F118: 0 | G118: 0 | H118: 0 | I118: 0
C119: =I116+1 -> 2018-02-11 | D119: =C119+1 -> 2018-02-12 | E119: =D119+1 -> 2018-02-13 | F119: =E119+1 -> 2018-02-14 | G119: =F119+1 -> 2018-02-15 | H119: =G119+1 -> 2018-02-16 | I119: =H119+1 -> 2018-02-17
C120: =SUMIFS(profitLoss,dateLog,">="&C119,dateLog,"<"&D119) -> 0 | D120: 0 | E120: 0 | F120: 0 | G120: 0 | H120: 0 | I120: =SUMIFS(profitLoss,dateLog,">="&I119,dateLog,"<"&C122) -> 0
C121: =COUNTIFS(dateLog,">="&C119,dateLog,"<"&D119,actionLog,"sell")+COUNTIFS(dateLog,">="&C119,dateLog,"<"&D119,actionLog,"cover") -> 0 | D121: 0 | E121: 0 | F121: 0 | G121: 0 | H121: 0 | I121: 0
C122: =I119+1 -> 2018-02-18 | D122: =C122+1 -> 2018-02-19 | E122: =D122+1 -> 2018-02-20 | F122: =E122+1 -> 2018-02-21 | G122: =F122+1 -> 2018-02-22 | H122: =G122+1 -> 2018-02-23 | I122: =H122+1 -> 2018-02-24
C123: =SUMIFS(profitLoss,dateLog,">="&C122,dateLog,"<"&D122) -> 0 | D123: 0 | E123: 0 | F123: 0 | G123: 0 | H123: 0 | I123: =SUMIFS(profitLoss,dateLog,">="&I122,dateLog,"<"&C125) -> 0
C124: =COUNTIFS(dateLog,">="&C122,dateLog,"<"&D122,actionLog,"sell")+COUNTIFS(dateLog,">="&C122,dateLog,"<"&D122,actionLog,"cover") -> 0 | D124: 0 | E124: 0 | F124: 0 | G124: 0 | H124: 0 | I124: 0
C125: =IFERROR(IF(MONTH(C111)<>MONTH(I122+1),"",(I122+1)),"") -> 2018-02-25 | D125: =IFERROR(IF(MONTH(C111)<>MONTH(C125+1),"",(C125+1)),"") -> 2018-02-26 | E125: =IFERROR(IF(MONTH(C111)<>MONTH(D125+1),"",(D125+1)),"") -> 2018-02-27 | F125: =IFERROR(IF(MONTH(C111)<>MONTH(E125+1),"",(E125+1)),"") -> 2018-02-28 | G125: =IFERROR(IF(MONTH(C111)<>MONTH(F125+1),"",(F125+1)),"") ->  | H125: =IFERROR(IF(MONTH(C111)<>MONTH(G125+1),"",(G125+1)),"") ->  | I125: =IFERROR(IF(MONTH(C111)<>MONTH(H125+1),"",(H125+1)),"") -> 
C126: =SUMIFS(profitLoss,dateLog,">="&C125,dateLog,"<"&D125) -> 0 | D126: 0 | E126: 0 | F126: 0 | G126: 0 | H126: 0 | I126: =SUMIFS(profitLoss,dateLog,">="&I125,dateLog,"<"&C128) -> 0
C127: =COUNTIFS(dateLog,">="&C125,dateLog,"<"&D125,actionLog,"sell")+COUNTIFS(dateLog,">="&C125,dateLog,"<"&D125,actionLog,"cover") -> 0 | D127: 0 | E127: 0 | F127: 0 | G127: 0 | H127: 0 | I127: 0
C128: =IFERROR(IF(MONTH(C111)<>MONTH(I125+1),"",(I125+1)),"") ->  | D128: =IFERROR(IF(MONTH(C111)<>MONTH(C128+1),"",(C128+1)),"") ->  | E128: =IFERROR(IF(MONTH(C111)<>MONTH(D128+1),"",(D128+1)),"") ->  | F128: =IFERROR(IF(MONTH(C111)<>MONTH(E128+1),"",(E128+1)),"") ->  | G128: =IFERROR(IF(MONTH(C111)<>MONTH(F128+1),"",(F128+1)),"") ->  | H128: =IFERROR(IF(MONTH(C111)<>MONTH(G128+1),"",(G128+1)),"") ->  | I128: =IFERROR(IF(MONTH(C111)<>MONTH(H128+1),"",(H128+1)),"") -> 
C129: =SUMIFS(profitLoss,dateLog,">="&C128,dateLog,"<"&D128) -> 0 | D129: 0 | E129: 0 | F129: 0 | G129: 0 | H129: 0 | I129: =SUMIFS(profitLoss,dateLog,">="&I128,dateLog,"<"&C131) -> 0
C130: =COUNTIFS(dateLog,">="&C128,dateLog,"<"&D128,actionLog,"sell")+COUNTIFS(dateLog,">="&C128,dateLog,"<"&D128,actionLog,"cover") -> 0 | D130: 0 | E130: 0 | F130: 0 | G130: 0 | H130: 0 | I130: 0
C132: =EOMONTH(C111,0)+1 -> 2018-03-01
C133: SUN | D133: MON | E133: TUE | F133: WED | G133: THU | H133: FRI | I133: SAT
C134: =IF(MONTH(C132)<>MONTH((C132-WEEKDAY(C132,1)+1)),"",(C132-WEEKDAY(C132,1)+1)) ->  | D134: =IF(MONTH(C132)<>MONTH((C132-WEEKDAY(C132,1)+2)),"",(C132-WEEKDAY(C132,1)+2)) ->  | E134: =IF(MONTH(C132)<>MONTH((C132-WEEKDAY(C132,1)+3)),"",(C132-WEEKDAY(C132,1)+3)) ->  | F134: =IF(MONTH(C132)<>MONTH((C132-WEEKDAY(C132,1)+4)),"",(C132-WEEKDAY(C132,1)+4)) ->  | G134: =IF(MONTH(C132)<>MONTH((C132-WEEKDAY(C132,1)+5)),"",(C132-WEEKDAY(C132,1)+5)) -> 2018-03-01 | H134: =IF(MONTH(C132)<>MONTH((C132-WEEKDAY(C132,1)+6)),"",(C132-WEEKDAY(C132,1)+6)) -> 2018-03-02 | I134: =IF(MONTH(C132)<>MONTH((C132-WEEKDAY(C132,1)+7)),"",(C132-WEEKDAY(C132,1)+7)) -> 2018-03-03
C135: =SUMIFS(profitLoss,dateLog,">="&C134,dateLog,"<"&D134) -> 0 | D135: 0 | E135: 0 | F135: 0 | G135: 0 | H135: 0 | I135: =SUMIFS(profitLoss,dateLog,">="&I134,dateLog,"<"&C137) -> 0
C136: =COUNTIFS(dateLog,">="&C134,dateLog,"<"&D134) -> 0 | D136: 0 | E136: 0 | F136: 0 | G136: 0 | H136: 0 | I136: =COUNTIFS(dateLog,">="&I134,dateLog,"<"&(I134+1)) -> 0
C137: =I134+1 -> 2018-03-04 | D137: =C137+1 -> 2018-03-05 | E137: =D137+1 -> 2018-03-06 | F137: =E137+1 -> 2018-03-07 | G137: =F137+1 -> 2018-03-08 | H137: =G137+1 -> 2018-03-09 | I137: =H137+1 -> 2018-03-10
C138: =SUMIFS(profitLoss,dateLog,">="&C137,dateLog,"<"&D137) -> 0 | D138: 0 | E138: 0 | F138: 0 | G138: 0 | H138: 0 | I138: =SUMIFS(profitLoss,dateLog,">="&I137,dateLog,"<"&C140) -> 0
C139: =COUNTIFS(dateLog,">="&C137,dateLog,"<"&D137,actionLog,"sell")+COUNTIFS(dateLog,">="&C137,dateLog,"<"&D137,actionLog,"cover") -> 0 | D139: 0 | E139: 0 | F139: 0 | G139: 0 | H139: 0 | I139: 0
C140: =I137+1 -> 2018-03-11 | D140: =C140+1 -> 2018-03-12 | E140: =D140+1 -> 2018-03-13 | F140: =E140+1 -> 2018-03-14 | G140: =F140+1 -> 2018-03-15 | H140: =G140+1 -> 2018-03-16 | I140: =H140+1 -> 2018-03-17
C141: =SUMIFS(profitLoss,dateLog,">="&C140,dateLog,"<"&D140) -> 0 | D141: 0 | E141: 0 | F141: 0 | G141: 0 | H141: 0 | I141: =SUMIFS(profitLoss,dateLog,">="&I140,dateLog,"<"&C143) -> 0
C142: =COUNTIFS(dateLog,">="&C140,dateLog,"<"&D140,actionLog,"sell")+COUNTIFS(dateLog,">="&C140,dateLog,"<"&D140,actionLog,"cover") -> 0 | D142: 0 | E142: 0 | F142: 0 | G142: 0 | H142: 0 | I142: 0
C143: =I140+1 -> 2018-03-18 | D143: =C143+1 -> 2018-03-19 | E143: =D143+1 -> 2018-03-20 | F143: =E143+1 -> 2018-03-21 | G143: =F143+1 -> 2018-03-22 | H143: =G143+1 -> 2018-03-23 | I143: =H143+1 -> 2018-03-24
C144: =SUMIFS(profitLoss,dateLog,">="&C143,dateLog,"<"&D143) -> 0 | D144: 0 | E144: 0 | F144: 0 | G144: 0 | H144: 0 | I144: =SUMIFS(profitLoss,dateLog,">="&I143,dateLog,"<"&C146) -> 0
C145: =COUNTIFS(dateLog,">="&C143,dateLog,"<"&D143,actionLog,"sell")+COUNTIFS(dateLog,">="&C143,dateLog,"<"&D143,actionLog,"cover") -> 0 | D145: 0 | E145: 0 | F145: 0 | G145: 0 | H145: 0 | I145: 0
C146: =IFERROR(IF(MONTH(C132)<>MONTH(I143+1),"",(I143+1)),"") -> 2018-03-25 | D146: =IFERROR(IF(MONTH(C132)<>MONTH(C146+1),"",(C146+1)),"") -> 2018-03-26 | E146: =IFERROR(IF(MONTH(C132)<>MONTH(D146+1),"",(D146+1)),"") -> 2018-03-27 | F146: =IFERROR(IF(MONTH(C132)<>MONTH(E146+1),"",(E146+1)),"") -> 2018-03-28 | G146: =IFERROR(IF(MONTH(C132)<>MONTH(F146+1),"",(F146+1)),"") -> 2018-03-29 | H146: =IFERROR(IF(MONTH(C132)<>MONTH(G146+1),"",(G146+1)),"") -> 2018-03-30 | I146: =IFERROR(IF(MONTH(C132)<>MONTH(H146+1),"",(H146+1)),"") -> 2018-03-31
C147: =SUMIFS(profitLoss,dateLog,">="&C146,dateLog,"<"&D146) -> 0 | D147: 0 | E147: 0 | F147: 0 | G147: 0 | H147: 0 | I147: =SUMIFS(profitLoss,dateLog,">="&I146,dateLog,"<"&C149) -> 0
C148: =COUNTIFS(dateLog,">="&C146,dateLog,"<"&D146,actionLog,"sell")+COUNTIFS(dateLog,">="&C146,dateLog,"<"&D146,actionLog,"cover") -> 0 | D148: 0 | E148: 0 | F148: 0 | G148: 0 | H148: 0 | I148: 0
C149: =IFERROR(IF(MONTH(C132)<>MONTH(I146+1),"",(I146+1)),"") ->  | D149: =IFERROR(IF(MONTH(C132)<>MONTH(C149+1),"",(C149+1)),"") ->  | E149: =IFERROR(IF(MONTH(C132)<>MONTH(D149+1),"",(D149+1)),"") ->  | F149: =IFERROR(IF(MONTH(C132)<>MONTH(E149+1),"",(E149+1)),"") ->  | G149: =IFERROR(IF(MONTH(C132)<>MONTH(F149+1),"",(F149+1)),"") ->  | H149: =IFERROR(IF(MONTH(C132)<>MONTH(G149+1),"",(G149+1)),"") ->  | I149: =IFERROR(IF(MONTH(C132)<>MONTH(H149+1),"",(H149+1)),"") -> 
C150: =SUMIFS(profitLoss,dateLog,">="&C149,dateLog,"<"&D149) -> 0 | D150: 0 | E150: 0 | F150: 0 | G150: 0 | H150: 0 | I150: =SUMIFS(profitLoss,dateLog,">="&I149,dateLog,"<"&C152) -> 0
C151: =COUNTIFS(dateLog,">="&C149,dateLog,"<"&D149,actionLog,"sell")+COUNTIFS(dateLog,">="&C149,dateLog,"<"&D149,actionLog,"cover") -> 0 | D151: 0 | E151: 0 | F151: 0 | G151: 0 | H151: 0 | I151: 0
C153: =EOMONTH(C132,0)+1 -> 2018-04-01
C154: SUN | D154: MON | E154: TUE | F154: WED | G154: THU | H154: FRI | I154: SAT
C155: =IF(MONTH(C153)<>MONTH((C153-WEEKDAY(C153,1)+1)),"",(C153-WEEKDAY(C153,1)+1)) -> 2018-04-01 | D155: =IF(MONTH(C153)<>MONTH((C153-WEEKDAY(C153,1)+2)),"",(C153-WEEKDAY(C153,1)+2)) -> 2018-04-02 | E155: =IF(MONTH(C153)<>MONTH((C153-WEEKDAY(C153,1)+3)),"",(C153-WEEKDAY(C153,1)+3)) -> 2018-04-03 | F155: =IF(MONTH(C153)<>MONTH((C153-WEEKDAY(C153,1)+4)),"",(C153-WEEKDAY(C153,1)+4)) -> 2018-04-04 | G155: =IF(MONTH(C153)<>MONTH((C153-WEEKDAY(C153,1)+5)),"",(C153-WEEKDAY(C153,1)+5)) -> 2018-04-05 | H155: =IF(MONTH(C153)<>MONTH((C153-WEEKDAY(C153,1)+6)),"",(C153-WEEKDAY(C153,1)+6)) -> 2018-04-06 | I155: =IF(MONTH(C153)<>MONTH((C153-WEEKDAY(C153,1)+7)),"",(C153-WEEKDAY(C153,1)+7)) -> 2018-04-07
C156: =SUMIFS(profitLoss,dateLog,">="&C155,dateLog,"<"&D155) -> 0 | D156: 0 | E156: 0 | F156: 0 | G156: 0 | H156: 0 | I156: =SUMIFS(profitLoss,dateLog,">="&I155,dateLog,"<"&C158) -> 0
C157: =COUNTIFS(dateLog,">="&C155,dateLog,"<"&D155) -> 0 | D157: 0 | E157: 0 | F157: 0 | G157: 0 | H157: 0 | I157: =COUNTIFS(dateLog,">="&I155,dateLog,"<"&(I155+1)) -> 0
C158: =I155+1 -> 2018-04-08 | D158: =C158+1 -> 2018-04-09 | E158: =D158+1 -> 2018-04-10 | F158: =E158+1 -> 2018-04-11 | G158: =F158+1 -> 2018-04-12 | H158: =G158+1 -> 2018-04-13 | I158: =H158+1 -> 2018-04-14
C159: =SUMIFS(profitLoss,dateLog,">="&C158,dateLog,"<"&D158) -> 0 | D159: 0 | E159: 0 | F159: 0 | G159: 0 | H159: 0 | I159: =SUMIFS(profitLoss,dateLog,">="&I158,dateLog,"<"&C161) -> 0
C160: =COUNTIFS(dateLog,">="&C158,dateLog,"<"&D158,actionLog,"sell")+COUNTIFS(dateLog,">="&C158,dateLog,"<"&D158,actionLog,"cover") -> 0 | D160: 0 | E160: 0 | F160: 0 | G160: 0 | H160: 0 | I160: 0
C161: =I158+1 -> 2018-04-15 | D161: =C161+1 -> 2018-04-16 | E161: =D161+1 -> 2018-04-17 | F161: =E161+1 -> 2018-04-18 | G161: =F161+1 -> 2018-04-19 | H161: =G161+1 -> 2018-04-20 | I161: =H161+1 -> 2018-04-21
C162: =SUMIFS(profitLoss,dateLog,">="&C161,dateLog,"<"&D161) -> 0 | D162: 0 | E162: 0 | F162: 0 | G162: 0 | H162: 0 | I162: =SUMIFS(profitLoss,dateLog,">="&I161,dateLog,"<"&C164) -> 0
C163: =COUNTIFS(dateLog,">="&C161,dateLog,"<"&D161,actionLog,"sell")+COUNTIFS(dateLog,">="&C161,dateLog,"<"&D161,actionLog,"cover") -> 0 | D163: 0 | E163: 0 | F163: 0 | G163: 0 | H163: 0 | I163: 0
C164: =I161+1 -> 2018-04-22 | D164: =C164+1 -> 2018-04-23 | E164: =D164+1 -> 2018-04-24 | F164: =E164+1 -> 2018-04-25 | G164: =F164+1 -> 2018-04-26 | H164: =G164+1 -> 2018-04-27 | I164: =H164+1 -> 2018-04-28
C165: =SUMIFS(profitLoss,dateLog,">="&C164,dateLog,"<"&D164) -> 0 | D165: 0 | E165: 0 | F165: 0 | G165: 0 | H165: 0 | I165: =SUMIFS(profitLoss,dateLog,">="&I164,dateLog,"<"&C167) -> 0
C166: =COUNTIFS(dateLog,">="&C164,dateLog,"<"&D164,actionLog,"sell")+COUNTIFS(dateLog,">="&C164,dateLog,"<"&D164,actionLog,"cover") -> 0 | D166: 0 | E166: 0 | F166: 0 | G166: 0 | H166: 0 | I166: 0
C167: =IFERROR(IF(MONTH(C153)<>MONTH(I164+1),"",(I164+1)),"") -> 2018-04-29 | D167: =IFERROR(IF(MONTH(C153)<>MONTH(C167+1),"",(C167+1)),"") -> 2018-04-30 | E167: =IFERROR(IF(MONTH(C153)<>MONTH(D167+1),"",(D167+1)),"") ->  | F167: =IFERROR(IF(MONTH(C153)<>MONTH(E167+1),"",(E167+1)),"") ->  | G167: =IFERROR(IF(MONTH(C153)<>MONTH(F167+1),"",(F167+1)),"") ->  | H167: =IFERROR(IF(MONTH(C153)<>MONTH(G167+1),"",(G167+1)),"") ->  | I167: =IFERROR(IF(MONTH(C153)<>MONTH(H167+1),"",(H167+1)),"") -> 
C168: =SUMIFS(profitLoss,dateLog,">="&C167,dateLog,"<"&D167) -> 0 | D168: 0 | E168: 0 | F168: 0 | G168: 0 | H168: 0 | I168: =SUMIFS(profitLoss,dateLog,">="&I167,dateLog,"<"&C170) -> 0
C169: =COUNTIFS(dateLog,">="&C167,dateLog,"<"&D167,actionLog,"sell")+COUNTIFS(dateLog,">="&C167,dateLog,"<"&D167,actionLog,"cover") -> 0 | D169: 0 | E169: 0 | F169: 0 | G169: 0 | H169: 0 | I169: 0
C170: =IFERROR(IF(MONTH(C153)<>MONTH(I167+1),"",(I167+1)),"") ->  | D170: =IFERROR(IF(MONTH(C153)<>MONTH(C170+1),"",(C170+1)),"") ->  | E170: =IFERROR(IF(MONTH(C153)<>MONTH(D170+1),"",(D170+1)),"") ->  | F170: =IFERROR(IF(MONTH(C153)<>MONTH(E170+1),"",(E170+1)),"") ->  | G170: =IFERROR(IF(MONTH(C153)<>MONTH(F170+1),"",(F170+1)),"") ->  | H170: =IFERROR(IF(MONTH(C153)<>MONTH(G170+1),"",(G170+1)),"") ->  | I170: =IFERROR(IF(MONTH(C153)<>MONTH(H170+1),"",(H170+1)),"") -> 
C171: =SUMIFS(profitLoss,dateLog,">="&C170,dateLog,"<"&D170) -> 0 | D171: 0 | E171: 0 | F171: 0 | G171: 0 | H171: 0 | I171: =SUMIFS(profitLoss,dateLog,">="&I170,dateLog,"<"&C173) -> 0
C172: =COUNTIFS(dateLog,">="&C170,dateLog,"<"&D170,actionLog,"sell")+COUNTIFS(dateLog,">="&C170,dateLog,"<"&D170,actionLog,"cover") -> 0 | D172: 0 | E172: 0 | F172: 0 | G172: 0 | H172: 0 | I172: 0
C174: =EOMONTH(C153,0)+1 -> 2018-05-01
C175: SUN | D175: MON | E175: TUE | F175: WED | G175: THU | H175: FRI | I175: SAT
C176: =IF(MONTH(C174)<>MONTH((C174-WEEKDAY(C174,1)+1)),"",(C174-WEEKDAY(C174,1)+1)) ->  | D176: =IF(MONTH(C174)<>MONTH((C174-WEEKDAY(C174,1)+2)),"",(C174-WEEKDAY(C174,1)+2)) ->  | E176: =IF(MONTH(C174)<>MONTH((C174-WEEKDAY(C174,1)+3)),"",(C174-WEEKDAY(C174,1)+3)) -> 2018-05-01 | F176: =IF(MONTH(C174)<>MONTH((C174-WEEKDAY(C174,1)+4)),"",(C174-WEEKDAY(C174,1)+4)) -> 2018-05-02 | G176: =IF(MONTH(C174)<>MONTH((C174-WEEKDAY(C174,1)+5)),"",(C174-WEEKDAY(C174,1)+5)) -> 2018-05-03 | H176: =IF(MONTH(C174)<>MONTH((C174-WEEKDAY(C174,1)+6)),"",(C174-WEEKDAY(C174,1)+6)) -> 2018-05-04 | I176: =IF(MONTH(C174)<>MONTH((C174-WEEKDAY(C174,1)+7)),"",(C174-WEEKDAY(C174,1)+7)) -> 2018-05-05
C177: =SUMIFS(profitLoss,dateLog,">="&C176,dateLog,"<"&D176) -> 0 | D177: 0 | E177: 0 | F177: 0 | G177: 0 | H177: 0 | I177: =SUMIFS(profitLoss,dateLog,">="&I176,dateLog,"<"&C179) -> 0
C178: =COUNTIFS(dateLog,">="&C176,dateLog,"<"&D176) -> 0 | D178: 0 | E178: 0 | F178: 0 | G178: 0 | H178: 0 | I178: =COUNTIFS(dateLog,">="&I176,dateLog,"<"&(I176+1)) -> 0
C179: =I176+1 -> 2018-05-06 | D179: =C179+1 -> 2018-05-07 | E179: =D179+1 -> 2018-05-08 | F179: =E179+1 -> 2018-05-09 | G179: =F179+1 -> 2018-05-10 | H179: =G179+1 -> 2018-05-11 | I179: =H179+1 -> 2018-05-12
C180: =SUMIFS(profitLoss,dateLog,">="&C179,dateLog,"<"&D179) -> 0 | D180: 0 | E180: 0 | F180: 0 | G180: 0 | H180: 0 | I180: =SUMIFS(profitLoss,dateLog,">="&I179,dateLog,"<"&C182) -> 0
C181: =COUNTIFS(dateLog,">="&C179,dateLog,"<"&D179,actionLog,"sell")+COUNTIFS(dateLog,">="&C179,dateLog,"<"&D179,actionLog,"cover") -> 0 | D181: 0 | E181: 0 | F181: 0 | G181: 0 | H181: 0 | I181: 0
C182: =I179+1 -> 2018-05-13 | D182: =C182+1 -> 2018-05-14 | E182: =D182+1 -> 2018-05-15 | F182: =E182+1 -> 2018-05-16 | G182: =F182+1 -> 2018-05-17 | H182: =G182+1 -> 2018-05-18 | I182: =H182+1 -> 2018-05-19
C183: =SUMIFS(profitLoss,dateLog,">="&C182,dateLog,"<"&D182) -> 0 | D183: 0 | E183: 0 | F183: 0 | G183: 0 | H183: 0 | I183: =SUMIFS(profitLoss,dateLog,">="&I182,dateLog,"<"&C185) -> 0
C184: =COUNTIFS(dateLog,">="&C182,dateLog,"<"&D182,actionLog,"sell")+COUNTIFS(dateLog,">="&C182,dateLog,"<"&D182,actionLog,"cover") -> 0 | D184: 0 | E184: 0 | F184: 0 | G184: 0 | H184: 0 | I184: 0
C185: =I182+1 -> 2018-05-20 | D185: =C185+1 -> 2018-05-21 | E185: =D185+1 -> 2018-05-22 | F185: =E185+1 -> 2018-05-23 | G185: =F185+1 -> 2018-05-24 | H185: =G185+1 -> 2018-05-25 | I185: =H185+1 -> 2018-05-26
C186: =SUMIFS(profitLoss,dateLog,">="&C185,dateLog,"<"&D185) -> 0 | D186: 0 | E186: 0 | F186: 0 | G186: 0 | H186: 0 | I186: =SUMIFS(profitLoss,dateLog,">="&I185,dateLog,"<"&C188) -> 0
C187: =COUNTIFS(dateLog,">="&C185,dateLog,"<"&D185,actionLog,"sell")+COUNTIFS(dateLog,">="&C185,dateLog,"<"&D185,actionLog,"cover") -> 0 | D187: 0 | E187: 0 | F187: 0 | G187: 0 | H187: 0 | I187: 0
C188: =IFERROR(IF(MONTH(C174)<>MONTH(I185+1),"",(I185+1)),"") -> 2018-05-27 | D188: =IFERROR(IF(MONTH(C174)<>MONTH(C188+1),"",(C188+1)),"") -> 2018-05-28 | E188: =IFERROR(IF(MONTH(C174)<>MONTH(D188+1),"",(D188+1)),"") -> 2018-05-29 | F188: =IFERROR(IF(MONTH(C174)<>MONTH(E188+1),"",(E188+1)),"") -> 2018-05-30 | G188: =IFERROR(IF(MONTH(C174)<>MONTH(F188+1),"",(F188+1)),"") -> 2018-05-31 | H188: =IFERROR(IF(MONTH(C174)<>MONTH(G188+1),"",(G188+1)),"") ->  | I188: =IFERROR(IF(MONTH(C174)<>MONTH(H188+1),"",(H188+1)),"") -> 
C189: =SUMIFS(profitLoss,dateLog,">="&C188,dateLog,"<"&D188) -> 0 | D189: 0 | E189: 0 | F189: 0 | G189: 0 | H189: 0 | I189: =SUMIFS(profitLoss,dateLog,">="&I188,dateLog,"<"&C191) -> 0
C190: =COUNTIFS(dateLog,">="&C188,dateLog,"<"&D188,actionLog,"sell")+COUNTIFS(dateLog,">="&C188,dateLog,"<"&D188,actionLog,"cover") -> 0 | D190: 0 | E190: 0 | F190: 0 | G190: 0 | H190: 0 | I190: 0
C191: =IFERROR(IF(MONTH(C174)<>MONTH(I188+1),"",(I188+1)),"") ->  | D191: =IFERROR(IF(MONTH(C174)<>MONTH(C191+1),"",(C191+1)),"") ->  | E191: =IFERROR(IF(MONTH(C174)<>MONTH(D191+1),"",(D191+1)),"") ->  | F191: =IFERROR(IF(MONTH(C174)<>MONTH(E191+1),"",(E191+1)),"") ->  | G191: =IFERROR(IF(MONTH(C174)<>MONTH(F191+1),"",(F191+1)),"") ->  | H191: =IFERROR(IF(MONTH(C174)<>MONTH(G191+1),"",(G191+1)),"") ->  | I191: =IFERROR(IF(MONTH(C174)<>MONTH(H191+1),"",(H191+1)),"") -> 
C192: =SUMIFS(profitLoss,dateLog,">="&C191,dateLog,"<"&D191) -> 0 | D192: 0 | E192: 0 | F192: 0 | G192: 0 | H192: 0 | I192: =SUMIFS(profitLoss,dateLog,">="&I191,dateLog,"<"&C194) -> 0
C193: =COUNTIFS(dateLog,">="&C191,dateLog,"<"&D191,actionLog,"sell")+COUNTIFS(dateLog,">="&C191,dateLog,"<"&D191,actionLog,"cover") -> 0 | D193: 0 | E193: 0 | F193: 0 | G193: 0 | H193: 0 | I193: 0
C195: =EOMONTH(C174,0)+1 -> 2018-06-01
C196: SUN | D196: MON | E196: TUE | F196: WED | G196: THU | H196: FRI | I196: SAT
C197: =IF(MONTH(C195)<>MONTH((C195-WEEKDAY(C195,1)+1)),"",(C195-WEEKDAY(C195,1)+1)) ->  | D197: =IF(MONTH(C195)<>MONTH((C195-WEEKDAY(C195,1)+2)),"",(C195-WEEKDAY(C195,1)+2)) ->  | E197: =IF(MONTH(C195)<>MONTH((C195-WEEKDAY(C195,1)+3)),"",(C195-WEEKDAY(C195,1)+3)) ->  | F197: =IF(MONTH(C195)<>MONTH((C195-WEEKDAY(C195,1)+4)),"",(C195-WEEKDAY(C195,1)+4)) ->  | G197: =IF(MONTH(C195)<>MONTH((C195-WEEKDAY(C195,1)+5)),"",(C195-WEEKDAY(C195,1)+5)) ->  | H197: =IF(MONTH(C195)<>MONTH((C195-WEEKDAY(C195,1)+6)),"",(C195-WEEKDAY(C195,1)+6)) -> 2018-06-01 | I197: =IF(MONTH(C195)<>MONTH((C195-WEEKDAY(C195,1)+7)),"",(C195-WEEKDAY(C195,1)+7)) -> 2018-06-02
C198: =SUMIFS(profitLoss,dateLog,">="&C197,dateLog,"<"&D197) -> 0 | D198: 0 | E198: 0 | F198: 0 | G198: 0 | H198: 0 | I198: =SUMIFS(profitLoss,dateLog,">="&I197,dateLog,"<"&C200) -> 0
C199: =COUNTIFS(dateLog,">="&C197,dateLog,"<"&D197) -> 0 | D199: 0 | E199: 0 | F199: 0 | G199: 0 | H199: 0 | I199: =COUNTIFS(dateLog,">="&I197,dateLog,"<"&(I197+1)) -> 0
C200: =I197+1 -> 2018-06-03 | D200: =C200+1 -> 2018-06-04 | E200: =D200+1 -> 2018-06-05 | F200: =E200+1 -> 2018-06-06 | G200: =F200+1 -> 2018-06-07 | H200: =G200+1 -> 2018-06-08 | I200: =H200+1 -> 2018-06-09
C201: =SUMIFS(profitLoss,dateLog,">="&C200,dateLog,"<"&D200) -> 0 | D201: 0 | E201: 0 | F201: 0 | G201: 0 | H201: 0 | I201: =SUMIFS(profitLoss,dateLog,">="&I200,dateLog,"<"&C203) -> 0
C202: =COUNTIFS(dateLog,">="&C200,dateLog,"<"&D200,actionLog,"sell")+COUNTIFS(dateLog,">="&C200,dateLog,"<"&D200,actionLog,"cover") -> 0 | D202: 0 | E202: 0 | F202: 0 | G202: 0 | H202: 0 | I202: 0
C203: =I200+1 -> 2018-06-10 | D203: =C203+1 -> 2018-06-11 | E203: =D203+1 -> 2018-06-12 | F203: =E203+1 -> 2018-06-13 | G203: =F203+1 -> 2018-06-14 | H203: =G203+1 -> 2018-06-15 | I203: =H203+1 -> 2018-06-16
C204: =SUMIFS(profitLoss,dateLog,">="&C203,dateLog,"<"&D203) -> 0 | D204: 0 | E204: 0 | F204: 0 | G204: 0 | H204: 0 | I204: =SUMIFS(profitLoss,dateLog,">="&I203,dateLog,"<"&C206) -> 0
C205: =COUNTIFS(dateLog,">="&C203,dateLog,"<"&D203,actionLog,"sell")+COUNTIFS(dateLog,">="&C203,dateLog,"<"&D203,actionLog,"cover") -> 0 | D205: 0 | E205: 0 | F205: 0 | G205: 0 | H205: 0 | I205: 0
C206: =I203+1 -> 2018-06-17 | D206: =C206+1 -> 2018-06-18 | E206: =D206+1 -> 2018-06-19 | F206: =E206+1 -> 2018-06-20 | G206: =F206+1 -> 2018-06-21 | H206: =G206+1 -> 2018-06-22 | I206: =H206+1 -> 2018-06-23
C207: =SUMIFS(profitLoss,dateLog,">="&C206,dateLog,"<"&D206) -> 0 | D207: 0 | E207: 0 | F207: 0 | G207: 0 | H207: 0 | I207: =SUMIFS(profitLoss,dateLog,">="&I206,dateLog,"<"&C209) -> 0
C208: =COUNTIFS(dateLog,">="&C206,dateLog,"<"&D206,actionLog,"sell")+COUNTIFS(dateLog,">="&C206,dateLog,"<"&D206,actionLog,"cover") -> 0 | D208: 0 | E208: 0 | F208: 0 | G208: 0 | H208: 0 | I208: 0
C209: =IFERROR(IF(MONTH(C195)<>MONTH(I206+1),"",(I206+1)),"") -> 2018-06-24 | D209: =IFERROR(IF(MONTH(C195)<>MONTH(C209+1),"",(C209+1)),"") -> 2018-06-25 | E209: =IFERROR(IF(MONTH(C195)<>MONTH(D209+1),"",(D209+1)),"") -> 2018-06-26 | F209: =IFERROR(IF(MONTH(C195)<>MONTH(E209+1),"",(E209+1)),"") -> 2018-06-27 | G209: =IFERROR(IF(MONTH(C195)<>MONTH(F209+1),"",(F209+1)),"") -> 2018-06-28 | H209: =IFERROR(IF(MONTH(C195)<>MONTH(G209+1),"",(G209+1)),"") -> 2018-06-29 | I209: =IFERROR(IF(MONTH(C195)<>MONTH(H209+1),"",(H209+1)),"") -> 2018-06-30
C210: =SUMIFS(profitLoss,dateLog,">="&C209,dateLog,"<"&D209) -> 0 | D210: 0 | E210: 0 | F210: 0 | G210: 0 | H210: 0 | I210: =SUMIFS(profitLoss,dateLog,">="&I209,dateLog,"<"&C212) -> 0
C211: =COUNTIFS(dateLog,">="&C209,dateLog,"<"&D209,actionLog,"sell")+COUNTIFS(dateLog,">="&C209,dateLog,"<"&D209,actionLog,"cover") -> 0 | D211: 0 | E211: 0 | F211: 0 | G211: 0 | H211: 0 | I211: 0
C212: =IFERROR(IF(MONTH(C195)<>MONTH(I209+1),"",(I209+1)),"") ->  | D212: =IFERROR(IF(MONTH(C195)<>MONTH(C212+1),"",(C212+1)),"") ->  | E212: =IFERROR(IF(MONTH(C195)<>MONTH(D212+1),"",(D212+1)),"") ->  | F212: =IFERROR(IF(MONTH(C195)<>MONTH(E212+1),"",(E212+1)),"") ->  | G212: =IFERROR(IF(MONTH(C195)<>MONTH(F212+1),"",(F212+1)),"") ->  | H212: =IFERROR(IF(MONTH(C195)<>MONTH(G212+1),"",(G212+1)),"") ->  | I212: =IFERROR(IF(MONTH(C195)<>MONTH(H212+1),"",(H212+1)),"") -> 
... 42 more rows

Sheet Portfolio
C1: PORTFOLIO | AA1: =Settings!T3 -> Php | AB1: 5058451 | AK1: -1.238653707
D4: Account Name: | G4: ='Trade Log'!F3 -> Rocketsheets | I4: PORTFOLIO | P4: PORTFOLIO FORECAST | V4: Worst Case Scenario | Y4: Best Case Scenario | AB4: =N12 -> 0 | AI4: BROKER FEE SETTINGS
D5: End Capital: | G5: ='Trade Log'!F9 -> Php164,487 | I5: Total Bought Value: | L5: =IF(SUM(R15:R44)=0,"No Stock Position",SUM(R15:R44)) -> Php46,366 | P5: Total Bought Value: | V5: =L5 -> Php46,366 | Y5: =L5 -> Php46,366 | AB5: =P12 -> 0 | AI5: Fees | AJ5: From | AK5: Multiply by | AL5: Minimum | AM5: From | AN5: Maximum | AQ5: =(SUM(AM15:AM44)) -> 1501.3365 | AR5: =TEXT(AQ5/$G$7,"0.00 R") -> 0.91 R | AV5: =1500*6 -> 9000
D6: Equity% to risk per trade (1R): | G6: 1.00% | I6: Total Portfolio Trade Value: | L6: =IFERROR(SUM(K15:K44),0) -> Php47,868 | P6: Total Portfolio Trade Value: | V6: =IFERROR(V5+AQ6,0) -> Php44,722 | Y6: =IFERROR(Y5+AQ7,0) -> Php51,301 | AI6: =Settings!V3 -> Commission | AJ6: =Settings!W3 -> Amount | AK6: =Settings!X3 -> 0.0025 | AL6: =Settings!Y3 -> 20 | AM6: =Settings!Z3 -> Amount | AN6: =Settings!AA3 -> 0 | AQ6: =SUM(AO15:AO44) -> -1644.865349 | AR6: =TEXT(AQ6/$G$7,"0.00 R") -> -1.00 R | AV6: 6000 | AW6: =AV5-AV6 -> 3000 | AX6: =AW6/AV5 -> 0.3333333333
D7: Value At Risk per trade (VAR): | G7: =G5*G6 -> Php1,645 | I7: Total Equities Gain/Loss: | L7: =IFERROR(IF(G9="R-Multiple",AR5,AQ5),"") -> Php1,501 | P7: Total Equities Gain/Loss: | V7: =IFERROR(IF(G9="R-Multiple",AR6,AQ6),"") -> Php-1,645 | Y7: =IFERROR(IF(G9="R-Multiple",AR7,AQ7),"") -> Php4,935 | AA7: Market Price | AI7: =Settings!V4 -> VAT | AJ7: =Settings!W4 -> Amount | AK7: =Settings!X4 -> 0.0003 | AL7: =Settings!Y4 -> 2.4 | AM7: =Settings!Z4 -> Amount | AN7: =Settings!AA4 -> 0 | AQ7: =SUM(AQ15:AQ44) -> 4934.596046 | AR7: =TEXT(AQ7/$G$7,"0.00 R") -> 3.00 R | AV7: 3000 | AW7: 2000 | AX7: =1000/AV7 -> 0.3333333333
D8: Cash Balance: | G8: ='Trade Log'!F10 -> Php118,120 | I8: Total Equities Gain/Loss% : | M8: =IFERROR(AQ5/L5,0) -> 3.24% | P8: Total Equities Gain/Loss% : | W8: =IFERROR(AQ6/V5,0) -> -3.55% | Z8: =IFERROR(AQ7/Y5,0) -> 10.64% | AA8: Ave. Price | AI8: =Settings!V5 -> Tax | AJ8: =Settings!W5 -> Amount | AK8: =Settings!X5 -> 0.00015 | AL8: =Settings!Y5 -> 0 | AM8: =Settings!Z5 -> Amount | AN8: =Settings!AA5 -> 0 | AV8: 3800 | AW8: 2500 | AX8: =AW8/AV8 -> 0.6578947368
D9: Gain/Loss Preview Option: | G9: Value | I9: Total Account Equity Value: | L9: =IFERROR(L6+G8,"") -> Php165,988 | P9: Total Account Equity Value: | V9: =IFERROR(V6+G8,0) -> Php162,842 | Y9: =Y6+G8 -> Php169,421 | AB9: LONG | AI9: =Settings!V6 -> Sales Tax | AJ9: =Settings!W6 -> Amount | AK9: =Settings!X6 -> 0.006 | AL9: =Settings!Y6 -> 0 | AM9: =Settings!Z6 -> Amount | AN9: =Settings!AA6 -> 0
AB10: SHORT
AB11: Value
AB12: R-Multiple
D13: WT% | E13: TYPE | F13: SYMBOL | G13: MARKET PRICE | H13: AVERAGE PRICE | I13: TOTAL SHARES | J13: DAYS HOLD | K13: UNREALIZED GAIN/LOSS | N13: Stop-Loss or Trail Stop | O13: Target Price | P13: STOP - R | Q13: TARGET - R | V13: TRADE PLAN UNREALIZED GAIN/LOSS | AB13: code | BB13: RETRIEVE
K14: MARKET VALUE | L14: PROFIT/LOSS | M14: %P&L | P14: 1.0 R | Q14: 3.0 R | R14: capital | T14: MARKET VALUE | V14: PROFIT/LOSS | W14: %P&L | Y14: PROFIT/LOSS | Z14: %P&L | AA14: NOTES | AB14: 1st | AC14: 2nd | AG14: fee | AH14: fee | AI14: fee | AJ14: fee | AK14: total fees | AL14: 1R g&l | AM14: gain/loss | AN14: r-mul | AO14: 1st col | AP14: r-mul | AQ14: 2nd column | AR14: fee | AS14: fee | AT14: fee | AU14: fee | AV14: total | AY14: open position | AZ14: aep | BA14: shares | BB14: stop | BC14: tp | BD14: STOCK | BE14: MV | BF14: lookup | BG14: lookup | BH14: helper | BI14: helper | BJ14: MV
C15: 1 | D15: =IFERROR((R15/$L$5)*100,"") -> 100.0 | E15: LONG | F15: PXP | G15: 7.000 | H15: 6.720 | I15: 6900 | J15: =IFERROR(IF(F15="","",calc!BO15),"") -> 27 | K15: =IF(I15=0,"",IF((G15=""),"",IF(E15="Short",T15+AK15,T15-AK15))) -> 47,867.72 | L15: =IFERROR(IF($G$9="R-Multiple",AL15,AM15),"") -> 1,501.34 | M15: =IFERROR(S15/R15,"") -> 3.24% | P15: =IFERROR(IF(AE15="L",(R15-($G$7*$P$14)+AV15)/I15,((R15+($G$7*$P$14)+AV15)/I15)),"") -> 6.542 | Q15: =IFERROR(IF(AE15="L",(R15+($G$7*$Q$14)+AV15)/I15,((R15-($G$7*$Q$14)+AV15)/I15)),"") -> 7.495 | R15: =H15*I15 -> 46366.3785 | S15: =K15-R15 -> 1501.3365 | T15: =G15*I15 -> 48300 | U15: =IFERROR(IF(F15="","",IF(INDEX('Stock Position'!$Z$252:$Z$1015,MATCH(F15,'Trade Log'!$CV$55:$CV$1172,0))="L","LONG","SHORT")),"LONG") -> LONG | V15: =AW15 -> -1,644.87 | W15: =IFERROR(AO15/R15,"") -> -3.55% | Y15: =AX15 -> 4,934.60 | Z15: =IFERROR(AQ15/R15,"") -> 10.64% | AB15: =IF(N15="",P15,N15) -> 6.541520614 | AC15: =IF(O15="",Q15,O15) -> 7.495065744 | AE15: =IFERROR(IF(E15="SHORT","s","L"),"L") -> L | AG15: =IF(I15="","",IF(IF($AM$6="Amount",$AN$6*T15,IF($AM$6="Total Shares",$AN$6*I15,$AN$6))=0,MAX(IF($AJ$6="amount",(T15*$AK$6),IF($AJ$6="Total Shares",($AK$6*I15),$AK$6)),$AL$6),MIN(IF($AM$6="Amount",$AN$6*T15,IF($AM$6="Total Shares",$AN$6*I15,$AN$6)),MAX(IF($AJ$6="amount",(T15*$AK$6),IF($AJ$6="Total Shares",($AK$6*I15),$AK$6)),$AL$6)))) -> 120.75 | AH15: =IF(I15="","",IF(IF($AM$7="Amount",$AN$7*T15,IF($AM$7="Total Shares",$AN$7*I15,$AN$7))=0,MAX(IF($AJ$7="amount",(T15*$AK$7),IF($AJ$7="Total Shares",($AK$7*I15),$AK$7)),$AL$7),MIN(IF($AM$7="Amount",$AN$7*T15,IF($AM$7="Total Shares",$AN$7*I15,$AN$7)),MAX(IF($AJ$7="amount",(T15*$AK$7),IF($AJ$7="Total Shares",($AK$7*I15),$AK$7)),$AL$7)))) -> 14.49 | AI15: =IF(IF($AM$8="Amount",$AN$8*T15,IF($AM$8="Total Shares",$AN$8*I15,$AN$8))=0,MAX(IF($AJ$8="amount",(T15*$AK$8),IF($AJ$8="Total Shares",($AK$8*I15),$AK$8)),$AL$8),MIN(IF($AM$8="Amount",$AN$8*T15,IF($AM$8="Total Shares",$AN$8*I15,$AN$8)),MAX(IF($AJ$8="amount",(T15*$AK$8),IF($AJ$8="Total Shares",($AK$8*I15),$AK$8)),$AL$8))) -> 7.245 | AJ15: =IF(IF($AM$9="Amount",$AN$9*T15,IF($AM$9="Total Shares",$AN$9*I15,$AN$9))=0,MAX(IF($AJ$9="amount",(T15*$AK$9),IF($AJ$9="Total Shares",($AK$9*I15),$AK$9)),$AL$9),MIN(IF($AM$9="Amount",$AN$9*T15,IF($AM$9="Total Shares",$AN$9*I15,$AN$9)),MAX(IF($AJ$9="amount",(T15*$AK$9),IF($AJ$9="Total Shares",($AK$9*I15),$AK$9)),$AL$9))) -> 289.8 | AK15: =SUM(AG15:AJ15) -> 432.285 | AL15: =TEXT((AM15/$G$7),"0.00R") -> 0.91R | AM15: =IFERROR(IF(R15=0,"",IF(AE15="L",K15-R15,(R15-K15)-AJ15)),0) -> 1501.3365 | AN15: =TEXT((AO15/$G$7),"0.00R") -> -1.00R | AO15: =IFERROR(IF(AB15=0,"",IF(AE15="L",(((AB15*I15)-AV15)-R15),(R15-((AB15*I15)-AU15)))),"") -> -1644.865349 | AP15: =IF(F15="","",TEXT((AQ15/$G$7),"0.00R")) -> 3.00R | AQ15: =IF(AC15=0,"",IFERROR(IF(AE15="L",(((AC15*I15)-AV15)-R15),(R15-((AC15*I15)-AU15))),"")) -> 4934.596046 | AR15: =IF(I15="","",IF(IF($AM$6="Amount",$AN$6*R15,IF($AM$6="Total Shares",$AN$6*I15,$AN$6))=0,MAX(IF($AJ$6="amount",(R15*$AK$6),IF($AJ$6="Total Shares",($AK$6*I15),$AK$6)),$AL$6),MIN(IF($AM$6="Amount",$AN$6*R15,IF($AM$6="Total Shares",$AN$6*I15,$AN$6)),MAX(IF($AJ$6="amount",(R15*$AK$6),IF($AJ$6="Total Shares",($AK$6*I15),$AK$6)),$AL$6)))) -> 115.9159463 | AS15: =IF(I15="","",IF(IF($AM$7="Amount",$AN$7*R15,IF($AM$7="Total Shares",$AN$7*I15,$AN$7))=0,MAX(IF($AJ$7="amount",(R15*$AK$7),IF($AJ$7="Total Shares",($AK$7*I15),$AK$7)),$AL$7),MIN(IF($AM$7="Amount",$AN$7*R15,IF($AM$7="Total Shares",$AN$7*I15,$AN$7)),MAX(IF($AJ$7="amount",(R15*$AK$7),IF($AJ$7="Total Shares",($AK$7*I15),$AK$7)),$AL$7)))) -> 13.90991355 | AT15: =IF(IF($AM$8="Amount",$AN$8*R15,IF($AM$8="Total Shares",$AN$8*I15,$AN$8))=0,MAX(IF($AJ$8="amount",(R15*$AK$8),IF($AJ$8="Total Shares",($AK$8*I15),$AK$8)),$AL$8),MIN(IF($AM$8="Amount",$AN$8*R15,IF($AM$8="Total Shares",$AN$8*I15,$AN$8)),MAX(IF($AJ$8="amount",(R15*$AK$8),IF($AJ$8="Total Shares",($AK$8*I15),$AK$8)),$AL$8))) -> 6.954956775 | AU15: =IF(IF($AM$9="Amount",$AN$9*R15,IF($AM$9="Total Shares",$AN$9*I15,$AN$9))=0,MAX(IF($AJ$9="amount",(R15*$AK$9),IF($AJ$9="Total Shares",($AK$9*I15),$AK$9)),$AL$9),MIN(IF($AM$9="Amount",$AN$9*R15,IF($AM$9="Total Shares",$AN$9*I15,$AN$9)),MAX(IF($AJ$9="amount",(R15*$AK$9),IF($AJ$9="Total Shares",($AK$9*I15),$AK$9)),$AL$9))) -> 278.198271 | AV15: =SUM(AR15:AU15) -> 414.9790876 | AW15: =IF(I15="","",IFERROR(IF($G$9="R-Multiple",AN15,AO15),"")) -> -1644.865349 | AX15: =IF(I15="","",IFERROR(IF($G$9="R-Multiple",AP15,AQ15),"")) -> 4934.596046 | AY15: =calc!BI15 -> PXP | AZ15: =IF(calc!BK15=0,"",calc!BK15) -> 6.719765 | BA15: =IF(calc!BJ15=0,"",calc!BJ15) -> 6900 | BD15: JGS | BE15: 80 | BF15: =IFERROR(INDEX($BB$15:$BB$44,MATCH(AY15,$BD$15:$BD$44,0)),"") ->  | BG15: =IFERROR(INDEX($BC$15:$BC$44,MATCH(AY15,$BD$15:$BD$44,0)),"") ->  | BH15: =IF(BF15=0,"",BF15) ->  | BI15: =IF(BG15=0,"",BG15) ->  | BJ15: =IF(BK15=0,"",BK15) ->  | BK15: =IFERROR(INDEX($BE$15:$BE$44,MATCH(AY15,$BD$15:$BD$44,0)),"") -> 
C16: =C15+1 -> 2 | D16: =IFERROR((R16/$L$5)*100,"") -> 0.0 | J16: =IFERROR(IF(F16="","",calc!BO16),"") ->  | M16: =IFERROR(S16/R16,"") ->  | R16: 0 | S16: =K16-R16 ->  | T16: 0 | U16: =IFERROR(IF(F16="","",IF(INDEX('Stock Position'!$Z$252:$Z$1015,MATCH(F16,'Trade Log'!$CV$55:$CV$1172,0))="L","LONG","SHORT")),"LONG") ->  | V16: =AW16 ->  | Y16: =AX16 ->  | AE16: L | AI16: 0 | AJ16: 0 | AK16: =SUM(AG16:AJ16) -> 0 | AT16: 0 | AU16: 0 | AV16: =SUM(AR16:AU16) -> 0 | AY16: =calc!BI16 ->  | AZ16: =IF(calc!BK16=0,"",calc!BK16) ->  | BA16: =IF(calc!BJ16=0,"",calc!BJ16) ->  | BD16: WLCON | BE16: 16.2 | BF16: =IFERROR(INDEX($BB$15:$BB$44,MATCH(AY16,$BD$15:$BD$44,0)),"") ->  | BG16: =IFERROR(INDEX($BC$15:$BC$44,MATCH(AY16,$BD$15:$BD$44,0)),"") ->  | BH16: =IF(BF16=0,"",BF16) ->  | BI16: =IF(BG16=0,"",BG16) ->  | BJ16: =IF(BK16=0,"",BK16) ->  | BK16: =IFERROR(INDEX($BE$15:$BE$44,MATCH(AY16,$BD$15:$BD$44,0)),"") -> 
C17: =C16+1 -> 3 | D17: 0.0 | J17: =IFERROR(IF(F17="","",calc!BO17),"") ->  | R17: 0 | T17: 0 | U17: =IFERROR(IF(F17="","",IF(INDEX('Stock Position'!$Z$252:$Z$1015,MATCH(F17,'Trade Log'!$CV$55:$CV$1172,0))="L","LONG","SHORT")),"LONG") ->  | AE17: L | AI17: 0 | AJ17: 0 | AK17: =SUM(AG17:AJ17) -> 0 | AT17: 0 | AU17: 0 | AV17: 0 | AY17: =calc!BI17 ->  | AZ17: =IF(calc!BK17=0,"",calc!BK17) ->  | BA17: =IF(calc!BJ17=0,"",calc!BJ17) ->  | BD17: BCOR | BE17: 3.2 | BF17: =IFERROR(INDEX($BB$15:$BB$44,MATCH(AY17,$BD$15:$BD$44,0)),"") ->  | BG17: =IFERROR(INDEX($BC$15:$BC$44,MATCH(AY17,$BD$15:$BD$44,0)),"") -> 
C18: 4 | D18: 0.0 | J18: =IFERROR(IF(F18="","",calc!BO18),"") ->  | R18: 0 | T18: 0 | U18: =IFERROR(IF(F18="","",IF(INDEX('Stock Position'!$Z$252:$Z$1015,MATCH(F18,'Trade Log'!$CV$55:$CV$1172,0))="L","LONG","SHORT")),"LONG") ->  | AE18: L | AI18: 0 | AJ18: 0 | AK18: 0 | AT18: 0 | AU18: 0 | AV18: 0 | AY18: =calc!BI18 ->  | AZ18: =IF(calc!BK18=0,"",calc!BK18) ->  | BA18: =IF(calc!BJ18=0,"",calc!BJ18) ->  | BD18: SMPH | BE18: 40
C19: 5 | D19: 0.0 | J19: =IFERROR(IF(F19="","",calc!BO19),"") ->  | R19: 0 | T19: 0 | U19: =IFERROR(IF(F19="","",IF(INDEX('Stock Position'!$Z$252:$Z$1015,MATCH(F19,'Trade Log'!$CV$55:$CV$1172,0))="L","LONG","SHORT")),"LONG") ->  | AE19: L | AI19: 0 | AJ19: 0 | AK19: 0 | AT19: 0 | AU19: 0 | AV19: 0 | AY19: =calc!BI19 ->  | AZ19: =IF(calc!BK19=0,"",calc!BK19) ->  | BA19: =IF(calc!BJ19=0,"",calc!BJ19) -> 
C20: 6 | D20: 0.0 | J20: =IFERROR(IF(F20="","",calc!BO20),"") ->  | R20: 0 | T20: 0 | U20: =IFERROR(IF(F20="","",IF(INDEX('Stock Position'!$Z$252:$Z$1015,MATCH(F20,'Trade Log'!$CV$55:$CV$1172,0))="L","LONG","SHORT")),"LONG") ->  | AE20: L | AI20: 0 | AJ20: 0 | AK20: 0 | AT20: 0 | AU20: 0 | AV20: 0 | AY20: =calc!BI20 ->  | AZ20: =IF(calc!BK20=0,"",calc!BK20) ->  | BA20: =IF(calc!BJ20=0,"",calc!BJ20) -> 
AB21: 0 | AC21: 0 | AE21: L | AI21: 0 | AJ21: 0 | AK21: 0 | AT21: 0 | AU21: 0 | AV21: 0 | AY21: =calc!BI21 ->  | AZ21: =IF(calc!BK21=0,"",calc!BK21) ->  | BA21: =IF(calc!BJ21=0,"",calc!BJ21) -> 
AB22: 0 | AC22: 0 | AE22: L | AI22: 0 | AJ22: 0 | AK22: 0 | AT22: 0 | AU22: 0 | AV22: 0 | AY22: =calc!BI22 ->  | AZ22: =IF(calc!BK22=0,"",calc!BK22) ->  | BA22: =IF(calc!BJ22=0,"",calc!BJ22) -> 
AB23: 0 | AC23: 0 | AE23: L | AI23: 0 | AJ23: 0 | AK23: 0 | AT23: 0 | AU23: 0 | AV23: 0 | AY23: =calc!BI23 ->  | AZ23: =IF(calc!BK23=0,"",calc!BK23) ->  | BA23: =IF(calc!BJ23=0,"",calc!BJ23) -> 
AB24: 0 | AC24: 0 | AE24: L | AI24: 0 | AJ24: 0 | AK24: 0 | AT24: 0 | AU24: 0 | AV24: 0 | AY24: =calc!BI24 ->  | AZ24: =IF(calc!BK24=0,"",calc!BK24) ->  | BA24: =IF(calc!BJ24=0,"",calc!BJ24) -> 
AB25: 0 | AC25: 0 | AE25: L | AI25: 0 | AJ25: 0 | AK25: 0 | AT25: 0 | AU25: 0 | AV25: 0 | AY25: =calc!BI25 ->  | AZ25: =IF(calc!BK25=0,"",calc!BK25) ->  | BA25: =IF(calc!BJ25=0,"",calc!BJ25) -> 
AB26: 0 | AC26: 0 | AE26: L | AI26: 0 | AJ26: 0 | AK26: 0 | AT26: 0 | AU26: 0 | AV26: 0 | AY26: =calc!BI26 ->  | AZ26: =IF(calc!BK26=0,"",calc!BK26) ->  | BA26: =IF(calc!BJ26=0,"",calc!BJ26) -> 
AB27: 0 | AC27: 0 | AE27: L | AI27: 0 | AJ27: 0 | AK27: 0 | AT27: 0 | AU27: 0 | AV27: 0 | AY27: =calc!BI27 ->  | AZ27: =IF(calc!BK27=0,"",calc!BK27) ->  | BA27: =IF(calc!BJ27=0,"",calc!BJ27) -> 
AB28: 0 | AC28: 0 | AE28: L | AI28: 0 | AJ28: 0 | AK28: 0 | AT28: 0 | AU28: 0 | AV28: 0 | AY28: =calc!BI28 ->  | AZ28: =IF(calc!BK28=0,"",calc!BK28) ->  | BA28: =IF(calc!BJ28=0,"",calc!BJ28) -> 
AB29: 0 | AC29: 0 | AE29: L | AI29: 0 | AJ29: 0 | AK29: 0 | AT29: 0 | AU29: 0 | AV29: 0 | AY29: =calc!BI29 ->  | AZ29: =IF(calc!BK29=0,"",calc!BK29) ->  | BA29: =IF(calc!BJ29=0,"",calc!BJ29) -> 
AB30: 0 | AC30: 0 | AE30: L | AI30: 0 | AJ30: 0 | AK30: 0 | AT30: 0 | AU30: 0 | AV30: 0 | AY30: =calc!BI30 ->  | AZ30: =IF(calc!BK30=0,"",calc!BK30) ->  | BA30: =IF(calc!BJ30=0,"",calc!BJ30) -> 
AB31: 0 | AC31: 0 | AE31: L | AI31: 0 | AJ31: 0 | AK31: 0 | AT31: 0 | AU31: 0 | AV31: 0 | AY31: =calc!BI31 ->  | AZ31: =IF(calc!BK31=0,"",calc!BK31) ->  | BA31: =IF(calc!BJ31=0,"",calc!BJ31) -> 
AB32: 0 | AC32: 0 | AE32: L | AI32: 0 | AJ32: 0 | AK32: 0 | AT32: 0 | AU32: 0 | AV32: 0 | AY32: =calc!BI32 ->  | AZ32: =IF(calc!BK32=0,"",calc!BK32) ->  | BA32: =IF(calc!BJ32=0,"",calc!BJ32) -> 
AB33: 0 | AC33: 0 | AE33: L | AI33: 0 | AJ33: 0 | AK33: 0 | AT33: 0 | AU33: 0 | AV33: 0 | AY33: =calc!BI33 ->  | AZ33: =IF(calc!BK33=0,"",calc!BK33) ->  | BA33: =IF(calc!BJ33=0,"",calc!BJ33) -> 
AB34: 0 | AC34: 0 | AE34: L | AI34: 0 | AJ34: 0 | AK34: 0 | AT34: 0 | AU34: 0 | AV34: 0 | AY34: =calc!BI34 ->  | AZ34: =IF(calc!BK34=0,"",calc!BK34) ->  | BA34: =IF(calc!BJ34=0,"",calc!BJ34) -> 
AB35: 0 | AC35: 0 | AE35: L | AI35: 0 | AJ35: 0 | AK35: 0 | AT35: 0 | AU35: 0 | AV35: 0 | AY35: =calc!BI35 ->  | AZ35: =IF(calc!BK35=0,"",calc!BK35) ->  | BA35: =IF(calc!BJ35=0,"",calc!BJ35) -> 
AB36: 0 | AC36: 0 | AE36: L | AI36: 0 | AJ36: 0 | AK36: 0 | AT36: 0 | AU36: 0 | AV36: 0 | AY36: =calc!BI36 ->  | AZ36: =IF(calc!BK36=0,"",calc!BK36) ->  | BA36: =IF(calc!BJ36=0,"",calc!BJ36) -> 
AB37: 0 | AC37: 0 | AE37: L | AI37: 0 | AJ37: 0 | AK37: 0 | AT37: 0 | AU37: 0 | AV37: 0 | AY37: =calc!BI37 ->  | AZ37: =IF(calc!BK37=0,"",calc!BK37) ->  | BA37: =IF(calc!BJ37=0,"",calc!BJ37) -> 
AB38: 0 | AC38: 0 | AE38: L | AI38: 0 | AJ38: 0 | AK38: 0 | AT38: 0 | AU38: 0 | AV38: 0 | AY38: =calc!BI38 ->  | AZ38: =IF(calc!BK38=0,"",calc!BK38) ->  | BA38: =IF(calc!BJ38=0,"",calc!BJ38) -> 
AB39: 0 | AC39: 0 | AE39: L | AI39: 0 | AJ39: 0 | AK39: 0 | AT39: 0 | AU39: 0 | AV39: 0 | AY39: =calc!BI39 ->  | AZ39: =IF(calc!BK39=0,"",calc!BK39) ->  | BA39: =IF(calc!BJ39=0,"",calc!BJ39) -> 
AB40: 0 | AC40: 0 | AE40: L | AI40: 0 | AJ40: 0 | AK40: 0 | AT40: 0 | AU40: 0 | AV40: 0 | AY40: =calc!BI40 ->  | AZ40: =IF(calc!BK40=0,"",calc!BK40) ->  | BA40: =IF(calc!BJ40=0,"",calc!BJ40) -> 
AB41: 0 | AC41: 0 | AE41: L | AI41: 0 | AJ41: 0 | AK41: 0 | AT41: 0 | AU41: 0 | AV41: 0 | AY41: =calc!BI41 ->  | AZ41: =IF(calc!BK41=0,"",calc!BK41) ->  | BA41: =IF(calc!BJ41=0,"",calc!BJ41) -> 
AB42: 0 | AC42: 0 | AE42: L | AI42: 0 | AJ42: 0 | AK42: 0 | AT42: 0 | AU42: 0 | AV42: 0 | AY42: =calc!BI42 ->  | AZ42: =IF(calc!BK42=0,"",calc!BK42) ->  | BA42: =IF(calc!BJ42=0,"",calc!BJ42) -> 
AB43: 0 | AC43: 0 | AE43: L | AI43: 0 | AJ43: 0 | AK43: 0 | AT43: 0 | AU43: 0 | AV43: 0 | AY43: =calc!BI43 ->  | AZ43: =IF(calc!BK43=0,"",calc!BK43) ->  | BA43: =IF(calc!BJ43=0,"",calc!BJ43) -> 
AB44: 0 | AC44: 0 | AE44: L | AI44: 0 | AJ44: 0 | AK44: 0 | AT44: 0 | AU44: 0 | AV44: 0 | AY44: =calc!BI44 ->  | AZ44: =IF(calc!BK44=0,"",calc!BK44) ->  | BA44: =IF(calc!BJ44=0,"",calc!BJ44) -> 
D46: 0.0

Sheet Stock Position
C1: STOCK POSITION | AC1: =Settings!T3 -> Php | AP1: =AP4+AP5 -> 12 | AR1: =Form!U41 -> Most Trades | AT1: count | AU1: match | AV1: id | AW1: WIN | AX1: LOSS | AY1: RATE | AZ1: profit | BA1: ave.duration | BB1: ave.allocation | BC1: ave win% | BD1: ave loss%
X3: =-'Bank Transfers'!E7 -> 12495.3652 | Y3: ='Bank Transfers'!E6+'Bank Transfers'!E8 -> 56981.90005 | AF3: previous | AG3: =DATE(YEAR(AG4),MONTH(AG4)-1,DAY(1)) -> 42979 | AH3: =DATE(YEAR(AG3),MONTH(AG3),DAY(1)) -> 42979 | AI3: =DATE(YEAR(AG3),MONTH(AG3)+1,DAY(1)-1) -> 43008
D4: SUMMARY | AF4: current | AG4: ='Monthly Report'!W3 -> 43038 | AH4: =DATE(YEAR(AG4),MONTH(AG4),DAY(1)) -> 43009 | AI4: =DATE(YEAR(AG4),MONTH(AG4)+1,DAY(1)-1) -> 43039 | AJ4: ='Monthly Report'!M22 -> 2012.0257 | AK4: =IFERROR(INDEX('Monthly Report'!$E$22:$E$87,MATCH(AH4,'Monthly Report'!$Y$22:$Y$87,0)),0) -> 142474.5091 | AL4: =IFERROR(AJ4/AK4,0) -> 0.01412200479 | AO4: Profitable | AP4: =COUNTIF(calc!AO15:AO251,">0") -> 6 | AQ4: =INDEX('Trade Log'!$BT$15:$BT$977,AU4) -> PXP | AR4: =MATCH(AV4,calc!$AS$15:$AS$251,0) -> 4 | AS4: 1 | AT4: =LARGE('Trade Log'!$BZ$15:$BZ$977,AS4) -> 7.0000004 | AU4: =MATCH(AT4,'Trade Log'!$BZ$15:$BZ$977,0) -> 4 | AV4: =IF($AR$1="Most Trades",AQ4,IF($AR$1="Top Symbol",D15,M15)) -> PXP | AW4: =INDEX(calc!AT$15:AT$251,$AR4) -> 4 | AX4: =INDEX(calc!AU$15:AU$251,$AR4) -> 2 | AY4: =AW4/AT4 -> 0.5714285388 | AZ4: =INDEX(calc!AX$15:AX$251,$AR4) -> 22728.11775 | BA4: =SUMIFS('Trade Log'!$AB$15:$AB$20100,stats,">0",'Trade Log'!$Q15:$Q20100,0,symbol,AV4)/(AW4+AX4) -> 2.333333333 | BB4: =SUMIFS('Trade Log'!$AR$15:$AR$20100,dateLog,">0",symbol,AV4)/(AW4+AX4) -> 0.3180775478 | BC4: =IFERROR(SUMIFS(profitPercent,stats,2,dateLog,">0",symbol,AV4)/AW4,"NA") -> 0.1781103173 | BD4: =IFERROR(SUMIFS(profitPercent,stats,1,dateLog,">0",symbol,AV4)/AW4,"NA") -> -0.01920044179 | BE4: OVERALL TRADE STATISTICS
C5: ="d"&COUNT(E15:E1472)+15 -> d21 | G5: Stock Code | H5: Profit | I5: Trades (Win%) | M5: Win Rate % | N5: Average Days | O5: Average Allocation | P5: Average Win% | Q5: Average Loss % | AF5: =MAX($AF$11,AH5) -> 4273600.00% | AG5: Q1 | AH5: =DATE(YEAR(AG4),MONTH(1),DAY(1)) -> 42736 | AI5: =DATE(YEAR(AH5),MONTH(AH5)+3,DAY(1)-1) -> 42825 | AJ5: =SUMIFS(profitLoss,dateLog,">="&AH5,dateLog,"<="&AI5) -> 0 | AK5: =IF(AM5=0,'Bank Transfers'!H15,AM5) -> 100000 | AL5: 0 | AM5: =INDEX('Monthly Report'!$E$22:$E$87,IFERROR(MATCH(AF5,'Monthly Report'!$Y$22:$Y$87,0),MATCH('Bank Transfers'!$L$15,'Monthly Report'!$Y$22:$Y$87,0))) -> 100000 | AO5: Non-Profitable | AP5: =COUNTIF(calc!AP15:AP251,">0") -> 6 | AQ5: =INDEX('Trade Log'!$BT$15:$BT$977,AU5) -> APX | AR5: =MATCH(AV5,calc!$AS$15:$AS$251,0) -> 7 | AS5: 2 | AT5: =LARGE('Trade Log'!$BZ$15:$BZ$977,AS5) -> 3.0000007 | AU5: =MATCH(AT5,'Trade Log'!$BZ$15:$BZ$977,0) -> 7 | AV5: =IF($AR$1="Most Trades",AQ5,IF($AR$1="Top Symbol",D16,M16)) -> APX | AW5: =INDEX(calc!AT$15:AT$251,$AR5) -> 1 | AX5: =INDEX(calc!AU$15:AU$251,$AR5) -> 2 | AY5: =AW5/AT5 -> 0.3333332556 | AZ5: =INDEX(calc!AX$15:AX$251,$AR5) -> 7448.7155 | BA5: =SUMIFS('Trade Log'!$AB$15:$AB$20100,stats,">0",'Trade Log'!$Q16:$Q20101,0,symbol,AV5)/(AW5+AX5) -> 0.3333333333 | BB5: =SUMIFS('Trade Log'!$AR$15:$AR$20100,dateLog,">0",symbol,AV5)/(AW5+AX5) -> 0.3133481038 | BC5: =IFERROR(SUMIFS(profitPercent,stats,2,dateLog,">0",symbol,AV5)/AW5,"NA") -> 0.2198152732 | BD5: =IFERROR(SUMIFS(profitPercent,stats,1,dateLog,">0",symbol,AV5)/AW5,"NA") -> -0.03489536376 | BE5: Trade Win: | BF5: ='Trade Log'!AN3 -> 9 | BH5: Average Profit (+): | BI5: =IFERROR('Monthly Report'!G21/BF5,0) -> 5714.100006
G6: =IFERROR(AV4,"") -> PXP | H6: =IFERROR(AZ4,"") -> Php22,728 | I6: =IFERROR(TEXT((AW4+AX4),0)&" ("&TEXT(AY4,"0.0%")&")","") -> 6 (57.1%) | M6: =IFERROR(AY4,"") -> 57.14% | N6: =IFERROR(BA4,"") -> 2.33 d | O6: 31.81% | P6: 17.81% | Q6: -1.92% | AF6: 4282600.00% | AG6: Q2 | AH6: =DATE(YEAR(AI5),MONTH(AI5)+1,DAY(1)) -> 42826 | AI6: =DATE(YEAR(AH6),MONTH(AH6)+3,DAY(1)-1) -> 42916 | AJ6: 0 | AK6: =INDEX('Monthly Report'!$E$22:$E$87,IFERROR(MATCH(AF6,'Monthly Report'!$Y$22:$Y$87,0),MATCH('Bank Transfers'!$L$15,'Monthly Report'!$Y$22:$Y$87,0))) -> 100000 | AL6: 0 | AP6: =AP4/AP1 -> 0.5 | AQ6: =INDEX('Trade Log'!$BT$15:$BT$977,AU6) -> MAC | AR6: =MATCH(AV6,calc!$AS$15:$AS$251,0) -> 5 | AS6: 3 | AT6: =LARGE('Trade Log'!$BZ$15:$BZ$977,AS6) -> 2.0000005 | AU6: =MATCH(AT6,'Trade Log'!$BZ$15:$BZ$977,0) -> 5 | AV6: =IF($AR$1="Most Trades",AQ6,IF($AR$1="Top Symbol",D17,M17)) -> MAC | AW6: =INDEX(calc!AT$15:AT$251,$AR6) -> 1 | AX6: =INDEX(calc!AU$15:AU$251,$AR6) -> 1 | AY6: =AW6/AT6 -> 0.499999875 | AZ6: =INDEX(calc!AX$15:AX$251,$AR6) -> 5899.5693 | BA6: =SUMIFS('Trade Log'!$AB$15:$AB$20100,stats,">0",'Trade Log'!$Q17:$Q20102,0,symbol,AV6)/(AW6+AX6) -> 0.5 | BB6: =SUMIFS('Trade Log'!$AR$15:$AR$20100,dateLog,">0",symbol,AV6)/(AW6+AX6) -> 0.3027943626 | BC6: =IFERROR(SUMIFS(profitPercent,stats,2,dateLog,">0",symbol,AV6)/AW6,"NA") -> 0.2403676081 | BD6: =IFERROR(SUMIFS(profitPercent,stats,1,dateLog,">0",symbol,AV6)/AW6,"NA") -> -0.07362343586 | BE6: Trade Loss: | BF6: ='Trade Log'!AN4 -> 12 | BH6: Average Loss (-): | BI6: =IFERROR(-'Monthly Report'!H21/BF6,0) -> 1041.280433
G7: =IFERROR(AV5,"") -> APX | H7: =IFERROR(AZ5,"") -> Php7,449 | I7: =IFERROR(TEXT((AW5+AX5),0)&" ("&TEXT(AY5,"0.0%")&")","") -> 3 (33.3%) | M7: =IFERROR(AY5,"") -> 33.33% | N7: 0.33 d | O7: 31.33% | P7: 21.98% | Q7: -3.49% | AF7: 4291700.00% | AG7: Q3 | AH7: =DATE(YEAR(AI6),MONTH(AI6)+1,DAY(1)) -> 42917 | AI7: =DATE(YEAR(AH7),MONTH(AH7)+3,DAY(1)-1) -> 43008 | AJ7: 42474.50915 | AK7: =INDEX('Monthly Report'!$E$22:$E$87,IFERROR(MATCH(AF7,'Monthly Report'!$Y$22:$Y$87,0),MATCH('Bank Transfers'!$L$15,'Monthly Report'!$Y$22:$Y$87,0))) -> 100000 | AL7: 0.4247450915 | AP7: Open position amount | AQ7: =INDEX('Trade Log'!$BT$15:$BT$977,AU7) -> CHP | AR7: =MATCH(AV7,calc!$AS$15:$AS$251,0) -> 2 | AS7: 4 | AT7: =LARGE('Trade Log'!$BZ$15:$BZ$977,AS7) -> 2.0000002 | AU7: =MATCH(AT7,'Trade Log'!$BZ$15:$BZ$977,0) -> 2 | AV7: =IF($AR$1="Most Trades",AQ7,IF($AR$1="Top Symbol",D18,M18)) -> CHP | AW7: =INDEX(calc!AT$15:AT$251,$AR7) -> 0 | AX7: =INDEX(calc!AU$15:AU$251,$AR7) -> 2 | AY7: =AW7/AT7 -> 0 | AZ7: =INDEX(calc!AX$15:AX$251,$AR7) -> -1874.88695 | BA7: =SUMIFS('Trade Log'!$AB$15:$AB$20100,stats,">0",'Trade Log'!$Q18:$Q20103,0,symbol,AV7)/(AW7+AX7) -> 0 | BB7: =SUMIFS('Trade Log'!$AR$15:$AR$20100,dateLog,">0",symbol,AV7)/(AW7+AX7) -> 0.3293293887 | BC7: =IFERROR(SUMIFS(profitPercent,stats,2,dateLog,">0",symbol,AV7)/AW7,"NA") -> NA | BD7: =IFERROR(SUMIFS(profitPercent,stats,1,dateLog,">0",symbol,AV7)/AW7,"NA") -> NA | BE7: Win/Loss Ratio: | BF7: =IFERROR(BF5/BF6,BF5& " : " & 0) -> 0.75 | BH7: Profit/Loss Ratio: | BI7: =IFERROR(IFERROR(BI5/BI6,(ROUND(BI5,1) &" : " &"0")),"0 : 0") -> 5.487570709
G8: =IFERROR(AV6,"") -> MAC | H8: =IFERROR(AZ6,"") -> Php5,900 | I8: =IFERROR(TEXT((AW6+AX6),0)&" ("&TEXT(AY6,"0.0%")&")","") -> 2 (50.0%) | M8: =IFERROR(AY6,"") -> 50.00% | N8: 0.50 d | O8: 30.28% | P8: 24.04% | Q8: -7.36% | AF8: 4300900.00% | AG8: Q4 | AH8: =DATE(YEAR(AI7),MONTH(AI7)+1,DAY(1)) -> 43009 | AI8: =DATE(YEAR(AH8),MONTH(AH8)+3,DAY(1)-1) -> 43100 | AJ8: -3542.9743 | AK8: =INDEX('Monthly Report'!$E$22:$E$87,IFERROR(MATCH(AF8,'Monthly Report'!$Y$22:$Y$87,0),MATCH('Bank Transfers'!$L$15,'Monthly Report'!$Y$22:$Y$87,0))) -> 142474.5091 | AL8: -0.02486742591 | AP8: =SUM(calc!BL15:BL54) -> 46366.3785 | AQ8: =INDEX('Trade Log'!$BT$15:$BT$977,AU8) -> EW | AR8: =MATCH(AV8,calc!$AS$15:$AS$251,0) -> 12 | AS8: 5 | AT8: =LARGE('Trade Log'!$BZ$15:$BZ$977,AS8) -> 1.0000012 | AU8: =MATCH(AT8,'Trade Log'!$BZ$15:$BZ$977,0) -> 12 | AV8: =IF($AR$1="Most Trades",AQ8,IF($AR$1="Top Symbol",D19,M19)) -> EW | AW8: =INDEX(calc!AT$15:AT$251,$AR8) -> 0 | AX8: =INDEX(calc!AU$15:AU$251,$AR8) -> 1 | AY8: =AW8/AT8 -> 0 | AZ8: =INDEX(calc!AX$15:AX$251,$AR8) -> -903.3115 | BA8: =SUMIFS('Trade Log'!$AB$15:$AB$20100,stats,">0",'Trade Log'!$Q19:$Q20104,0,symbol,AV8)/(AW8+AX8) -> 0 | BB8: =SUMIFS('Trade Log'!$AR$15:$AR$20100,dateLog,">0",symbol,AV8)/(AW8+AX8) -> 0.2934150035 | BC8: =IFERROR(SUMIFS(profitPercent,stats,2,dateLog,">0",symbol,AV8)/AW8,"NA") -> NA | BD8: =IFERROR(SUMIFS(profitPercent,stats,1,dateLog,">0",symbol,AV8)/AW8,"NA") -> NA | BE8: win rate% | BF8: =IFERROR(BF5/(BF5+BF6),0) -> 0.4285714286 | BH8: profit rate% | BI8: =IFERROR(BI5/(BI5+BI6),0) -> 84.59%
G9: =IFERROR(AV7,"") -> CHP | H9: =IFERROR(AZ7,"") -> Php-1,875 | I9: =IFERROR(TEXT((AW7+AX7),0)&" ("&TEXT(AY7,"0.0%")&")","") -> 2 (0.0%) | M9: =IFERROR(AY7,"") -> 0.00% | N9: 0.00 d | O9: 32.93% | P9: NA | Q9: NA | AF9: 4273600.00% | AG9: YTD | AH9: =AH5 -> 42736 | AI9: =AG4 -> 43038 | AJ9: 38931.53485 | AK9: =AK5 -> 100000 | AL9: 0.3893153485 | BE9: loss rate% | BF9: =IFERROR(BF6/(BF5+BF6),0) -> 0.5714285714 | BH9: Loss rate% | BI9: =IFERROR(BI6/(BI5+BI6),0) -> 15.41%
G10: =IFERROR(AV8,"") -> EW | H10: =IFERROR(AZ8,"") -> ₱-903.31 | I10: =IFERROR(TEXT((AW8+AX8),0)&" ("&TEXT(AY8,"0.0%")&")","") -> 1 (0.0%) | M10: =IFERROR(AY8,"") -> 0.00% | N10: 0.00 d | O10: 29.34% | P10: NA | Q10: NA | AF10: 4273600.00% | AG10: PYTD | AH10: =DATE(YEAR(AG4)-1,MONTH(1),DAY(1)) -> 42370 | AI10: =DATE(YEAR(AH10)+1,MONTH(1),DAY(1)-1) -> 42735 | AJ10: 0 | AK10: =IFERROR(INDEX('Monthly Report'!$E$22:$E$87,MATCH(AF10,'Monthly Report'!$Y$22:$Y$87,0)),"") ->  | AL10: 0 | BE10: ave win% | BF10: =SUMIFS(profitPercent,stats,2,dateLog,">0")/BF5 -> 0.1547616227
W11: =SUM(calc!$BL$15:$BL$54) -> 46366.3785 | AE11: =DATE(YEAR(AG4),MONTH(1),DAY(1)) -> 42736 | AF11: =MIN('Monthly Report'!$Y$22:$Y$87,AE11) -> 42736 | AG11: Period | AH11: from | AI11: to | AJ11: Gain/loss | AK11: Beg. Capital | AL11: %change | BE11: ave. loss% | BF11: =SUMIFS(profitPercent,stats,1,dateLog,">0")/BF6 -> -0.02561471839
U13: Rocketsheets
D14: TOP SYMBOL | E14: CUMULATIVE PROFIT | F14: TRADES | G14: WIN RATE % | H14: PROFIT FACTOR | I14: EXPECTANCY | M14: WORST SYMBOL | N14: CUMULATIVE LOSS | O14: TRADES | P14: WIN RATE % | Q14: PROFIT FACTOR | R14: EXPECTANCY
C15: 1 | D15: =IFERROR(INDEX(calc!$AS$15:$AS$251,calc!AO15),"") -> PXP | E15: =IFERROR(IF(calc!AQ15>0,calc!AQ15,""),"") -> Php22,728 | F15: =IFERROR(INDEX(calc!$BB$15:$BB$251,calc!AO15),"") -> 6 | G15: =IFERROR(INDEX(calc!$AY$15:$AY$251,calc!AO15),"") -> 66.67% | H15: =IFERROR(INDEX(calc!$AZ$15:$AZ$251,calc!AO15),"") -> 8.17 | I15: =IFERROR(INDEX(calc!$BA$15:$BA$251,calc!AO15),"") -> Php3,788 | M15: =IFERROR(INDEX(calc!$AS$15:$AS$251,calc!AP15),"") -> CHP | N15: =IFERROR(IF(calc!AR15<0,calc!AR15,""),"") -> Php-1,875 | O15: =IFERROR(INDEX(calc!$BB$15:$BB$251,calc!AP15),"") -> 2 | P15: =IFERROR(INDEX(calc!$AY$15:$AY$251,calc!AP15),"") -> 0.00% | Q15: =IFERROR(INDEX(calc!$AZ$15:$AZ$251,calc!AP15),"") -> NA | R15: =IFERROR(INDEX(calc!$BA$15:$BA$251,calc!AP15),"") -> NA
C16: =C15+1 -> 2 | D16: =IFERROR(INDEX(calc!$AS$15:$AS$251,calc!AO16),"") -> APX | E16: =IFERROR(IF(calc!AQ16>0,calc!AQ16,""),"") -> Php7,449 | F16: =IFERROR(INDEX(calc!$BB$15:$BB$251,calc!AO16),"") -> 3 | G16: =IFERROR(INDEX(calc!$AY$15:$AY$251,calc!AO16),"") -> 33.33% | H16: =IFERROR(INDEX(calc!$AZ$15:$AZ$251,calc!AO16),"") -> 6.78 | I16: =IFERROR(INDEX(calc!$BA$15:$BA$251,calc!AO16),"") -> Php2,483 | M16: =IFERROR(INDEX(calc!$AS$15:$AS$251,calc!AP16),"") -> MRP | N16: =IFERROR(IF(calc!AR16<0,calc!AR16,""),"") -> Php-1,013 | O16: =IFERROR(INDEX(calc!$BB$15:$BB$251,calc!AP16),"") -> 1 | P16: =IFERROR(INDEX(calc!$AY$15:$AY$251,calc!AP16),"") -> 0.00% | Q16: =IFERROR(INDEX(calc!$AZ$15:$AZ$251,calc!AP16),"") -> NA | R16: =IFERROR(INDEX(calc!$BA$15:$BA$251,calc!AP16),"") -> NA
C17: =C16+1 -> 3 | D17: =IFERROR(INDEX(calc!$AS$15:$AS$251,calc!AO17),"") -> MAC | E17: =IFERROR(IF(calc!AQ17>0,calc!AQ17,""),"") -> Php5,900 | F17: =IFERROR(INDEX(calc!$BB$15:$BB$251,calc!AO17),"") -> 2 | G17: =IFERROR(INDEX(calc!$AY$15:$AY$251,calc!AO17),"") -> 50.00% | H17: =IFERROR(INDEX(calc!$AZ$15:$AZ$251,calc!AO17),"") -> 2.85 | I17: =IFERROR(INDEX(calc!$BA$15:$BA$251,calc!AO17),"") -> Php2,950 | M17: =IFERROR(INDEX(calc!$AS$15:$AS$251,calc!AP17),"") -> EW | N17: =IFERROR(IF(calc!AR17<0,calc!AR17,""),"") -> Php-903 | O17: =IFERROR(INDEX(calc!$BB$15:$BB$251,calc!AP17),"") -> 1 | P17: =IFERROR(INDEX(calc!$AY$15:$AY$251,calc!AP17),"") -> 0.00% | Q17: =IFERROR(INDEX(calc!$AZ$15:$AZ$251,calc!AP17),"") -> NA | R17: =IFERROR(INDEX(calc!$BA$15:$BA$251,calc!AP17),"") -> NA
C18: 4 | D18: =IFERROR(INDEX(calc!$AS$15:$AS$251,calc!AO18),"") -> IMI | E18: =IFERROR(IF(calc!AQ18>0,calc!AQ18,""),"") -> Php4,626 | F18: =IFERROR(INDEX(calc!$BB$15:$BB$251,calc!AO18),"") -> 1 | G18: =IFERROR(INDEX(calc!$AY$15:$AY$251,calc!AO18),"") -> 100.00% | H18: =IFERROR(INDEX(calc!$AZ$15:$AZ$251,calc!AO18),"") -> NA | I18: =IFERROR(INDEX(calc!$BA$15:$BA$251,calc!AO18),"") -> NA | M18: =IFERROR(INDEX(calc!$AS$15:$AS$251,calc!AP18),"") -> EDC | N18: =IFERROR(IF(calc!AR18<0,calc!AR18,""),"") -> Php-708 | O18: =IFERROR(INDEX(calc!$BB$15:$BB$251,calc!AP18),"") -> 1 | P18: =IFERROR(INDEX(calc!$AY$15:$AY$251,calc!AP18),"") -> 0.00% | Q18: =IFERROR(INDEX(calc!$AZ$15:$AZ$251,calc!AP18),"") -> NA | R18: =IFERROR(INDEX(calc!$BA$15:$BA$251,calc!AP18),"") -> NA
C19: 5 | D19: =IFERROR(INDEX(calc!$AS$15:$AS$251,calc!AO19),"") -> TUGS | E19: =IFERROR(IF(calc!AQ19>0,calc!AQ19,""),"") -> Php2,715 | F19: =IFERROR(INDEX(calc!$BB$15:$BB$251,calc!AO19),"") -> 1 | G19: =IFERROR(INDEX(calc!$AY$15:$AY$251,calc!AO19),"") -> 100.00% | H19: =IFERROR(INDEX(calc!$AZ$15:$AZ$251,calc!AO19),"") -> NA | I19: =IFERROR(INDEX(calc!$BA$15:$BA$251,calc!AO19),"") -> NA | M19: =IFERROR(INDEX(calc!$AS$15:$AS$251,calc!AP19),"") -> MEG | N19: =IFERROR(IF(calc!AR19<0,calc!AR19,""),"") -> Php-214 | O19: =IFERROR(INDEX(calc!$BB$15:$BB$251,calc!AP19),"") -> 1 | P19: =IFERROR(INDEX(calc!$AY$15:$AY$251,calc!AP19),"") -> 0.00% | Q19: =IFERROR(INDEX(calc!$AZ$15:$AZ$251,calc!AP19),"") -> NA | R19: =IFERROR(INDEX(calc!$BA$15:$BA$251,calc!AP19),"") -> NA
C20: 6 | D20: =IFERROR(INDEX(calc!$AS$15:$AS$251,calc!AO20),"") -> WLCON | E20: =IFERROR(IF(calc!AQ20>0,calc!AQ20,""),"") -> Php359 | F20: =IFERROR(INDEX(calc!$BB$15:$BB$251,calc!AO20),"") -> 1 | G20: =IFERROR(INDEX(calc!$AY$15:$AY$251,calc!AO20),"") -> 100.00% | H20: =IFERROR(INDEX(calc!$AZ$15:$AZ$251,calc!AO20),"") -> NA | I20: =IFERROR(INDEX(calc!$BA$15:$BA$251,calc!AO20),"") -> NA | M20: =IFERROR(INDEX(calc!$AS$15:$AS$251,calc!AP20),"") -> X | N20: =IFERROR(IF(calc!AR20<0,calc!AR20,""),"") -> Php-131 | O20: =IFERROR(INDEX(calc!$BB$15:$BB$251,calc!AP20),"") -> 1 | P20: =IFERROR(INDEX(calc!$AY$15:$AY$251,calc!AP20),"") -> 0.00% | Q20: =IFERROR(INDEX(calc!$AZ$15:$AZ$251,calc!AP20),"") -> NA | R20: =IFERROR(INDEX(calc!$BA$15:$BA$251,calc!AP20),"") -> NA
C21: 7 | D21: =IFERROR(INDEX(calc!$AS$15:$AS$251,calc!AO21),"") ->  | E21: =IFERROR(IF(calc!AQ21>0,calc!AQ21,""),"") ->  | F21: =IFERROR(INDEX(calc!$BB$15:$BB$251,calc!AO21),"") ->  | G21: =IFERROR(INDEX(calc!$AY$15:$AY$251,calc!AO21),"") ->  | H21: =IFERROR(INDEX(calc!$AZ$15:$AZ$251,calc!AO21),"") ->  | I21: =IFERROR(INDEX(calc!$BA$15:$BA$251,calc!AO21),"") ->  | M21: =IFERROR(INDEX(calc!$AS$15:$AS$251,calc!AP21),"") ->  | N21: =IFERROR(IF(calc!AR21<0,calc!AR21,""),"") ->  | O21: =IFERROR(INDEX(calc!$BB$15:$BB$251,calc!AP21),"") ->  | P21: =IFERROR(INDEX(calc!$AY$15:$AY$251,calc!AP21),"") ->  | Q21: =IFERROR(INDEX(calc!$AZ$15:$AZ$251,calc!AP21),"") ->  | R21: =IFERROR(INDEX(calc!$BA$15:$BA$251,calc!AP21),"") -> 
C22: 8 | D22: =IFERROR(INDEX(calc!$AS$15:$AS$251,calc!AO22),"") ->  | E22: =IFERROR(IF(calc!AQ22>0,calc!AQ22,""),"") ->  | F22: =IFERROR(INDEX(calc!$BB$15:$BB$251,calc!AO22),"") ->  | G22: =IFERROR(INDEX(calc!$AY$15:$AY$251,calc!AO22),"") ->  | H22: =IFERROR(INDEX(calc!$AZ$15:$AZ$251,calc!AO22),"") ->  | I22: =IFERROR(INDEX(calc!$BA$15:$BA$251,calc!AO22),"") ->  | M22: =IFERROR(INDEX(calc!$AS$15:$AS$251,calc!AP22),"") ->  | N22: =IFERROR(IF(calc!AR22<0,calc!AR22,""),"") ->  | O22: =IFERROR(INDEX(calc!$BB$15:$BB$251,calc!AP22),"") ->  | P22: =IFERROR(INDEX(calc!$AY$15:$AY$251,calc!AP22),"") ->  | Q22: =IFERROR(INDEX(calc!$AZ$15:$AZ$251,calc!AP22),"") ->  | R22: =IFERROR(INDEX(calc!$BA$15:$BA$251,calc!AP22),"") -> 
C23: 9 | D23: =IFERROR(INDEX(calc!$AS$15:$AS$251,calc!AO23),"") ->  | E23: =IFERROR(IF(calc!AQ23>0,calc!AQ23,""),"") ->  | F23: =IFERROR(INDEX(calc!$BB$15:$BB$251,calc!AO23),"") ->  | G23: =IFERROR(INDEX(calc!$AY$15:$AY$251,calc!AO23),"") ->  | H23: =IFERROR(INDEX(calc!$AZ$15:$AZ$251,calc!AO23),"") ->  | I23: =IFERROR(INDEX(calc!$BA$15:$BA$251,calc!AO23),"") ->  | M23: =IFERROR(INDEX(calc!$AS$15:$AS$251,calc!AP23),"") ->  | N23: =IFERROR(IF(calc!AR23<0,calc!AR23,""),"") ->  | O23: =IFERROR(INDEX(calc!$BB$15:$BB$251,calc!AP23),"") ->  | P23: =IFERROR(INDEX(calc!$AY$15:$AY$251,calc!AP23),"") ->  | Q23: =IFERROR(INDEX(calc!$AZ$15:$AZ$251,calc!AP23),"") ->  | R23: =IFERROR(INDEX(calc!$BA$15:$BA$251,calc!AP23),"") -> 
C24: 10 | D24: =IFERROR(INDEX(calc!$AS$15:$AS$251,calc!AO24),"") ->  | E24: =IFERROR(IF(calc!AQ24>0,calc!AQ24,""),"") ->  | F24: =IFERROR(INDEX(calc!$BB$15:$BB$251,calc!AO24),"") ->  | G24: =IFERROR(INDEX(calc!$AY$15:$AY$251,calc!AO24),"") ->  | H24: =IFERROR(INDEX(calc!$AZ$15:$AZ$251,calc!AO24),"") ->  | I24: =IFERROR(INDEX(calc!$BA$15:$BA$251,calc!AO24),"") ->  | M24: =IFERROR(INDEX(calc!$AS$15:$AS$251,calc!AP24),"") ->  | N24: =IFERROR(IF(calc!AR24<0,calc!AR24,""),"") ->  | O24: =IFERROR(INDEX(calc!$BB$15:$BB$251,calc!AP24),"") ->  | P24: =IFERROR(INDEX(calc!$AY$15:$AY$251,calc!AP24),"") ->  | Q24: =IFERROR(INDEX(calc!$AZ$15:$AZ$251,calc!AP24),"") ->  | R24: =IFERROR(INDEX(calc!$BA$15:$BA$251,calc!AP24),"") -> 
C25: 11 | D25: =IFERROR(INDEX(calc!$AS$15:$AS$251,calc!AO25),"") ->  | E25: =IFERROR(IF(calc!AQ25>0,calc!AQ25,""),"") ->  | F25: =IFERROR(INDEX(calc!$BB$15:$BB$251,calc!AO25),"") ->  | G25: =IFERROR(INDEX(calc!$AY$15:$AY$251,calc!AO25),"") ->  | H25: =IFERROR(INDEX(calc!$AZ$15:$AZ$251,calc!AO25),"") ->  | I25: =IFERROR(INDEX(calc!$BA$15:$BA$251,calc!AO25),"") ->  | M25: =IFERROR(INDEX(calc!$AS$15:$AS$251,calc!AP25),"") ->  | N25: =IFERROR(IF(calc!AR25<0,calc!AR25,""),"") ->  | O25: =IFERROR(INDEX(calc!$BB$15:$BB$251,calc!AP25),"") ->  | P25: =IFERROR(INDEX(calc!$AY$15:$AY$251,calc!AP25),"") ->  | Q25: =IFERROR(INDEX(calc!$AZ$15:$AZ$251,calc!AP25),"") ->  | R25: =IFERROR(INDEX(calc!$BA$15:$BA$251,calc!AP25),"") -> 
C26: 12 | D26: =IFERROR(INDEX(calc!$AS$15:$AS$251,calc!AO26),"") ->  | E26: =IFERROR(IF(calc!AQ26>0,calc!AQ26,""),"") ->  | F26: =IFERROR(INDEX(calc!$BB$15:$BB$251,calc!AO26),"") ->  | G26: =IFERROR(INDEX(calc!$AY$15:$AY$251,calc!AO26),"") ->  | H26: =IFERROR(INDEX(calc!$AZ$15:$AZ$251,calc!AO26),"") ->  | I26: =IFERROR(INDEX(calc!$BA$15:$BA$251,calc!AO26),"") ->  | M26: =IFERROR(INDEX(calc!$AS$15:$AS$251,calc!AP26),"") ->  | N26: =IFERROR(IF(calc!AR26<0,calc!AR26,""),"") ->  | O26: =IFERROR(INDEX(calc!$BB$15:$BB$251,calc!AP26),"") ->  | P26: =IFERROR(INDEX(calc!$AY$15:$AY$251,calc!AP26),"") ->  | Q26: =IFERROR(INDEX(calc!$AZ$15:$AZ$251,calc!AP26),"") ->  | R26: =IFERROR(INDEX(calc!$BA$15:$BA$251,calc!AP26),"") -> 
C27: 13 | D27: =IFERROR(INDEX(calc!$AS$15:$AS$251,calc!AO27),"") ->  | E27: =IFERROR(IF(calc!AQ27>0,calc!AQ27,""),"") ->  | F27: =IFERROR(INDEX(calc!$BB$15:$BB$251,calc!AO27),"") ->  | G27: =IFERROR(INDEX(calc!$AY$15:$AY$251,calc!AO27),"") ->  | H27: =IFERROR(INDEX(calc!$AZ$15:$AZ$251,calc!AO27),"") ->  | I27: =IFERROR(INDEX(calc!$BA$15:$BA$251,calc!AO27),"") ->  | M27: =IFERROR(INDEX(calc!$AS$15:$AS$251,calc!AP27),"") ->  | N27: =IFERROR(IF(calc!AR27<0,calc!AR27,""),"") ->  | O27: =IFERROR(INDEX(calc!$BB$15:$BB$251,calc!AP27),"") ->  | P27: =IFERROR(INDEX(calc!$AY$15:$AY$251,calc!AP27),"") ->  | Q27: =IFERROR(INDEX(calc!$AZ$15:$AZ$251,calc!AP27),"") ->  | R27: =IFERROR(INDEX(calc!$BA$15:$BA$251,calc!AP27),"") -> 
C28: 14 | D28: =IFERROR(INDEX(calc!$AS$15:$AS$251,calc!AO28),"") ->  | E28: =IFERROR(IF(calc!AQ28>0,calc!AQ28,""),"") ->  | F28: =IFERROR(INDEX(calc!$BB$15:$BB$251,calc!AO28),"") ->  | G28: =IFERROR(INDEX(calc!$AY$15:$AY$251,calc!AO28),"") ->  | H28: =IFERROR(INDEX(calc!$AZ$15:$AZ$251,calc!AO28),"") ->  | I28: =IFERROR(INDEX(calc!$BA$15:$BA$251,calc!AO28),"") ->  | M28: =IFERROR(INDEX(calc!$AS$15:$AS$251,calc!AP28),"") ->  | N28: =IFERROR(IF(calc!AR28<0,calc!AR28,""),"") ->  | O28: =IFERROR(INDEX(calc!$BB$15:$BB$251,calc!AP28),"") ->  | P28: =IFERROR(INDEX(calc!$AY$15:$AY$251,calc!AP28),"") ->  | Q28: =IFERROR(INDEX(calc!$AZ$15:$AZ$251,calc!AP28),"") ->  | R28: =IFERROR(INDEX(calc!$BA$15:$BA$251,calc!AP28),"") -> 
C29: 15 | D29: =IFERROR(INDEX(calc!$AS$15:$AS$251,calc!AO29),"") ->  | E29: =IFERROR(IF(calc!AQ29>0,calc!AQ29,""),"") ->  | F29: =IFERROR(INDEX(calc!$BB$15:$BB$251,calc!AO29),"") ->  | G29: =IFERROR(INDEX(calc!$AY$15:$AY$251,calc!AO29),"") ->  | H29: =IFERROR(INDEX(calc!$AZ$15:$AZ$251,calc!AO29),"") ->  | I29: =IFERROR(INDEX(calc!$BA$15:$BA$251,calc!AO29),"") ->  | M29: =IFERROR(INDEX(calc!$AS$15:$AS$251,calc!AP29),"") ->  | N29: =IFERROR(IF(calc!AR29<0,calc!AR29,""),"") ->  | O29: =IFERROR(INDEX(calc!$BB$15:$BB$251,calc!AP29),"") ->  | P29: =IFERROR(INDEX(calc!$AY$15:$AY$251,calc!AP29),"") ->  | Q29: =IFERROR(INDEX(calc!$AZ$15:$AZ$251,calc!AP29),"") ->  | R29: =IFERROR(INDEX(calc!$BA$15:$BA$251,calc!AP29),"") -> 
C30: 16 | D30: =IFERROR(INDEX(calc!$AS$15:$AS$251,calc!AO30),"") ->  | E30: =IFERROR(IF(calc!AQ30>0,calc!AQ30,""),"") ->  | F30: =IFERROR(INDEX(calc!$BB$15:$BB$251,calc!AO30),"") ->  | G30: =IFERROR(INDEX(calc!$AY$15:$AY$251,calc!AO30),"") ->  | H30: =IFERROR(INDEX(calc!$AZ$15:$AZ$251,calc!AO30),"") ->  | I30: =IFERROR(INDEX(calc!$BA$15:$BA$251,calc!AO30),"") ->  | M30: =IFERROR(INDEX(calc!$AS$15:$AS$251,calc!AP30),"") ->  | N30: =IFERROR(IF(calc!AR30<0,calc!AR30,""),"") ->  | O30: =IFERROR(INDEX(calc!$BB$15:$BB$251,calc!AP30),"") ->  | P30: =IFERROR(INDEX(calc!$AY$15:$AY$251,calc!AP30),"") ->  | Q30: =IFERROR(INDEX(calc!$AZ$15:$AZ$251,calc!AP30),"") ->  | R30: =IFERROR(INDEX(calc!$BA$15:$BA$251,calc!AP30),"") -> 
C31: 17 | D31: =IFERROR(INDEX(calc!$AS$15:$AS$251,calc!AO31),"") ->  | E31: =IFERROR(IF(calc!AQ31>0,calc!AQ31,""),"") ->  | F31: =IFERROR(INDEX(calc!$BB$15:$BB$251,calc!AO31),"") ->  | G31: =IFERROR(INDEX(calc!$AY$15:$AY$251,calc!AO31),"") ->  | H31: =IFERROR(INDEX(calc!$AZ$15:$AZ$251,calc!AO31),"") ->  | I31: =IFERROR(INDEX(calc!$BA$15:$BA$251,calc!AO31),"") ->  | M31: =IFERROR(INDEX(calc!$AS$15:$AS$251,calc!AP31),"") ->  | N31: =IFERROR(IF(calc!AR31<0,calc!AR31,""),"") ->  | O31: =IFERROR(INDEX(calc!$BB$15:$BB$251,calc!AP31),"") ->  | P31: =IFERROR(INDEX(calc!$AY$15:$AY$251,calc!AP31),"") ->  | Q31: =IFERROR(INDEX(calc!$AZ$15:$AZ$251,calc!AP31),"") ->  | R31: =IFERROR(INDEX(calc!$BA$15:$BA$251,calc!AP31),"") -> 
C32: 18 | D32: =IFERROR(INDEX(calc!$AS$15:$AS$251,calc!AO32),"") ->  | E32: =IFERROR(IF(calc!AQ32>0,calc!AQ32,""),"") ->  | F32: =IFERROR(INDEX(calc!$BB$15:$BB$251,calc!AO32),"") ->  | G32: =IFERROR(INDEX(calc!$AY$15:$AY$251,calc!AO32),"") ->  | H32: =IFERROR(INDEX(calc!$AZ$15:$AZ$251,calc!AO32),"") ->  | I32: =IFERROR(INDEX(calc!$BA$15:$BA$251,calc!AO32),"") ->  | M32: =IFERROR(INDEX(calc!$AS$15:$AS$251,calc!AP32),"") ->  | N32: =IFERROR(IF(calc!AR32<0,calc!AR32,""),"") ->  | O32: =IFERROR(INDEX(calc!$BB$15:$BB$251,calc!AP32),"") ->  | P32: =IFERROR(INDEX(calc!$AY$15:$AY$251,calc!AP32),"") ->  | Q32: =IFERROR(INDEX(calc!$AZ$15:$AZ$251,calc!AP32),"") ->  | R32: =IFERROR(INDEX(calc!$BA$15:$BA$251,calc!AP32),"") -> 
C33: 19 | D33: =IFERROR(INDEX(calc!$AS$15:$AS$251,calc!AO33),"") ->  | E33: =IFERROR(IF(calc!AQ33>0,calc!AQ33,""),"") ->  | F33: =IFERROR(INDEX(calc!$BB$15:$BB$251,calc!AO33),"") ->  | G33: =IFERROR(INDEX(calc!$AY$15:$AY$251,calc!AO33),"") ->  | H33: =IFERROR(INDEX(calc!$AZ$15:$AZ$251,calc!AO33),"") ->  | I33: =IFERROR(INDEX(calc!$BA$15:$BA$251,calc!AO33),"") ->  | M33: =IFERROR(INDEX(calc!$AS$15:$AS$251,calc!AP33),"") ->  | N33: =IFERROR(IF(calc!AR33<0,calc!AR33,""),"") ->  | O33: =IFERROR(INDEX(calc!$BB$15:$BB$251,calc!AP33),"") ->  | P33: =IFERROR(INDEX(calc!$AY$15:$AY$251,calc!AP33),"") ->  | Q33: =IFERROR(INDEX(calc!$AZ$15:$AZ$251,calc!AP33),"") ->  | R33: =IFERROR(INDEX(calc!$BA$15:$BA$251,calc!AP33),"") -> 
C34: 20 | D34: =IFERROR(INDEX(calc!$AS$15:$AS$251,calc!AO34),"") ->  | E34: =IFERROR(IF(calc!AQ34>0,calc!AQ34,""),"") ->  | F34: =IFERROR(INDEX(calc!$BB$15:$BB$251,calc!AO34),"") ->  | G34: =IFERROR(INDEX(calc!$AY$15:$AY$251,calc!AO34),"") ->  | H34: =IFERROR(INDEX(calc!$AZ$15:$AZ$251,calc!AO34),"") ->  | I34: =IFERROR(INDEX(calc!$BA$15:$BA$251,calc!AO34),"") ->  | M34: =IFERROR(INDEX(calc!$AS$15:$AS$251,calc!AP34),"") ->  | N34: =IFERROR(IF(calc!AR34<0,calc!AR34,""),"") ->  | O34: =IFERROR(INDEX(calc!$BB$15:$BB$251,calc!AP34),"") ->  | P34: =IFERROR(INDEX(calc!$AY$15:$AY$251,calc!AP34),"") ->  | Q34: =IFERROR(INDEX(calc!$AZ$15:$AZ$251,calc!AP34),"") ->  | R34: =IFERROR(INDEX(calc!$BA$15:$BA$251,calc!AP34),"") -> 
C35: 21 | D35: =IFERROR(INDEX(calc!$AS$15:$AS$251,calc!AO35),"") ->  | E35: =IFERROR(IF(calc!AQ35>0,calc!AQ35,""),"") ->  | F35: =IFERROR(INDEX(calc!$BB$15:$BB$251,calc!AO35),"") ->  | G35: =IFERROR(INDEX(calc!$AY$15:$AY$251,calc!AO35),"") ->  | H35: =IFERROR(INDEX(calc!$AZ$15:$AZ$251,calc!AO35),"") ->  | I35: =IFERROR(INDEX(calc!$BA$15:$BA$251,calc!AO35),"") ->  | M35: =IFERROR(INDEX(calc!$AS$15:$AS$251,calc!AP35),"") ->  | N35: =IFERROR(IF(calc!AR35<0,calc!AR35,""),"") ->  | O35: =IFERROR(INDEX(calc!$BB$15:$BB$251,calc!AP35),"") ->  | P35: =IFERROR(INDEX(calc!$AY$15:$AY$251,calc!AP35),"") ->  | Q35: =IFERROR(INDEX(calc!$AZ$15:$AZ$251,calc!AP35),"") ->  | R35: =IFERROR(INDEX(calc!$BA$15:$BA$251,calc!AP35),"") -> 
C36: 22 | D36: =IFERROR(INDEX(calc!$AS$15:$AS$251,calc!AO36),"") ->  | E36: =IFERROR(IF(calc!AQ36>0,calc!AQ36,""),"") ->  | F36: =IFERROR(INDEX(calc!$BB$15:$BB$251,calc!AO36),"") ->  | G36: =IFERROR(INDEX(calc!$AY$15:$AY$251,calc!AO36),"") ->  | H36: =IFERROR(INDEX(calc!$AZ$15:$AZ$251,calc!AO36),"") ->  | I36: =IFERROR(INDEX(calc!$BA$15:$BA$251,calc!AO36),"") ->  | M36: =IFERROR(INDEX(calc!$AS$15:$AS$251,calc!AP36),"") ->  | N36: =IFERROR(IF(calc!AR36<0,calc!AR36,""),"") ->  | O36: =IFERROR(INDEX(calc!$BB$15:$BB$251,calc!AP36),"") ->  | P36: =IFERROR(INDEX(calc!$AY$15:$AY$251,calc!AP36),"") ->  | Q36: =IFERROR(INDEX(calc!$AZ$15:$AZ$251,calc!AP36),"") ->  | R36: =IFERROR(INDEX(calc!$BA$15:$BA$251,calc!AP36),"") -> 
C37: 23 | D37: =IFERROR(INDEX(calc!$AS$15:$AS$251,calc!AO37),"") ->  | E37: =IFERROR(IF(calc!AQ37>0,calc!AQ37,""),"") ->  | F37: =IFERROR(INDEX(calc!$BB$15:$BB$251,calc!AO37),"") ->  | G37: =IFERROR(INDEX(calc!$AY$15:$AY$251,calc!AO37),"") ->  | H37: =IFERROR(INDEX(calc!$AZ$15:$AZ$251,calc!AO37),"") ->  | I37: =IFERROR(INDEX(calc!$BA$15:$BA$251,calc!AO37),"") ->  | M37: =IFERROR(INDEX(calc!$AS$15:$AS$251,calc!AP37),"") ->  | N37: =IFERROR(IF(calc!AR37<0,calc!AR37,""),"") ->  | O37: =IFERROR(INDEX(calc!$BB$15:$BB$251,calc!AP37),"") ->  | P37: =IFERROR(INDEX(calc!$AY$15:$AY$251,calc!AP37),"") ->  | Q37: =IFERROR(INDEX(calc!$AZ$15:$AZ$251,calc!AP37),"") ->  | R37: =IFERROR(INDEX(calc!$BA$15:$BA$251,calc!AP37),"") -> 
C38: 24 | D38: =IFERROR(INDEX(calc!$AS$15:$AS$251,calc!AO38),"") ->  | E38: =IFERROR(IF(calc!AQ38>0,calc!AQ38,""),"") ->  | F38: =IFERROR(INDEX(calc!$BB$15:$BB$251,calc!AO38),"") ->  | G38: =IFERROR(INDEX(calc!$AY$15:$AY$251,calc!AO38),"") ->  | H38: =IFERROR(INDEX(calc!$AZ$15:$AZ$251,calc!AO38),"") ->  | I38: =IFERROR(INDEX(calc!$BA$15:$BA$251,calc!AO38),"") ->  | M38: =IFERROR(INDEX(calc!$AS$15:$AS$251,calc!AP38),"") ->  | N38: =IFERROR(IF(calc!AR38<0,calc!AR38,""),"") ->  | O38: =IFERROR(INDEX(calc!$BB$15:$BB$251,calc!AP38),"") ->  | P38: =IFERROR(INDEX(calc!$AY$15:$AY$251,calc!AP38),"") ->  | Q38: =IFERROR(INDEX(calc!$AZ$15:$AZ$251,calc!AP38),"") ->  | R38: =IFERROR(INDEX(calc!$BA$15:$BA$251,calc!AP38),"") -> 
C39: 25 | D39: =IFERROR(INDEX(calc!$AS$15:$AS$251,calc!AO39),"") ->  | E39: =IFERROR(IF(calc!AQ39>0,calc!AQ39,""),"") ->  | F39: =IFERROR(INDEX(calc!$BB$15:$BB$251,calc!AO39),"") ->  | G39: =IFERROR(INDEX(calc!$AY$15:$AY$251,calc!AO39),"") ->  | H39: =IFERROR(INDEX(calc!$AZ$15:$AZ$251,calc!AO39),"") ->  | I39: =IFERROR(INDEX(calc!$BA$15:$BA$251,calc!AO39),"") ->  | M39: =IFERROR(INDEX(calc!$AS$15:$AS$251,calc!AP39),"") ->  | N39: =IFERROR(IF(calc!AR39<0,calc!AR39,""),"") ->  | O39: =IFERROR(INDEX(calc!$BB$15:$BB$251,calc!AP39),"") ->  | P39: =IFERROR(INDEX(calc!$AY$15:$AY$251,calc!AP39),"") ->  | Q39: =IFERROR(INDEX(calc!$AZ$15:$AZ$251,calc!AP39),"") ->  | R39: =IFERROR(INDEX(calc!$BA$15:$BA$251,calc!AP39),"") -> 
C40: 26 | D40: =IFERROR(INDEX(calc!$AS$15:$AS$251,calc!AO40),"") ->  | E40: =IFERROR(IF(calc!AQ40>0,calc!AQ40,""),"") ->  | F40: =IFERROR(INDEX(calc!$BB$15:$BB$251,calc!AO40),"") ->  | G40: =IFERROR(INDEX(calc!$AY$15:$AY$251,calc!AO40),"") ->  | H40: =IFERROR(INDEX(calc!$AZ$15:$AZ$251,calc!AO40),"") ->  | I40: =IFERROR(INDEX(calc!$BA$15:$BA$251,calc!AO40),"") ->  | M40: =IFERROR(INDEX(calc!$AS$15:$AS$251,calc!AP40),"") ->  | N40: =IFERROR(IF(calc!AR40<0,calc!AR40,""),"") ->  | O40: =IFERROR(INDEX(calc!$BB$15:$BB$251,calc!AP40),"") ->  | P40: =IFERROR(INDEX(calc!$AY$15:$AY$251,calc!AP40),"") ->  | Q40: =IFERROR(INDEX(calc!$AZ$15:$AZ$251,calc!AP40),"") ->  | R40: =IFERROR(INDEX(calc!$BA$15:$BA$251,calc!AP40),"") -> 
C41: 27 | D41: =IFERROR(INDEX(calc!$AS$15:$AS$251,calc!AO41),"") ->  | E41: =IFERROR(IF(calc!AQ41>0,calc!AQ41,""),"") ->  | F41: =IFERROR(INDEX(calc!$BB$15:$BB$251,calc!AO41),"") ->  | G41: =IFERROR(INDEX(calc!$AY$15:$AY$251,calc!AO41),"") ->  | H41: =IFERROR(INDEX(calc!$AZ$15:$AZ$251,calc!AO41),"") ->  | I41: =IFERROR(INDEX(calc!$BA$15:$BA$251,calc!AO41),"") ->  | M41: =IFERROR(INDEX(calc!$AS$15:$AS$251,calc!AP41),"") ->  | N41: =IFERROR(IF(calc!AR41<0,calc!AR41,""),"") ->  | O41: =IFERROR(INDEX(calc!$BB$15:$BB$251,calc!AP41),"") ->  | P41: =IFERROR(INDEX(calc!$AY$15:$AY$251,calc!AP41),"") ->  | Q41: =IFERROR(INDEX(calc!$AZ$15:$AZ$251,calc!AP41),"") ->  | R41: =IFERROR(INDEX(calc!$BA$15:$BA$251,calc!AP41),"") -> 
C42: 28 | D42: =IFERROR(INDEX(calc!$AS$15:$AS$251,calc!AO42),"") ->  | E42: =IFERROR(IF(calc!AQ42>0,calc!AQ42,""),"") ->  | F42: =IFERROR(INDEX(calc!$BB$15:$BB$251,calc!AO42),"") ->  | G42: =IFERROR(INDEX(calc!$AY$15:$AY$251,calc!AO42),"") ->  | H42: =IFERROR(INDEX(calc!$AZ$15:$AZ$251,calc!AO42),"") ->  | I42: =IFERROR(INDEX(calc!$BA$15:$BA$251,calc!AO42),"") ->  | M42: =IFERROR(INDEX(calc!$AS$15:$AS$251,calc!AP42),"") ->  | N42: =IFERROR(IF(calc!AR42<0,calc!AR42,""),"") ->  | O42: =IFERROR(INDEX(calc!$BB$15:$BB$251,calc!AP42),"") ->  | P42: =IFERROR(INDEX(calc!$AY$15:$AY$251,calc!AP42),"") ->  | Q42: =IFERROR(INDEX(calc!$AZ$15:$AZ$251,calc!AP42),"") ->  | R42: =IFERROR(INDEX(calc!$BA$15:$BA$251,calc!AP42),"") -> 
C43: 29 | D43: =IFERROR(INDEX(calc!$AS$15:$AS$251,calc!AO43),"") ->  | E43: =IFERROR(IF(calc!AQ43>0,calc!AQ43,""),"") ->  | F43: =IFERROR(INDEX(calc!$BB$15:$BB$251,calc!AO43),"") ->  | G43: =IFERROR(INDEX(calc!$AY$15:$AY$251,calc!AO43),"") ->  | H43: =IFERROR(INDEX(calc!$AZ$15:$AZ$251,calc!AO43),"") ->  | I43: =IFERROR(INDEX(calc!$BA$15:$BA$251,calc!AO43),"") ->  | M43: =IFERROR(INDEX(calc!$AS$15:$AS$251,calc!AP43),"") ->  | N43: =IFERROR(IF(calc!AR43<0,calc!AR43,""),"") ->  | O43: =IFERROR(INDEX(calc!$BB$15:$BB$251,calc!AP43),"") ->  | P43: =IFERROR(INDEX(calc!$AY$15:$AY$251,calc!AP43),"") ->  | Q43: =IFERROR(INDEX(calc!$AZ$15:$AZ$251,calc!AP43),"") ->  | R43: =IFERROR(INDEX(calc!$BA$15:$BA$251,calc!AP43),"") -> 
C44: 30 | D44: =IFERROR(INDEX(calc!$AS$15:$AS$251,calc!AO44),"") ->  | E44: =IFERROR(IF(calc!AQ44>0,calc!AQ44,""),"") ->  | F44: =IFERROR(INDEX(calc!$BB$15:$BB$251,calc!AO44),"") ->  | G44: =IFERROR(INDEX(calc!$AY$15:$AY$251,calc!AO44),"") ->  | H44: =IFERROR(INDEX(calc!$AZ$15:$AZ$251,calc!AO44),"") ->  | I44: =IFERROR(INDEX(calc!$BA$15:$BA$251,calc!AO44),"") ->  | M44: =IFERROR(INDEX(calc!$AS$15:$AS$251,calc!AP44),"") ->  | N44: =IFERROR(IF(calc!AR44<0,calc!AR44,""),"") ->  | O44: =IFERROR(INDEX(calc!$BB$15:$BB$251,calc!AP44),"") ->  | P44: =IFERROR(INDEX(calc!$AY$15:$AY$251,calc!AP44),"") ->  | Q44: =IFERROR(INDEX(calc!$AZ$15:$AZ$251,calc!AP44),"") ->  | R44: =IFERROR(INDEX(calc!$BA$15:$BA$251,calc!AP44),"") -> 
C45: 31 | D45: =IFERROR(INDEX(calc!$AS$15:$AS$251,calc!AO45),"") ->  | E45: =IFERROR(IF(calc!AQ45>0,calc!AQ45,""),"") ->  | F45: =IFERROR(INDEX(calc!$BB$15:$BB$251,calc!AO45),"") ->  | G45: =IFERROR(INDEX(calc!$AY$15:$AY$251,calc!AO45),"") ->  | H45: =IFERROR(INDEX(calc!$AZ$15:$AZ$251,calc!AO45),"") ->  | I45: =IFERROR(INDEX(calc!$BA$15:$BA$251,calc!AO45),"") ->  | M45: =IFERROR(INDEX(calc!$AS$15:$AS$251,calc!AP45),"") ->  | N45: =IFERROR(IF(calc!AR45<0,calc!AR45,""),"") ->  | O45: =IFERROR(INDEX(calc!$BB$15:$BB$251,calc!AP45),"") ->  | P45: =IFERROR(INDEX(calc!$AY$15:$AY$251,calc!AP45),"") ->  | Q45: =IFERROR(INDEX(calc!$AZ$15:$AZ$251,calc!AP45),"") ->  | R45: =IFERROR(INDEX(calc!$BA$15:$BA$251,calc!AP45),"") -> 
C46: 32 | D46: =IFERROR(INDEX(calc!$AS$15:$AS$251,calc!AO46),"") ->  | E46: =IFERROR(IF(calc!AQ46>0,calc!AQ46,""),"") ->  | F46: =IFERROR(INDEX(calc!$BB$15:$BB$251,calc!AO46),"") ->  | G46: =IFERROR(INDEX(calc!$AY$15:$AY$251,calc!AO46),"") ->  | H46: =IFERROR(INDEX(calc!$AZ$15:$AZ$251,calc!AO46),"") ->  | I46: =IFERROR(INDEX(calc!$BA$15:$BA$251,calc!AO46),"") ->  | M46: =IFERROR(INDEX(calc!$AS$15:$AS$251,calc!AP46),"") ->  | N46: =IFERROR(IF(calc!AR46<0,calc!AR46,""),"") ->  | O46: =IFERROR(INDEX(calc!$BB$15:$BB$251,calc!AP46),"") ->  | P46: =IFERROR(INDEX(calc!$AY$15:$AY$251,calc!AP46),"") ->  | Q46: =IFERROR(INDEX(calc!$AZ$15:$AZ$251,calc!AP46),"") ->  | R46: =IFERROR(INDEX(calc!$BA$15:$BA$251,calc!AP46),"") -> 
C47: 33 | D47: =IFERROR(INDEX(calc!$AS$15:$AS$251,calc!AO47),"") ->  | E47: =IFERROR(IF(calc!AQ47>0,calc!AQ47,""),"") ->  | F47: =IFERROR(INDEX(calc!$BB$15:$BB$251,calc!AO47),"") ->  | G47: =IFERROR(INDEX(calc!$AY$15:$AY$251,calc!AO47),"") ->  | H47: =IFERROR(INDEX(calc!$AZ$15:$AZ$251,calc!AO47),"") ->  | I47: =IFERROR(INDEX(calc!$BA$15:$BA$251,calc!AO47),"") ->  | M47: =IFERROR(INDEX(calc!$AS$15:$AS$251,calc!AP47),"") ->  | N47: =IFERROR(IF(calc!AR47<0,calc!AR47,""),"") ->  | O47: =IFERROR(INDEX(calc!$BB$15:$BB$251,calc!AP47),"") ->  | P47: =IFERROR(INDEX(calc!$AY$15:$AY$251,calc!AP47),"") ->  | Q47: =IFERROR(INDEX(calc!$AZ$15:$AZ$251,calc!AP47),"") ->  | R47: =IFERROR(INDEX(calc!$BA$15:$BA$251,calc!AP47),"") -> 
C48: 34 | D48: =IFERROR(INDEX(calc!$AS$15:$AS$251,calc!AO48),"") ->  | E48: =IFERROR(IF(calc!AQ48>0,calc!AQ48,""),"") ->  | F48: =IFERROR(INDEX(calc!$BB$15:$BB$251,calc!AO48),"") ->  | G48: =IFERROR(INDEX(calc!$AY$15:$AY$251,calc!AO48),"") ->  | H48: =IFERROR(INDEX(calc!$AZ$15:$AZ$251,calc!AO48),"") ->  | I48: =IFERROR(INDEX(calc!$BA$15:$BA$251,calc!AO48),"") ->  | M48: =IFERROR(INDEX(calc!$AS$15:$AS$251,calc!AP48),"") ->  | N48: =IFERROR(IF(calc!AR48<0,calc!AR48,""),"") ->  | O48: =IFERROR(INDEX(calc!$BB$15:$BB$251,calc!AP48),"") ->  | P48: =IFERROR(INDEX(calc!$AY$15:$AY$251,calc!AP48),"") ->  | Q48: =IFERROR(INDEX(calc!$AZ$15:$AZ$251,calc!AP48),"") ->  | R48: =IFERROR(INDEX(calc!$BA$15:$BA$251,calc!AP48),"") -> 
C49: 35 | D49: =IFERROR(INDEX(calc!$AS$15:$AS$251,calc!AO49),"") ->  | E49: =IFERROR(IF(calc!AQ49>0,calc!AQ49,""),"") ->  | F49: =IFERROR(INDEX(calc!$BB$15:$BB$251,calc!AO49),"") ->  | G49: =IFERROR(INDEX(calc!$AY$15:$AY$251,calc!AO49),"") ->  | H49: =IFERROR(INDEX(calc!$AZ$15:$AZ$251,calc!AO49),"") ->  | I49: =IFERROR(INDEX(calc!$BA$15:$BA$251,calc!AO49),"") ->  | M49: =IFERROR(INDEX(calc!$AS$15:$AS$251,calc!AP49),"") ->  | N49: =IFERROR(IF(calc!AR49<0,calc!AR49,""),"") ->  | O49: =IFERROR(INDEX(calc!$BB$15:$BB$251,calc!AP49),"") ->  | P49: =IFERROR(INDEX(calc!$AY$15:$AY$251,calc!AP49),"") ->  | Q49: =IFERROR(INDEX(calc!$AZ$15:$AZ$251,calc!AP49),"") ->  | R49: =IFERROR(INDEX(calc!$BA$15:$BA$251,calc!AP49),"") -> 
C50: 36 | D50: =IFERROR(INDEX(calc!$AS$15:$AS$251,calc!AO50),"") ->  | E50: =IFERROR(IF(calc!AQ50>0,calc!AQ50,""),"") ->  | F50: =IFERROR(INDEX(calc!$BB$15:$BB$251,calc!AO50),"") ->  | G50: =IFERROR(INDEX(calc!$AY$15:$AY$251,calc!AO50),"") ->  | H50: =IFERROR(INDEX(calc!$AZ$15:$AZ$251,calc!AO50),"") ->  | I50: =IFERROR(INDEX(calc!$BA$15:$BA$251,calc!AO50),"") ->  | M50: =IFERROR(INDEX(calc!$AS$15:$AS$251,calc!AP50),"") ->  | N50: =IFERROR(IF(calc!AR50<0,calc!AR50,""),"") ->  | O50: =IFERROR(INDEX(calc!$BB$15:$BB$251,calc!AP50),"") ->  | P50: =IFERROR(INDEX(calc!$AY$15:$AY$251,calc!AP50),"") ->  | Q50: =IFERROR(INDEX(calc!$AZ$15:$AZ$251,calc!AP50),"") ->  | R50: =IFERROR(INDEX(calc!$BA$15:$BA$251,calc!AP50),"") -> 
C51: 37 | D51: =IFERROR(INDEX(calc!$AS$15:$AS$251,calc!AO51),"") ->  | E51: =IFERROR(IF(calc!AQ51>0,calc!AQ51,""),"") ->  | F51: =IFERROR(INDEX(calc!$BB$15:$BB$251,calc!AO51),"") ->  | G51: =IFERROR(INDEX(calc!$AY$15:$AY$251,calc!AO51),"") ->  | H51: =IFERROR(INDEX(calc!$AZ$15:$AZ$251,calc!AO51),"") ->  | I51: =IFERROR(INDEX(calc!$BA$15:$BA$251,calc!AO51),"") ->  | M51: =IFERROR(INDEX(calc!$AS$15:$AS$251,calc!AP51),"") ->  | N51: =IFERROR(IF(calc!AR51<0,calc!AR51,""),"") ->  | O51: =IFERROR(INDEX(calc!$BB$15:$BB$251,calc!AP51),"") ->  | P51: =IFERROR(INDEX(calc!$AY$15:$AY$251,calc!AP51),"") ->  | Q51: =IFERROR(INDEX(calc!$AZ$15:$AZ$251,calc!AP51),"") ->  | R51: =IFERROR(INDEX(calc!$BA$15:$BA$251,calc!AP51),"") -> 
C52: 38 | D52: =IFERROR(INDEX(calc!$AS$15:$AS$251,calc!AO52),"") ->  | E52: =IFERROR(IF(calc!AQ52>0,calc!AQ52,""),"") ->  | F52: =IFERROR(INDEX(calc!$BB$15:$BB$251,calc!AO52),"") ->  | G52: =IFERROR(INDEX(calc!$AY$15:$AY$251,calc!AO52),"") ->  | H52: =IFERROR(INDEX(calc!$AZ$15:$AZ$251,calc!AO52),"") ->  | I52: =IFERROR(INDEX(calc!$BA$15:$BA$251,calc!AO52),"") ->  | M52: =IFERROR(INDEX(calc!$AS$15:$AS$251,calc!AP52),"") ->  | N52: =IFERROR(IF(calc!AR52<0,calc!AR52,""),"") ->  | O52: =IFERROR(INDEX(calc!$BB$15:$BB$251,calc!AP52),"") ->  | P52: =IFERROR(INDEX(calc!$AY$15:$AY$251,calc!AP52),"") ->  | Q52: =IFERROR(INDEX(calc!$AZ$15:$AZ$251,calc!AP52),"") ->  | R52: =IFERROR(INDEX(calc!$BA$15:$BA$251,calc!AP52),"") -> 
C53: 39 | D53: =IFERROR(INDEX(calc!$AS$15:$AS$251,calc!AO53),"") ->  | E53: =IFERROR(IF(calc!AQ53>0,calc!AQ53,""),"") ->  | F53: =IFERROR(INDEX(calc!$BB$15:$BB$251,calc!AO53),"") ->  | G53: =IFERROR(INDEX(calc!$AY$15:$AY$251,calc!AO53),"") ->  | H53: =IFERROR(INDEX(calc!$AZ$15:$AZ$251,calc!AO53),"") ->  | I53: =IFERROR(INDEX(calc!$BA$15:$BA$251,calc!AO53),"") ->  | M53: =IFERROR(INDEX(calc!$AS$15:$AS$251,calc!AP53),"") ->  | N53: =IFERROR(IF(calc!AR53<0,calc!AR53,""),"") ->  | O53: =IFERROR(INDEX(calc!$BB$15:$BB$251,calc!AP53),"") ->  | P53: =IFERROR(INDEX(calc!$AY$15:$AY$251,calc!AP53),"") ->  | Q53: =IFERROR(INDEX(calc!$AZ$15:$AZ$251,calc!AP53),"") ->  | R53: =IFERROR(INDEX(calc!$BA$15:$BA$251,calc!AP53),"") -> 
C54: 40 | D54: =IFERROR(INDEX(calc!$AS$15:$AS$251,calc!AO54),"") ->  | E54: =IFERROR(IF(calc!AQ54>0,calc!AQ54,""),"") ->  | F54: =IFERROR(INDEX(calc!$BB$15:$BB$251,calc!AO54),"") ->  | G54: =IFERROR(INDEX(calc!$AY$15:$AY$251,calc!AO54),"") ->  | H54: =IFERROR(INDEX(calc!$AZ$15:$AZ$251,calc!AO54),"") ->  | I54: =IFERROR(INDEX(calc!$BA$15:$BA$251,calc!AO54),"") ->  | M54: =IFERROR(INDEX(calc!$AS$15:$AS$251,calc!AP54),"") ->  | N54: =IFERROR(IF(calc!AR54<0,calc!AR54,""),"") ->  | O54: =IFERROR(INDEX(calc!$BB$15:$BB$251,calc!AP54),"") ->  | P54: =IFERROR(INDEX(calc!$AY$15:$AY$251,calc!AP54),"") ->  | Q54: =IFERROR(INDEX(calc!$AZ$15:$AZ$251,calc!AP54),"") ->  | R54: =IFERROR(INDEX(calc!$BA$15:$BA$251,calc!AP54),"") -> 
C55: 41 | D55: =IFERROR(INDEX(calc!$AS$15:$AS$251,calc!AO55),"") ->  | E55: =IFERROR(IF(calc!AQ55>0,calc!AQ55,""),"") ->  | F55: =IFERROR(INDEX(calc!$BB$15:$BB$251,calc!AO55),"") ->  | G55: =IFERROR(INDEX(calc!$AY$15:$AY$251,calc!AO55),"") ->  | H55: =IFERROR(INDEX(calc!$AZ$15:$AZ$251,calc!AO55),"") ->  | I55: =IFERROR(INDEX(calc!$BA$15:$BA$251,calc!AO55),"") ->  | M55: =IFERROR(INDEX(calc!$AS$15:$AS$251,calc!AP55),"") ->  | N55: =IFERROR(IF(calc!AR55<0,calc!AR55,""),"") ->  | O55: =IFERROR(INDEX(calc!$BB$15:$BB$251,calc!AP55),"") ->  | P55: =IFERROR(INDEX(calc!$AY$15:$AY$251,calc!AP55),"") ->  | Q55: =IFERROR(INDEX(calc!$AZ$15:$AZ$251,calc!AP55),"") ->  | R55: =IFERROR(INDEX(calc!$BA$15:$BA$251,calc!AP55),"") -> 
C56: 42 | D56: =IFERROR(INDEX(calc!$AS$15:$AS$251,calc!AO56),"") ->  | E56: =IFERROR(IF(calc!AQ56>0,calc!AQ56,""),"") ->  | F56: =IFERROR(INDEX(calc!$BB$15:$BB$251,calc!AO56),"") ->  | G56: =IFERROR(INDEX(calc!$AY$15:$AY$251,calc!AO56),"") ->  | H56: =IFERROR(INDEX(calc!$AZ$15:$AZ$251,calc!AO56),"") ->  | I56: =IFERROR(INDEX(calc!$BA$15:$BA$251,calc!AO56),"") ->  | M56: =IFERROR(INDEX(calc!$AS$15:$AS$251,calc!AP56),"") ->  | N56: =IFERROR(IF(calc!AR56<0,calc!AR56,""),"") ->  | O56: =IFERROR(INDEX(calc!$BB$15:$BB$251,calc!AP56),"") ->  | P56: =IFERROR(INDEX(calc!$AY$15:$AY$251,calc!AP56),"") ->  | Q56: =IFERROR(INDEX(calc!$AZ$15:$AZ$251,calc!AP56),"") ->  | R56: =IFERROR(INDEX(calc!$BA$15:$BA$251,calc!AP56),"") -> 
C57: 43 | D57: =IFERROR(INDEX(calc!$AS$15:$AS$251,calc!AO57),"") ->  | E57: =IFERROR(IF(calc!AQ57>0,calc!AQ57,""),"") ->  | F57: =IFERROR(INDEX(calc!$BB$15:$BB$251,calc!AO57),"") ->  | G57: =IFERROR(INDEX(calc!$AY$15:$AY$251,calc!AO57),"") ->  | H57: =IFERROR(INDEX(calc!$AZ$15:$AZ$251,calc!AO57),"") ->  | I57: =IFERROR(INDEX(calc!$BA$15:$BA$251,calc!AO57),"") ->  | M57: =IFERROR(INDEX(calc!$AS$15:$AS$251,calc!AP57),"") ->  | N57: =IFERROR(IF(calc!AR57<0,calc!AR57,""),"") ->  | O57: =IFERROR(INDEX(calc!$BB$15:$BB$251,calc!AP57),"") ->  | P57: =IFERROR(INDEX(calc!$AY$15:$AY$251,calc!AP57),"") ->  | Q57: =IFERROR(INDEX(calc!$AZ$15:$AZ$251,calc!AP57),"") ->  | R57: =IFERROR(INDEX(calc!$BA$15:$BA$251,calc!AP57),"") -> 
C58: 44 | D58: =IFERROR(INDEX(calc!$AS$15:$AS$251,calc!AO58),"") ->  | E58: =IFERROR(IF(calc!AQ58>0,calc!AQ58,""),"") ->  | F58: =IFERROR(INDEX(calc!$BB$15:$BB$251,calc!AO58),"") ->  | G58: =IFERROR(INDEX(calc!$AY$15:$AY$251,calc!AO58),"") ->  | H58: =IFERROR(INDEX(calc!$AZ$15:$AZ$251,calc!AO58),"") ->  | I58: =IFERROR(INDEX(calc!$BA$15:$BA$251,calc!AO58),"") ->  | M58: =IFERROR(INDEX(calc!$AS$15:$AS$251,calc!AP58),"") ->  | N58: =IFERROR(IF(calc!AR58<0,calc!AR58,""),"") ->  | O58: =IFERROR(INDEX(calc!$BB$15:$BB$251,calc!AP58),"") ->  | P58: =IFERROR(INDEX(calc!$AY$15:$AY$251,calc!AP58),"") ->  | Q58: =IFERROR(INDEX(calc!$AZ$15:$AZ$251,calc!AP58),"") ->  | R58: =IFERROR(INDEX(calc!$BA$15:$BA$251,calc!AP58),"") -> 
C59: 45 | D59: =IFERROR(INDEX(calc!$AS$15:$AS$251,calc!AO59),"") ->  | E59: =IFERROR(IF(calc!AQ59>0,calc!AQ59,""),"") ->  | F59: =IFERROR(INDEX(calc!$BB$15:$BB$251,calc!AO59),"") ->  | G59: =IFERROR(INDEX(calc!$AY$15:$AY$251,calc!AO59),"") ->  | H59: =IFERROR(INDEX(calc!$AZ$15:$AZ$251,calc!AO59),"") ->  | I59: =IFERROR(INDEX(calc!$BA$15:$BA$251,calc!AO59),"") ->  | M59: =IFERROR(INDEX(calc!$AS$15:$AS$251,calc!AP59),"") ->  | N59: =IFERROR(IF(calc!AR59<0,calc!AR59,""),"") ->  | O59: =IFERROR(INDEX(calc!$BB$15:$BB$251,calc!AP59),"") ->  | P59: =IFERROR(INDEX(calc!$AY$15:$AY$251,calc!AP59),"") ->  | Q59: =IFERROR(INDEX(calc!$AZ$15:$AZ$251,calc!AP59),"") ->  | R59: =IFERROR(INDEX(calc!$BA$15:$BA$251,calc!AP59),"") -> 
C60: 46 | D60: =IFERROR(INDEX(calc!$AS$15:$AS$251,calc!AO60),"") ->  | E60: =IFERROR(IF(calc!AQ60>0,calc!AQ60,""),"") ->  | F60: =IFERROR(INDEX(calc!$BB$15:$BB$251,calc!AO60),"") ->  | G60: =IFERROR(INDEX(calc!$AY$15:$AY$251,calc!AO60),"") ->  | H60: =IFERROR(INDEX(calc!$AZ$15:$AZ$251,calc!AO60),"") ->  | I60: =IFERROR(INDEX(calc!$BA$15:$BA$251,calc!AO60),"") ->  | M60: =IFERROR(INDEX(calc!$AS$15:$AS$251,calc!AP60),"") ->  | N60: =IFERROR(IF(calc!AR60<0,calc!AR60,""),"") ->  | O60: =IFERROR(INDEX(calc!$BB$15:$BB$251,calc!AP60),"") ->  | P60: =IFERROR(INDEX(calc!$AY$15:$AY$251,calc!AP60),"") ->  | Q60: =IFERROR(INDEX(calc!$AZ$15:$AZ$251,calc!AP60),"") ->  | R60: =IFERROR(INDEX(calc!$BA$15:$BA$251,calc!AP60),"") -> 
C61: 47 | D61: =IFERROR(INDEX(calc!$AS$15:$AS$251,calc!AO61),"") ->  | E61: =IFERROR(IF(calc!AQ61>0,calc!AQ61,""),"") ->  | F61: =IFERROR(INDEX(calc!$BB$15:$BB$251,calc!AO61),"") ->  | G61: =IFERROR(INDEX(calc!$AY$15:$AY$251,calc!AO61),"") ->  | H61: =IFERROR(INDEX(calc!$AZ$15:$AZ$251,calc!AO61),"") ->  | I61: =IFERROR(INDEX(calc!$BA$15:$BA$251,calc!AO61),"") ->  | M61: =IFERROR(INDEX(calc!$AS$15:$AS$251,calc!AP61),"") ->  | N61: =IFERROR(IF(calc!AR61<0,calc!AR61,""),"") ->  | O61: =IFERROR(INDEX(calc!$BB$15:$BB$251,calc!AP61),"") ->  | P61: =IFERROR(INDEX(calc!$AY$15:$AY$251,calc!AP61),"") ->  | Q61: =IFERROR(INDEX(calc!$AZ$15:$AZ$251,calc!AP61),"") ->  | R61: =IFERROR(INDEX(calc!$BA$15:$BA$251,calc!AP61),"") -> 
C62: 48 | D62: =IFERROR(INDEX(calc!$AS$15:$AS$251,calc!AO62),"") ->  | E62: =IFERROR(IF(calc!AQ62>0,calc!AQ62,""),"") ->  | F62: =IFERROR(INDEX(calc!$BB$15:$BB$251,calc!AO62),"") ->  | G62: =IFERROR(INDEX(calc!$AY$15:$AY$251,calc!AO62),"") ->  | H62: =IFERROR(INDEX(calc!$AZ$15:$AZ$251,calc!AO62),"") ->  | I62: =IFERROR(INDEX(calc!$BA$15:$BA$251,calc!AO62),"") ->  | M62: =IFERROR(INDEX(calc!$AS$15:$AS$251,calc!AP62),"") ->  | N62: =IFERROR(IF(calc!AR62<0,calc!AR62,""),"") ->  | O62: =IFERROR(INDEX(calc!$BB$15:$BB$251,calc!AP62),"") ->  | P62: =IFERROR(INDEX(calc!$AY$15:$AY$251,calc!AP62),"") ->  | Q62: =IFERROR(INDEX(calc!$AZ$15:$AZ$251,calc!AP62),"") ->  | R62: =IFERROR(INDEX(calc!$BA$15:$BA$251,calc!AP62),"") -> 
C63: 49 | D63: =IFERROR(INDEX(calc!$AS$15:$AS$251,calc!AO63),"") ->  | E63: =IFERROR(IF(calc!AQ63>0,calc!AQ63,""),"") ->  | F63: =IFERROR(INDEX(calc!$BB$15:$BB$251,calc!AO63),"") ->  | G63: =IFERROR(INDEX(calc!$AY$15:$AY$251,calc!AO63),"") ->  | H63: =IFERROR(INDEX(calc!$AZ$15:$AZ$251,calc!AO63),"") ->  | I63: =IFERROR(INDEX(calc!$BA$15:$BA$251,calc!AO63),"") ->  | M63: =IFERROR(INDEX(calc!$AS$15:$AS$251,calc!AP63),"") ->  | N63: =IFERROR(IF(calc!AR63<0,calc!AR63,""),"") ->  | O63: =IFERROR(INDEX(calc!$BB$15:$BB$251,calc!AP63),"") ->  | P63: =IFERROR(INDEX(calc!$AY$15:$AY$251,calc!AP63),"") ->  | Q63: =IFERROR(INDEX(calc!$AZ$15:$AZ$251,calc!AP63),"") ->  | R63: =IFERROR(INDEX(calc!$BA$15:$BA$251,calc!AP63),"") -> 
C64: 50 | D64: =IFERROR(INDEX(calc!$AS$15:$AS$251,calc!AO64),"") ->  | E64: =IFERROR(IF(calc!AQ64>0,calc!AQ64,""),"") ->  | F64: =IFERROR(INDEX(calc!$BB$15:$BB$251,calc!AO64),"") ->  | G64: =IFERROR(INDEX(calc!$AY$15:$AY$251,calc!AO64),"") ->  | H64: =IFERROR(INDEX(calc!$AZ$15:$AZ$251,calc!AO64),"") ->  | I64: =IFERROR(INDEX(calc!$BA$15:$BA$251,calc!AO64),"") ->  | M64: =IFERROR(INDEX(calc!$AS$15:$AS$251,calc!AP64),"") ->  | N64: =IFERROR(IF(calc!AR64<0,calc!AR64,""),"") ->  | O64: =IFERROR(INDEX(calc!$BB$15:$BB$251,calc!AP64),"") ->  | P64: =IFERROR(INDEX(calc!$AY$15:$AY$251,calc!AP64),"") ->  | Q64: =IFERROR(INDEX(calc!$AZ$15:$AZ$251,calc!AP64),"") ->  | R64: =IFERROR(INDEX(calc!$BA$15:$BA$251,calc!AP64),"") -> 
C65: 51 | D65: =IFERROR(INDEX(calc!$AS$15:$AS$251,calc!AO65),"") ->  | E65: =IFERROR(IF(calc!AQ65>0,calc!AQ65,""),"") ->  | F65: =IFERROR(INDEX(calc!$BB$15:$BB$251,calc!AO65),"") ->  | G65: =IFERROR(INDEX(calc!$AY$15:$AY$251,calc!AO65),"") ->  | H65: =IFERROR(INDEX(calc!$AZ$15:$AZ$251,calc!AO65),"") ->  | I65: =IFERROR(INDEX(calc!$BA$15:$BA$251,calc!AO65),"") ->  | M65: =IFERROR(INDEX(calc!$AS$15:$AS$251,calc!AP65),"") ->  | N65: =IFERROR(IF(calc!AR65<0,calc!AR65,""),"") ->  | O65: =IFERROR(INDEX(calc!$BB$15:$BB$251,calc!AP65),"") ->  | P65: =IFERROR(INDEX(calc!$AY$15:$AY$251,calc!AP65),"") ->  | Q65: =IFERROR(INDEX(calc!$AZ$15:$AZ$251,calc!AP65),"") ->  | R65: =IFERROR(INDEX(calc!$BA$15:$BA$251,calc!AP65),"") -> 
C66: 52 | D66: =IFERROR(INDEX(calc!$AS$15:$AS$251,calc!AO66),"") ->  | E66: =IFERROR(IF(calc!AQ66>0,calc!AQ66,""),"") ->  | F66: =IFERROR(INDEX(calc!$BB$15:$BB$251,calc!AO66),"") ->  | G66: =IFERROR(INDEX(calc!$AY$15:$AY$251,calc!AO66),"") ->  | H66: =IFERROR(INDEX(calc!$AZ$15:$AZ$251,calc!AO66),"") ->  | I66: =IFERROR(INDEX(calc!$BA$15:$BA$251,calc!AO66),"") ->  | M66: =IFERROR(INDEX(calc!$AS$15:$AS$251,calc!AP66),"") ->  | N66: =IFERROR(IF(calc!AR66<0,calc!AR66,""),"") ->  | O66: =IFERROR(INDEX(calc!$BB$15:$BB$251,calc!AP66),"") ->  | P66: =IFERROR(INDEX(calc!$AY$15:$AY$251,calc!AP66),"") ->  | Q66: =IFERROR(INDEX(calc!$AZ$15:$AZ$251,calc!AP66),"") ->  | R66: =IFERROR(INDEX(calc!$BA$15:$BA$251,calc!AP66),"") -> 
C67: 53 | D67: =IFERROR(INDEX(calc!$AS$15:$AS$251,calc!AO67),"") ->  | E67: =IFERROR(IF(calc!AQ67>0,calc!AQ67,""),"") ->  | F67: =IFERROR(INDEX(calc!$BB$15:$BB$251,calc!AO67),"") ->  | G67: =IFERROR(INDEX(calc!$AY$15:$AY$251,calc!AO67),"") ->  | H67: =IFERROR(INDEX(calc!$AZ$15:$AZ$251,calc!AO67),"") ->  | I67: =IFERROR(INDEX(calc!$BA$15:$BA$251,calc!AO67),"") ->  | M67: =IFERROR(INDEX(calc!$AS$15:$AS$251,calc!AP67),"") ->  | N67: =IFERROR(IF(calc!AR67<0,calc!AR67,""),"") ->  | O67: =IFERROR(INDEX(calc!$BB$15:$BB$251,calc!AP67),"") ->  | P67: =IFERROR(INDEX(calc!$AY$15:$AY$251,calc!AP67),"") ->  | Q67: =IFERROR(INDEX(calc!$AZ$15:$AZ$251,calc!AP67),"") ->  | R67: =IFERROR(INDEX(calc!$BA$15:$BA$251,calc!AP67),"") -> 
C68: 54 | D68: =IFERROR(INDEX(calc!$AS$15:$AS$251,calc!AO68),"") ->  | E68: =IFERROR(IF(calc!AQ68>0,calc!AQ68,""),"") ->  | F68: =IFERROR(INDEX(calc!$BB$15:$BB$251,calc!AO68),"") ->  | G68: =IFERROR(INDEX(calc!$AY$15:$AY$251,calc!AO68),"") ->  | H68: =IFERROR(INDEX(calc!$AZ$15:$AZ$251,calc!AO68),"") ->  | I68: =IFERROR(INDEX(calc!$BA$15:$BA$251,calc!AO68),"") ->  | M68: =IFERROR(INDEX(calc!$AS$15:$AS$251,calc!AP68),"") ->  | N68: =IFERROR(IF(calc!AR68<0,calc!AR68,""),"") ->  | O68: =IFERROR(INDEX(calc!$BB$15:$BB$251,calc!AP68),"") ->  | P68: =IFERROR(INDEX(calc!$AY$15:$AY$251,calc!AP68),"") ->  | Q68: =IFERROR(INDEX(calc!$AZ$15:$AZ$251,calc!AP68),"") ->  | R68: =IFERROR(INDEX(calc!$BA$15:$BA$251,calc!AP68),"") -> 
C69: 55 | D69: =IFERROR(INDEX(calc!$AS$15:$AS$251,calc!AO69),"") ->  | E69: =IFERROR(IF(calc!AQ69>0,calc!AQ69,""),"") ->  | F69: =IFERROR(INDEX(calc!$BB$15:$BB$251,calc!AO69),"") ->  | G69: =IFERROR(INDEX(calc!$AY$15:$AY$251,calc!AO69),"") ->  | H69: =IFERROR(INDEX(calc!$AZ$15:$AZ$251,calc!AO69),"") ->  | I69: =IFERROR(INDEX(calc!$BA$15:$BA$251,calc!AO69),"") ->  | M69: =IFERROR(INDEX(calc!$AS$15:$AS$251,calc!AP69),"") ->  | N69: =IFERROR(IF(calc!AR69<0,calc!AR69,""),"") ->  | O69: =IFERROR(INDEX(calc!$BB$15:$BB$251,calc!AP69),"") ->  | P69: =IFERROR(INDEX(calc!$AY$15:$AY$251,calc!AP69),"") ->  | Q69: =IFERROR(INDEX(calc!$AZ$15:$AZ$251,calc!AP69),"") ->  | R69: =IFERROR(INDEX(calc!$BA$15:$BA$251,calc!AP69),"") -> 
C70: 56 | D70: =IFERROR(INDEX(calc!$AS$15:$AS$251,calc!AO70),"") ->  | E70: =IFERROR(IF(calc!AQ70>0,calc!AQ70,""),"") ->  | F70: =IFERROR(INDEX(calc!$BB$15:$BB$251,calc!AO70),"") ->  | G70: =IFERROR(INDEX(calc!$AY$15:$AY$251,calc!AO70),"") ->  | H70: =IFERROR(INDEX(calc!$AZ$15:$AZ$251,calc!AO70),"") ->  | I70: =IFERROR(INDEX(calc!$BA$15:$BA$251,calc!AO70),"") ->  | M70: =IFERROR(INDEX(calc!$AS$15:$AS$251,calc!AP70),"") ->  | N70: =IFERROR(IF(calc!AR70<0,calc!AR70,""),"") ->  | O70: =IFERROR(INDEX(calc!$BB$15:$BB$251,calc!AP70),"") ->  | P70: =IFERROR(INDEX(calc!$AY$15:$AY$251,calc!AP70),"") ->  | Q70: =IFERROR(INDEX(calc!$AZ$15:$AZ$251,calc!AP70),"") ->  | R70: =IFERROR(INDEX(calc!$BA$15:$BA$251,calc!AP70),"") -> 
C71: 57 | D71: =IFERROR(INDEX(calc!$AS$15:$AS$251,calc!AO71),"") ->  | E71: =IFERROR(IF(calc!AQ71>0,calc!AQ71,""),"") ->  | F71: =IFERROR(INDEX(calc!$BB$15:$BB$251,calc!AO71),"") ->  | G71: =IFERROR(INDEX(calc!$AY$15:$AY$251,calc!AO71),"") ->  | H71: =IFERROR(INDEX(calc!$AZ$15:$AZ$251,calc!AO71),"") ->  | I71: =IFERROR(INDEX(calc!$BA$15:$BA$251,calc!AO71),"") ->  | M71: =IFERROR(INDEX(calc!$AS$15:$AS$251,calc!AP71),"") ->  | N71: =IFERROR(IF(calc!AR71<0,calc!AR71,""),"") ->  | O71: =IFERROR(INDEX(calc!$BB$15:$BB$251,calc!AP71),"") ->  | P71: =IFERROR(INDEX(calc!$AY$15:$AY$251,calc!AP71),"") ->  | Q71: =IFERROR(INDEX(calc!$AZ$15:$AZ$251,calc!AP71),"") ->  | R71: =IFERROR(INDEX(calc!$BA$15:$BA$251,calc!AP71),"") -> 
C72: 58 | D72: =IFERROR(INDEX(calc!$AS$15:$AS$251,calc!AO72),"") ->  | E72: =IFERROR(IF(calc!AQ72>0,calc!AQ72,""),"") ->  | F72: =IFERROR(INDEX(calc!$BB$15:$BB$251,calc!AO72),"") ->  | G72: =IFERROR(INDEX(calc!$AY$15:$AY$251,calc!AO72),"") ->  | H72: =IFERROR(INDEX(calc!$AZ$15:$AZ$251,calc!AO72),"") ->  | I72: =IFERROR(INDEX(calc!$BA$15:$BA$251,calc!AO72),"") ->  | M72: =IFERROR(INDEX(calc!$AS$15:$AS$251,calc!AP72),"") ->  | N72: =IFERROR(IF(calc!AR72<0,calc!AR72,""),"") ->  | O72: =IFERROR(INDEX(calc!$BB$15:$BB$251,calc!AP72),"") ->  | P72: =IFERROR(INDEX(calc!$AY$15:$AY$251,calc!AP72),"") ->  | Q72: =IFERROR(INDEX(calc!$AZ$15:$AZ$251,calc!AP72),"") ->  | R72: =IFERROR(INDEX(calc!$BA$15:$BA$251,calc!AP72),"") -> 
C73: 59 | D73: =IFERROR(INDEX(calc!$AS$15:$AS$251,calc!AO73),"") ->  | E73: =IFERROR(IF(calc!AQ73>0,calc!AQ73,""),"") ->  | F73: =IFERROR(INDEX(calc!$BB$15:$BB$251,calc!AO73),"") ->  | G73: =IFERROR(INDEX(calc!$AY$15:$AY$251,calc!AO73),"") ->  | H73: =IFERROR(INDEX(calc!$AZ$15:$AZ$251,calc!AO73),"") ->  | I73: =IFERROR(INDEX(calc!$BA$15:$BA$251,calc!AO73),"") ->  | M73: =IFERROR(INDEX(calc!$AS$15:$AS$251,calc!AP73),"") ->  | N73: =IFERROR(IF(calc!AR73<0,calc!AR73,""),"") ->  | O73: =IFERROR(INDEX(calc!$BB$15:$BB$251,calc!AP73),"") ->  | P73: =IFERROR(INDEX(calc!$AY$15:$AY$251,calc!AP73),"") ->  | Q73: =IFERROR(INDEX(calc!$AZ$15:$AZ$251,calc!AP73),"") ->  | R73: =IFERROR(INDEX(calc!$BA$15:$BA$251,calc!AP73),"") -> 
C74: 60 | D74: =IFERROR(INDEX(calc!$AS$15:$AS$251,calc!AO74),"") ->  | E74: =IFERROR(IF(calc!AQ74>0,calc!AQ74,""),"") ->  | F74: =IFERROR(INDEX(calc!$BB$15:$BB$251,calc!AO74),"") ->  | G74: =IFERROR(INDEX(calc!$AY$15:$AY$251,calc!AO74),"") ->  | H74: =IFERROR(INDEX(calc!$AZ$15:$AZ$251,calc!AO74),"") ->  | I74: =IFERROR(INDEX(calc!$BA$15:$BA$251,calc!AO74),"") ->  | M74: =IFERROR(INDEX(calc!$AS$15:$AS$251,calc!AP74),"") ->  | N74: =IFERROR(IF(calc!AR74<0,calc!AR74,""),"") ->  | O74: =IFERROR(INDEX(calc!$BB$15:$BB$251,calc!AP74),"") ->  | P74: =IFERROR(INDEX(calc!$AY$15:$AY$251,calc!AP74),"") ->  | Q74: =IFERROR(INDEX(calc!$AZ$15:$AZ$251,calc!AP74),"") ->  | R74: =IFERROR(INDEX(calc!$BA$15:$BA$251,calc!AP74),"") -> 
C75: 61 | D75: =IFERROR(INDEX(calc!$AS$15:$AS$251,calc!AO75),"") ->  | E75: =IFERROR(IF(calc!AQ75>0,calc!AQ75,""),"") ->  | F75: =IFERROR(INDEX(calc!$BB$15:$BB$251,calc!AO75),"") ->  | G75: =IFERROR(INDEX(calc!$AY$15:$AY$251,calc!AO75),"") ->  | H75: =IFERROR(INDEX(calc!$AZ$15:$AZ$251,calc!AO75),"") ->  | I75: =IFERROR(INDEX(calc!$BA$15:$BA$251,calc!AO75),"") ->  | M75: =IFERROR(INDEX(calc!$AS$15:$AS$251,calc!AP75),"") ->  | N75: =IFERROR(IF(calc!AR75<0,calc!AR75,""),"") ->  | O75: =IFERROR(INDEX(calc!$BB$15:$BB$251,calc!AP75),"") ->  | P75: =IFERROR(INDEX(calc!$AY$15:$AY$251,calc!AP75),"") ->  | Q75: =IFERROR(INDEX(calc!$AZ$15:$AZ$251,calc!AP75),"") ->  | R75: =IFERROR(INDEX(calc!$BA$15:$BA$251,calc!AP75),"") -> 
C76: 62 | D76: =IFERROR(INDEX(calc!$AS$15:$AS$251,calc!AO76),"") ->  | E76: =IFERROR(IF(calc!AQ76>0,calc!AQ76,""),"") ->  | F76: =IFERROR(INDEX(calc!$BB$15:$BB$251,calc!AO76),"") ->  | G76: =IFERROR(INDEX(calc!$AY$15:$AY$251,calc!AO76),"") ->  | H76: =IFERROR(INDEX(calc!$AZ$15:$AZ$251,calc!AO76),"") ->  | I76: =IFERROR(INDEX(calc!$BA$15:$BA$251,calc!AO76),"") ->  | M76: =IFERROR(INDEX(calc!$AS$15:$AS$251,calc!AP76),"") ->  | N76: =IFERROR(IF(calc!AR76<0,calc!AR76,""),"") ->  | O76: =IFERROR(INDEX(calc!$BB$15:$BB$251,calc!AP76),"") ->  | P76: =IFERROR(INDEX(calc!$AY$15:$AY$251,calc!AP76),"") ->  | Q76: =IFERROR(INDEX(calc!$AZ$15:$AZ$251,calc!AP76),"") ->  | R76: =IFERROR(INDEX(calc!$BA$15:$BA$251,calc!AP76),"") -> 
C77: 63 | D77: =IFERROR(INDEX(calc!$AS$15:$AS$251,calc!AO77),"") ->  | E77: =IFERROR(IF(calc!AQ77>0,calc!AQ77,""),"") ->  | F77: =IFERROR(INDEX(calc!$BB$15:$BB$251,calc!AO77),"") ->  | G77: =IFERROR(INDEX(calc!$AY$15:$AY$251,calc!AO77),"") ->  | H77: =IFERROR(INDEX(calc!$AZ$15:$AZ$251,calc!AO77),"") ->  | I77: =IFERROR(INDEX(calc!$BA$15:$BA$251,calc!AO77),"") ->  | M77: =IFERROR(INDEX(calc!$AS$15:$AS$251,calc!AP77),"") ->  | N77: =IFERROR(IF(calc!AR77<0,calc!AR77,""),"") ->  | O77: =IFERROR(INDEX(calc!$BB$15:$BB$251,calc!AP77),"") ->  | P77: =IFERROR(INDEX(calc!$AY$15:$AY$251,calc!AP77),"") ->  | Q77: =IFERROR(INDEX(calc!$AZ$15:$AZ$251,calc!AP77),"") ->  | R77: =IFERROR(INDEX(calc!$BA$15:$BA$251,calc!AP77),"") -> 
C78: 64 | D78: =IFERROR(INDEX(calc!$AS$15:$AS$251,calc!AO78),"") ->  | E78: =IFERROR(IF(calc!AQ78>0,calc!AQ78,""),"") ->  | F78: =IFERROR(INDEX(calc!$BB$15:$BB$251,calc!AO78),"") ->  | G78: =IFERROR(INDEX(calc!$AY$15:$AY$251,calc!AO78),"") ->  | H78: =IFERROR(INDEX(calc!$AZ$15:$AZ$251,calc!AO78),"") ->  | I78: =IFERROR(INDEX(calc!$BA$15:$BA$251,calc!AO78),"") ->  | M78: =IFERROR(INDEX(calc!$AS$15:$AS$251,calc!AP78),"") ->  | N78: =IFERROR(IF(calc!AR78<0,calc!AR78,""),"") ->  | O78: =IFERROR(INDEX(calc!$BB$15:$BB$251,calc!AP78),"") ->  | P78: =IFERROR(INDEX(calc!$AY$15:$AY$251,calc!AP78),"") ->  | Q78: =IFERROR(INDEX(calc!$AZ$15:$AZ$251,calc!AP78),"") ->  | R78: =IFERROR(INDEX(calc!$BA$15:$BA$251,calc!AP78),"") -> 
C79: 65 | D79: =IFERROR(INDEX(calc!$AS$15:$AS$251,calc!AO79),"") ->  | E79: =IFERROR(IF(calc!AQ79>0,calc!AQ79,""),"") ->  | F79: =IFERROR(INDEX(calc!$BB$15:$BB$251,calc!AO79),"") ->  | G79: =IFERROR(INDEX(calc!$AY$15:$AY$251,calc!AO79),"") ->  | H79: =IFERROR(INDEX(calc!$AZ$15:$AZ$251,calc!AO79),"") ->  | I79: =IFERROR(INDEX(calc!$BA$15:$BA$251,calc!AO79),"") ->  | M79: =IFERROR(INDEX(calc!$AS$15:$AS$251,calc!AP79),"") ->  | N79: =IFERROR(IF(calc!AR79<0,calc!AR79,""),"") ->  | O79: =IFERROR(INDEX(calc!$BB$15:$BB$251,calc!AP79),"") ->  | P79: =IFERROR(INDEX(calc!$AY$15:$AY$251,calc!AP79),"") ->  | Q79: =IFERROR(INDEX(calc!$AZ$15:$AZ$251,calc!AP79),"") ->  | R79: =IFERROR(INDEX(calc!$BA$15:$BA$251,calc!AP79),"") -> 
C80: 66 | D80: =IFERROR(INDEX(calc!$AS$15:$AS$251,calc!AO80),"") ->  | E80: =IFERROR(IF(calc!AQ80>0,calc!AQ80,""),"") ->  | F80: =IFERROR(INDEX(calc!$BB$15:$BB$251,calc!AO80),"") ->  | G80: =IFERROR(INDEX(calc!$AY$15:$AY$251,calc!AO80),"") ->  | H80: =IFERROR(INDEX(calc!$AZ$15:$AZ$251,calc!AO80),"") ->  | I80: =IFERROR(INDEX(calc!$BA$15:$BA$251,calc!AO80),"") ->  | M80: =IFERROR(INDEX(calc!$AS$15:$AS$251,calc!AP80),"") ->  | N80: =IFERROR(IF(calc!AR80<0,calc!AR80,""),"") ->  | O80: =IFERROR(INDEX(calc!$BB$15:$BB$251,calc!AP80),"") ->  | P80: =IFERROR(INDEX(calc!$AY$15:$AY$251,calc!AP80),"") ->  | Q80: =IFERROR(INDEX(calc!$AZ$15:$AZ$251,calc!AP80),"") ->  | R80: =IFERROR(INDEX(calc!$BA$15:$BA$251,calc!AP80),"") -> 
C81: =C80+1 -> 67 | D81: =IFERROR(INDEX(calc!$AS$15:$AS$251,calc!AO81),"") ->  | E81: =IFERROR(IF(calc!AQ81>0,calc!AQ81,""),"") ->  | F81: =IFERROR(INDEX(calc!$BB$15:$BB$251,calc!AO81),"") ->  | G81: =IFERROR(INDEX(calc!$AY$15:$AY$251,calc!AO81),"") ->  | H81: =IFERROR(INDEX(calc!$AZ$15:$AZ$251,calc!AO81),"") ->  | I81: =IFERROR(INDEX(calc!$BA$15:$BA$251,calc!AO81),"") ->  | M81: =IFERROR(INDEX(calc!$AS$15:$AS$251,calc!AP81),"") ->  | N81: =IFERROR(IF(calc!AR81<0,calc!AR81,""),"") ->  | O81: =IFERROR(INDEX(calc!$BB$15:$BB$251,calc!AP81),"") ->  | P81: =IFERROR(INDEX(calc!$AY$15:$AY$251,calc!AP81),"") ->  | Q81: =IFERROR(INDEX(calc!$AZ$15:$AZ$251,calc!AP81),"") ->  | R81: =IFERROR(INDEX(calc!$BA$15:$BA$251,calc!AP81),"") -> 
C82: 68 | D82: =IFERROR(INDEX(calc!$AS$15:$AS$251,calc!AO82),"") ->  | E82: =IFERROR(IF(calc!AQ82>0,calc!AQ82,""),"") ->  | F82: =IFERROR(INDEX(calc!$BB$15:$BB$251,calc!AO82),"") ->  | G82: =IFERROR(INDEX(calc!$AY$15:$AY$251,calc!AO82),"") ->  | H82: =IFERROR(INDEX(calc!$AZ$15:$AZ$251,calc!AO82),"") ->  | I82: =IFERROR(INDEX(calc!$BA$15:$BA$251,calc!AO82),"") ->  | M82: =IFERROR(INDEX(calc!$AS$15:$AS$251,calc!AP82),"") ->  | N82: =IFERROR(IF(calc!AR82<0,calc!AR82,""),"") ->  | O82: =IFERROR(INDEX(calc!$BB$15:$BB$251,calc!AP82),"") ->  | P82: =IFERROR(INDEX(calc!$AY$15:$AY$251,calc!AP82),"") ->  | Q82: =IFERROR(INDEX(calc!$AZ$15:$AZ$251,calc!AP82),"") ->  | R82: =IFERROR(INDEX(calc!$BA$15:$BA$251,calc!AP82),"") -> 
C83: 69 | D83: =IFERROR(INDEX(calc!$AS$15:$AS$251,calc!AO83),"") ->  | E83: =IFERROR(IF(calc!AQ83>0,calc!AQ83,""),"") ->  | F83: =IFERROR(INDEX(calc!$BB$15:$BB$251,calc!AO83),"") ->  | G83: =IFERROR(INDEX(calc!$AY$15:$AY$251,calc!AO83),"") ->  | H83: =IFERROR(INDEX(calc!$AZ$15:$AZ$251,calc!AO83),"") ->  | I83: =IFERROR(INDEX(calc!$BA$15:$BA$251,calc!AO83),"") ->  | M83: =IFERROR(INDEX(calc!$AS$15:$AS$251,calc!AP83),"") ->  | N83: =IFERROR(IF(calc!AR83<0,calc!AR83,""),"") ->  | O83: =IFERROR(INDEX(calc!$BB$15:$BB$251,calc!AP83),"") ->  | P83: =IFERROR(INDEX(calc!$AY$15:$AY$251,calc!AP83),"") ->  | Q83: =IFERROR(INDEX(calc!$AZ$15:$AZ$251,calc!AP83),"") ->  | R83: =IFERROR(INDEX(calc!$BA$15:$BA$251,calc!AP83),"") -> 
C84: 70 | D84: =IFERROR(INDEX(calc!$AS$15:$AS$251,calc!AO84),"") ->  | E84: =IFERROR(IF(calc!AQ84>0,calc!AQ84,""),"") ->  | F84: =IFERROR(INDEX(calc!$BB$15:$BB$251,calc!AO84),"") ->  | G84: =IFERROR(INDEX(calc!$AY$15:$AY$251,calc!AO84),"") ->  | H84: =IFERROR(INDEX(calc!$AZ$15:$AZ$251,calc!AO84),"") ->  | I84: =IFERROR(INDEX(calc!$BA$15:$BA$251,calc!AO84),"") ->  | M84: =IFERROR(INDEX(calc!$AS$15:$AS$251,calc!AP84),"") ->  | N84: =IFERROR(IF(calc!AR84<0,calc!AR84,""),"") ->  | O84: =IFERROR(INDEX(calc!$BB$15:$BB$251,calc!AP84),"") ->  | P84: =IFERROR(INDEX(calc!$AY$15:$AY$251,calc!AP84),"") ->  | Q84: =IFERROR(INDEX(calc!$AZ$15:$AZ$251,calc!AP84),"") ->  | R84: =IFERROR(INDEX(calc!$BA$15:$BA$251,calc!AP84),"") -> 
C85: 71 | D85: =IFERROR(INDEX(calc!$AS$15:$AS$251,calc!AO85),"") ->  | E85: =IFERROR(IF(calc!AQ85>0,calc!AQ85,""),"") ->  | F85: =IFERROR(INDEX(calc!$BB$15:$BB$251,calc!AO85),"") ->  | G85: =IFERROR(INDEX(calc!$AY$15:$AY$251,calc!AO85),"") ->  | H85: =IFERROR(INDEX(calc!$AZ$15:$AZ$251,calc!AO85),"") ->  | I85: =IFERROR(INDEX(calc!$BA$15:$BA$251,calc!AO85),"") ->  | M85: =IFERROR(INDEX(calc!$AS$15:$AS$251,calc!AP85),"") ->  | N85: =IFERROR(IF(calc!AR85<0,calc!AR85,""),"") ->  | O85: =IFERROR(INDEX(calc!$BB$15:$BB$251,calc!AP85),"") ->  | P85: =IFERROR(INDEX(calc!$AY$15:$AY$251,calc!AP85),"") ->  | Q85: =IFERROR(INDEX(calc!$AZ$15:$AZ$251,calc!AP85),"") ->  | R85: =IFERROR(INDEX(calc!$BA$15:$BA$251,calc!AP85),"") -> 
C86: 72 | D86: =IFERROR(INDEX(calc!$AS$15:$AS$251,calc!AO86),"") ->  | E86: =IFERROR(IF(calc!AQ86>0,calc!AQ86,""),"") ->  | F86: =IFERROR(INDEX(calc!$BB$15:$BB$251,calc!AO86),"") ->  | G86: =IFERROR(INDEX(calc!$AY$15:$AY$251,calc!AO86),"") ->  | H86: =IFERROR(INDEX(calc!$AZ$15:$AZ$251,calc!AO86),"") ->  | I86: =IFERROR(INDEX(calc!$BA$15:$BA$251,calc!AO86),"") ->  | M86: =IFERROR(INDEX(calc!$AS$15:$AS$251,calc!AP86),"") ->  | N86: =IFERROR(IF(calc!AR86<0,calc!AR86,""),"") ->  | O86: =IFERROR(INDEX(calc!$BB$15:$BB$251,calc!AP86),"") ->  | P86: =IFERROR(INDEX(calc!$AY$15:$AY$251,calc!AP86),"") ->  | Q86: =IFERROR(INDEX(calc!$AZ$15:$AZ$251,calc!AP86),"") ->  | R86: =IFERROR(INDEX(calc!$BA$15:$BA$251,calc!AP86),"") -> 
C87: 73 | D87: =IFERROR(INDEX(calc!$AS$15:$AS$251,calc!AO87),"") ->  | E87: =IFERROR(IF(calc!AQ87>0,calc!AQ87,""),"") ->  | F87: =IFERROR(INDEX(calc!$BB$15:$BB$251,calc!AO87),"") ->  | G87: =IFERROR(INDEX(calc!$AY$15:$AY$251,calc!AO87),"") ->  | H87: =IFERROR(INDEX(calc!$AZ$15:$AZ$251,calc!AO87),"") ->  | I87: =IFERROR(INDEX(calc!$BA$15:$BA$251,calc!AO87),"") ->  | M87: =IFERROR(INDEX(calc!$AS$15:$AS$251,calc!AP87),"") ->  | N87: =IFERROR(IF(calc!AR87<0,calc!AR87,""),"") ->  | O87: =IFERROR(INDEX(calc!$BB$15:$BB$251,calc!AP87),"") ->  | P87: =IFERROR(INDEX(calc!$AY$15:$AY$251,calc!AP87),"") ->  | Q87: =IFERROR(INDEX(calc!$AZ$15:$AZ$251,calc!AP87),"") ->  | R87: =IFERROR(INDEX(calc!$BA$15:$BA$251,calc!AP87),"") -> 
C88: 74 | D88: =IFERROR(INDEX(calc!$AS$15:$AS$251,calc!AO88),"") ->  | E88: =IFERROR(IF(calc!AQ88>0,calc!AQ88,""),"") ->  | F88: =IFERROR(INDEX(calc!$BB$15:$BB$251,calc!AO88),"") ->  | G88: =IFERROR(INDEX(calc!$AY$15:$AY$251,calc!AO88),"") ->  | H88: =IFERROR(INDEX(calc!$AZ$15:$AZ$251,calc!AO88),"") ->  | I88: =IFERROR(INDEX(calc!$BA$15:$BA$251,calc!AO88),"") ->  | M88: =IFERROR(INDEX(calc!$AS$15:$AS$251,calc!AP88),"") ->  | N88: =IFERROR(IF(calc!AR88<0,calc!AR88,""),"") ->  | O88: =IFERROR(INDEX(calc!$BB$15:$BB$251,calc!AP88),"") ->  | P88: =IFERROR(INDEX(calc!$AY$15:$AY$251,calc!AP88),"") ->  | Q88: =IFERROR(INDEX(calc!$AZ$15:$AZ$251,calc!AP88),"") ->  | R88: =IFERROR(INDEX(calc!$BA$15:$BA$251,calc!AP88),"") -> 
C89: 75 | D89: =IFERROR(INDEX(calc!$AS$15:$AS$251,calc!AO89),"") ->  | E89: =IFERROR(IF(calc!AQ89>0,calc!AQ89,""),"") ->  | F89: =IFERROR(INDEX(calc!$BB$15:$BB$251,calc!AO89),"") ->  | G89: =IFERROR(INDEX(calc!$AY$15:$AY$251,calc!AO89),"") ->  | H89: =IFERROR(INDEX(calc!$AZ$15:$AZ$251,calc!AO89),"") ->  | I89: =IFERROR(INDEX(calc!$BA$15:$BA$251,calc!AO89),"") ->  | M89: =IFERROR(INDEX(calc!$AS$15:$AS$251,calc!AP89),"") ->  | N89: =IFERROR(IF(calc!AR89<0,calc!AR89,""),"") ->  | O89: =IFERROR(INDEX(calc!$BB$15:$BB$251,calc!AP89),"") ->  | P89: =IFERROR(INDEX(calc!$AY$15:$AY$251,calc!AP89),"") ->  | Q89: =IFERROR(INDEX(calc!$AZ$15:$AZ$251,calc!AP89),"") ->  | R89: =IFERROR(INDEX(calc!$BA$15:$BA$251,calc!AP89),"") -> 
